Workbook

Sheet Introduction
F12: Utility-Scale Solar, 2021 Edition
F14: Mark Bolinger1, Joachim Seel1, Cody Warner, Dana Robson
F17: Lawrence Berkeley National Laboratory
F18: 1 Corresponding authors
F20: September 2021
F24: For additional details and related products, see: utilityscalesolar.lbl.gov
F26: Contact the corresponding authors: Mark Bolinger (mabolinger@lbl.gov) and Joachim Seel (jseel@lbl.gov)
A28: Photo source: Enel Green Power - Roadrunner Solar Project
A30: Purpose, Scope, and Data
A31: Summarize publicly available data on key trends in the U.S. utility-scale solar power sector. Focus on ground-mounted projects >5 MWAC in size (projects below this capacity threshold, as well as rooftop projects, are covered under LBNL's Tracking the Sun series). Focus on historical data, with some emphasis on the most recent year. Data sources include EIA, FERC, SEC, trade press, developers/owners.
A33: Outline of Data File
A34: • Deployment and technology trends
A35: • Installed costs
A36: • Performance (capacity factors)
A37: • Power purchase agreement (PPA) prices and LCOE
A38: • Wholesale market value
A39: • PV, PV+battery, and concentrating solar thermal power (CSP) plants
A40: • Capacity in interconnection queues
A42: Acknowledgments
A43: This work was funded by the Solar Energy Technologies Office, Office of Energy Efficiency and Renewable Energy of the U.S. Department of Energy under Contract No. DE-AC02-05CH11231. The authors are solely responsible for any omissions or errors contained herein.
A45: Disclaimer
A46: This document was prepared as an account of work sponsored by the United States Government. While this document is believed to contain correct information, neither the United States Government nor any agency thereof, nor The Regents of the University of California, nor any of their employees, makes any warranty, express or implied, or assumes any legal responsibility for the accuracy, completeness, or usefulness of any information, apparatus, product, or process disclosed, or represents that its use would not infringe privately owned rights. Reference herein to any specific commercial product, process, or service by its trade name, trademark, manufacturer, or otherwise, does not necessarily constitute or imply its endorsement, recommendation, or favoring by the United States Government or any agency thereof, or The Regents of the University of California. The views and opinions of authors expressed herein do not necessarily state or reflect those of the United States Government or any agency thereof, or The Regents of the University of California.
A48: Ernest Orlando Lawrence Berkeley National Laboratory is an equal opportunity employer.
A50: Copyright Notice
A51: This manuscript has been authored by an author at Lawrence Berkeley National Laboratory under Contract No. DE-AC02-05CH11231 with the U.S. Department of Energy. The U.S. Government retains, and the publisher, by accepting the article for publication, acknowledges, that the U.S. Government retains a non-exclusive, paid-up, irrevocable, worldwide license to publish or reproduce the published form of this manuscript, or allow others to do so, for U.S. Government purposes.

Sheet Table of Contents
B2: Table of Contents
B4: # | C4: Sheet Name
B5: 1 | C5: Introduction
B6: 2 | C6: Regional Definitions
B7: 3 | C7: PV Capacity by Sector
B8: 4 | C8: Capacity Additions by Gen Type
B9: 5 | C9: State Solar Market Penetration
B10: 6 | C10: PV Capacity by Region
B11: 7 | C11: PV Capacity by Technology
B12: 8 | C12: PV Irradiance
B13: 9 | C13: PV ILR
B14: 10 | C14: CapEx Trend (PV-only)
B15: 11 | C15: CapEx by Size (PV-only)
B16: 12 | C16: CapEx Trend by Mount Type (PV)
B17: 13 | C17: CapEx Trend by Region (PV only)
B18: 14 | C18: CapEx Trend by State (PV only)
B19: 15 | C19: Storage CapEx
B20: 16 | C20: CSP CapEx
B21: 17 | C21: O&M Cost Time Trend
B22: 18 | C22: CF by GHI, Mount, ILR
B23: 19 | C23: CF by Region
B24: 20 | C24: CF by Project Vintage
B25: 21 | C25: CF by Project Age
B26: 22 | C26: Inter-Annual Variability
B27: 23 | C27: CF for CSP Plants
B28: 24 | C28: PPA Price by Project (PV only)
B29: 25 | C29: PPA Price for CSP Plants
B30: 26 | C30: Annual Average PPA Price
B31: 27 | C31: LevelTen Solar PPA Prices
B32: 28 | C32: PV+Battery Hybrid Project Specs
B33: 29 | C33: PV+Battery Hybrid PPA Price
B34: 30 | C34: LCOE of Utility-Scale PV
B35: 31 | C35: LCOE vs. PPA Price
B36: 32 | C36: PV & Wind PPAs vs. Gas
B37: 33 | C37: Recent PV PPAs vs. Gas Forecast
B38: 34 | C38: PV Curtailment
B39: 35 | C39: Energy and Capacity Value
B40: 36 | C40: Solar Value vs. PPA Prices
B41: 37 | C41: Value Factor vs. Penetration
B42: 38 | C42: Value Difference vs. Flat Block
B43: 39 | C43: All Capacity in Queues
B44: 40 | C44: Solar GW in Queues by Region
B45: 41 | C45: All Hybrid Capacity in Queues
B46: 42 | C46: Gen+Storage Hybrids in Queues
B47: 43 | C47: Individual_Project_Data

Sheet Regional Definitions
A1: Regional boundaries overlaid on a map of average annual global horizontal irradiance (GHI)
A32: Sources: National Renewable Energy Laboratory (NREL)

Sheet PV Capacity by Sector
A1: Historical and projected PV and CSP capacity by sector in the United States
A23: Sources: Total U.S. PV capacity additions are based on Wood Mackenzie and SEIA (2010 - 2019), IREC's data collection, LBNL's Tracking the Sun Database and LBNL's Utility-Scale Solar Database.
A24: Note: Wood Mackenzie and SEIA's definition of utility-scale PV capacity differs from LBNL both in size threshholds and treatment of project phase completion.
A26: Installation Year | B26: Residential PV | D26: Commercial PV | F26: Utility PV | H26: Utility CSP
B27: Annual Capacity MWDC | C27: Cumulative Capacity MWDC | D27: Annual Capacity MWDC | E27: Cumulative Capacity MWDC | F27: Annual Capacity MWDC | G27: Cumulative Capacity MWDC | H27: Annual Capacity MWAC | I27: Cumulative Capacity MWAC
A28: 2007 | B28: 58 | C28: 191.1279753 | D28: 93 | E28: 263.74 | F28: 9 | G28: 13.66 | H28: 68.5 | I28: 425.1
A29: 2008 | B29: 77 | C29: =B29+C28 -> 268.1279753 | D29: 190 | E29: =E28+D29 -> 453.74 | F29: 21.5 | G29: =G28+F29 -> 35.16 | H29: 0 | I29: =I28+H29 -> 425.1
A30: 2009 | B30: 157 | C30: =B30+C29 -> 425.1279753 | D30: 208 | E30: =E29+D30 -> 661.74 | F30: 69.5 | G30: =G29+F30 -> 104.66 | H30: 0 | I30: =I29+H30 -> 425.1
A31: 2010 | B31: 245.5368856 | C31: 670.6648609 | D31: 336.801075 | E31: 998.541075 | F31: 266.5 | G31: 371.16 | H31: 75 | I31: 500.1
A32: 2011 | B32: 305.1750616 | C32: 975.8399225 | D32: 849.9675328 | E32: 1848.508608 | F32: 785.59461 | G32: 1156.75461 | H32: 0 | I32: 500.1
A33: 2012 | B33: 495.5294727 | C33: 1471.369395 | D33: 1075.149534 | E33: 2923.658142 | F33: 1803.176 | G33: 2959.93061 | H33: 0 | I33: 500.1
A34: 2013 | B34: 798.950417 | C34: 2270.319812 | D34: 1109.341613 | E34: 4032.999755 | F34: 2857.51 | G34: 5817.44061 | H34: 250 | I34: 750.1
A35: 2014 | B35: 1267.734564 | C35: 3538.054376 | D35: 1055.174005 | E35: 5088.17376 | F35: 3921.941 | G35: 9739.38161 | H35: 877 | I35: 1627.1
A36: 2015 | B36: 2171.399164 | C36: 5709.453541 | D36: 1069.678716 | E36: 6157.852476 | F36: 4267.98 | G36: 14007.36161 | H36: 110 | I36: 1737.1
A37: 2016 | B37: 2638.232183 | C37: 8347.685724 | D37: 1714.8634 | E37: 7872.715876 | F37: 10750.84843 | G37: 24758.21004 | H37: 0 | I37: 1737.1
A38: 2017 | B38: 2238.912364 | C38: 10586.59809 | D38: 2365.589884 | E38: 10238.30576 | F38: 6475.562176 | G38: 31233.77221 | H38: 0 | I38: 1737.1
A39: 2018 | B39: 2435.604484 | C39: 13022.20257 | D39: 2200.377091 | E39: 12438.68285 | F39: 6118.775097 | G39: 37352.54731 | H39: 0 | I39: 1737.1
A40: 2019 | B40: 2865.380862 | C40: 15887.58343 | D40: 2156.503698 | E40: 14595.18655 | F40: 8462.272038 | G40: 45814.81935 | H40: 0 | I40: 1737.1
A41: 2020 | B41: 3194.197608 | C41: 19081.78104 | D41: 2073.934156 | E41: 16669.12071 | F41: 13952.98169 | G41: 59767.80103 | H41: 0 | I41: =I40 -> 1737.1
A42: 2021e | B42: 3781.675147 | C42: 22863.45619 | D42: 2594.343904 | E42: 19263.46461 | F42: 17451.20872 | G42: 77219.00975 | I42: 1737.1
A43: 2022e | B43: 4294.500322 | C43: 27157.95651 | D43: 2676.896549 | E43: 21940.36116 | F43: 18518.7914 | G43: 95737.80115 | I43: 1737.1
A44: 2023e | B44: 4705.617419 | C44: 31863.57393 | D44: 2732.706676 | E44: 24673.06783 | F44: 19305.11652 | G44: 115042.9177 | I44: 1737.1
A45: 2024e | B45: 4203.5294 | C45: 36067.10333 | D45: 2690.11541 | E45: 27363.18324 | F45: 17210.50288 | G45: 132253.4206 | I45: 1737.1
A46: 2025e | B46: 4571.624366 | C46: 40638.7277 | D46: 2665.331287 | E46: 30028.51453 | F46: 17464.77698 | G46: 149718.1975 | I46: 1737.1
A47: 2026e | B47: 4972.185743 | C47: 45610.91344 | D47: 2844.750324 | E47: 32873.26485 | F47: 19019.60784 | G47: 168737.8054 | I47: 1737.1
A48: 2027e | B48: 5404.030212 | C48: 51014.94365 | D48: 3083.443118 | E48: 35956.70797 | F48: 23086.26215 | G48: 191824.0675 | I48: 1737.1
A49: 2028e | B49: 6051.350975 | C49: 57066.29463 | D49: 3700.821265 | E49: 39657.52924 | F49: 29907.35562 | G49: 221731.4231 | I49: 1737.1
A50: 2029e | B50: 6769.334614 | C50: 63835.62924 | D50: 4042.074019 | E50: 43699.60326 | F50: 35890.96345 | G50: 257622.3866 | I50: 1737.1
A51: 2030e | B51: 7597.300091 | C51: 71432.92933 | D51: 4642.941582 | E51: 48342.54484 | F51: 41807.47447 | G51: 299429.8611 | I51: 1737.1

Sheet Capacity Additions by Gen Type
A1: Annual capacity additions of different generator types
A21: Sources: ABB, AWEA WindIQ, Wood Mackenzie, Berkeley Lab
B23: Nameplate Capacity Additions (GW-AC)
A24: Generation Type | B24: 1998 | C24: 1999 | D24: 2000 | E24: 2001 | F24: 2002 | G24: 2003 | H24: 2004 | I24: 2005 | J24: 2006 | K24: 2007 | L24: 2008 | M24: 2009 | N24: 2010 | O24: 2011 | P24: 2012 | Q24: 2013 | R24: 2014 | S24: 2015 | T24: 2016 | U24: 2017 | V24: 2018 | W24: 2019 | X24: 2020
A25: Wind | B25: 0.14232 | C25: 0.88527 | D25: 0.070855 | E25: 1.690456 | F25: 0.410608 | G25: 1.664856 | H25: 0.396398 | I25: 2.374415 | J25: 2.45345 | K25: 5.2525 | L25: 8.362435 | M25: 10.005193 | N25: 5.21999 | O25: 6.81955 | P25: 13.00807 | Q25: 1.08651 | R25: 4.853838 | S25: 8.59765 | T25: 8.202622 | U25: 7.01652 | V25: 7.588085 | W25: 9.13665 | X25: 16.83581
A26: Utility-Scale Solar | B26: 0 | C26: 0 | D26: 0 | E26: 0 | F26: 0 | G26: 0 | H26: 0 | I26: 0 | J26: 0 | K26: 0.07172886486 | L26: 0.0137402042 | M26: 0.06180824022 | N26: 0.2989133133 | O26: 0.658086365 | P26: 1.423992716 | Q26: 2.599014954 | R26: 3.80320939 | S26: 3.365227134 | T26: 8.186343614 | U26: 4.875798792 | V26: 4.500289501 | W26: 6.171780351 | X26: 10.7437959
A27: Distributed Solar | B27: 0.00161169192 | C27: 0.002457953912 | D27: 0.003392273543 | E27: 0.00987426228 | F27: 0.01977209941 | G27: 0.03949361604 | H27: 0.05021548487 | I27: 0.06887647383 | J27: 0.09203530139 | K27: 0.13137 | L27: 0.24534 | M27: 0.32799 | N27: 0.50895 | O27: 0.98745 | P27: 1.36242 | Q27: 1.65648 | R27: 2.02014 | S27: 2.81184 | T27: 3.78015 | U27: 3.90978 | V27: 4.03419 | W27: 4.23777 | X27: 4.541149068
A28: Other RE | B28: 0.349387 | C28: 0.40942 | D28: 0.17577 | E28: 0.62294 | F28: 0.421315 | G28: 0.33204 | H28: 0.208315 | I28: 0.1147 | J28: 0.41684 | K28: 0.544695 | L28: 0.469208 | M28: 0.69136 | N28: 0.419086 | O28: 0.797348 | P28: 1.153598 | Q28: 1.456547 | R28: 0.681575 | S28: 0.497537 | T28: 0.515103 | U28: 0.526833 | V28: 0.378 | W28: 0.303573 | X28: 0.26381
A29: Gas | B29: 3.0109 | C29: 10.600925 | D29: 29.220833 | E29: 49.3293 | F29: 71.361145 | G29: 55.044326 | H29: 27.25453 | I29: 19.43669 | J29: 10.77198 | K29: 8.404936 | L29: 10.500352 | M29: 12.027325 | N29: 7.362212 | O29: 12.014277 | P29: 9.750338 | Q29: 7.866398 | R29: 8.99101 | S29: 6.5601 | T29: 9.2747 | U29: 12.37692 | V29: 21.702492 | W29: 8.800807 | X29: 7.8407
A30: Coal | B30: 0.0705 | C30: 0.3712 | D30: 0.1805 | E30: 0 | F30: 0.5242 | G30: 0.09 | H30: 0.742 | I30: 0.3727 | J30: 0.6047 | K30: 1.513504 | L30: 1.591 | M30: 3.5987 | N30: 6.014298 | O30: 1.734999 | P30: 4.76 | Q30: 1.8125 | R30: 0.1062 | S30: 0.0055 | T30: 0 | U30: 0 | V30: 0 | W30: 0.017 | X30: 0
A31: Other non-RE | B31: 0.22756 | C31: 0.301923 | D31: 1.334302 | E31: 0.8177 | F31: 1.18125 | G31: 0.4059 | H31: 0.524 | I31: 0.25727 | J31: 0.344698 | K31: 0.370585 | L31: 0.144001 | M31: 0.251685 | N31: 1.1883 | O31: 0.845975 | P31: 0.30598 | Q31: 0.13889 | R31: 0.185948 | S31: 0.1881 | T31: 1.4283 | U31: 0.11055 | V31: 0.0802 | W31: 0.0903 | X31: 0.03
A32: Total | B32: =SUM(B25:B31) -> 3.802278692 | C32: =SUM(C25:C31) -> 12.57119595 | D32: 30.98565227 | E32: 52.47027026 | F32: 73.9182901 | G32: 57.57661562 | H32: 29.17545848 | I32: 22.62465147 | J32: 14.6837033 | K32: 16.28931886 | L32: 21.3260762 | M32: 26.96406124 | N32: 21.01174931 | O32: 23.85768537 | P32: 31.76439872 | Q32: 16.61633995 | R32: 20.64192039 | S32: 22.02595413 | T32: 31.38721861 | U32: 28.81640179 | V32: 38.2832565 | W32: =SUM(W25:W31) -> 28.75788035 | X32: 40.25526497
A33: Utility-Scale Solar % of Total | B33: =B26/B32 -> 0 | C33: =C26/C32 -> 0 | D33: 0 | E33: 0 | F33: 0 | G33: 0 | H33: 0 | I33: 0 | J33: 0 | K33: 0.004403429355 | L33: 0.0006442912455 | M33: 0.00229224521 | N33: 0.01422600798 | O33: 0.02758383116 | P33: 0.04482983383 | Q33: 0.156413203 | R33: 0.1842468781 | S33: 0.1527846246 | T33: 0.2608177461 | U33: 0.1692022074 | V33: 0.1175524214 | W33: =W26/W32 -> 0.214611796 | X33: 0.266891695
A34: Distributed Solar % of Total | B34: =B27/B32 -> 0.0004238752733 | C34: =C27/C32 -> 0.0001955226791 | D34: 0.0001094788489 | E34: 0.0001881877534 | F34: 0.0002674858872 | G34: 0.0006859315299 | H34: 0.001721154953 | I34: 0.003044310933 | J34: 0.006267853517 | K34: 0.008064793936 | L34: 0.01150422598 | M34: 0.01216396881 | N34: 0.0242221622 | O34: 0.04138917858 | P34: 0.04289141476 | Q34: 0.09968982367 | R34: 0.09786589435 | S34: 0.127660304 | T34: 0.1204359662 | U34: 0.1356789799 | V34: 0.1053773991 | W34: =W27/W32 -> 0.1473603043 | X34: 0.1128088232
A35: Total Solar % of Total | B35: =SUM(B26:B27)/B32 -> 0.0004238752733 | C35: =SUM(C26:C27)/C32 -> 0.0001955226791 | D35: 0.0001094788489 | E35: 0.0001881877534 | F35: 0.0002674858872 | G35: 0.0006859315299 | H35: 0.001721154953 | I35: 0.003044310933 | J35: 0.006267853517 | K35: 0.01246822329 | L35: 0.01214851723 | M35: 0.01445621402 | N35: 0.03844817018 | O35: 0.06897300974 | P35: 0.08772124859 | Q35: 0.2561030266 | R35: 0.2821127724 | S35: 0.2804449286 | T35: 0.3812537123 | U35: 0.3048811873 | V35: 0.2229298205 | W35: =SUM(W26:W27)/W32 -> 0.3619721003 | X35: 0.3797005182

Sheet State Solar Market Penetration
A1: U.S. solar penetration rankings in 2020: the top 20 states
A3: State | B3: Solar generation as a % of in-state generation | D3: Solar generation as a % of in-state load
B5: All Solar | C5: Utility-Scale Solar Only | D5: All Solar | E5: Utility-Scale Solar Only
A7: California | B7: 0.2268912328 | C7: 0.1442005973 | D7: 0.1937905648 | E7: 0.1231634861
A8: Massachusetts | B8: 0.188738521 | C8: 0.07564040599 | D8: 0.07896067132 | E8: 0.03164492973
A9: Hawaii | B9: 0.1653065098 | C9: 0.05010438413 | D9: 0.1999311374 | E9: 0.06059910479
A10: Nevada | B10: 0.1484184327 | C10: 0.1272261557 | D10: 0.1612962525 | E10: 0.1382651855
A11: Vermont | B11: 0.1432506887 | C11: 0.07438016529 | D11: 0.06874409821 | E11: 0.03569405099
A12: Utah | B12: 0.08081264108 | C12: 0.06628601779 | D12: 0.09789917318 | E12: 0.08030112923
A13: Arizona | B13: 0.07926932201 | C13: 0.05329044983 | D13: 0.1094441923 | E13: 0.07357613376
A14: North Carolina | B14: 0.07475485267 | C14: 0.07185893672 | D14: 0.07131838868 | E14: 0.06855559734
A15: New Jersey | B15: 0.06432008499 | C15: 0.02485626797 | D15: 0.0576901519 | E15: 0.02229415392
A16: Rhode Island | B16: 0.06072631073 | C16: 0.02477152477 | D16: 0.06900792566 | E16: 0.0281497677
A17: New Mexico | B17: 0.05947687969 | C17: 0.0488878658 | D17: 0.08209221971 | E17: 0.06747686564
A18: Maryland | B18: 0.04367177385 | C18: 0.01629261977 | D18: 0.02814037161 | E18: 0.0104983227
A19: Colorado | B19: 0.040433476 | C19: 0.0275749021 | D19: 0.03937915743 | E19: 0.02685587583
A20: Delaware | B20: 0.03615863142 | C20: 0.01166407465 | D20: 0.0170720514 | E20: 0.005507113355
A21: Georgia | B21: 0.03536552739 | C21: 0.03261487526 | D21: 0.03174698479 | E21: 0.02927777486
A22: Idaho | B22: 0.03357017815 | C22: 0.02903923386 | D22: 0.02688992453 | E22: 0.02326060956
A23: Minnesota | B23: 0.03330863413 | C23: 0.03101513708 | D23: 0.03023315398 | E23: 0.02815142198
A24: Florida | B24: 0.03061684285 | C24: 0.02615471116 | D24: 0.03231386281 | E24: 0.02760440559
A25: New York | B25: 0.02548368359 | C25: 0.00835555026 | D25: 0.02458280353 | E25: 0.008060171117
A26: Connecticut | B26: 0.02305214175 | C26: 0.005417014676 | D26: 0.03576055973 | E26: 0.008403361345
A27: Rest of U.S. | B27: 0.008128685916 | C27: 0.005851647351 | D27: 0.009753424559 | E27: 0.007021257995
A28: TOTAL U.S. | B28: 0.03273827745 | C28: 0.02243346045 | D28: 0.03619714489 | E28: 0.02480360244
A30: Source: EIA

Sheet PV Capacity by Region
A1: Annual and cumulative utility-scale PV capacity by region
A23: Sources: Berkeley Lab: Capacity Information, NREL: Long-Term Annual Average Solar Resource
B25: Annual Capacity Additions (MWAC) | M25: State-level Statistics (MWAC)
A26: Solar COD | B26: CAISO | C26: ERCOT | D26: HI | E26: ISO-NE | F26: MISO | G26: NYISO | H26: PJM | I26: SPP | J26: Southeast (non-ISO) | K26: West (non-ISO) | M26: State | N26: Cumulative Capacity | O26: 2020 Annual Capacity | P26: 2020 Annual New Project Count
A27: 2007 | K27: 18.9 | M27: CA | N27: 12331.8 | O27: 1610.4 | P27: 19
A28: 2008 | B28: 10 | M28: TX | N28: 4869.03 | O28: 2495.4 | P28: 16
A29: 2009 | B29: 21 | J29: 25 | M29: FL | N29: 3719.46 | O29: 1639.4 | P29: 22
A30: 2010 | B30: 48 | C30: 13.9 | H30: 23.43 | J30: 40.1 | K30: 49.64 | M30: NC | N30: 2702.61 | O30: 360.9 | P30: 9
A31: 2011 | B31: 95 | C31: 30 | G31: 31.5 | H31: 73.58 | I31: 49.86 | J31: 5.5 | K31: 199.71 | M31: NV | N31: 2276.13 | O31: 154.6 | P31: 4
A32: 2012 | B32: 425.42 | C32: 30.4 | D32: 5.76 | H32: 107.4 | J32: 40.1 | K32: 352.06 | M32: GA | N32: 2087.46 | O32: 687.4 | P32: 8
A33: 2013 | B33: 900.1 | C33: 50.7 | F33: 38.8 | H33: 17.3 | J33: 43.65 | K33: 293.24 | M33: AZ | N33: 1980.34 | O33: 290.5 | P33: 3
A34: 2014 | B34: 2676.44 | C34: 39.6 | D34: 12 | E34: 20.25 | F34: 16.71 | H34: 102.45 | J34: 61.68 | K34: 254.95 | M34: VA | N34: 1279.1 | O34: 651.1 | P34: 13
A35: 2015 | B35: 1337.16 | C35: 130.26 | D35: 22.2 | F35: 20.4 | H35: 246.15 | J35: 415.1 | K35: 715.41 | M35: UT | N35: 1147.06 | O35: 279 | P35: 3
A36: 2016 | B36: 3097.19 | C36: 263.9 | D36: 6.5 | E36: 26.61 | F36: 110.6 | G36: 9.5 | H36: 368.79 | I36: 165 | J36: 1334.89 | K36: 2047.78 | M36: SC | N36: 996.59 | O36: 415.79 | P36: 11
A37: 2017 | B37: 528.89 | C37: 660.75 | D37: 45.6 | E37: 27.2 | F37: 273.29 | G37: 15 | H37: 472.79 | I37: 18.68 | J37: 1200.68 | K37: 835.84 | M37: NM | N37: 665.3 | O37: 55 | P37: 1
A38: 2018 | B38: 835.8 | C38: 646 | D38: 20 | E38: 64.59 | F38: 111.62 | G38: 32.6 | H38: 360.9 | I38: 18.4 | J38: 1377.3 | K38: 494.9 | M38: CO | N38: 547.83 | O38: 66 | P38: 2
A39: 2019 | B39: 978.8 | C39: 497.7 | D39: 129.35 | E39: 96.6 | F39: 13.2 | G39: 65 | H39: 470.13 | I39: 16 | J39: 1548.2 | K39: 755.3 | M39: NJ | N39: 470.55 | O39: 65.9 | P39: 6
A40: 2020 | B40: 1754.7 | C40: 2495.4 | D40: 14 | E40: 96.28 | F40: 440.9 | G40: 22 | H40: 1117.95 | I40: 30 | J40: 2805.59 | K40: 815.7 | M40: OR | N40: 446.2 | O40: 114.9 | P40: 11
M41: MN | N41: 262.78
B42: Cumulative Capacity (MWAC) | M42: HI | N42: 255.41 | O42: 14 | P42: 1
A43: Solar COD | B43: CAISO | C43: ERCOT | D43: HI | E43: ISO-NE | F43: MISO | G43: NYISO | H43: PJM | I43: SPP | J43: Southeast (non-ISO) | K43: West (non-ISO) | M43: ID | N43: 240
A44: 2007 | K44: 18.9 | M44: MD | N44: 218.7 | O44: 16 | P44: 2
A45: 2008 | B45: 10 | K45: 18.9 | M45: MS | N45: 207.1
A46: 2009 | B46: 31 | J46: 25 | K46: 18.9 | M46: AR | N46: 203.5 | O46: 100 | P46: 1
A47: 2010 | B47: 79 | C47: 13.9 | H47: 23.43 | J47: 65.1 | K47: 68.54 | M47: AL | N47: 198.1
A48: 2011 | B48: 174 | C48: 43.9 | G48: 31.5 | H48: 97.01 | I48: 49.86 | J48: 70.6 | K48: 268.25 | M48: MI | N48: 177.13 | O48: 105 | P48: 4
A49: 2012 | B49: 599.42 | C49: 74.3 | D49: 5.76 | G49: 31.5 | H49: 204.41 | I49: 49.86 | J49: 110.7 | K49: 620.31 | M49: NY | N49: 175.6 | O49: 22 | P49: 4
A50: 2013 | B50: 1499.52 | C50: 125 | D50: 5.76 | F50: 38.8 | G50: 31.5 | H50: 221.71 | I50: 49.86 | J50: 154.35 | K50: 913.55 | M50: IN | N50: 172.97 | O50: 23.95 | P50: 3
A51: 2014 | B51: 4175.96 | C51: 164.6 | D51: 17.76 | E51: 20.25 | F51: 55.51 | G51: 31.5 | H51: 324.16 | I51: 49.86 | J51: 216.03 | K51: 1168.5 | M51: WI | N51: 164 | O51: 164 | P51: 3
A52: 2015 | B52: 5513.12 | C52: 294.86 | D52: 39.96 | E52: 20.25 | F52: 75.91 | G52: 31.5 | H52: 570.32 | I52: 49.86 | J52: 631.13 | K52: 1883.91 | M52: TN | N52: 162.28
A53: 2016 | B53: 8610.31 | C53: 558.76 | D53: 46.46 | E53: 46.86 | F53: 186.51 | G53: 41 | H53: 939.11 | I53: 214.86 | J53: 1966.01 | K53: 3931.69 | M53: MA | N53: 89.17 | O53: 10 | P53: 2
A54: 2017 | B54: 9139.2 | C54: 1219.51 | D54: 92.06 | E54: 74.06 | F54: 459.8 | G54: 56 | H54: 1411.9 | I54: 233.54 | J54: 3166.69 | K54: 4767.52 | M54: PA | N54: 88.5 | O54: 65 | P54: 4
A55: 2018 | B55: 9975 | C55: 1865.51 | D55: 112.06 | E55: 138.65 | F55: 571.43 | G55: 88.6 | H55: 1772.8 | I55: 251.94 | J55: 4543.99 | K55: 5262.42 | M55: CT | N55: 86 | O55: 19.6 | P55: 1
A56: 2019 | B56: 10953.8 | C56: 2363.21 | D56: 241.41 | E56: 235.26 | F56: 584.63 | G56: 153.6 | H56: 2242.93 | I56: 267.94 | J56: 6092.2 | K56: 6017.72 | M56: WY | N56: 80
A57: 2020 | B57: 12708.5 | C57: 4858.61 | D57: 255.41 | E57: 331.54 | F57: 1025.53 | G57: 175.6 | H57: 3360.88 | I57: 297.95 | J57: 8897.78 | K57: 6833.42 | M57: LA | N57: 70 | O57: 70 | P57: 2
M58: RI | N58: 67.48 | O58: 17.28 | P58: 2
B59: Annual New Project Count | M59: ME | N59: 59.3 | O59: 49.4 | P59: 1
A60: Solar COD | B60: CAISO | C60: ERCOT | D60: HI | E60: ISO-NE | F60: MISO | G60: NYISO | H60: PJM | I60: SPP | J60: Southeast (non-ISO) | K60: West (non-ISO) | M60: OH | N60: 57.08
A61: 2007 | K61: 2 | M61: VT | N61: 29.59
A62: 2008 | B62: 1 | M62: IL | N62: 28.25
A63: 2009 | B63: 1 | J63: 1 | M63: KS | N63: 26 | O63: 20 | P63: 1
A64: 2010 | B64: 1 | C64: 1 | H64: 3 | J64: 3 | K64: 2 | M64: OK | N64: 25 | O64: 10 | P64: 2
A65: 2011 | B65: 6 | C65: 1 | G65: 1 | H65: 7 | I65: 5 | J65: 1 | K65: 14 | M65: DE | N65: 22
A66: 2012 | B66: 10 | C66: 3 | D66: 1 | H66: 9 | J66: 3 | K66: 18 | M66: WA | N66: 19.2
A67: 2013 | B67: 16 | C67: 2 | F67: 4 | H67: 2 | J67: 3 | K67: 11 | M67: KY | N67: 18.5
A68: 2014 | B68: 32 | C68: 1 | D68: 1 | E68: 2 | F68: 2 | H68: 9 | J68: 3 | K68: 15 | M68: MO | N68: 16.32
A69: 2015 | B69: 34 | C69: 3 | D69: 2 | F69: 3 | H69: 13 | J69: 16 | K69: 18 | M69: NE | N69: 5.76
A70: 2016 | B70: 45 | C70: 2 | D70: 1 | E70: 2 | F70: 3 | G70: 1 | H70: 23 | I70: 3 | J70: 30 | K70: 42
A71: 2017 | B71: 24 | C71: 15 | D71: 3 | E71: 4 | F71: 17 | G71: 2 | H71: 23 | I71: 3 | J71: 47 | K71: 28
A72: 2018 | B72: 7 | C72: 10 | D72: 1 | E72: 4 | F72: 4 | G72: 2 | H72: 15 | I72: 2 | J72: 29 | K72: 22
A73: 2019 | B73: 11 | C73: 9 | D73: 4 | E73: 8 | F73: 2 | G73: 5 | H73: 18 | I73: 3 | J73: 26 | K73: 22
A74: 2020 | B74: 19 | C74: 16 | D74: 1 | E74: 6 | F74: 11 | G74: 4 | H74: 33 | I74: 3 | J74: 44 | K74: 24
B76: Cumulative Project Count
A77: Solar COD | B77: CAISO | C77: ERCOT | D77: HI | E77: ISO-NE | F77: MISO | G77: NYISO | H77: PJM | I77: SPP | J77: Southeast (non-ISO) | K77: West (non-ISO)
A78: 2007 | K78: 2
A79: 2008 | B79: 1 | K79: 2
A80: 2009 | B80: 2 | J80: 1 | K80: 2
A81: 2010 | B81: 3 | C81: 1 | H81: 3 | J81: 4 | K81: 4
A82: 2011 | B82: 9 | C82: 2 | G82: 1 | H82: 10 | I82: 5 | J82: 5 | K82: 18
A83: 2012 | B83: 19 | C83: 5 | D83: 1 | G83: 1 | H83: 19 | I83: 5 | J83: 8 | K83: 36
A84: 2013 | B84: 35 | C84: 7 | D84: 1 | F84: 4 | G84: 1 | H84: 21 | I84: 5 | J84: 11 | K84: 47
A85: 2014 | B85: 67 | C85: 8 | D85: 2 | E85: 2 | F85: 6 | G85: 1 | H85: 30 | I85: 5 | J85: 14 | K85: 62
A86: 2015 | B86: 101 | C86: 11 | D86: 4 | E86: 2 | F86: 9 | G86: 1 | H86: 43 | I86: 5 | J86: 30 | K86: 80
A87: 2016 | B87: 146 | C87: 13 | D87: 5 | E87: 4 | F87: 12 | G87: 2 | H87: 66 | I87: 8 | J87: 60 | K87: 122
A88: 2017 | B88: 170 | C88: 28 | D88: 8 | E88: 8 | F88: 29 | G88: 4 | H88: 89 | I88: 11 | J88: 107 | K88: 150
A89: 2018 | B89: 177 | C89: 38 | D89: 9 | E89: 12 | F89: 33 | G89: 6 | H89: 104 | I89: 13 | J89: 136 | K89: 172
A90: 2019 | B90: 188 | C90: 47 | D90: 13 | E90: 20 | F90: 35 | G90: 11 | H90: 122 | I90: 16 | J90: 162 | K90: 194
A91: 2020 | B91: 207 | C91: 63 | D91: 14 | E91: 26 | F91: 46 | G91: 15 | H91: 155 | I91: 19 | J91: 206 | K91: 218

Sheet PV Capacity by Technology
A1: Annual and cumulative utility-scale PV capacity by module and/or mounting type
A23: Sources: Berkeley Lab
A24: Installation Year | B24: Tracking c-Si | F24: Fixed-Tilt c-Si | J24: Tracking Thin-Film | N24: Fixed-Tilt Thin-Film | R24: Total Tracking | V24: Total Fixed-Tilt | Z24: Total c-Si | AD24: Total Thin-Film
B25: Annual Project Count | C25: Cumulative Project Count | D25: Annual Capacity GWAC | E25: Cumulative Capacity GWAC | F25: Annual Project Count | G25: Cumulative Project Count | H25: Annual Capacity GWAC | I25: Cumulative Capacity GWAC | J25: Annual Project Count | K25: Cumulative Project Count | L25: Annual Capacity GWAC | M25: Cumulative Capacity GWAC | N25: Annual Project Count | O25: Cumulative Project Count | P25: Annual Capacity GWAC | Q25: Cumulative Capacity GWAC | R25: Annual Project Count | S25: Cumulative Project Count | T25: Annual Capacity GWAC | U25: Cumulative Capacity GWAC | V25: Annual Project Count | W25: Cumulative Project Count | X25: Annual Capacity GWAC | Y25: Cumulative Capacity GWAC | Z25: Annual Project Count | AA25: Cumulative Project Count | AB25: Annual Capacity GWAC | AC25: Cumulative Capacity GWAC | AD25: Annual Project Count | AE25: Cumulative Project Count | AF25: Annual Capacity GWAC | AG25: Cumulative Capacity GWAC
A26: 2007 | B26: 1 | C26: 1 | D26: 0.01 | E26: 0.01 | R26: 1 | S26: 1 | T26: 0.01 | U26: 0.01 | Z26: =B26+F26 -> 1 | AA26: =C26+G26 -> 1 | AB26: =D26+H26 -> 0.01 | AC26: 0.01 | AD26: =J26+N26 -> 0 | AE26: =K26+O26 -> 0 | AF26: =L26+P26 -> 0 | AG26: =M26+Q26 -> 0
A27: 2008 | C27: 1 | E27: 0.01 | N27: 1 | O27: 1 | P27: 0.01 | Q27: 0.01 | S27: 1 | U27: 0.01 | V27: 1 | W27: 1 | X27: 0.01 | Y27: 0.01 | Z27: =B27+F27 -> 0 | AA27: =C27+G27 -> 1 | AB27: 0 | AC27: 0.01 | AD27: =J27+N27 -> 1 | AE27: =K27+O27 -> 1 | AF27: =L27+P27 -> 0.01 | AG27: =M27+Q27 -> 0.01
A28: 2009 | B28: 1 | C28: 2 | D28: 0.02 | E28: 0.04 | N28: 1 | O28: 2 | P28: 0.02 | Q28: 0.03 | R28: 1 | S28: 2 | T28: 0.02 | U28: 0.04 | V28: 1 | W28: 2 | X28: 0.02 | Y28: 0.03 | Z28: =B28+F28 -> 1 | AA28: =C28+G28 -> 2 | AB28: 0.02 | AC28: 0.04 | AD28: 1 | AE28: 2 | AF28: 0.02 | AG28: 0.03
A29: 2010 | B29: 3 | C29: 5 | D29: 0.04 | E29: 0.08 | F29: 2 | G29: 2 | H29: 0.02 | I29: 0.02 | N29: 5 | O29: 7 | P29: 0.12 | Q29: 0.15 | R29: 3 | S29: 5 | T29: 0.04 | U29: 0.08 | V29: 7 | W29: 9 | X29: 0.13 | Y29: 0.16 | Z29: =B29+F29 -> 5 | AA29: 7 | AB29: 0.06 | AC29: 0.1 | AD29: 5 | AE29: 7 | AF29: 0.12 | AG29: 0.15
A30: 2011 | B30: 17 | C30: 22 | D30: 0.23 | E30: 0.31 | F30: 9 | G30: 11 | H30: 0.14 | I30: 0.15 | J30: 1 | K30: 1 | L30: 0.02 | M30: 0.02 | N30: 7 | O30: 14 | P30: 0.1 | Q30: 0.24 | R30: 18 | S30: 23 | T30: 0.25 | U30: 0.33 | V30: 16 | W30: 25 | X30: 0.23 | Y30: 0.39 | Z30: =B30+F30 -> 26 | AA30: =C30+G30 -> 33 | AB30: =D30+H30 -> 0.37 | AC30: =E30+I30 -> 0.46 | AD30: 8 | AE30: 15 | AF30: 0.12 | AG30: 0.26
A31: 2012 | B31: 21 | C31: 43 | D31: 0.35 | E31: 0.66 | F31: 15 | G31: 26 | H31: 0.35 | I31: 0.5 | J31: 1 | K31: 2 | L31: 0.03 | M31: 0.05 | N31: 6 | O31: 20 | P31: 0.2 | Q31: 0.44 | R31: 22 | S31: 45 | T31: 0.38 | U31: 0.71 | V31: 21 | W31: 46 | X31: 0.55 | Y31: 0.95 | Z31: 36 | AA31: 69 | AB31: 0.7 | AC31: 1.16 | AD31: 7 | AE31: 22 | AF31: 0.23 | AG31: 0.49
A32: 2013 | B32: 20 | C32: 63 | D32: 0.74 | E32: 1.4 | F32: 10 | G32: 36 | H32: 0.11 | I32: 0.61 | K32: 2 | M32: 0.05 | N32: 8 | O32: 28 | P32: 0.5 | Q32: 0.94 | R32: 20 | S32: 65 | T32: 0.74 | U32: 1.44 | V32: 18 | W32: 64 | X32: 0.61 | Y32: 1.55 | Z32: 30 | AA32: 99 | AB32: 0.85 | AC32: 2.01 | AD32: 8 | AE32: 30 | AF32: 0.5 | AG32: 0.99
A33: 2014 | B33: 29 | C33: 92 | D33: 0.75 | E33: 2.14 | F33: 18 | G33: 54 | H33: 0.2 | I33: 0.82 | J33: 11 | K33: 13 | L33: 0.53 | M33: 0.58 | N33: 5 | O33: 33 | P33: 1.68 | Q33: 2.62 | R33: 40 | S33: 105 | T33: 1.28 | U33: 2.72 | V33: 23 | W33: 87 | X33: 1.88 | Y33: 3.44 | Z33: 47 | AA33: 146 | AB33: 0.95 | AC33: 2.96 | AD33: 16 | AE33: 46 | AF33: 2.21 | AG33: 3.2
A34: 2015 | B34: 43 | C34: 135 | D34: 1.66 | E34: 3.8 | F34: 26 | G34: 80 | H34: 0.67 | I34: 1.48 | J34: 12 | K34: 25 | L34: 0.34 | M34: 0.92 | N34: 7 | O34: 40 | P34: 0.21 | Q34: 2.83 | R34: 55 | S34: 160 | T34: 1.99 | U34: 4.72 | V34: 33 | W34: 120 | X34: 0.87 | Y34: 4.31 | Z34: 69 | AA34: 215 | AB34: 2.33 | AC34: 5.28 | AD34: 19 | AE34: 65 | AF34: 0.55 | AG34: 3.75
A35: 2016 | B35: 93 | C35: 228 | D35: 4.78 | E35: 8.58 | F35: 38 | G35: 118 | H35: 0.92 | I35: 2.41 | J35: 15 | K35: 40 | L35: 1.11 | M35: 2.02 | N35: 6 | O35: 46 | P35: 0.62 | Q35: 3.45 | R35: 108 | S35: 268 | T35: 5.89 | U35: 10.61 | V35: 44 | W35: 164 | X35: 1.54 | Y35: 5.86 | Z35: 131 | AA35: 346 | AB35: 5.7 | AC35: 10.99 | AD35: 21 | AE35: 86 | AF35: 1.73 | AG35: 5.47
A36: 2017 | B36: 105 | C36: 333 | D36: 2.54 | E36: 11.12 | F36: 36 | G36: 154 | H36: 0.62 | I36: 3.03 | J36: 16 | K36: 56 | L36: 0.65 | M36: 2.68 | N36: 9 | O36: 55 | P36: 0.26 | Q36: 3.71 | R36: 121 | S36: 389 | T36: 3.2 | U36: 13.8 | V36: 45 | W36: 209 | X36: 0.88 | Y36: 6.74 | Z36: 141 | AA36: 487 | AB36: 3.16 | AC36: 14.15 | AD36: 25 | AE36: 111 | AF36: 0.91 | AG36: 6.39
A37: 2018 | B37: 41 | C37: 374 | D37: 1.75 | E37: 12.87 | F37: 33 | G37: 187 | H37: 1.22 | I37: 4.26 | J37: 21 | K37: 77 | L37: 0.94 | M37: 3.62 | N37: 1 | O37: 56 | P37: 0.05 | Q37: 3.76 | R37: 62 | S37: 451 | T37: 2.69 | U37: 16.49 | V37: 34 | W37: 243 | X37: 1.27 | Y37: 8.01 | Z37: 74 | AA37: 561 | AB37: 2.97 | AC37: 17.13 | AD37: 22 | AE37: 133 | AF37: 0.99 | AG37: 7.38
A38: 2019 | B38: 61 | C38: 435 | D38: 2.4 | E38: 15.28 | F38: 25 | G38: 212 | H38: 0.53 | I38: 4.79 | J38: 21 | K38: 98 | L38: 1.6 | M38: 5.21 | N38: 1 | O38: 57 | P38: 0.04 | Q38: 3.8 | R38: 82 | S38: 533 | T38: 4 | U38: 20.49 | V38: 26 | W38: 269 | X38: 0.57 | Y38: 8.58 | Z38: 86 | AA38: 647 | AB38: 2.93 | AC38: 20.07 | AD38: 22 | AE38: 155 | AF38: 1.64 | AG38: 9.01
A39: 2020 | B39: 97 | C39: 532 | D39: 5.96 | E39: 21.24 | F39: 26 | G39: 238 | H39: 0.76 | I39: 5.54 | J39: 33 | K39: 131 | L39: 2.55 | M39: 7.77 | N39: 4 | O39: 61 | P39: 0.24 | Q39: 4.04 | R39: 130 | S39: 663 | T39: 8.52 | U39: 29 | V39: 30 | W39: 299 | X39: 1 | Y39: 9.58 | Z39: 123 | AA39: 770 | AB39: 6.72 | AC39: 26.78 | AD39: 37 | AE39: 192 | AF39: 2.79 | AG39: 11.81

Sheet PV Irradiance
A1: Global horizontal irradiance by mounting type and installation year
K2: Graph Support | L2: Fixed-Tilt | M2: Tracking | N2: x-Axis | O2: Fixed Tilt 20th Perc Error | P2: Fixed Tilt 80th Perc Error | Q2: Tracking 20th Perc Error | R2: Tracking 80th Perc Error
K3: 2010 | L3: 0.55 | M3: 1.3 | N3: =A30&" n="&B30&" "&TEXT(ROUND(C30/1000,1),"0#.##")&" GW" -> 2010 n=10 0.2 GW | O3: 0.62 | P3: 0.5 | Q3: 0.35 | R3: 0.53
K4: 2011 | L4: =L3+2 -> 2.55 | M4: =M3+2 -> 3.3 | N4: =A31&" n="&B31&" "&TEXT(ROUND(C31/1000,1),"0#.##")&" GW" -> 2011 n=35 0.5 GW | O4: 1.32 | P4: 0.04 | Q4: 0.72 | R4: 0.2
K5: 2012 | L5: =L4+2 -> 4.55 | M5: 5.3 | N5: =A32&" n="&B32&" "&TEXT(ROUND(C32/1000,1),"#.0##")&" GW" -> 2012 n=44 1.0 GW | O5: 1.23 | P5: 0.25 | Q5: 0.44 | R5: 0.45
K6: 2013 | L6: 6.55 | M6: 7.3 | N6: =A33&" n="&B33&" "&TEXT(ROUND(C33/1000,1),"#.##")&" GW" -> 2013 n=38 1.3 GW | O6: 1.31 | P6: 0.33 | Q6: 0.49 | R6: 0.05
K7: 2014 | L7: 8.55 | M7: 9.3 | N7: 2014 n=65 3.2 GW | O7: 0.4 | P7: 1.34 | Q7: 0.31 | R7: 0.15
K8: 2015 | L8: 10.55 | M8: 11.3 | N8: 2015 n=89 2.9 GW | O8: 0.29 | P8: 0.98 | Q8: 0.47 | R8: 0.41
K9: 2016 | L9: 12.55 | M9: 13.3 | N9: 2016 n=152 7.4 GW | O9: 0.48 | P9: 0.34 | Q9: 0.75 | R9: 0.45
K10: 2017 | L10: 14.55 | M10: 15.3 | N10: 2017 n=166 4.1 GW | O10: 0.49 | P10: 0.23 | Q10: 0.28 | R10: 0.8
K11: 2018 | L11: 16.55 | M11: 17.3 | N11: 2018 n=96 4. GW | O11: 0.48 | P11: 0.49 | Q11: 0.3 | R11: 0.91
K12: 2019 | L12: 18.55 | M12: 19.3 | N12: 2019 n=108 4.6 GW | O12: 0.12 | P12: 0.84 | Q12: 0.4 | R12: 0.59
K13: 2020 | L13: 20.55 | M13: 21.3 | N13: 2020 n=161 9.6 GW | O13: 0.59 | P13: 0.48 | Q13: 0.4 | R13: 0.63
A23: Sources: Berkeley Lab: Project Information, NREL: Long-Term Annual Average Solar Resource
D25: Long-Term Average Global Horizontal Irradiance (kWh/m2/day)
A26: Installation Year | B26: All Count | C26: All Capacity MWAC | D26: All Median | E26: All 20th Percentile | F26: All 80th Percentile | G26: Fixed Tilt Median | H26: Fixed Tilt 20th Percentile | I26: Fixed Tilt 80th Percentile | J26: Tracking Median | K26: Tracking 20th Percentile | L26: Tracking 80th Percentile
A27: 2007 | B27: 2 | C27: 18.9 | D27: 5.5 | E27: 5.42 | F27: 5.57 | J27: 5.62 | K27: 5.62 | L27: 5.62
A28: 2008 | B28: 1 | C28: 10 | D28: 5.66 | E28: 5.66 | F28: 5.66 | G28: 5.66 | H28: 5.66 | I28: 5.66
A29: 2009 | B29: 2 | C29: 46 | D29: 5.36 | E29: 5.17 | F29: 5.55 | G29: 5.68 | H29: 5.68 | I29: 5.68 | J29: 5.04 | K29: 5.04 | L29: 5.04
A30: 2010 | B30: 10 | C30: 175.07 | D30: 4.76 | E30: 4 | F30: 5.36 | G30: 4.79 | H30: 4.16 | I30: 5.29 | J30: 4.48 | K30: 4.13 | L30: 5.02
A31: 2011 | B31: 35 | C31: 485.15 | D31: 5.35 | E31: 4.15 | F31: 5.65 | G31: 5.32 | H31: 4 | I31: 5.36 | J31: 5.58 | K31: 4.86 | L31: 5.78
A32: 2012 | B32: 44 | C32: 961.14 | D32: 5.32 | E32: 4.28 | F32: 5.79 | G32: 5.27 | H32: 4.04 | I32: 5.51 | J32: 5.34 | K32: 4.9 | L32: 5.8
A33: 2013 | B33: 38 | C33: 1343.79 | D33: 5.62 | E33: 4.72 | F33: 5.82 | G33: 5.35 | H33: 4.03 | I33: 5.68 | J33: 5.8 | K33: 5.31 | L33: 5.85
A34: 2014 | B34: 65 | C34: 3184.08 | D34: 5.55 | E34: 4.43 | F34: 5.84 | G34: 4.37 | H34: 3.98 | I34: 5.71 | J34: 5.69 | K34: 5.38 | L34: 5.84
A35: 2015 | B35: 89 | C35: 2886.68 | D35: 5.28 | E35: 4.43 | F35: 5.64 | G35: 4.48 | H35: 4.19 | I35: 5.47 | J35: 5.36 | K35: 4.89 | L35: 5.78
A36: 2016 | B36: 152 | C36: 7430.76 | D36: 5.06 | E36: 4.41 | F36: 5.76 | G36: 4.45 | H36: 3.97 | I36: 4.79 | J36: 5.33 | K36: 4.58 | L36: 5.78
A37: 2017 | B37: 166 | C37: 4078.72 | D37: 4.63 | E37: 4.26 | F37: 5.37 | G37: 4.44 | H37: 3.95 | I37: 4.68 | J37: 4.68 | K37: 4.4 | L37: 5.48
A38: 2018 | B38: 96 | C38: 3962.12 | D38: 4.63 | E38: 4.24 | F38: 5.3 | G38: 4.43 | H38: 3.95 | I38: 4.92 | J38: 4.69 | K38: 4.39 | L38: 5.6
A39: 2019 | B39: 108 | C39: 4570.29 | D39: 4.74 | E39: 4 | F39: 5.44 | G39: 3.93 | H39: 3.81 | I39: 4.77 | J39: 4.89 | K39: 4.5 | L39: 5.48
A40: 2020 | B40: 161 | C40: 9592.52 | D40: 4.65 | E40: 4.11 | F40: 5.28 | G40: 4.47 | H40: 3.88 | I40: 4.95 | J40: 4.72 | K40: 4.32 | L40: 5.35
A41: Total | B41: 969 | C41: 38745.23

Sheet PV ILR
A1: Inverter loading ratio by mounting type and installation year
K2: Graph Support | L2: Fixed-Tilt | M2: Tracking | N2: x-Axis | O2: Fixed Tilt 20th Perc Error | P2: Fixed Tilt 80th Perc Error | Q2: Tracking 20th Perc Error | R2: Tracking 80th Perc Error
K3: 2010 | L3: 0.55 | M3: 1.3 | N3: =A30&" n="&B30&" "&TEXT(ROUND(C30/1000,1),"0#.##")&" GW" -> 2010 n=10 0.2 GW | O3: 0 | P3: 0.01 | Q3: 0.08 | R3: 0.04
K4: 2011 | L4: =L3+2 -> 2.55 | M4: =M3+2 -> 3.3 | N4: =A31&" n="&B31&" "&TEXT(ROUND(C31/1000,1),"0#.##")&" GW" -> 2011 n=35 0.5 GW | O4: 0.06 | P4: 0.05 | Q4: 0.06 | R4: 0.07
K5: 2012 | L5: =L4+2 -> 4.55 | M5: 5.3 | N5: =A32&" n="&B32&" "&TEXT(ROUND(C32/1000,1),"#.0##")&" GW" -> 2012 n=44 1.0 GW | O5: 0.05 | P5: 0.05 | Q5: 0.09 | R5: 0.06
K6: 2013 | L6: 6.55 | M6: 7.3 | N6: =A33&" n="&B33&" "&TEXT(ROUND(C33/1000,1),"#.##")&" GW" -> 2013 n=38 1.3 GW | O6: 0.03 | P6: 0.08 | Q6: 0.03 | R6: 0.07
K7: 2014 | L7: 8.55 | M7: 9.3 | N7: 2014 n=65 3.2 GW | O7: 0.06 | P7: 0.06 | Q7: 0.05 | R7: 0.07
K8: 2015 | L8: 10.55 | M8: 11.3 | N8: 2015 n=89 2.9 GW | O8: 0.04 | P8: 0.08 | Q8: 0.06 | R8: 0.07
K9: 2016 | L9: 12.55 | M9: 13.3 | N9: 2016 n=150 7.4 GW | O9: 0.08 | P9: 0.12 | Q9: 0.06 | R9: 0.05
K10: 2017 | L10: 14.55 | M10: 15.3 | N10: 2017 n=166 4.1 GW | O10: 0.06 | P10: 0.13 | Q10: 0.08 | R10: 0.08
K11: 2018 | L11: 16.55 | M11: 17.3 | N11: 2018 n=96 4. GW | O11: 0.12 | P11: 0.14 | Q11: 0.06 | R11: 0.11
K12: 2019 | L12: 18.55 | M12: 19.3 | N12: 2019 n=108 4.6 GW | O12: 0.06 | P12: 0.18 | Q12: 0.12 | R12: 0.1
K13: 2020 | L13: 20.55 | M13: 21.3 | N13: 2020 n=161 9.6 GW | O13: 0.1 | P13: 0.11 | Q13: 0.08 | R13: 0.1
A23: Sources: Berkeley Lab
A24: Notes: The Inverter Loading Ratio describes the ratio of project capacity measured in MWDC at the inverter to the nominal inverter capacity measured in MWAC
D25: Inverter Loading Ratio
A26: Installation Year | B26: All Count | C26: All Capacity MWAC | D26: All Median | E26: All 20th Percentile | F26: All 80th Percentile | G26: Fixed Tilt Median | H26: Fixed Tilt 20th Percentile | I26: Fixed Tilt 80th Percentile | J26: Tracking Median | K26: Tracking 20th Percentile | L26: Tracking 80th Percentile
A27: 2007 | B27: 2 | C27: 18.9 | D27: 1.18 | E27: 1.18 | F27: 1.19 | J27: 1.17 | K27: 1.17 | L27: 1.17
A28: 2008 | B28: 1 | C28: 10 | D28: 1.21 | E28: 1.21 | F28: 1.21 | G28: 1.21 | H28: 1.21 | I28: 1.21
A29: 2009 | B29: 2 | C29: 46 | D29: 1.15 | E29: 1.12 | F29: 1.18 | G29: 1.2 | H29: 1.2 | I29: 1.2 | J29: 1.1 | K29: 1.1 | L29: 1.1
A30: 2010 | B30: 10 | C30: 175.07 | D30: 1.2 | E30: 1.17 | F30: 1.22 | G30: 1.19 | H30: 1.19 | I30: 1.21 | J30: 1.21 | K30: 1.13 | L30: 1.25
A31: 2011 | B31: 35 | C31: 485.15 | D31: 1.18 | E31: 1.11 | F31: 1.25 | G31: 1.23 | H31: 1.17 | I31: 1.28 | J31: 1.15 | K31: 1.09 | L31: 1.22
A32: 2012 | B32: 44 | C32: 961.14 | D32: 1.24 | E32: 1.16 | F32: 1.29 | G32: 1.24 | H32: 1.2 | I32: 1.29 | J32: 1.22 | K32: 1.13 | L32: 1.29
A33: 2013 | B33: 38 | C33: 1343.79 | D33: 1.29 | E33: 1.25 | F33: 1.36 | G33: 1.3 | H33: 1.26 | I33: 1.37 | J33: 1.29 | K33: 1.25 | L33: 1.35
A34: 2014 | B34: 65 | C34: 3184.08 | D34: 1.28 | E34: 1.22 | F34: 1.34 | G34: 1.26 | H34: 1.2 | I34: 1.33 | J34: 1.29 | K34: 1.24 | L34: 1.36
A35: 2015 | B35: 89 | C35: 2886.68 | D35: 1.3 | E35: 1.24 | F35: 1.38 | G35: 1.3 | H35: 1.26 | I35: 1.38 | J35: 1.29 | K35: 1.23 | L35: 1.36
A36: 2016 | B36: 150 | C36: 7370.3 | D36: 1.31 | E36: 1.25 | F36: 1.37 | G36: 1.3 | H36: 1.23 | I36: 1.43 | J36: 1.31 | K36: 1.25 | L36: 1.35
A37: 2017 | B37: 166 | C37: 4078.72 | D37: 1.33 | E37: 1.24 | F37: 1.41 | G37: 1.27 | H37: 1.21 | I37: 1.4 | J37: 1.33 | K37: 1.25 | L37: 1.42
A38: 2018 | B38: 96 | C38: 3962.12 | D38: 1.33 | E38: 1.26 | F38: 1.46 | G38: 1.38 | H38: 1.26 | I38: 1.52 | J38: 1.32 | K38: 1.26 | L38: 1.43
A39: 2019 | B39: 108 | C39: 4570.29 | D39: 1.32 | E39: 1.2 | F39: 1.43 | G39: 1.32 | H39: 1.26 | I39: 1.5 | J39: 1.32 | K39: 1.19 | L39: 1.41
A40: 2020 | B40: 161 | C40: 9592.52 | D40: 1.34 | E40: 1.26 | F40: 1.44 | G40: 1.34 | H40: 1.24 | I40: 1.45 | J40: 1.34 | K40: 1.26 | L40: 1.43
A41: Total | B41: 967 | C41: 38684.77

Sheet CapEx Trend (PV-only)
A1: Installed Costs by year (in both DC and AC terms)
A24: Sources: Berkeley Lab, Energy Information Administration
A27: Installed Costs 2020 $/WAC
A28: Commercial Operation Year | B28: All Count | C28: All Capacity (MWAC) | D28: All Median | E28: All 20th Percentile | F28: All 80th Percentile
A29: 2007 | B29: 2 | C29: 18.9 | D29: 10.46 | E29: 10.33 | F29: 10.59
A30: 2008 | B30: 1 | C30: 10 | D30: 4.82 | E30: 4.82 | F30: 4.82
A31: 2009 | B31: 2 | C31: 46 | D31: 5.19 | E31: 4.14 | F31: 6.25
A32: 2010 | B32: 10 | C32: 175.07 | D32: 5.38 | E32: 4.77 | F32: 6.9 | K32: geometric average
A33: 2011 | B33: 29 | C33: 427.79 | D33: 4.72 | E33: 4.08 | F33: 5.33 | J33: =1- (D32-D33)/D32 -> 0.8773234201 | K33: =PRODUCT(J33:J42)^(1/COUNT(J33:J42))-1 -> -0.1247127408
A34: 2012 | B34: 41 | C34: 929.64 | D34: 4.37 | E34: 3.68 | F34: 4.82 | J34: =1- (D33-D34)/D33 -> 0.9258474576 | K34: =(D42/D32)^(1/10)-1 -> -0.1247127408
A35: 2013 | B35: 38 | C35: 1343.79 | D35: 3.89 | E35: 3.35 | F35: 4.6 | J35: 0.8901601831
A36: 2014 | B36: 65 | C36: 3184.08 | D36: 3.3 | E36: 2.74 | F36: 4.41 | J36: 0.8483290488
A37: 2015 | B37: 87 | C37: 2869.68 | D37: 2.96 | E37: 2.33 | F37: 3.63 | J37: 0.896969697
A38: 2016 | B38: 146 | C38: 7378.69 | D38: 2.45 | E38: 2.12 | F38: 2.89 | J38: 0.8277027027
A39: 2017 | B39: 163 | C39: 4045.82 | D39: 2.27 | E39: 1.76 | F39: 2.87 | J39: 0.9265306122
A40: 2018 | B40: 94 | C40: 3949.42 | D40: 1.84 | E40: 1.49 | F40: 2.68 | J40: 0.8105726872
A41: 2019 | B41: 102 | C41: 4518.79 | D41: 1.58 | E41: 1.27 | F41: 2.27 | J41: 0.8586956522
A42: 2020 | B42: 68 | C42: 5122.77 | D42: 1.42 | E42: 1.13 | F42: 1.65 | J42: 0.8987341772
A43: Total | B43: 848 | C43: 34020.44
A45: Installed Costs 2020 $/WDC
A46: Commercial Operation Year | B46: All Count | C46: All Capacity (MWDC) | D46: All Median | E46: All 20th Percentile | F46: All 80th Percentile
A47: 2007 | B47: 2 | C47: 22.28 | D47: 8.85 | E47: 8.78 | F47: 8.92
A48: 2008 | B48: 1 | C48: 12.14 | D48: 3.97 | E48: 3.97 | F48: 3.97
A49: 2009 | B49: 2 | C49: 52.8 | D49: 4.58 | E49: 3.55 | F49: 5.61
A50: 2010 | B50: 10 | C50: 210.72 | D50: 4.67 | E50: 3.99 | F50: 5.6 | K50: geometric average
A51: 2011 | B51: 29 | C51: 516.7 | D51: 3.88 | E51: 3.43 | F51: 4.45 | J51: =1- (D50-D51)/D50 -> 0.8308351178 | K51: =PRODUCT(J51:J60)^(1/COUNT(J51:J60))-1 -> -0.1386349587
A52: 2012 | B52: 41 | C52: 1181.41 | D52: 3.54 | E52: 2.85 | F52: 3.91 | J52: =1- (D51-D52)/D51 -> 0.912371134
A53: 2013 | B53: 38 | C53: 1754.16 | D53: 3.04 | E53: 2.6 | F53: 3.51 | J53: 0.8587570621
A54: 2014 | B54: 65 | C54: 4111.96 | D54: 2.57 | E54: 2.08 | F54: 3.46 | J54: 0.8453947368
A55: 2015 | B55: 87 | C55: 3728.47 | D55: 2.25 | E55: 1.75 | F55: 2.89 | J55: 0.8754863813
A56: 2016 | B56: 145 | C56: 9611.76 | D56: 1.88 | E56: 1.6 | F56: 2.25 | J56: 0.8355555556
A57: 2017 | B57: 163 | C57: 5381.9 | D57: 1.72 | E57: 1.37 | F57: 2.02 | J57: 0.914893617
A58: 2018 | B58: 94 | C58: 5382.32 | D58: 1.35 | E58: 1.13 | F58: 2.07 | J58: 0.7848837209
A59: 2019 | B59: 102 | C59: 5980.97 | D59: 1.24 | E59: 1.01 | F59: 1.67 | J59: 0.9185185185
A60: 2020 | B60: 68 | C60: 6803.91 | D60: 1.05 | E60: 0.85 | F60: 1.25 | J60: 0.8467741935
A61: Total | B61: 847 | C61: 44751.52
A65: Graph Support | B65: x-Axis | C65: DC-Annual | D65: AC
A66: 2010 | B66: =A32&" n="&B32&" "&TEXT(ROUND(C32/1000,1),"0#.##")&" GW" -> 2010 n=10 0.2 GW | C66: 0.7 | D66: =C66+0.6 -> 1.3
A67: 2011 | B67: =A33&" n="&B33&" "&TEXT(ROUND(C33/1000,1),"0#.##")&" GW" -> 2011 n=29 0.4 GW | C67: =C66+2 -> 2.7 | D67: =C67+0.6 -> 3.3
A68: 2012 | B68: =A34&" n="&B34&" "&TEXT(ROUND(C34/1000,1),"0#.##")&" GW" -> 2012 n=41 0.9 GW | C68: =C67+2 -> 4.7 | D68: 5.3
A69: 2013 | B69: =A35&" n="&B35&" "&TEXT(ROUND(C35/1000,1),"#.##")&" GW" -> 2013 n=38 1.3 GW | C69: 6.7 | D69: 7.3
A70: 2014 | B70: 2014 n=65 3.2 GW | C70: 8.7 | D70: 9.3
A71: 2015 | B71: 2015 n=87 2.9 GW | C71: 10.7 | D71: 11.3
A72: 2016 | B72: 2016 n=146 7.4 GW | C72: 12.7 | D72: 13.3
A73: 2017 | B73: 2017 n=163 4. GW | C73: 14.7 | D73: 15.3
A74: 2018 | B74: 2018 n=94 3.9 GW | C74: 16.7 | D74: 17.3
A75: 2019 | B75: 2019 n=102 4.5 GW | C75: 18.7 | D75: 19.3
A76: 2020 | B76: 2020 n=68 5.1 GW | C76: 20.7 | D76: 21.3

Sheet CapEx by Size (PV-only)
A1: Installed costs by project size in 2020
A23: Sources: Berkeley Lab
B25: Installed Costs in $2020/WAC
A26: Project Size Bin | B26: Project Count in 2020 | C26: Project Capacity MWAC | D26: Median | E26: 20th Percentile | F26: 80th Percentile | G26: 20th Error | H26: 80th Error | I26: x-Axis
A27: 5-20 MW | B27: 15 | C27: 162 | D27: 1.55 | E27: 1.41 | F27: 1.91 | G27: 0.14 | H27: 0.36 | I27: =A27&" n="&B27&" "&TEXT(C27,"0#")&" MW" -> 5-20 MW n=15 162 MW
A28: 20-50 MW | B28: 9 | C28: 256 | D28: 1.65 | E28: 1.38 | F28: 1.97 | G28: 0.27 | H28: 0.32 | I28: =A28&" n="&B28&" "&TEXT(C28,"0#")&" MW" -> 20-50 MW n=9 256 MW
A29: 50-100 MW | B29: 32 | C29: 2303.17 | D29: 1.35 | E29: 1.07 | F29: 1.53 | G29: 0.27 | H29: 0.19 | I29: =A29&" n="&B29&" "&TEXT(C29,"0#")&" MW" -> 50-100 MW n=32 2303 MW
A30: 100-500 MW | B30: 12 | C30: 2401.6 | D30: 1.29 | E30: 1 | F30: 1.43 | G30: 0.29 | H30: 0.14 | I30: =A30&" n="&B30&" "&TEXT(C30,"0#")&" MW" -> 100-500 MW n=12 2402 MW
B32: Installed Costs in $2020/WDC
A33: Project Size Bin | B33: Project Count in 2020 | C33: Project Capacity MWDC | D33: Median | E33: 20th Percentile | F33: 80th Percentile | G33: 20th Error | H33: 80th Error | I33: x-Axis
A34: 5-20 MW | B34: 14 | C34: 180.57 | D34: 1.23 | E34: 1.09 | F34: 1.63 | G34: 0.15 | H34: 0.39 | I34: =A34&" n="&B34&" "&TEXT(C34,"0#")&" MW" -> 5-20 MW n=14 181 MW
A35: 20-50 MW | B35: 8 | C35: 254.7 | D35: 1.05 | E35: 1.03 | F35: 1.36 | G35: 0.03 | H35: 0.31 | I35: =A35&" n="&B35&" "&TEXT(C35,"0#")&" MW" -> 20-50 MW n=8 255 MW
A36: 50-100 MW | B36: 18 | C36: 1491.2 | D36: 0.95 | E36: 0.83 | F36: 1.22 | G36: 0.12 | H36: 0.27 | I36: =A36&" n="&B36&" "&TEXT(C36,"0#")&" MW" -> 50-100 MW n=18 1491 MW
A37: 100-500 MW | B37: 28 | C37: 4877.44 | D37: 0.98 | E37: 0.78 | F37: 1.11 | G37: 0.2 | H37: 0.13 | I37: =A37&" n="&B37&" "&TEXT(C37,"0#")&" MW" -> 100-500 MW n=28 4877 MW

Sheet CapEx Trend by Mount Type (PV)
A1: Installed costs by mounting type and installation year | X1: $/WAC
T2: Graph Support | U2: Fixed-Tilt | V2: Tracking | W2: x-Axis | X2: Fixed Tilt 20th Perc Error | Y2: Fixed Tilt 80th Perc Error | Z2: Tracking 20th Perc Error | AA2: Tracking 80th Perc Error
T3: 2010 | U3: 0.55 | V3: 1.3 | W3: =A30&" n="&B30&" "&TEXT(ROUND(C30/1000,1),"0#.##")&" GW" -> 2010 n=10 0.2 GW | X3: 0.98 | Y3: 0.53 | Z3: 0.92 | AA3: 1.25
T4: 2011 | U4: =U3+2 -> 2.55 | V4: =V3+2 -> 3.3 | W4: =A31&" n="&B31&" "&TEXT(ROUND(C31/1000,1),"0#.##")&" GW" -> 2011 n=29 0.4 GW | X4: 0.77 | Y4: 0.56 | Z4: 0.48 | AA4: 0.62
T5: 2012 | U5: =U4+2 -> 4.55 | V5: 5.3 | W5: =A32&" n="&B32&" "&TEXT(ROUND(C32/1000,1),"0#.0##")&" GW" -> 2012 n=41 0.9 GW | X5: 0.53 | Y5: 0.81 | Z5: 0.09 | AA5: 0.59
T6: 2013 | U6: 6.55 | V6: 7.3 | W6: =A33&" n="&B33&" "&TEXT(ROUND(C33/1000,1),"#.##")&" GW" -> 2013 n=38 1.3 GW | X6: 0.68 | Y6: 0.66 | Z6: 0.45 | AA6: 0.57
T7: 2014 | U7: 8.55 | V7: 9.3 | W7: 2014 n=65 3.2 GW | X7: 0.53 | Y7: 0.9 | Z7: 0.67 | AA7: 1.06
T8: 2015 | U8: 10.55 | V8: 11.3 | W8: 2015 n=87 2.9 GW | X8: 0.5 | Y8: 0.77 | Z8: 0.63 | AA8: 0.68
T9: 2016 | U9: 12.55 | V9: 13.3 | W9: 2016 n=146 7.4 GW | X9: 0.39 | Y9: 1.03 | Z9: 0.31 | AA9: 0.34
T10: 2017 | U10: 14.55 | V10: 15.3 | W10: =A37&" n="&B37&" "&TEXT(ROUND(C37/1000,1),"#.0")&" GW" -> 2017 n=163 4.0 GW | X10: 0.41 | Y10: 0.4 | Z10: 0.56 | AA10: 0.64
T11: 2018 | U11: 16.55 | V11: 17.3 | W11: 2018 n=94 3.9 GW | X11: 0.61 | Y11: 0.87 | Z11: 0.27 | AA11: 0.74
T12: 2019 | U12: 18.55 | V12: 19.3 | W12: 2019 n=102 4.5 GW | X12: 0.48 | Y12: 1.1 | Z12: 0.28 | AA12: 0.39
T13: 2020 | U13: 20.55 | V13: 21.3 | W13: 2020 n=68 5.1 GW | X13: 0.12 | Y13: 0.35 | Z13: 0.21 | AA13: 0.24
X18: $/WDC
W19: x-Axis | X19: Fixed Tilt 20th Perc Error | Y19: Fixed Tilt 80th Perc Error | Z19: Tracking 20th Perc Error | AA19: Tracking 80th Perc Error
W20: =A48&" n="&B48&" "&TEXT(ROUND(C48/1000,1),"0#.##")&" GW" -> 2010 n=10 0.2 GW | X20: 0.98 | Y20: 0.53 | Z20: 0.92 | AA20: 1.25
W21: =A49&" n="&B49&" "&TEXT(ROUND(C49/1000,1),"#.##")&" GW" -> 2011 n=29 .5 GW | X21: 0.77 | Y21: 0.56 | Z21: 0.48 | AA21: 0.62
W22: 2012 n=41 1.2 GW | X22: 0.53 | Y22: 0.81 | Z22: 0.09 | AA22: 0.59
A23: Sources: Berkeley Lab, Energy Information Administration | W23: 2013 n=38 1.8 GW | X23: 0.68 | Y23: 0.66 | Z23: 0.45 | AA23: 0.57
A24: Note: | W24: 2014 n=65 4.1 GW | X24: 0.53 | Y24: 0.9 | Z24: 0.67 | AA24: 1.06
D25: Installed Costs 2020 $/WAC | W25: 2015 n=87 3.7 GW | X25: 0.5 | Y25: 0.77 | Z25: 0.63 | AA25: 0.68
A26: Commercial Operation Year | B26: All Count | C26: All Capacity (MWAC) | D26: All Median | E26: All 20th Percentile | F26: All 80th Percentile | G26: Fixed Tilt Median | H26: Fixed Tilt 20th Percentile | I26: Fixed Tilt 80th Percentile | J26: Tracking Median | K26: Tracking 20th Percentile | L26: Tracking 80th Percentile | W26: 2016 n=145 9.6 GW | X26: 0.39 | Y26: 1.03 | Z26: 0.31 | AA26: 0.34
A27: 2007 | B27: 2 | C27: 18.9 | D27: 10.46 | E27: 10.33 | F27: 10.59 | J27: 10.24 | K27: 10.24 | L27: 10.24 | W27: 2017 n=163 5.4 GW | X27: 0.41 | Y27: 0.4 | Z27: 0.56 | AA27: 0.64
A28: 2008 | B28: 1 | C28: 10 | D28: 4.82 | E28: 4.82 | F28: 4.82 | G28: 4.82 | H28: 4.82 | I28: 4.82 | W28: 2018 n=94 5.4 GW | X28: 0.61 | Y28: 0.87 | Z28: 0.27 | AA28: 0.74
A29: 2009 | B29: 2 | C29: 46 | D29: 5.19 | E29: 4.14 | F29: 6.25 | G29: 3.43 | H29: 3.43 | I29: 3.43 | J29: 6.95 | K29: 6.95 | L29: 6.95 | W29: 2019 n=102 6. GW | X29: 0.48 | Y29: 1.1 | Z29: 0.28 | AA29: 0.39
A30: 2010 | B30: 10 | C30: 175.07 | D30: 5.38 | E30: 4.77 | F30: 6.9 | G30: 5.07 | H30: 4.09 | I30: 5.59 | J30: 6.8 | K30: 5.88 | L30: 8.05 | W30: 2020 n=68 6.8 GW | X30: 0.12 | Y30: 0.35 | Z30: 0.21 | AA30: 0.24
A31: 2011 | B31: 29 | C31: 427.79 | D31: 4.72 | E31: 4.08 | F31: 5.33 | G31: 4.72 | H31: 3.95 | I31: 5.28 | J31: 4.71 | K31: 4.23 | L31: 5.33
A32: 2012 | B32: 41 | C32: 929.64 | D32: 4.37 | E32: 3.68 | F32: 4.82 | G32: 3.82 | H32: 3.3 | I32: 4.64 | J32: 4.45 | K32: 4.36 | L32: 5.04
A33: 2013 | B33: 38 | C33: 1343.79 | D33: 3.89 | E33: 3.35 | F33: 4.6 | G33: 3.86 | H33: 3.18 | I33: 4.52 | J33: 4.03 | K33: 3.58 | L33: 4.6
A34: 2014 | B34: 65 | C34: 3184.08 | D34: 3.3 | E34: 2.74 | F34: 4.41 | G34: 3.29 | H34: 2.76 | I34: 4.18 | J34: 3.4 | K34: 2.73 | L34: 4.45
A35: 2015 | B35: 87 | C35: 2869.68 | D35: 2.96 | E35: 2.33 | F35: 3.63 | G35: 2.64 | H35: 2.14 | I35: 3.42 | J35: 3.08 | K35: 2.45 | L35: 3.76
A36: 2016 | B36: 146 | C36: 7378.69 | D36: 2.45 | E36: 2.12 | F36: 2.89 | G36: 2.39 | H36: 2.01 | I36: 3.42 | J36: 2.46 | K36: 2.15 | L36: 2.81
A37: 2017 | B37: 163 | C37: 4045.82 | D37: 2.27 | E37: 1.76 | F37: 2.87 | G37: 2.27 | H37: 1.86 | I37: 2.67 | J37: 2.27 | K37: 1.71 | L37: 2.91
A38: 2018 | B38: 94 | C38: 3949.42 | D38: 1.84 | E38: 1.49 | F38: 2.68 | G38: 1.82 | H38: 1.21 | I38: 2.69 | J38: 1.86 | K38: 1.59 | L38: 2.6
A39: 2019 | B39: 102 | C39: 4518.79 | D39: 1.58 | E39: 1.27 | F39: 2.27 | G39: 1.69 | H39: 1.21 | I39: 2.78 | J39: 1.56 | K39: 1.27 | L39: 1.94
A40: 2020 | B40: 68 | C40: 5122.77 | D40: 1.42 | E40: 1.13 | F40: 1.65 | G40: 1.22 | H40: 1.1 | I40: 1.57 | J40: 1.42 | K40: 1.21 | L40: 1.65
A41: Total | B41: 848 | C41: 34020.44
D43: Installed Costs 2020 $/WDC
A44: Commercial Operation Year | B44: All Count | C44: All Capacity (MWDC) | D44: All Median | E44: All 20th Percentile | F44: All 80th Percentile | G44: Fixed Tilt Median | H44: Fixed Tilt 20th Percentile | I44: Fixed Tilt 80th Percentile | J44: Tracking Median | K44: Tracking 20th Percentile | L44: Tracking 80th Percentile
A45: 2007 | B45: 2 | C45: 22.28 | D45: 8.85 | E45: 8.78 | F45: 8.92 | J45: 8.74 | K45: 8.74 | L45: 8.74
A46: 2008 | B46: 1 | C46: 12.14 | D46: 3.97 | E46: 3.97 | F46: 3.97 | G46: 3.97 | H46: 3.97 | I46: 3.97
A47: 2009 | B47: 2 | C47: 52.8 | D47: 4.58 | E47: 3.55 | F47: 5.61 | G47: 2.86 | H47: 2.86 | I47: 2.86 | J47: 6.29 | K47: 6.29 | L47: 6.29
A48: 2010 | B48: 10 | C48: 210.72 | D48: 4.67 | E48: 3.99 | F48: 5.6 | G48: 4.2 | H48: 3.41 | I48: 4.7 | J48: 5.34 | K48: 5.08 | L48: 6.53
A49: 2011 | B49: 29 | C49: 516.7 | D49: 3.88 | E49: 3.43 | F49: 4.45 | G49: 3.81 | H49: 3.17 | I49: 4.47 | J49: 3.98 | K49: 3.69 | L49: 4.35
A50: 2012 | B50: 41 | C50: 1181.41 | D50: 3.54 | E50: 2.85 | F50: 3.91 | G50: 3.01 | H50: 2.72 | I50: 3.71 | J50: 3.75 | K50: 3.44 | L50: 4.02
A51: 2013 | B51: 38 | C51: 1754.16 | D51: 3.04 | E51: 2.6 | F51: 3.51 | G51: 2.92 | H51: 2.33 | I51: 3.44 | J51: 3.09 | K51: 2.75 | L51: 3.53
A52: 2014 | B52: 65 | C52: 4111.96 | D52: 2.57 | E52: 2.08 | F52: 3.46 | G52: 2.54 | H52: 2.01 | I52: 3.3 | J52: 2.59 | K52: 2.1 | L52: 3.46
A53: 2015 | B53: 87 | C53: 3728.47 | D53: 2.25 | E53: 1.75 | F53: 2.89 | G53: 1.95 | H53: 1.7 | I53: 2.52 | J53: 2.4 | K53: 1.89 | L53: 2.99
A54: 2016 | B54: 145 | C54: 9611.76 | D54: 1.88 | E54: 1.6 | F54: 2.25 | G54: 1.85 | H54: 1.51 | I54: 2.65 | J54: 1.88 | K54: 1.64 | L54: 2.21
A55: 2017 | B55: 163 | C55: 5381.9 | D55: 1.72 | E55: 1.37 | F55: 2.02 | G55: 1.75 | H55: 1.5 | I55: 2.07 | J55: 1.72 | K55: 1.35 | L55: 2.02
A56: 2018 | B56: 94 | C56: 5382.32 | D56: 1.35 | E56: 1.13 | F56: 2.07 | G56: 1.26 | H56: 0.79 | I56: 2.12 | J56: 1.38 | K56: 1.17 | L56: 2
A57: 2019 | B57: 102 | C57: 5980.97 | D57: 1.24 | E57: 1.01 | F57: 1.67 | G57: 1.3 | H57: 0.96 | I57: 2.09 | J57: 1.22 | K57: 1.01 | L57: 1.51
A58: 2020 | B58: 68 | C58: 6803.91 | D58: 1.05 | E58: 0.85 | F58: 1.25 | G58: 0.92 | H58: 0.74 | I58: 1.13 | J58: 1.07 | K58: 0.9 | L58: 1.28
A59: Total | B59: 847 | C59: 44751.52

Sheet CapEx Trend by Region (PV only)
A1: Installed costs by region and installation year
A3: Sources: Berkeley Lab (some data points suppressed to protect confidentiality), Energy Information Administration
B5: Median Project Cost (2020 $/WAC) | O5: Median Project Cost (2020 $/WDC)
A6: Commercial Operation Year | B6: National | C6: CAISO | D6: ERCOT | E6: Hawaii | F6: ISO-NE | G6: MISO | H6: NYISO | I6: PJM | J6: SPP | K6: Southeast (non-ISO) | L6: West (non-ISO) | N6: Commercial Operation Year | O6: National | P6: CAISO | Q6: ERCOT | R6: HI | S6: ISO-NE | T6: MISO | U6: NYISO | V6: PJM | W6: SPP | X6: Southeast (non-ISO) | Y6: West (non-ISO)
A7: 2007 | B7: 10.46 | N7: 2007 | O7: 8.85
A8: 2008 | B8: 4.82 | N8: 2008 | O8: 3.97
A9: 2009 | B9: 5.19 | N9: 2009 | O9: 4.58
A10: 2010 | B10: 5.38 | I10: 5.51 | K10: 6.8 | N10: 2010 | O10: 4.67 | V10: 4.62 | X10: 5.34
A11: 2011 | B11: 4.72 | C11: 4.45 | I11: 5.1 | L11: 4.43 | N11: 2011 | O11: 3.88 | P11: 3.61 | V11: 4.51 | Y11: 3.84
A12: 2012 | B12: 4.37 | C12: 3.68 | D12: 4.38 | I12: 4.45 | K12: 3.79 | L12: 4.43 | N12: 2012 | O12: 3.54 | P12: 2.85 | Q12: 3.75 | V12: 3.56 | X12: 3.01 | Y12: 3.56
A13: 2013 | B13: 3.89 | C13: 4 | G13: 3.24 | K13: 3.85 | L13: 3.67 | N13: 2013 | O13: 3.04 | P13: 3.09 | T13: 2.34 | X13: 3.04 | Y13: 2.75
A14: 2014 | B14: 3.3 | C14: 3.45 | I14: 2.98 | K14: 2.16 | L14: 3.25 | N14: 2014 | O14: 2.57 | P14: 2.65 | V14: 2.33 | X14: 1.71 | Y14: 2.38
A15: 2015 | B15: 2.96 | C15: 3.16 | D15: 3.47 | G15: 3.97 | I15: 2.86 | K15: 2.37 | L15: 2.96 | N15: 2015 | O15: 2.25 | P15: 2.44 | Q15: 2.79 | T15: 2.98 | V15: 2.1 | X15: 1.74 | Y15: 2.17
A16: 2016 | B16: 2.45 | C16: 2.57 | G16: 2.51 | I16: 2.65 | J16: 2.12 | K16: 2.21 | L16: 2.31 | N16: 2016 | O16: 1.88 | P16: 1.96 | T16: 1.86 | V16: 2.05 | W16: 1.55 | X16: 1.67 | Y16: 1.87
A17: 2017 | B17: 2.27 | C17: 2.7 | D17: 2.06 | E17: 4.23 | F17: 2.56 | G17: 3.03 | I17: 2.15 | J17: 2.3 | K17: 2.03 | L17: 2.36 | N17: 2017 | O17: 1.72 | P17: 1.99 | Q17: 1.51 | R17: 2.96 | S17: 2.03 | T17: 1.99 | V17: 1.64 | W17: 1.65 | X17: 1.51 | Y17: 1.77
A18: 2018 | B18: 1.84 | C18: 2.92 | D18: 1.59 | F18: 2.38 | G18: 1.5 | I18: 2.3 | K18: 1.53 | L18: 2.04 | N18: 2018 | O18: 1.35 | P18: 2.17 | Q18: 1.17 | S18: 1.71 | T18: 1.27 | V18: 2.02 | X18: 1.16 | Y18: 1.57
A19: 2019 | B19: 1.58 | C19: 1.7 | D19: 1.62 | E19: 2.9 | F19: 2.86 | H19: 1.85 | I19: 1.74 | J19: 1.27 | K19: 1.44 | L19: 1.4 | N19: 2019 | O19: 1.24 | P19: 1.36 | Q19: 1.16 | R19: 2.89 | S19: 1.98 | U19: 1.32 | V19: 1.29 | W19: 1.09 | X19: 1.02 | Y19: 1.09
A20: 2020 | B20: 1.42 | C20: 2 | D20: 1.26 | G20: 1.54 | I20: 1.56 | K20: 1.22 | L20: 1.44 | N20: 2020 | O20: 1.05 | P20: 1.45 | Q20: 0.96 | T20: 1.1 | V20: 1.2 | X20: 0.9 | Y20: 1.12
B22: $/WAC Cost Sample Project Capacity | O22: $/WDC Cost Sample Project Capacity
A23: Commercial Operation Year | B23: National | C23: CAISO | D23: ERCOT | E23: Hawaii | F23: ISO-NE | G23: MISO | H23: NYISO | I23: PJM | J23: SPP | K23: Southeast (non-ISO) | L23: West (non-ISO) | N23: Commercial Operation Year | O23: National | P23: CAISO | Q23: ERCOT | R23: Hawaii | S23: ISO-NE | T23: MISO | U23: NYISO | V23: PJM | W23: SPP | X23: Southeast (non-ISO) | Y23: West (non-ISO)
A24: 2007 | B24: 19 | N24: 2007 | O24: 22
A25: 2008 | B25: 10 | N25: 2008 | O25: 12
A26: 2009 | B26: 46 | N26: 2009 | O26: 53
A27: 2010 | B27: 175 | I27: 23 | K27: 40 | N27: 2010 | O27: 211 | V27: 28 | X27: 48
A28: 2011 | B28: 428 | C28: 95 | I28: 66 | L28: 200 | N28: 2011 | O28: 517 | P28: 118 | V28: 77 | Y28: 243
A29: 2012 | B29: 930 | C29: 419 | D29: 30 | I29: 107 | K29: 40 | L29: 327 | N29: 2012 | O29: 1181 | P29: 553 | Q29: 35 | V29: 134 | X29: 49 | Y29: 403
A30: 2013 | B30: 1344 | C30: 900 | G30: 39 | K30: 44 | L30: 293 | N30: 2013 | O30: 1754 | P30: 1171 | T30: 52 | X30: 55 | Y30: 393
A31: 2014 | B31: 3184 | C31: 2676 | I31: 102 | K31: 62 | L31: 255 | N31: 2014 | O31: 4112 | P31: 3463 | V31: 139 | X31: 79 | Y31: 322
A32: 2015 | B32: 2870 | C32: 1337 | D32: 130 | G32: 20 | I32: 239 | K32: 415 | L32: 715 | N32: 2015 | O32: 3728 | P32: 1697 | Q32: 162 | T32: 27 | V32: 324 | X32: 563 | Y32: 940
A33: 2016 | B33: 7379 | C33: 3097 | G33: 111 | I33: 327 | J33: 165 | K33: 1335 | L33: 2038 | N33: 2016 | O33: 9612 | P33: 3975 | T33: 152 | V33: 430 | W33: 224 | X33: 1794 | Y33: 2634
A34: 2017 | B34: 4046 | C34: 529 | D34: 651 | E34: 46 | F34: 27 | G34: 273 | I34: 464 | J34: 19 | K34: 1201 | L34: 822 | N34: 2017 | O34: 5382 | P34: 701 | Q34: 841 | R34: 64 | S34: 35 | T34: 385 | V34: 610 | W34: 25 | X34: 1628 | Y34: 1074
A35: 2018 | B35: 3949 | C35: 836 | D35: 646 | F35: 60 | G35: 112 | I35: 361 | K35: 1377 | L35: 495 | N35: 2018 | O35: 5382 | P35: 1120 | Q35: 855 | S35: 82 | T35: 119 | V35: 507 | X35: 1960 | Y35: 655
A36: 2019 | B36: 4519 | C36: 979 | D36: 488 | E36: 129 | F36: 80 | H36: 65 | I36: 456 | J36: 16 | K36: 1548 | L36: 743 | N36: 2019 | O36: 5981 | P36: 1223 | Q36: 633 | R36: 138 | S36: 117 | U36: 87 | V36: 625 | W36: 19 | X36: 2158 | Y36: 964
A37: 2020 | B37: 5123 | C37: 472 | D37: 1622 | G37: 274 | I37: 400 | K37: 1969 | L37: 325 | N37: 2020 | O37: 6804 | P37: 636 | Q37: 2084 | T37: 390 | V37: 528 | X37: 2662 | Y37: 417
B39: $/WAC Cost Sample Project Count | O39: $/WDC Cost Sample Project Count
A40: Commercial Operation Year | B40: National | C40: CAISO | D40: ERCOT | E40: Hawaii | F40: ISO-NE | G40: MISO | H40: NYISO | I40: PJM | J40: SPP | K40: Southeast (non-ISO) | L40: West (non-ISO) | N40: Commercial Operation Year | O40: National | P40: CAISO | Q40: ERCOT | R40: Hawaii | S40: ISO-NE | T40: MISO | U40: NYISO | V40: PJM | W40: SPP | X40: Southeast (non-ISO) | Y40: West (non-ISO)
A41: 2007 | B41: 2 | L41: 2 | N41: 2007 | O41: 2 | Y41: 2
A42: 2007 | B42: 2 | L42: 2 | N42: 2007 | O42: 2 | Y42: 2
A43: 2008 | B43: 1 | C43: 1 | N43: 2008 | O43: 1 | P43: 1
A44: 2009 | B44: 2 | C44: 1 | K44: 1 | N44: 2009 | O44: 2 | P44: 1 | X44: 1
A45: 2010 | B45: 10 | C45: 1 | D45: 1 | I45: 3 | K45: 3 | L45: 2 | N45: 2010 | O45: 10 | P45: 1 | Q45: 1 | V45: 3 | X45: 3 | Y45: 2
A46: 2011 | B46: 29 | C46: 6 | D46: 1 | H46: 1 | I46: 6 | K46: 1 | L46: 14 | N46: 2011 | O46: 29 | P46: 6 | Q46: 1 | U46: 1 | V46: 6 | X46: 1 | Y46: 14
A47: 2012 | B47: 41 | C47: 9 | D47: 3 | E47: 1 | I47: 9 | K47: 3 | L47: 16 | N47: 2012 | O47: 41 | P47: 9 | Q47: 3 | R47: 1 | V47: 9 | X47: 3 | Y47: 16
A48: 2013 | B48: 38 | C48: 16 | D48: 2 | G48: 4 | I48: 2 | K48: 3 | L48: 11 | N48: 2013 | O48: 38 | P48: 16 | Q48: 2 | T48: 4 | V48: 2 | X48: 3 | Y48: 11
A49: 2014 | B49: 65 | C49: 32 | D49: 1 | E49: 1 | F49: 2 | G49: 2 | I49: 9 | K49: 3 | L49: 15 | N49: 2014 | O49: 65 | P49: 32 | Q49: 1 | R49: 1 | S49: 2 | T49: 2 | V49: 9 | X49: 3 | Y49: 15
A50: 2015 | B50: 87 | C50: 34 | D50: 3 | E50: 1 | G50: 3 | I50: 12 | K50: 16 | L50: 18 | N50: 2015 | O50: 87 | P50: 34 | Q50: 3 | R50: 1 | T50: 3 | V50: 12 | X50: 16 | Y50: 18
A51: 2016 | B51: 146 | C51: 45 | D51: 2 | E51: 1 | F51: 2 | G51: 3 | H51: 1 | I51: 18 | J51: 3 | K51: 30 | L51: 41 | N51: 2016 | O51: 145 | P51: 45 | Q51: 2 | R51: 1 | S51: 2 | T51: 3 | U51: 1 | V51: 18 | W51: 3 | X51: 29 | Y51: 41
A52: 2017 | B52: 163 | C52: 24 | D52: 14 | E52: 3 | F52: 4 | G52: 17 | H52: 2 | I52: 22 | J52: 3 | K52: 47 | L52: 27 | N52: 2017 | O52: 163 | P52: 24 | Q52: 14 | R52: 3 | S52: 4 | T52: 17 | U52: 2 | V52: 22 | W52: 3 | X52: 47 | Y52: 27
A53: 2018 | B53: 94 | C53: 7 | D53: 10 | E53: 1 | F53: 3 | G53: 4 | H53: 1 | I53: 15 | J53: 2 | K53: 29 | L53: 22 | N53: 2018 | O53: 94 | P53: 7 | Q53: 10 | R53: 1 | S53: 3 | T53: 4 | U53: 1 | V53: 15 | W53: 2 | X53: 29 | Y53: 22
A54: 2019 | B54: 102 | C54: 11 | D54: 8 | E54: 4 | F54: 7 | G54: 2 | H54: 5 | I54: 16 | J54: 3 | K54: 26 | L54: 20 | N54: 2019 | O54: 102 | P54: 11 | Q54: 8 | R54: 4 | S54: 7 | T54: 2 | U54: 5 | V54: 16 | W54: 3 | X54: 26 | Y54: 20
A55: 2020 | B55: 68 | C55: 7 | D55: 7 | E55: 1 | F55: 1 | G55: 6 | H55: 1 | I55: 13 | J55: 1 | K55: 26 | L55: 5 | N55: 2020 | O55: 68 | P55: 7 | Q55: 7 | R55: 1 | S55: 1 | T55: 6 | U55: 1 | V55: 13 | W55: 1 | X55: 26 | Y55: 5

Sheet CapEx Trend by State (PV only)
A1: Installed costs by state and installation year
A3: Sources: Berkeley Lab (some data points suppressed to protect confidentiality), Energy Information Administration
B6: Median Project Cost (2020 $/WAC) | AV6: Median Project Cost (2020 $/WDC)
A7: Commercial Operation Year | B7: National | C7: AL | D7: AR | E7: AZ | F7: CA | G7: CO | H7: CT | I7: DE | J7: FL | K7: GA | L7: HI | M7: ID | N7: IL | O7: IN | P7: KS | Q7: KY | R7: LA | S7: MA | T7: MD | U7: ME | V7: MI | W7: MN | X7: MO | Y7: MS | Z7: NC | AA7: NE | AB7: NJ | AC7: NM | AD7: NV | AE7: NY | AF7: OH | AG7: OK | AH7: OR | AI7: PA | AJ7: RI | AK7: SC | AL7: TN | AM7: TX | AN7: UT | AO7: VA | AP7: VT | AQ7: WA | AR7: WI | AS7: WY | AU7: Commercial Operation Year | AV7: National | AW7: AL | AX7: AR | AY7: AZ | AZ7: CA | BA7: CO | BB7: CT | BC7: DE | BD7: FL | BE7: GA | BF7: HI | BG7: ID | BH7: IL | BI7: IN | BJ7: KS | BK7: KY | BL7: LA | BM7: MA | BN7: MD | BO7: ME | BP7: MI | BQ7: MN | BR7: MO | BS7: MS | BT7: NC | BU7: NE | BV7: NJ | BW7: NM | BX7: NV | BY7: NY | BZ7: OH | CA7: OK | CB7: OR | CC7: PA | CD7: RI | CE7: SC | CF7: TN | CG7: TX | CH7: UT | CI7: VA | CJ7: VT | CK7: WA | CL7: WI | CM7: WY
A8: 2007 | B8: 10.46 | AU8: 2007 | AV8: 8.85
A9: 2008 | B9: 4.82 | AU9: 2008 | AV9: 3.97
A10: 2009 | B10: 5.19 | AU10: 2009 | AV10: 4.58
A11: 2010 | B11: 5.38 | AU11: 2010 | AV11: 4.67
A12: 2011 | B12: 4.72 | E12: 5.08 | F12: 4.54 | AB12: 5.3 | AC12: 4.09 | AU12: 2011 | AV12: 3.88 | AY12: 3.96 | AZ12: 3.63 | BV12: 4.51 | BW12: 3.33
A13: 2012 | B13: 4.37 | E13: 4.34 | F13: 4.34 | T13: 4.08 | AB13: 4.77 | AD13: 3.8 | AM13: 4.38 | AU13: 2012 | AV13: 3.54 | AY13: 3.41 | AZ13: 3.33 | BN13: 3.38 | BV13: 3.82 | BX13: 3.14 | CG13: 3.75
A14: 2013 | B14: 3.89 | E14: 3.92 | F14: 4 | O14: 3.24 | AU14: 2013 | AV14: 3.04 | AY14: 2.87 | AZ14: 3.09 | BI14: 2.34
A15: 2014 | B15: 3.3 | E15: 4.14 | F15: 3.45 | Z15: 2.84 | AB15: 3.05 | AC15: 2.25 | AU15: 2014 | AV15: 2.57 | AY15: 3.16 | AZ15: 2.67 | BT15: 2.02 | BV15: 2.51 | BW15: 1.83
A16: 2015 | B16: 2.96 | E16: 3.05 | F16: 3.24 | K16: 2.44 | O16: 3.97 | Z16: 2.57 | AB16: 3.33 | AC16: 2.03 | AD16: 2.87 | AM16: 3.47 | AU16: 2015 | AV16: 2.25 | AY16: 2.2 | AZ16: 2.49 | BE16: 1.69 | BI16: 2.98 | BT16: 1.82 | BV16: 2.56 | BW16: 1.65 | BX16: 2.29 | CG16: 2.79
A17: 2016 | B17: 2.45 | E17: 2.13 | F17: 2.6 | G17: 2.27 | J17: 1.98 | K17: 2.29 | O17: 2.51 | T17: 2.73 | Z17: 2.21 | AB17: 3.16 | AC17: 2.12 | AD17: 2.52 | AH17: 2.46 | AN17: 1.98 | AO17: 2.51 | AU17: 2016 | AV17: 1.88 | AY17: 1.67 | AZ17: 2.03 | BA17: 1.74 | BD17: 1.2 | BE17: 1.72 | BI17: 1.86 | BN17: 2.08 | BT17: 1.7 | BV17: 2.74 | BW17: 1.55 | BX17: 1.94 | CB17: 1.88 | CH17: 1.54 | CI17: 1.87
A18: 2017 | B18: 2.27 | C18: 2.92 | E18: 2.32 | F18: 2.66 | J18: 2.41 | L18: 4.23 | M18: 2.6 | O18: 1.62 | S18: 2.55 | W18: 3.03 | Y18: 2.05 | Z18: 2.11 | AB18: 2.86 | AD18: 2.48 | AH18: 2.18 | AK18: 1.49 | AM18: 2.06 | AO18: 2.03 | AU18: 2017 | AV18: 1.72 | AW18: 2.36 | AY18: 1.67 | AZ18: 1.98 | BD18: 1.8 | BF18: 2.96 | BG18: 1.95 | BI18: 1.3 | BM18: 2.17 | BQ18: 1.99 | BS18: 1.53 | BT18: 1.58 | BV18: 2.35 | BX18: 1.86 | CB18: 1.62 | CE18: 1.07 | CG18: 1.51 | CI18: 1.5
A19: 2018 | B19: 1.84 | F19: 2.83 | J19: 1.2 | Z19: 1.87 | AB19: 2.69 | AC19: 1.67 | AH19: 2.01 | AK19: 1.68 | AM19: 1.59 | AO19: 1.83 | AU19: 2018 | AV19: 1.35 | AZ19: 2.14 | BD19: 0.79 | BT19: 1.28 | BV19: 2.17 | BW19: 1.35 | CB19: 1.54 | CE19: 1.16 | CG19: 1.17 | CI19: 1.43
A20: 2019 | B20: 1.58 | F20: 1.7 | J20: 1.47 | K20: 1.14 | L20: 2.9 | O20: 1.5 | Z20: 1.67 | AB20: 2.93 | AC20: 1.27 | AD20: 1.57 | AE20: 1.85 | AH20: 2.27 | AK20: 1.49 | AM20: 1.62 | AU20: 2019 | AV20: 1.24 | AZ20: 1.34 | BD20: 1.06 | BE20: 0.79 | BF20: 2.89 | BI20: 1.15 | BT20: 1.24 | BV20: 2.23 | BW20: 1.01 | BX20: 1.19 | BY20: 1.32 | CB20: 1.66 | CE20: 1.08 | CG20: 1.16
A21: 2020 | B21: 1.42 | F21: 2 | J21: 1.13 | K21: 1.33 | AI21: 1.42 | AK21: 1.54 | AM21: 1.26 | AN21: 1.44 | AO21: 1.56 | AR21: 1.64 | AU21: 2020 | AV21: 1.05 | AZ21: 1.45 | BD21: 0.85 | BE21: 0.99 | CC21: 1.05 | CE21: 1.04 | CG21: 0.96 | CH21: 1.12 | CI21: 1.2 | CL21: 1.3
B23: $/WAC Cost Sample Project Capacity | AV23: $/WDC Cost Sample Project Capacity
A24: Commercial Operation Year | B24: National | C24: AL | D24: AR | E24: AZ | F24: CA | G24: CO | H24: CT | I24: DE | J24: FL | K24: GA | L24: HI | M24: ID | N24: IL | O24: IN | P24: KS | Q24: KY | R24: LA | S24: MA | T24: MD | U24: ME | V24: MI | W24: MN | X24: MO | Y24: MS | Z24: NC | AA24: NE | AB24: NJ | AC24: NM | AD24: NV | AE24: NY | AF24: OH | AG24: OK | AH24: OR | AI24: PA | AJ24: RI | AK24: SC | AL24: TN | AM24: TX | AN24: UT | AO24: VA | AP24: VT | AQ24: WA | AR24: WI | AS24: WY | AU24: Commercial Operation Year | AV24: National | AW24: AL | AX24: AR | AY24: AZ | AZ24: CA | BA24: CO | BB24: CT | BC24: DE | BD24: FL | BE24: GA | BF24: HI | BG24: ID | BH24: IL | BI24: IN | BJ24: KS | BK24: KY | BL24: LA | BM24: MA | BN24: MD | BO24: ME | BP24: MI | BQ24: MN | BR24: MO | BS24: MS | BT24: NC | BU24: NE | BV24: NJ | BW24: NM | BX24: NV | BY24: NY | BZ24: OH | CA24: OK | CB24: OR | CC24: PA | CD24: RI | CE24: SC | CF24: TN | CG24: TX | CH24: UT | CI24: VA | CJ24: VT | CK24: WA | CL24: WI | CM24: WY
A25: 2007 | B25: 19 | AU25: 2007 | AV25: 22
A26: 2008 | B26: 10 | AU26: 2008 | AV26: 12
A27: 2009 | B27: 46 | AU27: 2009 | AV27: 53
A28: 2010 | B28: 175 | AU28: 2010 | AV28: 211
A29: 2011 | B29: 428 | E29: 96 | F29: 122 | AB29: 48 | AC29: 41 | AU29: 2011 | AV29: 517 | AY29: 118 | AZ29: 152 | BV29: 56 | BW29: 50
A30: 2012 | B30: 930 | E30: 269 | F30: 250 | T30: 38 | AB30: 27 | AD30: 186 | AM30: 30 | AU30: 2012 | AV30: 1181 | AY30: 357 | AZ30: 320 | BN30: 52 | BV30: 33 | BX30: 229 | CG30: 35
A31: 2013 | B31: 1344 | E31: 219 | F31: 929 | O31: 39 | AU31: 2013 | AV31: 1754 | AY31: 300 | AZ31: 1206 | BI31: 52
A32: 2014 | B32: 3184 | E32: 406 | F32: 2402 | Z32: 59 | AB32: 43 | AC32: 75 | AU32: 2014 | AV32: 4112 | AY32: 547 | AZ32: 3085 | BT32: 86 | BV32: 54 | BW32: 93
A33: 2015 | B33: 2870 | E33: 122 | F33: 1346 | K33: 177 | O33: 20 | Z33: 420 | AB33: 41 | AC33: 40 | AD33: 349 | AM33: 130 | AU33: 2015 | AV33: 3728 | AY33: 165 | AZ33: 1714 | BE33: 246 | BI33: 27 | BT33: 568 | BV33: 53 | BW33: 49 | BX33: 462 | CG33: 162
A34: 2016 | B34: 7379 | E34: 371 | F34: 2958 | G34: 225 | J34: 229 | K34: 726 | O34: 16 | T34: 39 | Z34: 349 | AB34: 51 | AC34: 165 | AD34: 708 | AH34: 73 | AN34: 680 | AO34: 137 | AU34: 2016 | AV34: 9612 | AY34: 491 | AZ34: 3729 | BA34: 287 | BD34: 376 | BE34: 925 | BI34: 21 | BN34: 50 | BT34: 456 | BV34: 62 | BW34: 224 | BX34: 960 | CB34: 97 | CH34: 882 | CI34: 180
A35: 2017 | B35: 4046 | C35: 107 | E35: 87 | F35: 696 | J35: 175 | L35: 46 | M35: 120 | O35: 30 | S35: 17 | W35: 156 | Y35: 155 | Z35: 675 | AB35: 39 | AD35: 290 | AH35: 104 | AK35: 223 | AM35: 651 | AO35: 271 | AU35: 2017 | AV35: 5382 | AW35: 146 | AY35: 120 | AZ35: 913 | BD35: 237 | BF35: 64 | BG35: 160 | BI35: 41 | BM35: 21 | BQ35: 229 | BS35: 216 | BT35: 910 | BV35: 46 | BX35: 378 | CB35: 136 | CE35: 305 | CG35: 841 | CI35: 356
A36: 2018 | B36: 3949 | F36: 981 | J36: 875 | Z36: 472 | AB36: 54 | AC36: 33 | AH36: 82 | AK36: 71 | AM36: 646 | AO36: 58 | AU36: 2018 | AV36: 5382 | AZ36: 1309 | BD36: 1262 | BT36: 682 | BV36: 67 | BW36: 41 | CB36: 109 | CE36: 101 | CG36: 855 | CI36: 77
A37: 2019 | B37: 4519 | F37: 999 | J37: 743 | K37: 412 | L37: 129 | O37: 20 | Z37: 297 | AB37: 21 | AC37: 100 | AD37: 417 | AE37: 65 | AH37: 73 | AK37: 270 | AM37: 488 | AU37: 2019 | AV37: 5981 | AZ37: 1257 | BD37: 1008 | BE37: 594 | BF37: 138 | BI37: 25 | BT37: 407 | BV37: 26 | BW37: 131 | BX37: 530 | BY37: 87 | CB37: 96 | CE37: 376 | CG37: 633
A38: 2020 | B38: 5123 | F38: 486 | J38: 1416 | K38: 311 | AI38: 55 | AK38: 220 | AM38: 1622 | AN38: 279 | AO38: 238 | AR38: 164 | AU38: 2020 | AV38: 6804 | AZ38: 652 | BD38: 1921 | BE38: 404 | CC38: 72 | CE38: 305 | CG38: 2084 | CH38: 358 | CI38: 315 | CL38: 231
B41: $/WAC Cost Sample Project Count | AV41: $/WDC Cost Sample Project Count
A42: Commercial Operation Year | B42: National | C42: AL | D42: AR | E42: AZ | F42: CA | G42: CO | H42: CT | I42: DE | J42: FL | K42: GA | L42: HI | M42: ID | N42: IL | O42: IN | P42: KS | Q42: KY | R42: LA | S42: MA | T42: MD | U42: ME | V42: MI | W42: MN | X42: MO | Y42: MS | Z42: NC | AA42: NE | AB42: NJ | AC42: NM | AD42: NV | AE42: NY | AF42: OH | AG42: OK | AH42: OR | AI42: PA | AJ42: RI | AK42: SC | AL42: TN | AM42: TX | AN42: UT | AO42: VA | AP42: VT | AQ42: WA | AR42: WI | AS42: WY | AU42: Commercial Operation Year | AV42: National | AW42: AL | AX42: AR | AY42: AZ | AZ42: CA | BA42: CO | BB42: CT | BC42: DE | BD42: FL | BE42: GA | BF42: HI | BG42: ID | BH42: IL | BI42: IN | BJ42: KS | BK42: KY | BL42: LA | BM42: MA | BN42: MD | BO42: ME | BP42: MI | BQ42: MN | BR42: MO | BS42: MS | BT42: NC | BU42: NE | BV42: NJ | BW42: NM | BX42: NV | BY42: NY | BZ42: OH | CA42: OK | CB42: OR | CC42: PA | CD42: RI | CE42: SC | CF42: TN | CG42: TX | CH42: UT | CI42: VA | CJ42: VT | CK42: WA | CL42: WI | CM42: WY
A43: 2007 | B43: 2 | G43: 1 | AD43: 1 | AU43: 2007 | AV43: 2 | BA43: 1 | BX43: 1
A44: 2008 | B44: 1 | AD44: 1 | AU44: 2008 | AV44: 1 | BX44: 1
A45: 2009 | B45: 2 | F45: 1 | J45: 1 | AU45: 2009 | AV45: 2 | AZ45: 1 | BD45: 1
A46: 2010 | B46: 10 | G46: 1 | J46: 2 | N46: 1 | Z46: 1 | AB46: 1 | AC46: 1 | AD46: 1 | AF46: 1 | AM46: 1 | AU46: 2010 | AV46: 10 | BA46: 1 | BD46: 2 | BH46: 1 | BT46: 1 | BV46: 1 | BW46: 1 | BX46: 1 | BZ46: 1 | CG46: 1
A47: 2011 | B47: 29 | E47: 6 | F47: 8 | G47: 2 | I47: 1 | J47: 1 | AB47: 4 | AC47: 4 | AE47: 1 | AF47: 1 | AM47: 1 | AU47: 2011 | AV47: 29 | AY47: 6 | AZ47: 8 | BA47: 2 | BC47: 1 | BD47: 1 | BV47: 4 | BW47: 4 | BY47: 1 | BZ47: 1 | CG47: 1
A48: 2012 | B48: 41 | E48: 7 | F48: 12 | G48: 1 | I48: 1 | L48: 1 | N48: 1 | T48: 3 | Z48: 2 | AB48: 3 | AC48: 1 | AD48: 4 | AI48: 1 | AL48: 1 | AM48: 3 | AU48: 2012 | AV48: 41 | AY48: 7 | AZ48: 12 | BA48: 1 | BC48: 1 | BF48: 1 | BH48: 1 | BN48: 3 | BT48: 2 | BV48: 3 | BW48: 1 | BX48: 4 | CC48: 1 | CF48: 1 | CG48: 3
A49: 2013 | B49: 38 | E49: 6 | F49: 18 | K49: 2 | O49: 4 | Z49: 1 | AB49: 2 | AC49: 2 | AD49: 1 | AM49: 2 | AU49: 2013 | AV49: 38 | AY49: 6 | AZ49: 18 | BE49: 2 | BI49: 4 | BT49: 1 | BV49: 2 | BW49: 2 | BX49: 1 | CG49: 2
A50: 2014 | B50: 65 | E50: 7 | F50: 33 | K50: 1 | L50: 1 | O50: 2 | S50: 2 | Z50: 3 | AB50: 6 | AC50: 4 | AD50: 2 | AL50: 2 | AM50: 2 | AU50: 2014 | AV50: 65 | AY50: 7 | AZ50: 33 | BE50: 1 | BF50: 1 | BI50: 2 | BM50: 2 | BT50: 3 | BV50: 6 | BW50: 4 | BX50: 2 | CF50: 2 | CG50: 2
A51: 2015 | B51: 87 | D51: 1 | E51: 4 | F51: 36 | G51: 1 | J51: 1 | K51: 6 | L51: 1 | O51: 3 | T51: 1 | Z51: 16 | AB51: 4 | AC51: 4 | AD51: 4 | AM51: 3 | AN51: 2 | AU51: 2015 | AV51: 87 | AX51: 1 | AY51: 4 | AZ51: 36 | BA51: 1 | BD51: 1 | BE51: 6 | BF51: 1 | BI51: 3 | BN51: 1 | BT51: 16 | BV51: 4 | BW51: 4 | BX51: 4 | CG51: 3 | CH51: 2
A52: 2016 | B52: 146 | C52: 1 | E52: 6 | F52: 48 | G52: 7 | J52: 4 | K52: 14 | L52: 1 | M52: 2 | O52: 3 | Q52: 1 | S52: 2 | T52: 3 | W52: 1 | Z52: 9 | AB52: 7 | AC52: 3 | AD52: 5 | AE52: 1 | AH52: 8 | AK52: 2 | AL52: 2 | AM52: 2 | AN52: 10 | AO52: 4 | AU52: 2016 | AV52: 145 | AW52: 1 | AY52: 6 | AZ52: 48 | BA52: 7 | BD52: 4 | BE52: 13 | BF52: 1 | BG52: 2 | BI52: 3 | BK52: 1 | BM52: 2 | BN52: 3 | BQ52: 1 | BT52: 9 | BV52: 7 | BW52: 3 | BX52: 5 | BY52: 1 | CB52: 8 | CE52: 2 | CF52: 2 | CG52: 2 | CH52: 10 | CI52: 4
A53: 2017 | B53: 163 | C53: 4 | E53: 3 | F53: 28 | G53: 1 | J53: 7 | L53: 3 | M53: 6 | O53: 3 | Q53: 1 | S53: 3 | U53: 1 | V53: 2 | W53: 13 | X53: 1 | Y53: 3 | Z53: 22 | AA53: 1 | AB53: 4 | AC53: 2 | AD53: 5 | AE53: 2 | AF53: 1 | AG53: 1 | AH53: 6 | AK53: 14 | AL53: 2 | AM53: 14 | AO53: 10 | AU53: 2017 | AV53: 163 | AW53: 4 | AY53: 3 | AZ53: 28 | BA53: 1 | BD53: 7 | BF53: 3 | BG53: 6 | BI53: 3 | BK53: 1 | BM53: 3 | BO53: 1 | BP53: 2 | BQ53: 13 | BR53: 1 | BS53: 3 | BT53: 22 | BU53: 1 | BV53: 4 | BW53: 2 | BX53: 5 | BY53: 2 | BZ53: 1 | CA53: 1 | CB53: 6 | CE53: 14 | CF53: 2 | CG53: 14 | CI53: 10
A54: 2018 | B54: 94 | C54: 1 | D54: 1 | E54: 2 | F54: 10 | G54: 1 | H54: 2 | J54: 13 | K54: 1 | L54: 1 | O54: 1 | T54: 2 | V54: 2 | W54: 1 | X54: 1 | Z54: 9 | AB54: 6 | AC54: 4 | AD54: 1 | AE54: 1 | AG54: 1 | AH54: 9 | AK54: 5 | AL54: 2 | AM54: 10 | AO54: 4 | AP54: 1 | AQ54: 1 | AS54: 1 | AU54: 2018 | AV54: 94 | AW54: 1 | AX54: 1 | AY54: 2 | AZ54: 10 | BA54: 1 | BB54: 2 | BD54: 13 | BE54: 1 | BF54: 1 | BI54: 1 | BN54: 2 | BP54: 2 | BQ54: 1 | BR54: 1 | BT54: 9 | BV54: 6 | BW54: 4 | BX54: 1 | BY54: 1 | CA54: 1 | CB54: 9 | CE54: 5 | CF54: 2 | CG54: 10 | CI54: 4 | CJ54: 1 | CK54: 1 | CM54: 1
A55: 2019 | B55: 102 | D55: 2 | E55: 1 | F55: 12 | G55: 2 | H55: 1 | J55: 13 | K55: 4 | L55: 4 | O55: 3 | P55: 1 | S55: 2 | T55: 1 | Y55: 1 | Z55: 7 | AB55: 3 | AC55: 6 | AD55: 5 | AE55: 5 | AF55: 2 | AH55: 4 | AI55: 1 | AJ55: 2 | AK55: 7 | AM55: 8 | AN55: 1 | AO55: 2 | AP55: 2 | AU55: 2019 | AV55: 102 | AX55: 2 | AY55: 1 | AZ55: 12 | BA55: 2 | BB55: 1 | BD55: 13 | BE55: 4 | BF55: 4 | BI55: 3 | BJ55: 1 | BM55: 2 | BN55: 1 | BS55: 1 | BT55: 7 | BV55: 3 | BW55: 6 | BX55: 5 | BY55: 5 | BZ55: 2 | CB55: 4 | CC55: 1 | CD55: 2 | CE55: 7 | CG55: 8 | CH55: 1 | CI55: 2 | CJ55: 2
A56: 2020 | B56: 68 | E56: 1 | F56: 8 | H56: 1 | J56: 19 | K56: 3 | L56: 1 | O56: 1 | P56: 1 | R56: 1 | T56: 2 | V56: 1 | Z56: 2 | AB56: 2 | AE56: 1 | AI56: 3 | AK56: 3 | AM56: 7 | AN56: 3 | AO56: 5 | AR56: 3 | AU56: 2020 | AV56: 68 | AY56: 1 | AZ56: 8 | BB56: 1 | BD56: 19 | BE56: 3 | BF56: 1 | BI56: 1 | BJ56: 1 | BL56: 1 | BN56: 2 | BP56: 1 | BT56: 2 | BV56: 2 | BY56: 1 | CC56: 3 | CE56: 3 | CG56: 7 | CH56: 3 | CI56: 5 | CL56: 3

Sheet Storage CapEx
A1: Installed Costs of Solar and Battery Projects
A2: Battery Costs in $/kWh terms in the LBNL sample for the years 2018 and 2019 | H2: Battery price adder relative to PV capacity as a function of battery:PV capacity, 2017-2019 | M2: Battery cost adder relative to full project costs as a function of battery:PV capacity, 2017-2019 | R2: Battery cost adder relative to PV capacity by battery installation year | W2: Battery cost adder relative to full project costs by battery installation year | AC2: Combined solar and battery costs relative to PV project capacity by battery installation year
A23: Note: Some of the PV-battery projects are retrofits to earlier PV projects. The solar online date of the 2018 battery projects ranged from 2016 to 2018, while the solar online date of the 2019 battery projects ranged from 2018 to 2019.
A24: Sources: Berkeley Lab (some data points suppressed to protect confidentiality), Energy Information Administration
B26: Battery Count | C26: Battery Capacity (MW) | D26: Battery Energy (MWh) | E26: Median Battery Capacity Ratio | F26: Median Battery Duration (h) | G26: Battery Costs ($/kWh) Median | H26: Battery Price ($/kWh) 20th Percentile | I26: Battery Costs ($/kWh) 80th Percentile | J26: Battery Cost Contribution (Adder/Total) Median | K26: Battery Cost Contribution (Adder/Total) 20th Percentile | L26: Battery Price Contribution (Adder/Total) 80th Percentile | M26: Battery Cost Adder ($/WAC-PV) Median | N26: Battery Cost Adder ($/WAC-PV) 20th Percentile | O26: Battery Cost Adder ($/WAC-PV) 80th Percentile | P26: Battery Cost Adder ($/WDC-PV) Median | Q26: Battery Cost Adder ($/WDC-PV) 20th Percentile | R26: Battery Cost Adder ($/WDC-PV) 80th Percentile
A27: 2018 | B27: 5 | C27: 53 | D27: 214 | E27: 0.5 | F27: 4 | G27: 412.0987218 | H27: 368.5683638 | I27: 472.5618449 | J27: 0.1469040499 | K27: 0.09180389037 | L27: 0.3347566278 | M27: 0.6528265984 | N27: 0.1958176272 | O27: 1.707692576 | P27: 0.4225414877 | Q27: 0.1186049856 | R27: 1.264672389
A28: 2019 | B28: 11 | C28: 48.8 | D28: 118.9 | E28: 0.599880024 | F28: 2.183333333 | G28: 1104.216586 | H28: 862.8426855 | I28: 2039.916158 | J28: 0.4803219308 | K28: 0.2389385314 | L28: 0.5461600316 | M28: 1.538105954 | N28: 0.9010062772 | O28: 2.782885658 | P28: 1.303740318 | Q28: 0.7816421309 | R28: 2.399519168
A29: 2020 | B29: 0 | C29: 0 | D29: 0
A30: Total | B30: 16 | C30: 101.8 | D30: 332.9
B33: Median
C34: Solar | D34: Adder
A35: 2018 | B35: Solar Standalone | C35: 1.84
B36: Solar + Battery | C36: 2.009989428 | D36: 0.6528265984
A37: 2019 | B37: Solar Standalone | C37: 1.58
B38: Solar + Battery | C38: 2.547179081 | D38: 1.538105954
A39: 2020 | B39: Solar Standalone | C39: 1.42
B40: Solar + Battery
B44: Average
C45: Solar | D45: Adder
A46: 2018 | B46: Solar Standalone | C46: 2.06
B47: Solar + Battery | C47: 2.784739992 | D47: 0.9048798031
A48: 2019 | B48: Solar Standalone | C48: 1.8
B49: Solar + Battery | C49: 2.408115624 | D49: 1.806560831
A50: 2020 | B50: Solar Standalone | C50: 1.49
B51: Solar + Battery

Sheet CSP CapEx
A1: Installed costs of individual CSP projects
A20: Solar Tech Sub | B20: Solar Capacity AC | C20: Solar COD | D20: Solar Costs AC | E20: Core Size | H20: PV Median Cost | I20: Bubble Size
A21: Tower | B21: 370 | C21: 2014 | D21: 6.756081081 | E21: 1 | G21: 2010 | H21: 5.383638678 | I21: 10
A22: Tower | B22: 110 | C22: 2015 | D22: 9.626191713 | E22: 1 | G22: 2011 | H22: 4.720532027 | I22: 10
G23: 2012 | H23: 4.36561491 | I23: 10
G24: 2013 | H24: 3.8873027 | I24: 10
G25: 2014 | H25: 3.304361579 | I25: 10
A26: Solar Tech Sub | B26: Solar Capacity AC | C26: Solar COD | D26: Solar Costs AC | E26: Core Size | G26: 2015 | H26: 2.960884931 | I26: 10
A27: Trough | B27: 68.5 | C27: 2007 | D27: 4.944507835 | E27: 1 | G27: 2016 | H27: 2.451304536 | I27: 10
A28: Trough | B28: 75 | C28: 2010 | D28: 6.269564265 | E28: 1 | G28: 2017 | H28: 2.266637379 | I28: 10
A29: Trough | B29: 250 | C29: 2013 | D29: 7.444351626 | E29: 1 | G29: 2018 | H29: 1.836348702 | I29: 10
A30: Trough | B30: 250 | C30: 2014 | D30: 5.637360117 | E30: 1 | G30: 2019 | H30: 1.576620886 | I30: 10
A31: Trough | B31: 250 | C31: 2014 | D31: 6.75360389 | E31: 1 | G31: 2020 | H31: 1.415973964 | I31: 10

Sheet O&M Cost Time Trend
A1: PV Operation and Maintenance Costs
A22: Sources: Berkeley Lab, FERC
A23: Note: Included in cost scope are project supervision, engineering, maintenance, rents, and training. Excluded are payments for property taxes, insurance, land royalties, performance bonds, various admnistrative and other fees, and overhead.
B26: $2020/kWAC-yr | E26: $2020/MWh
B27: All Mean | C27: Min | D27: Max | E27: All Mean | F27: Min | G27: Max
A28: 2011 | B28: 33.37536476 | C28: 11.06795955 | D28: 44.52906737 | E28: 20.72254373 | F28: 17.01939621 | G28: 22.57411749
A29: 2012 | B29: 31.90485527 | C29: 14.53767412 | D29: 40.91328 | E29: 15.33233155 | F29: 9.581178095 | G29: 19.4974191
A30: 2013 | B30: 30.52088742 | C30: 16.61608922 | D30: 37.82185882 | E30: 14.85520118 | F30: 10.72578543 | G30: 17.13004923
A31: 2014 | B31: 19.54174018 | C31: 14.89628867 | D31: 36.56445445 | E31: 9.020721332 | F31: 6.323164187 | G31: 15.30041403
A32: 2015 | B32: 16.86985701 | C32: 12.86960132 | D32: 32.52678229 | E32: 7.953823051 | F32: 5.460020295 | G32: 18.48343581
A33: 2016 | B33: 19.08425853 | C33: 7.502785856 | D33: 28.64904749 | E33: 8.769133542 | F33: 6.884096284 | G33: 14.92410497
A34: 2017 | B34: 16.65766582 | C34: 11.45862628 | D34: 22.42243397 | E34: 8.73862031 | F34: 6.584352325 | G34: 12.74066246
A35: 2018 | B35: 19.17018818 | C35: 8.341723252 | D35: 39.82546631 | E35: 10.89251738 | F35: 6.908924571 | G35: 24.11614736
A36: 2019 | B36: 19.20925184 | C36: 8.183256263 | D36: 29.53531632 | E36: 11.55117385 | F36: 5.871903137 | G36: 23.86913533
A37: 2020 | B37: 15.82557165 | C37: 6.4711 | D37: 22.09135394 | E37: 8.556154067 | F37: 4.15383656 | G37: 15.48669766
C39: Negative Error | D39: Positive Error | F39: Negative Error | G39: Positive Error | H39: x-axis
C40: =B28-C28 -> 22.30740521 | D40: =D28-B28 -> 11.15370261 | F40: =E28-F28 -> 3.70314752 | G40: =G28-E28 -> 1.85157376 | H40: 1.2
C41: 17.36718114 | D41: 9.008424734 | F41: 5.751153458 | G41: 4.165087552 | H41: =H40+1 -> 2.2
C42: 13.9047982 | D42: 7.300971403 | F42: 4.129415752 | G42: 2.274848055 | H42: =H41+1 -> 3.2
C43: 4.645451517 | D43: 17.02271426 | F43: 2.697557145 | G43: 6.279692701 | H43: 4.2
C44: 4.000255684 | D44: 15.65692528 | F44: 2.493802756 | G44: 10.52961276 | H44: 5.2
C45: 11.58147268 | D45: 9.564788952 | F45: 1.885037258 | G45: 6.154971424 | H45: 6.2
C46: 5.199039534 | D46: 5.764768159 | F46: 2.154267985 | G46: 4.002042154 | H46: 7.2
C47: 10.82846492 | D47: 20.65527813 | F47: 3.98359281 | G47: 13.22362998 | H47: 8.2
C48: 11.02599558 | D48: 10.32606448 | F48: 5.679270709 | G48: 12.31796148 | H48: 9.2
C49: 9.354471655 | D49: 6.265782284 | F49: 4.402317508 | G49: 6.930543592 | H49: 10.2

Sheet CF by GHI, Mount, ILR
A1: Cumulative capacity factor by resource strength, fixed-tilt vs. tracking, and inverter loading ratio
A24: Source: EIA, FERC, Berkeley Lab
D26: Median | H26: Individual Projects
A27: GHI | B27: Mount | C27: DC:AC (ILR) | D27: Capacity | E27: Sample | F27: Sample | I27: Capacity
A28: Quartile | B28: Type | C28: Quartile | D28: Factor | E28: Projects | F28: MW | H28: Bin | I28: Factor
A29: 1st Quartile GHI | B29: Fixed-Tilt | C29: 1 | D29: 0.1684023709 | E29: 42 | F29: 481.522 | H29: 1 | I29: 0.09183735003
C30: 2 | D30: 0.1822322651 | E30: 26 | F30: 248.192 | H30: 1 | I30: 0.1394148288
C31: 3 | D31: 0.1838444937 | E31: 18 | F31: 290.197 | H31: 1 | I31: 0.1473891925
C32: 4 | D32: 0.1931750659 | E32: 25 | F32: 450.295 | H32: 1 | I32: 0.1492038977
B33: Tracking | C33: 1 | D33: 0.19001348 | E33: 14 | F33: 238.84 | H33: 1 | I33: 0.1495893224
C34: 2 | D34: 0.212486694 | E34: 17 | F34: 221.21 | H34: 1 | I34: 0.15310919
C35: 3 | D35: 0.2147960888 | E35: 20 | F35: 400.6 | H35: 1 | I35: 0.1534655723
C36: 4 | D36: 0.2161017822 | E36: 26 | F36: 927.3 | H36: 1 | I36: 0.1557946266
A37: 2nd Quartile GHI | B37: Fixed-Tilt | C37: 1 | D37: 0.1940410959 | E37: 10 | F37: 244.3 | H37: 1 | I37: 0.1563837409
C38: 2 | D38: 0.1970612225 | E38: 14 | F38: 280.913 | H38: 1 | I38: 0.1568311705
C39: 3 | D39: 0.2039741451 | E39: 14 | F39: 535.1 | H39: 1 | I39: 0.1568702779
C40: 4 | D40: 0.2220344233 | E40: 27 | F40: 1043.86 | H40: 1 | I40: 0.1577604879
B41: Tracking | C41: 1 | D41: 0.2163954785 | E41: 19 | F41: 530.7 | H41: 1 | I41: 0.1579361453
C42: 2 | D42: 0.2303512411 | E42: 12 | F42: 458.131 | H42: 1 | I42: 0.160863425
C43: 3 | D43: 0.2511529 | E43: 38 | F43: 917.65 | H43: 1 | I43: 0.1638194037
C44: 4 | D44: 0.2353344061 | E44: 54 | F44: 1612.361 | H44: 1 | I44: 0.1649208942
A45: 3rd Quartile GHI | B45: Fixed-Tilt | C45: 1 | D45: 0.2207806244 | E45: 8 | F45: 180.84 | H45: 1 | I45: 0.165058719
C46: 2 | D46: 0.2289667662 | E46: 10 | F46: 703.36 | H46: 1 | I46: 0.1651235208
C47: 3 | D47: 0.2284091017 | E47: 4 | F47: 72.2 | H47: 1 | I47: 0.1652384501
C48: 4 | D48: 0.2422855516 | E48: 13 | F48: 1089.5 | H48: 1 | I48: 0.1660290028
B49: Tracking | C49: 1 | D49: 0.2452940146 | E49: 40 | F49: 1491.54 | H49: 1 | I49: 0.1679719181
C50: 2 | D50: 0.2786226007 | E50: 37 | F50: 2416.21 | H50: 1 | I50: 0.1688328236
C51: 3 | D51: 0.2861237835 | E51: 55 | F51: 2941.588 | H51: 1 | I51: 0.1694181901
C52: 4 | D52: 0.2868112859 | E52: 21 | F52: 681.85 | H52: 1 | I52: 0.1695950341
A53: 4th Quartile GHI | B53: Fixed-Tilt | C53: 1 | D53: 0.2152049118 | E53: 11 | F53: 662.5 | H53: 1 | I53: 0.1704616816
C54: 2 | D54: 0.2530998121 | E54: 9 | F54: 463.56 | H54: 1 | I54: 0.1713765545
C55: 3 | D55: 0.2769512687 | E55: 7 | F55: 960.7 | H55: 1 | I55: 0.1725962413
C56: 4 | D56: 0.2752237338 | E56: 7 | F56: 671.49 | H56: 1 | I56: 0.1737518175
B57: Tracking | C57: 1 | D57: 0.2806892884 | E57: 44 | F57: 1575.198 | H57: 1 | I57: 0.1747489429
C58: 2 | D58: 0.3042946216 | E58: 54 | F58: 2638.996 | H58: 1 | I58: 0.1752665256
C59: 3 | D59: 0.3140615461 | E59: 41 | F59: 2557.66 | H59: 1 | I59: 0.1772421339
C60: 4 | D60: 0.3189908112 | E60: 15 | F60: 663.64 | H60: 1 | I60: 0.1776152179
H61: 1 | I61: 0.1781530217
D62: Total: | E62: =SUM(E29:E60) -> 752 | F62: =SUM(F29:F60) -> 28652.003 | H62: 1 | I62: 0.1831387806
H63: 1 | I63: 0.1834853073
H64: 1 | I64: 0.1836636993
H65: 1 | I65: 0.1856652597
H66: 1 | I66: 0.1888026559
H67: 1 | I67: 0.1900009214
H68: 1 | I68: 0.191283905
H69: 1 | I69: 0.1956764773
H70: 1 | I70: 0.2234336342
H71: 2 | I71: 0.1291116882
H72: 2 | I72: 0.1556350258
H73: 2 | I73: 0.1592899225
H74: 2 | I74: 0.165907711
H75: 2 | I75: 0.1690832356
H76: 2 | I76: 0.1697473249
H77: 2 | I77: 0.1718264227
H78: 2 | I78: 0.1768159469
H79: 2 | I79: 0.1777757647
H80: 2 | I80: 0.1782179955
H81: 2 | I81: 0.1809257754
H82: 2 | I82: 0.1817808128
H83: 2 | I83: 0.1818069495
H84: 2 | I84: 0.1826575806
H85: 2 | I85: 0.1830431727
H86: 2 | I86: 0.183262973
H87: 2 | I87: 0.1868477468
H88: 2 | I88: 0.18737924
H89: 2 | I89: 0.1876038917
H90: 2 | I90: 0.1878386664
H91: 2 | I91: 0.190338365
H92: 2 | I92: 0.1904485428
H93: 2 | I93: 0.1936721724
H94: 2 | I94: 0.1938405068
H95: 2 | I95: 0.1990709074
H96: 2 | I96: 0.2075517076
H97: 3 | I97: 0.1623715954
H98: 3 | I98: 0.1645854004
H99: 3 | I99: 0.166859768
H100: 3 | I100: 0.1704910134
H101: 3 | I101: 0.1734764367
H102: 3 | I102: 0.1751346088
H103: 3 | I103: 0.1758317778
H104: 3 | I104: 0.1761845007
H105: 3 | I105: 0.1823878017
H106: 3 | I106: 0.1853011857
H107: 3 | I107: 0.1853226174
H108: 3 | I108: 0.1856325348
H109: 3 | I109: 0.1870465111
H110: 3 | I110: 0.1886714842
H111: 3 | I111: 0.1924851404
H112: 3 | I112: 0.2009608367
H113: 3 | I113: 0.2013634291
H114: 3 | I114: 0.2085972571
H115: 4 | I115: 0.1557284542
H116: 4 | I116: 0.1648204272
H117: 4 | I117: 0.1697460462
H118: 4 | I118: 0.1729736922
H119: 4 | I119: 0.1781630199
H120: 4 | I120: 0.1817238873
H121: 4 | I121: 0.1836332929
H122: 4 | I122: 0.183692988
H123: 4 | I123: 0.1847108379
H124: 4 | I124: 0.1859323565
H125: 4 | I125: 0.1894424522
H126: 4 | I126: 0.1924833718
H127: 4 | I127: 0.1931750659
H128: 4 | I128: 0.1955520073
H129: 4 | I129: 0.1955538444
H130: 4 | I130: 0.2007967386
H131: 4 | I131: 0.2042222793
H132: 4 | I132: 0.2094781974
H133: 4 | I133: 0.2123777033
H134: 4 | I134: 0.2124753002
H135: 4 | I135: 0.2161094391
H136: 4 | I136: 0.222630719
H137: 4 | I137: 0.2238051648
H138: 4 | I138: 0.2254046968
H139: 4 | I139: 0.2286402068
H140: 5 | I140: 0.1751138434
H141: 5 | I141: 0.1796836983
H142: 5 | I142: 0.1812663338
H143: 5 | I143: 0.1844761756
H144: 5 | I144: 0.1879113412
H145: 5 | I145: 0.188163023
H146: 5 | I146: 0.1882822292
H147: 5 | I147: 0.1917447307
H148: 5 | I148: 0.1920743893
H149: 5 | I149: 0.1948761682
H150: 5 | I150: 0.1964405126
H151: 5 | I151: 0.1966697598
H152: 5 | I152: 0.196923345
H153: 5 | I153: 0.1989645622
H154: 6 | I154: 0.1846811027
H155: 6 | I155: 0.1918733667
H156: 6 | I156: 0.1920564116
H157: 6 | I157: 0.1958675487
H158: 6 | I158: 0.1986903133
H159: 6 | I159: 0.2016415869
H160: 6 | I160: 0.2019540447
H161: 6 | I161: 0.2071205431
H162: 6 | I162: 0.212486694
H163: 6 | I163: 0.2150801831
H164: 6 | I164: 0.2161434573
H165: 6 | I165: 0.2166774719
H166: 6 | I166: 0.2176309648
H167: 6 | I167: 0.2179896594
H168: 6 | I168: 0.2180039158
H169: 6 | I169: 0.2262864299
H170: 6 | I170: 0.2313839489
H171: 7 | I171: 0.1157756926
H172: 7 | I172: 0.1650761867
H173: 7 | I173: 0.1790755551
H174: 7 | I174: 0.1795472287
H175: 7 | I175: 0.182592908
H176: 7 | I176: 0.1888475359
H177: 7 | I177: 0.2035706137
H178: 7 | I178: 0.2087946746
H179: 7 | I179: 0.2089489307
H180: 7 | I180: 0.2128628971
H181: 7 | I181: 0.2167292805
H182: 7 | I182: 0.2189922481
H183: 7 | I183: 0.2199376378
H184: 7 | I184: 0.2252905402
H185: 7 | I185: 0.2279444191
H186: 7 | I186: 0.230455807
H187: 7 | I187: 0.2342339261
H188: 7 | I188: 0.2481925419
H189: 7 | I189: 0.2489569083
H190: 7 | I190: 0.2521773826
H191: 8 | I191: 0.187809985
H192: 8 | I192: 0.1972413053
H193: 8 | I193: 0.1986424464
H194: 8 | I194: 0.2026054339
H195: 8 | I195: 0.2035469891
H196: 8 | I196: 0.2078494802
H197: 8 | I197: 0.208315787
H198: 8 | I198: 0.2104204684
H199: 8 | I199: 0.2118039145
H200: 8 | I200: 0.2120279146
H201: 8 | I201: 0.2141399163
H202: 8 | I202: 0.2144920925
H203: 8 | I203: 0.2146935827
H204: 8 | I204: 0.2175099817
H205: 8 | I205: 0.2179010193
H206: 8 | I206: 0.2241063297
H207: 8 | I207: 0.2245399939
H208: 8 | I208: 0.2246768552
H209: 8 | I209: 0.2255920887
H210: 8 | I210: 0.2287295053
H211: 8 | I211: 0.2296210738
H212: 8 | I212: 0.2333390359
H213: 8 | I213: 0.2395521594
H214: 8 | I214: 0.2409345836
H215: 8 | I215: 0.2550176457
H216: 8 | I216: 0.2633942991
H217: 9 | I217: 0.1808544691
H218: 9 | I218: 0.1843378995
H219: 9 | I219: 0.1906714431
H220: 9 | I220: 0.1922203196
H221: 9 | I221: 0.1939212329
H222: 9 | I222: 0.1941609589
H223: 9 | I223: 0.195112277
... 557 more rows

Sheet CF by Region
A1: Cumulative capacity factor by region and fixed-tilt vs. tracking
A24: Source: EIA, FERC, Berkeley Lab
B26: Fixed-Tilt | C26: Fixed-Tilt | D26: Fixed-Tilt | F26: Tracking | G26: Tracking | H26: Tracking | J26: Fixed-Tilt | K26: Tracking
B27: Average | C27: # projects | D27: # MW | F27: Average | G27: # projects | H27: # MW | J27: Labels | K27: Labels
A28: ISO-NE | B28: 0.1653758326 | C28: 12 | D28: 185.552 | G28: 0 | H28: 0 | J28: =C28&" projects, "&TEXT(D28,"#,##0")&" MW" -> 12 projects, 186 MW | K28: =G28&" projects, "&TEXT(H28,"#,##0")&" MW" -> 0 projects, 0 MW
A29: NYISO | B29: 0.1857091297 | C29: 8 | D29: 120.9 | F29: 0.1788533757 | G29: 2 | H29: 27.7 | J29: 8 projects, 121 MW | K29: 2 projects, 28 MW
A30: MISO | B30: 0.1799613428 | C30: 17 | D30: 305.297 | F30: 0.203294898 | G30: 16 | H30: 264.41 | J30: 17 projects, 305 MW | K30: 16 projects, 264 MW
A31: PJM | B31: 0.1762300419 | C31: 65 | D31: 745.091 | F31: 0.2097414862 | G31: 51 | H31: 1446.526 | J31: 65 projects, 745 MW | K31: 51 projects, 1,447 MW
A32: Hawaii | B32: 0.2087106224 | C32: 6 | D32: 74 | F32: 0.2172671559 | G32: 5 | H32: 157.2 | J32: 6 projects, 74 MW | K32: 5 projects, 157 MW
A33: Southeast (non-ISO) | B33: 0.2123698511 | C33: 79 | D33: 2974.279 | F33: 0.2270183314 | G33: 77 | H33: 3056.315 | J33: 79 projects, 2,974 MW | K33: 77 projects, 3,056 MW
A34: ERCOT | B34: 0.1988695508 | C34: 2 | D34: 43.66 | F34: 0.235418929 | G34: 41 | H34: 2299.349 | J34: 2 projects, 44 MW | K34: 41 projects, 2,299 MW
A35: SPP | B35: 0.2075901733 | C35: 2 | D35: 16.32 | F35: 0.2560488293 | G35: 10 | H35: 230.62 | J35: 2 projects, 16 MW | K35: 10 projects, 231 MW
A36: West (non-ISO) | B36: 0.2422049044 | C36: 19 | D36: 760.74 | F36: 0.2826140676 | G36: 157 | H36: 5015.839 | J36: 19 projects, 761 MW | K36: 157 projects, 5,016 MW
A37: CAISO | B37: 0.2453998061 | C37: 35 | D37: 3152.69 | F37: 0.2892946446 | G37: 148 | H37: 7775.515 | J37: 35 projects, 3,153 MW | K37: 148 projects, 7,776 MW

Sheet CF by Project Vintage
A1: Cumulative and 2020 capacity factor by project vintage: 2010-2019 projects | M1: 2019 capacity factor by project vintage: 2010-2018 projects
A24: Source: EIA, FERC, Berkeley Lab
D25: Average | E25: Average
D26: 2020 | E26: Cumulative
A27: Sample | B27: Sample | C27: Project | D27: Capacity | E27: Capacity | F27: Average | G27: Average | H27: % | O27: ILR | P27: GHI | Q27: Tracking
A28: GW | B28: Projects | C28: Vintage | D28: Factor | E28: Factor | F28: ILR | G28: GHI | H28: Tracking | O28: Index | P28: Index | Q28: Index
A29: 0.14422 | B29: 7 | C29: 2010 | D29: 0.1961351371 | E29: 0.2132374904 | F29: 1.172742681 | G29: 4.968867352 | H29: 0.1428571429 | J29: =TEXT($F29,"#.#0")&" ILR; "&TEXT($H29,"#0%")&" tracking;" -> 1.17 ILR; 14% tracking; | M29: =TEXT($G29,"#.00")&" GHI" -> 4.97 GHI | O29: 100 | P29: 100 | Q29: 100
A30: 0.44712 | B30: 31 | C30: 2011 | D30: 0.2209944293 | E30: 0.2288268074 | F30: 1.177871436 | G30: 5.130988761 | H30: 0.4838709677 | J30: =TEXT($F30,"#.#0")&" ILR; "&TEXT($H30,"#0%")&" tracking;" -> 1.18 ILR; 48% tracking; | M30: =TEXT($G30,"#.00")&" GHI" -> 5.13 GHI | O30: =(F30-F29)*100+O29 -> 100.5128756 | P30: =(G30-G29)*100+P29 -> 116.212141 | Q30: =(H30-H29)*100+Q29 -> 134.1013825
A31: 0.892284 | B31: 37 | C31: 2012 | D31: 0.2266714864 | E31: 0.2392968169 | F31: 1.229409197 | G31: 5.128043268 | H31: 0.4864864865 | J31: 1.23 ILR; 49% tracking; | M31: 5.13 GHI | O31: =(F31-F30)*100+O30 -> 105.6666516 | P31: =(G31-G30)*100+P30 -> 115.9175916 | Q31: =(H31-H30)*100+Q30 -> 134.3629344
A32: 1.724689 | B32: 46 | C32: 2013 | D32: 0.2488276168 | E32: 0.2644895883 | F32: 1.28107849 | G32: 5.368424901 | H32: 0.5869565217 | J32: 1.28 ILR; 59% tracking; | M32: 5.37 GHI | O32: 110.8335809 | P32: 139.9557549 | Q32: 144.4099379
A33: 2.727913 | B33: 49 | C33: 2014 | D33: 0.2478864501 | E33: 0.2580601249 | F33: 1.293286369 | G33: 5.237612217 | H33: 0.6326530612 | J33: 1.29 ILR; 63% tracking; | M33: 5.24 GHI | O33: 112.0543689 | P33: 126.8744865 | Q33: 148.9795918
A34: 2.769677 | B34: 85 | C34: 2015 | D34: 0.2430862852 | E34: 0.2547204197 | F34: 1.306374514 | G34: 5.095507438 | H34: 0.6588235294 | J34: 1.31 ILR; 66% tracking; | M34: 5.10 GHI | O34: 113.3631833 | P34: 112.6640086 | Q34: 151.5966387
A35: 7.505867 | B35: 148 | C35: 2016 | D35: 0.2512165999 | E35: 0.2556384447 | F35: 1.309668496 | G35: 5.00466607 | H35: 0.7162162162 | J35: 1.31 ILR; 72% tracking; | M35: 5.00 GHI | O35: 113.6925815 | P35: 103.5798718 | Q35: 157.3359073
A36: 3.824768 | B36: 146 | C36: 2017 | D36: 0.2277721756 | E36: 0.2325178204 | F36: 1.335294593 | G36: 4.721925366 | H36: 0.7808219178 | J36: 1.34 ILR; 78% tracking; | M36: 4.72 GHI | O36: 116.2551912 | P36: 75.30580143 | Q36: 163.7964775
A37: 3.919415 | B37: 91 | C37: 2018 | D37: 0.2346271371 | E37: 0.2318206373 | F37: 1.330770899 | G37: 4.697624326 | H37: 0.6483516484 | J37: 1.33 ILR; 65% tracking; | M37: 4.70 GHI | O37: 115.8028218 | P37: 72.87569748 | Q37: 150.5494505
A38: 4.4422 | B38: 89 | C38: 2019 | D38: 0.231599777 | E38: 0.231599777 | F38: 1.306110193 | G38: 4.820542586 | H38: 0.797752809 | J38: 1.31 ILR; 80% tracking; | M38: 4.82 GHI | O38: 113.3367512 | P38: 85.16752347 | Q38: 165.4895666
C39: 2020 | F39: 1.34 | G39: 4.65 | H39: 0.8949579832 | J39: 1.34 ILR; 89% tracking; | M39: 4.65 GHI | O39: 116.7257319 | P39: 68.11326484 | Q39: 175.210084

Sheet CF by Project Age
A1: Changes in fleet-wide performance as projects age
A24: Source: EIA, FERC, Berkeley Lab
A26: Sample | B26: Sample | C26: Years | D26: Simple | E26: Cap-Wgtd | G26: 20th | H26: 80th | I26: Reference | N26: 50th | O26: 25th | P26: 0.75
A27: MW-AC | B27: Projects | C27: Post-COD | D27: Average | E27: Average | F27: Median | G27: Percentile | H27: Percentile | I27: 0.012 | K27: Add | L27: Subtract | N27: Percentile | O27: Percentile | P27: Percentile
A28: 28094.203 | B28: 727 | C28: 1 | D28: 1 | E28: 1 | F28: 1 | G28: 1 | H28: 1 | I28: 1 | K28: =H28-F28 -> 0 | L28: =F28-G28 -> 0 | N28: =F28 -> 1 | O28: 1 | P28: 1 | Q28: =P28-O28 -> 0
A29: 23566.703 | B29: 633 | C29: 2 | D29: 1.00184023 | E29: 1.004499075 | F29: 0.9980302534 | G29: 0.9600437361 | H29: 1.042286386 | I29: =I28*(1-$I$27) -> 0.988 | K29: 0.04425613279 | L29: 0.0379865173 | N29: =F29 -> 0.9980302534 | O29: 0.9674647771 | P29: 1.030589286 | Q29: =P29-O29 -> 0.06312450841
A30: 19928.368 | B30: 544 | C30: 3 | D30: 0.9822877542 | E30: 0.99158829 | F30: 0.9870446425 | G30: 0.9373369552 | H30: 1.030678607 | I30: 0.976144 | K30: 0.04363396503 | L30: 0.0497076873 | N30: 0.9870446425 | O30: 0.9477067641 | P30: 1.021334659 | Q30: 0.07362789482
A31: 16178.24 | B31: 403 | C31: 4 | D31: 0.9733876223 | E31: 0.9773000236 | F31: 0.9765400294 | G31: 0.9245924185 | H31: 1.018659446 | I31: 0.964430272 | K31: 0.04211941663 | L31: 0.05194761094 | N31: 0.9765400294 | O31: 0.9380437463 | P31: 1.010089567 | Q31: 0.07204582025
A32: 8706.773 | B32: 259 | C32: 5 | D32: 0.9527529184 | E32: 0.9708673031 | F32: 0.9569970212 | G32: 0.9020596024 | H32: 1.00207954 | I32: 0.9528571087 | K32: 0.04508251833 | L32: 0.05493741874 | N32: 0.9569970212 | O32: 0.9172312251 | P32: 0.9930994 | Q32: 0.07586817486
A33: 6029.756 | B33: 177 | C33: 6 | D33: 0.9284572883 | E33: 0.9335578337 | F33: 0.929708449 | G33: 0.8748736381 | H33: 0.9859976727 | I33: 0.9414228234 | K33: 0.05628922373 | L33: 0.05483481089 | N33: 0.929708449 | O33: 0.8919165238 | P33: 0.9768867583 | Q33: 0.08497023454
A34: 3292.043 | B34: 127 | C34: 7 | D34: 0.9116307514 | E34: 0.9267918407 | F34: 0.9143232413 | G34: 0.865985268 | H34: 0.9774731444 | I34: 0.9301257495 | K34: 0.06314990313 | L34: 0.0483379733 | N34: 0.9143232413 | O34: 0.8753683524 | P34: 0.9648647532 | Q34: 0.08949640075
A35: 1567.354 | B35: 81 | C35: 8 | D35: 0.9103941377 | E35: 0.9300504839 | F35: 0.9122313052 | G35: 0.8470370265 | H35: 0.9748912886 | I35: 0.9189642406 | K35: 0.06265998338 | L35: 0.06519427869 | N35: 0.9122313052 | O35: 0.8593320822 | P35: 0.9703730142 | Q35: 0.1110409321
A36: 666.99 | B36: 43 | C36: 9 | D36: 0.9066880411 | E36: 0.9099648007 | F36: 0.914463048 | G36: 0.8558790525 | H36: 0.9694020094 | I36: 0.9079366697 | K36: 0.05493896145 | L36: 0.05858399546 | N36: 0.914463048 | O36: 0.8702876116 | P36: 0.9457471428 | Q36: 0.07545953117
A37: 227.37 | B37: 13 | C37: 10 | D37: 0.8917092833 | E37: 0.892950276 | F37: 0.8967041548 | G37: 0.8175093441 | H37: 0.9555966925 | I37: 0.8970414296 | K37: 0.05889253773 | L37: 0.0791948107 | N37: 0.8967041548 | O37: 0.82589163 | P37: 0.9552743393 | Q37: 0.1293827092
A38: 83.15 | B38: 6 | C38: 11 | D38: 0.9050017911 | E38: 0.863487869 | F38: 0.8815027111 | G38: 0.7896471693 | H38: 1.02968521 | I38: 0.8862769325 | K38: 0.1481824988 | L38: 0.09185554176 | N38: 0.8815027111 | O38: 0.8058194179 | P38: 0.999431222 | Q38: 0.1936118041
A39: 28.9 | B39: 3 | C39: 12 | D39: 0.9157833775 | E39: 0.9139234901 | F39: 0.9036853191 | G39: 0.8835677364 | H39: 0.9455794068 | I39: 0.8756416093 | K39: 0.04189408775 | L39: 0.02011758265 | N39: 0.9036853191 | O39: 0.8869206669 | P39: 0.9385970589 | Q39: 0.051676392

Sheet Inter-Annual Variability
A1: Inter-annual variability in the sample's solar resource, by region and nationally
A22: Source: NSRDB, Berkeley Lab
A25: Year | B25: National | C25: CAISO | D25: ERCOT | E25: SPP | F25: MISO | G25: PJM | H25: NYISO | I25: ISO-NE | J25: West (non-ISO) | K25: Southeast (non-ISO)
A26: 2008 | B26: 1.02103193 | J26: 1.02103193
A27: 2009 | B27: 1.00234678 | C27: 1.004337927 | J27: 1.001293264
A28: 2010 | B28: 1.013152823 | C28: 0.9916001949 | G28: 1.034515832 | J28: 1.006316396 | K28: 1.037996627
A29: 2011 | B29: 1.021457012 | C29: 1.010441677 | D29: 1.064146302 | G29: 0.9625541419 | J29: 1.035894765 | K29: 1.029166178
A30: 2012 | B30: 1.011855402 | C30: 0.9982590182 | D30: 1.026133288 | E30: 1.018960522 | G30: 1.044303902 | H30: 1.030445482 | J30: 1.004025811 | K30: 1.010460614
A31: 2013 | B31: 1.01098983 | C31: 1.020236593 | D31: 1.000721094 | E31: 1.024845918 | G31: 1.019110559 | H31: 1.040700136 | J31: 0.9967394923 | K31: 0.9884980287
A32: 2014 | B32: 1.001652546 | C32: 1.002659792 | D32: 0.997834662 | E32: 0.9830085703 | F32: 1.006034164 | G32: 1.017648636 | H32: 1.024624128 | J32: 0.9954870453 | K32: 1.003282666
A33: 2015 | B33: 0.986110771 | C33: 0.9894405667 | D33: 0.9474168442 | E33: 0.9515155227 | F33: 1.017720227 | G33: 1.021538643 | H33: 1.044176177 | I33: 1.03190586 | J33: 0.9671139331 | K33: 0.9723398933
A34: 2016 | B34: 1.006848194 | C34: 1.001386456 | D34: 1.021425527 | E34: 0.9975286944 | F34: 1.031577324 | G34: 1.036282667 | H34: 1.044874594 | I34: 1.070843164 | J34: 0.996962141 | K34: 1.051322465
A35: 2017 | B35: 0.9987593108 | C35: 0.9910109631 | D35: 1.000940588 | E35: 1.011266337 | F35: 1.007315054 | G35: 1.021181413 | H35: 0.9901212462 | I35: 0.9935360528 | J35: 0.9967933401 | K35: 1.023829063
A36: 2018 | B36: 0.9862550873 | C36: 0.9977663092 | D36: 0.9608598885 | E36: 0.9709268652 | F36: 0.9726451948 | G36: 0.9476424383 | H36: 0.9285162371 | I36: 0.9304401115 | J36: 1.001798262 | K36: 0.9624777932
A37: 2019 | B37: 0.9808692721 | C37: 0.9796739108 | D37: 0.9722047253 | E37: 0.9623830823 | F37: 0.9590714197 | G37: 0.9878426944 | H37: 0.9633572533 | I37: 0.9927234052 | J37: 0.9882335633 | K37: 0.9793891314
A38: 2020 | B38: 1.004055641 | C38: 1.007129289 | D38: 1.004774748 | E38: 1.01356132 | F38: 1.005394587 | G38: 0.9759977845 | H38: 0.9858316729 | I38: 0.9938361817 | J38: 1.034205229 | K38: 0.9768915117

Sheet CF for CSP Plants
A1: Capacity factor of CSP projects (solar portion only) over time
A24: Source: EIA, FERC, Berkeley Lab
R26: Average
R27: PV in | T27: SEGS I&II | V27: SEGS III-IX
B28: SEGS I | C28: SEGS II | D28: SEGS III | E28: SEGS IV | F28: SEGS V | G28: SEGS VI | H28: SEGS VII | I28: SEGS VIII | J28: SEGS IX | K28: Nevada Solar One | L28: Genesis | M28: Solana | N28: Ivanpah | O28: Mojave | P28: Crescent Dunes | R28: CA/NV/AZ | T28: Min | U28: Add | V28: Min | W28: Add
A29: 2008 | B29: 0.08831109263 | C29: 0.1064055859 | D29: 0.2297238999 | E29: 0.2308090734 | F29: 0.2307358408 | G29: 0.2184361176 | H29: 0.2120251106 | I29: 0.1752825385 | J29: 0.1945194776 | K29: 0.2182359261 | R29: 0.3083257438 | T29: 0.08831109263 | U29: 0.01809449328 | V29: 0.06887695259 | W29: 0.05552653488
A30: 2009 | B30: 0.07472205678 | C30: 0.07090943683 | D30: 0.2101891906 | E30: 0.2121652114 | F30: 0.1996715533 | G30: 0.2046640574 | H30: 0.1922700587 | I30: 0.1705505396 | J30: 0.1812941054 | K30: 0.2114494826 | R30: 0.2760882801 | T30: 0.07090943683 | U30: 0.003812619946 | V30: 0.09582848286 | W30: 0.04161467171
A31: 2010 | B31: 0.08808153001 | C31: 0.08686834094 | D31: 0.2003691687 | E31: 0.2105663703 | F31: 0.1813399557 | G31: 0.2073581213 | H31: 0.1918982387 | I31: 0.2022792134 | J31: 0.212612858 | K31: 0.2216445022 | R31: 0.272606796 | T31: 0.08686834094 | U31: 0.001213189068 | V31: 0.09325842566 | W31: 0.03127290236
A32: 2011 | B32: 0.09234994375 | C32: 0.09968797565 | D32: 0.2047784988 | E32: 0.1925418569 | F32: 0.2017777511 | G32: 0.1934996738 | H32: 0.1871428571 | I32: 0.1977778643 | J32: 0.2082113948 | K32: 0.2137502916 | R32: 0.2723102074 | T32: 0.09234994375 | U32: 0.007338031897 | V32: 0.0874548815 | W32: 0.02106853763
A33: 2012 | B33: 0.09623887965 | C33: 0.0953476017 | D33: 0.1893294826 | E33: 0.2077607878 | F33: 0.2093020004 | G33: 0.1824160812 | H33: 0.1761221702 | I33: 0.1879023328 | J33: 0.2124252256 | K33: 0.2142831027 | R33: 0.261339478 | T33: 0.0953476017 | U33: 0.0008912779494 | V33: 0.07988329053 | W33: 0.03630305544
A34: 2013 | B34: 0.07778274105 | C34: 0.08817732116 | D34: 0.1896712863 | E34: 0.1946547304 | F34: 0.1927888595 | G34: 0.1713600783 | H34: 0.1571526419 | I34: 0.1833696555 | J34: 0.1998780614 | K34: 0.1879645369 | R34: 0.2752315595 | T34: 0.07778274105 | U34: 0.01039458011 | V34: 0.06897532072 | W34: 0.04272541956
A35: 2014 | B35: 0.07099960294 | C35: 0.02896118721 | D35: 0.1816036476 | E35: 0.1813165906 | F35: 0.188102486 | G35: 0.1648630137 | H35: 0.1525179387 | I35: 0.1887777605 | J35: 0.1918366023 | K35: 0.1936922974 | L35: 0.2873115074 | M35: 0.2756013699 | N35: 0.1268985502 | R35: 0.2860055341 | T35: 0.02896118721 | U35: 0.04203841572 | V35: 0.08151833574 | W35: 0.03931866364
A36: 2015 | B36: 0.103914367 | C36: - | D36: 0.1738130524 | E36: 0.1772977917 | F36: 0.1757256536 | G36: 0.1530887149 | H36: 0.1231930855 | I36: 0.1792094749 | J36: 0.1892162204 | K36: 0.1760690598 | L36: 0.2837689498 | M36: 0.3282388128 | N36: 0.1951558204 | O36: 0.229953021 | R36: 0.2838531845 | T36: 0.103914367 | U36: 0 | V36: 0.01927871844 | W36: 0.06602313497
A37: 2016 | B37: - | C37: - | D37: 0.1550599708 | E37: 0.1632220731 | F37: 0.1669103314 | G37: 0.1331088993 | H37: 0.09914129586 | I37: 0.1822127525 | J37: 0.1848233876 | K37: 0.1942599684 | L37: 0.2835705978 | M37: 0.2931102004 | N37: 0.2024947095 | O37: 0.2845654135 | P37: 0.1321071152 | R37: 0.2839593123 | T37: 0 | U37: 0 | V37: 0.09914129586 | W37: 0.0856820917
A38: 2017 | B38: - | C38: - | D38: 0.1472502604 | E38: 0.144136025 | F38: 0.1466461054 | G38: 0.1186562296 | H38: 0.1063307241 | I38: 0.1602597032 | J38: 0.1702833126 | K38: 0.1966886645 | L38: 0.2866808219 | M38: 0.3305780822 | N38: 0.2079923816 | O38: 0.2712465753 | P38: 0.04361664591 | R38: 0.2858762053 | T38: 0 | U38: 0 | V38: 0.1063307241 | W38: 0.06395258851
A39: 2018 | B39: - | C39: - | D39: 0.1463623862 | E39: 0.1482215814 | F39: 0.1581584288 | G39: 0.1117482061 | H39: 0.09118069145 | I39: 0.1723627543 | J39: 0.1784506019 | K39: 0.1839466053 | L39: 0.284539726 | M39: 0.3543438356 | N39: 0.2305781646 | O39: 0.2763378995 | P39: 0.2032067248 | R39: 0.2873161244 | T39: 0 | U39: 0 | V39: 0.09118069145 | W39: 0.08726991045
A40: 2019 | B40: - | C40: - | D40: 0.1276469332 | E40: 0.1397400465 | F40: 0.1382680445 | G40: - | H40: - | I40: 0.1563537775 | J40: 0.1613415836 | K40: 0.1837166283 | L40: 0.2817547945 | M40: 0.3614803653 | N40: 0.2239141625 | O40: 0.2349242009 | P40: 0.05206309672 | R40: 0.2784947263 | T40: 0 | U40: 0 | V40: 0.1276469332 | W40: 0.03369465048
A41: 2020 | B41: - | C41: - | D41: - | E41: - | F41: - | G41: - | H41: - | I41: 0.1481994639 | J41: 0.1578864982 | K41: 0.1784365735 | L41: 0.2773811475 | M41: 0.3532349727 | N41: 0.2463536911 | O41: 0.2542868852 | P41: - | R41: 0.2714881889 | T41: 0 | U41: 0 | V41: 0.1481994639 | W41: 0.009687034277

Sheet PPA Price by Project (PV only)
A1: Levelized PPA prices by region, contract size, and PPA execution date: full sample (PV only--no PV+battery included here) | L1: Levelized PPA prices by region, contract size, and PPA execution date: recent sample (PV only) | W1: Levelized PPA prices by consolidated region, contract size, and PPA execution date: full sample (PV only) | AH1: Levelized PPA prices by consolidated region, contract size, and PPA execution date: recent sample (PV only) | AT1: Levelized PPA prices by region, contract size, and PPA execution date (with non-Hawaii time trend) -- PV only
A22: Source: Berkeley Lab, FERC | L22: Source: Berkeley Lab, FERC | W22: Source: Berkeley Lab, FERC | AH22: Source: Berkeley Lab, FERC
A24: PPA Execution Date | B24: Capacity (MW) | C24: CAISO | D24: West (non-ISO) | E24: MISO | F24: SPP | G24: ERCOT | H24: PJM | I24: NYISO | J24: ISO-NE | K24: Southeast (non-ISO) | L24: Hawaii | N24: Hawaii | O24: West | P24: Central | Q24: Northeast | R24: Southeast | S24: Note: Hawaii = Hawaii; West = CAISO, West (non-ISO); Central = MISO, SPP, ERCOT; Northeast = PJM, NYISO, ISO-NE; Southeast = Southeast (non-ISO)
A25: 2006-09-01 | B25: 7 | D25: 239.8734302 | O25: 239.8734302
A26: 2007-06-25 | B26: 5 | C26: 220.6314144 | O26: 220.6314144 | U26: Non-HI Gen-Wgtd Avg
A27: 2008-07-01 | B27: 550 | C27: 150.7304052 | O27: 150.7304052 | U27: 2020 $/MWh
A28: 2008-07-23 | B28: 210 | C28: 131.7706902 | O28: 131.7706902 | T28: 2009 | U28: 160.6403796
A29: 2008-12-19 | B29: 10 | C29: 168.7879319 | O29: 168.7879319 | T29: =T28+1 -> 2010 | U29: 133.7805333
A30: 2009-02-23 | B30: 30 | D30: 132.0967887 | O30: 132.0967887 | T30: =T29+1 -> 2011 | U30: 109.0903739
A31: 2009-03-01 | B31: 30 | G31: 159.5023979 | P31: 159.5023979 | T31: 2012 | U31: 84.96036799
A32: 2009-03-05 | B32: 19 | D32: 150.7603611 | O32: 150.7603611 | T32: 2013 | U32: 67.87047683
A33: 2009-05-01 | B33: 12.6 | K33: 210.0705299 | R33: 210.0705299 | T33: 2014 | U33: 56.59194975
A34: 2009-05-08 | B34: 230 | C34: 142.7834086 | O34: 142.7834086 | T34: 2015 | U34: 46.55392618
A35: 2009-06-01 | B35: 20 | D35: 131.3546881 | O35: 131.3546881 | T35: 2016 | U35: 39.36267875
A36: 2009-06-01 | B36: 14 | G36: 201.8761794 | P36: 201.8761794 | T36: 2017 | U36: 35.02819133
A37: 2009-06-01 | B37: 10.08 | H37: 227.7499129 | Q37: 227.7499129 | T37: 2018 | U37: 25.82123467
A38: 2009-06-22 | B38: 48 | C38: 166.3715968 | O38: 166.3715968 | T38: 2019 | U38: 20.69495282
A39: 2009-08-17 | B39: 250 | C39: 145.5888818 | O39: 145.5888818 | T39: 2020 | U39: 21.61976608
A40: 2009-09-08 | B40: 250 | C40: 194.7926208 | O40: 194.7926208 | T40: 2021 | U40: 24.29741871
A41: 2009-11-20 | B41: 21 | C41: 117.4512467 | O41: 117.4512467
A42: 2009-12-23 | B42: 50 | F42: 133.1772693 | P42: 133.1772693
A43: 2009-12-24 | B43: 20 | C43: 240.0826394 | O43: 240.0826394
A44: 2009-12-24 | B44: 19 | C44: 240.0826394 | O44: 240.0826394
A45: 2009-12-24 | B45: 6 | C45: 240.0826394 | O45: 240.0826394
A46: 2010-01-26 | B46: 50 | C46: 164.2326075 | O46: 164.2326075
A47: 2010-01-26 | B47: 20 | C47: 164.2326075 | O47: 164.2326075
A48: 2010-01-26 | B48: 20 | C48: 163.2080788 | O48: 163.2080788
A49: 2010-02-02 | B49: 50 | D49: 139.127084 | O49: 139.127084
A50: 2010-02-24 | B50: 300 | C50: 141.8306416 | O50: 141.8306416
A51: 2010-03-06 | B51: 40 | C51: 133.8151211 | O51: 133.8151211
A52: 2010-04-19 | B52: 29 | D52: 106.661653 | O52: 106.661653
A53: 2010-04-21 | B53: 66 | C53: 140.6436811 | O53: 140.6436811
A54: 2010-04-29 | B54: 25 | D54: 132.5178722 | O54: 132.5178722
A55: 2010-05-10 | B55: 125 | C55: 133.2147192 | O55: 133.2147192
A56: 2010-05-20 | B56: 25.8 | C56: 160.5557605 | O56: 160.5557605
A57: 2010-06-01 | B57: 32 | I57: 323.5796626 | Q57: 323.5796626
A58: 2010-06-01 | B58: 20 | D58: 132.5178722 | O58: 132.5178722
A59: 2010-06-24 | B59: 23 | D59: 128.0717099 | O59: 128.0717099
A60: 2010-06-30 | B60: 12 | D60: 100.7843554 | O60: 100.7843554
A61: 2010-06-30 | B61: 10 | D61: 100.4796315 | O61: 100.4796315
A62: 2010-07-26 | B62: 20 | D62: 134.098016 | O62: 134.098016
A63: 2010-07-29 | B63: 150 | C63: 154.4947826 | O63: 154.4947826
A64: 2010-07-29 | B64: 45 | C64: 128.9424666 | O64: 128.9424666
A65: 2010-08-10 | B65: 30 | D65: 133.6436758 | O65: 133.6436758
A66: 2010-08-10 | B66: 5.5 | K66: 193.8167346 | R66: 193.8167346
A67: 2010-08-24 | B67: 23 | D67: 114.4345592 | O67: 114.4345592
A68: 2010-09-20 | B68: 62.5 | C68: 124.4615005 | O68: 124.4615005
A69: 2010-11-10 | B69: 130 | C69: 130.4610553 | O69: 130.4610553
A70: 2010-11-15 | B70: 20 | C70: 77.03929545 | O70: 77.03929545
A71: 2010-11-15 | B71: 14 | C71: 78.97446707 | O71: 78.97446707
A72: 2010-12-01 | B72: 9 | D72: 138.7308345 | O72: 138.7308345
A73: 2010-12-01 | B73: 7.65 | K73: 149.3925483 | R73: 149.3925483
A74: 2010-12-21 | B74: 60 | C74: 124.7022245 | O74: 124.7022245
A75: 2010-12-30 | B75: 309 | C75: 110.4907139 | O75: 110.4907139
A76: 2010-12-30 | B76: 20 | C76: 147.9332837 | O76: 147.9332837
A77: 2011-01-05 | B77: 270 | C77: 110.7279342 | O77: 110.7279342
A78: 2011-01-07 | B78: 110 | C78: 123.3054447 | O78: 123.3054447
A79: 2011-01-25 | B79: 26 | C79: 135.5090953 | O79: 135.5090953
A80: 2011-02-07 | B80: 250 | D80: 115.5669526 | O80: 115.5669526
A81: 2011-02-11 | B81: 30 | D81: 114.5086409 | O81: 114.5086409
A82: 2011-02-11 | B82: 20 | D82: 118.1193583 | O82: 118.1193583
A83: 2011-03-08 | B83: 150 | C83: 94.32048885 | O83: 94.32048885
A84: 2011-06-03 | B84: 127 | D84: 111.7442508 | O84: 111.7442508
A85: 2011-06-03 | B85: 110 | C85: 119.618819 | O85: 119.618819
A86: 2011-06-21 | B86: 150 | C86: 107.1079168 | O86: 107.1079168
A87: 2011-07-08 | B87: 23 | C87: 126.5100172 | O87: 126.5100172
A88: 2011-07-14 | B88: 20 | C88: 101.0646236 | O88: 101.0646236
A89: 2011-07-18 | B89: 6 | L89: 196.3227736 | N89: 196.3227736
A90: 2011-07-21 | B90: 150 | C90: 115.9313491 | O90: 115.9313491
A91: 2011-09-29 | B91: 250 | C91: 85.82776324 | O91: 85.82776324
A92: 2011-10-01 | B92: 9 | D92: 137.6909772 | O92: 137.6909772
A93: 2011-12-01 | B93: 20 | H93: 225.7711896 | Q93: 225.7711896
A94: 2011-12-08 | B94: 19 | D94: 108.1472544 | O94: 108.1472544
A95: 2011-12-20 | B95: 30 | K95: 114.934909 | R95: 114.934909
A96: 2011-12-20 | B96: 20 | D96: 85.45749116 | O96: 85.45749116
A97: 2011-12-20 | B97: 20 | D97: 84.64056754 | O97: 84.64056754
A98: 2012-01-01 | B98: 15 | D98: 86.33288531 | O98: 86.33288531
A99: 2012-01-01 | B99: 15 | D99: 77.45618889 | O99: 77.45618889
A100: 2012-02-03 | B100: 200 | C100: 86.71512353 | O100: 86.71512353
A101: 2012-02-27 | B101: 20 | C101: 76.75697234 | O101: 76.75697234
A102: 2012-07-03 | B102: 20 | C102: 91.37579266 | O102: 91.37579266
A103: 2012-07-03 | B103: 20 | C103: 94.20718003 | O103: 94.20718003
A104: 2012-08-03 | B104: 20 | C104: 87.99418834 | O104: 87.99418834
A105: 2012-08-13 | B105: 20 | C105: 91.28766997 | O105: 91.28766997
A106: 2012-08-16 | B106: 102 | C106: 89.01428111 | O106: 89.01428111
A107: 2012-08-29 | B107: 20 | C107: 86.05127936 | O107: 86.05127936
A108: 2012-08-31 | B108: 250 | D108: 91.6466231 | O108: 91.6466231
A109: 2012-09-17 | B109: 20.8 | C109: 100.9137564 | O109: 100.9137564
A110: 2012-09-17 | B110: 20 | C110: 83.85064536 | O110: 83.85064536
A111: 2012-10-17 | B111: 10 | C111: 86.45576044 | O111: 86.45576044
A112: 2012-10-25 | B112: 50 | D112: 55.83403173 | O112: 55.83403173
A113: 2012-11-01 | B113: 20 | C113: 71.03271235 | O113: 71.03271235
A114: 2012-11-15 | B114: 20 | C114: 82.26990646 | O114: 82.26990646
A115: 2012-12-12 | B115: 250 | D115: 80.77785758 | O115: 80.77785758
A116: 2012-12-13 | B116: 20 | D116: 83.79413414 | O116: 83.79413414
A117: 2013-02-04 | B117: 28.8 | E117: 99.91057584 | P117: 99.91057584
A118: 2013-02-28 | B118: 45 | C118: 80.46987052 | O118: 80.46987052
A119: 2013-03-22 | B119: 20 | C119: 86.87988724 | O119: 86.87988724
A120: 2013-03-22 | B120: 20 | C120: 85.54537933 | O120: 85.54537933
A121: 2013-03-25 | B121: 20 | C121: 75.76944474 | O121: 75.76944474
A122: 2013-04-10 | B122: 20 | C122: 85.05792221 | O122: 85.05792221
A123: 2013-04-16 | B123: 20 | C123: 62.48902244 | O123: 62.48902244
A124: 2013-06-01 | B124: 20 | C124: 58.95173297 | O124: 58.95173297
A125: 2013-06-03 | B125: 48 | D125: 66.35722702 | O125: 66.35722702
A126: 2013-06-03 | B126: 40 | D126: 67.24666183 | O126: 67.24666183
A127: 2013-06-19 | B127: 12 | L127: 152.212955 | N127: 152.212955
A128: 2013-07-03 | B128: 50 | D128: 57.23783845 | O128: 57.23783845
A129: 2013-07-10 | B129: 40 | C129: 58.75522719 | O129: 58.75522719
A130: 2013-07-10 | B130: 20 | C130: 63.0270919 | O130: 63.0270919
A131: 2013-07-17 | B131: 20 | C131: 79.57267914 | O131: 79.57267914
A132: 2013-07-17 | B132: 12 | C132: 79.57267914 | O132: 79.57267914
A133: 2013-09-06 | B133: 15 | C133: 66.28936479 | O133: 66.28936479
A134: 2013-09-19 | B134: 20 | J134: 100.7192787 | Q134: 100.7192787
A135: 2013-09-27 | B135: 20 | C135: 63.68742869 | O135: 63.68742869
A136: 2013-10-09 | B136: 20 | C136: 65.82685163 | O136: 65.82685163
A137: 2013-10-22 | B137: 20 | C137: 63.91986456 | O137: 63.91986456
A138: 2013-12-01 | B138: 7.314 | C138: 81.5360472 | O138: 81.5360472
A139: 2013-12-06 | B139: 20 | K139: 67.08628961 | R139: 67.08628961
A140: 2013-12-19 | B140: 150 | C140: 56.08065927 | O140: 56.08065927
A141: 2014-01-30 | B141: 7 | C141: 68.41520328 | O141: 68.41520328
A142: 2014-02-20 | B142: 10.416 | D142: 48.85891785 | O142: 48.85891785
A143: 2014-03-17 | B143: 20 | C143: 63.18045751 | O143: 63.18045751
A144: 2014-03-26 | B144: 26.66 | C144: 59.11710634 | O144: 59.11710634
A145: 2014-04-01 | B145: 10.3 | H145: 64.79562043 | Q145: 64.79562043
A146: 2014-05-01 | B146: 157.5 | G146: 43.76779255 | P146: 43.76779255
A147: 2014-05-27 | B147: 30 | D147: 62.7096459 | O147: 62.7096459
A148: 2014-06-01 | B148: 20 | K148: 65.58458669 | R148: 65.58458669
A149: 2014-06-12 | B149: 30 | C149: 56.86209041 | O149: 56.86209041
A150: 2014-07-18 | B150: 93.6 | C150: 54.48843193 | O150: 54.48843193
A151: 2014-07-23 | B151: 75 | C151: 57.44522772 | O151: 57.44522772
A152: 2014-07-24 | B152: 56 | D152: 57.23783845 | O152: 57.23783845
A153: 2014-07-24 | B153: 56 | D153: 57.80167124 | O153: 57.80167124
A154: 2014-08-19 | B154: 105 | D154: 60.43582757 | O154: 60.43582757
A155: 2014-08-25 | B155: 60 | D155: 60.4139943 | O155: 60.4139943
A156: 2014-09-03 | B156: 60 | C156: 50.30075901 | O156: 50.30075901
A157: 2014-09-04 | B157: 120 | D157: 55.6020649 | O157: 55.6020649
A158: 2014-09-04 | B158: 52 | D158: 46.39419988 | O158: 46.39419988
A159: 2014-10-03 | B159: 30 | C159: 59.11949866 | O159: 59.11949866
A160: 2014-10-08 | B160: 103 | K160: 57.73982531 | R160: 57.73982531
A161: 2014-10-08 | B161: 101.3 | K161: 52.77112088 | R161: 52.77112088
A162: 2014-10-08 | B162: 80 | K162: 59.67731806 | R162: 59.67731806
A163: 2014-10-08 | B163: 76.5 | K163: 53.48009915 | R163: 53.48009915
A164: 2014-10-08 | B164: 51 | K164: 53.53680314 | R164: 53.53680314
A165: 2014-10-08 | B165: 30 | K165: 57.16171408 | R165: 57.16171408
A166: 2014-10-20 | B166: 40 | C166: 56.49381262 | O166: 56.49381262
A167: 2014-10-21 | B167: 11.4 | C167: 61.90740212 | O167: 61.90740212
A168: 2014-10-22 | B168: 20 | C168: 56.28496861 | O168: 56.28496861
A169: 2014-10-22 | B169: 20 | C169: 56.28496861 | O169: 56.28496861
A170: 2014-10-22 | B170: 20 | C170: 56.28496861 | O170: 56.28496861
A171: 2014-10-22 | B171: 20 | C171: 49.75052347 | O171: 49.75052347
A172: 2014-10-22 | B172: 19.5 | C172: 64.2059753 | O172: 64.2059753
A173: 2014-10-22 | B173: 19.5 | C173: 64.22196284 | O173: 64.22196284
A174: 2014-10-22 | B174: 15 | C174: 56.28496861 | O174: 56.28496861
A175: 2014-10-22 | B175: 14.7 | C175: 66.20441826 | O175: 66.20441826
A176: 2014-10-24 | B176: 100 | E176: 66.35840065 | P176: 66.35840065
A177: 2014-11-07 | B177: 50 | K177: 70.53812254 | R177: 70.53812254
A178: 2014-11-07 | B178: 40 | K178: 70.53812254 | R178: 70.53812254
A179: 2014-11-13 | B179: 30 | D179: 61.57230305 | O179: 61.57230305
A180: 2014-11-18 | B180: 45 | D180: 48.83003544 | O180: 48.83003544
A181: 2014-12-09 | B181: 130 | C181: 59.05724259 | O181: 59.05724259
A182: 2015-02-01 | B182: 80 | K182: 57.60063079 | R182: 57.60063079
A183: 2015-03-02 | B183: 25 | F183: 42.28745953 | P183: 42.28745953
A184: 2015-03-02 | B184: 6 | K184: 101.0901054 | R184: 101.0901054
A185: 2015-03-03 | B185: 62.25 | E185: 62.33270069 | P185: 62.33270069
A186: 2015-03-04 | B186: 70 | F186: 37.45876351 | P186: 37.45876351
A187: 2015-03-04 | B187: 70 | F187: 37.93510333 | P187: 37.93510333
A188: 2015-03-05 | B188: 10.5 | C188: 83.88826905 | O188: 83.88826905
A189: 2015-03-23 | B189: 20 | C189: 68.10352598 | O189: 68.10352598
A190: 2015-03-25 | B190: 30 | D190: 47.09490628 | O190: 47.09490628
A191: 2015-04-03 | B191: 81 | E191: 47.40774316 | P191: 47.40774316
A192: 2015-04-03 | B192: 54 | C192: 45.32687068 | O192: 45.32687068
A193: 2015-04-14 | B193: 6.8 | C193: 63.48912701 | O193: 63.48912701
A194: 2015-04-17 | B194: 20 | C194: 52.96529742 | O194: 52.96529742
A195: 2015-04-30 | B195: 52 | K195: 59.72252901 | R195: 59.72252901
A196: 2015-04-30 | B196: 50.6 | K196: 44.73521456 | R196: 44.73521456
A197: 2015-05-27 | B197: 4.9 | K197: 66.61099461 | R197: 66.61099461
A198: 2015-06-01 | B198: 3.6 | F198: 74.00882243 | P198: 74.00882243
A199: 2015-06-05 | B199: 100 | D199: 41.94413453 | O199: 41.94413453
A200: 2015-06-09 | B200: 80 | H200: 67.58330731 | Q200: 67.58330731
A201: 2015-06-19 | B201: 100 | D201: 44.13461575 | O201: 44.13461575
A202: 2015-06-23 | B202: 46 | D202: 49.03305814 | O202: 49.03305814
A203: 2015-06-25 | B203: 100.815 | C203: 54.66730853 | O203: 54.66730853
A204: 2015-06-30 | B204: 7.06 | K204: 61.05251969 | R204: 61.05251969
A205: 2015-07-01 | B205: 27.6 | L205: 130.3379195 | N205: 130.3379195
A206: 2015-07-01 | B206: 20 | E206: 65.78777369 | P206: 65.78777369
A207: 2015-07-01 | B207: 13 | K207: 63.8280308 | R207: 63.8280308
A208: 2015-07-15 | B208: 125 | C208: 51.94942711 | O208: 51.94942711
A209: 2015-07-16 | B209: 150 | C209: 48.89487508 | O209: 48.89487508
A210: 2015-07-21 | B210: 20 | K210: 46.3017907 | R210: 46.3017907
A211: 2015-08-05 | B211: 30 | D211: 45.01543174 | O211: 45.01543174
A212: 2015-08-09 | B212: 30 | D212: 41.03766729 | O212: 41.03766729
A213: 2015-08-12 | B213: 10 | C213: 50.14147734 | O213: 50.14147734
A214: 2015-08-16 | B214: 10 | C214: 50.14147734 | O214: 50.14147734
A215: 2015-08-28 | B215: 150 | D215: 51.0211983 | O215: 51.0211983
A216: 2015-09-03 | B216: 10.88 | D216: 74.94414327 | O216: 74.94414327
A217: 2015-09-23 | B217: 52 | E217: 43.26299079 | P217: 43.26299079
A218: 2015-09-23 | B218: 52 | K218: 46.99051179 | R218: 46.99051179
A219: 2015-09-24 | B219: 25 | D219: 41.17406044 | O219: 41.17406044
A220: 2015-09-28 | B220: 71.4 | D220: 19.7786309 | O220: 19.7786309
A221: 2015-09-28 | B221: 46.2 | D221: 19.7786309 | O221: 19.7786309
... 136 more rows

Sheet PPA Price for CSP Plants
A1: Levelized PPA prices for CSP and PV plants in AZ, CA, and NV (by PPA capacity and execution date)
A22: Source: Berkeley Lab, FERC
A24: PV plants in AZ, CA, and NV (for comparison) | E24: CSP plants in AZ, CA, and NV
A25: PPA Execution Date | B25: Capacity (MW) | C25: 2020 $/MWh | E25: PPA Execution Date | F25: Capacity (MW) | G25: 2020 $/MWh
A26: 2007-06-25 | B26: 5 | C26: 220.6314144 | E26: 2009-04-28 | F26: 377 | G26: 154.3644664 | H26: CSP tower, no storage
A27: 2008-07-01 | B27: 550 | C27: 150.7304052
A28: 2008-07-23 | B28: 210 | C28: 131.7706902 | E28: 2009-11-04 | F28: 110 | G28: 139.7823596 | H28: CSP tower, 10 hours storage
A29: 2008-12-19 | B29: 10 | C29: 168.7879319
A30: 2009-05-08 | B30: 230 | C30: 142.7834086 | E30: 2009-09-28 | F30: 250 | G30: 196.2799885 | H30: CSP trough, no storage
A31: 2009-06-01 | B31: 20 | C31: 131.3546881 | E31: 2011-07-15 | F31: 250 | G31: 198.5664949 | H31: CSP trough, no storage
A32: 2009-06-22 | B32: 48 | C32: 166.3715968
A33: 2009-08-17 | B33: 250 | C33: 145.5888818 | E33: 2010-12-15 | F33: 250 | G33: 137.0805193 | H33: CSP trough, 6 hours storage
A34: 2009-09-08 | B34: 250 | C34: 194.7926208
A35: 2009-11-20 | B35: 21 | C35: 117.4512467
A36: 2009-12-24 | B36: 20 | C36: 240.0826394
A37: 2009-12-24 | B37: 19 | C37: 240.0826394
A38: 2009-12-24 | B38: 6 | C38: 240.0826394
A39: 2010-01-26 | B39: 50 | C39: 164.2326075
A40: 2010-01-26 | B40: 20 | C40: 163.2080788
A41: 2010-01-26 | B41: 20 | C41: 164.2326075
A42: 2010-02-02 | B42: 50 | C42: 139.127084
A43: 2010-02-24 | B43: 300 | C43: 141.8306416
A44: 2010-03-06 | B44: 40 | C44: 133.8151211
A45: 2010-04-19 | B45: 29 | C45: 106.661653
A46: 2010-04-21 | B46: 66 | C46: 140.6436811
A47: 2010-04-29 | B47: 25 | C47: 132.5178722
A48: 2010-05-10 | B48: 125 | C48: 133.2147192
A49: 2010-05-20 | B49: 25.8 | C49: 160.5557605
A50: 2010-06-01 | B50: 20 | C50: 132.5178722
A51: 2010-07-26 | B51: 20 | C51: 134.098016
A52: 2010-07-29 | B52: 150 | C52: 154.4947826
A53: 2010-07-29 | B53: 45 | C53: 128.9424666
A54: 2010-08-24 | B54: 23 | C54: 114.4345592
A55: 2010-09-20 | B55: 62.5 | C55: 124.4615005
A56: 2010-11-10 | B56: 130 | C56: 130.4610553
A57: 2010-11-15 | B57: 20 | C57: 77.03929545
A58: 2010-11-15 | B58: 14 | C58: 78.97446707
A59: 2010-12-01 | B59: 9 | C59: 138.7308345
A60: 2010-12-21 | B60: 60 | C60: 124.7022245
A61: 2010-12-30 | B61: 309 | C61: 110.4907139
A62: 2010-12-30 | B62: 20 | C62: 147.9332837
A63: 2011-01-05 | B63: 270 | C63: 110.7279342
A64: 2011-01-07 | B64: 110 | C64: 123.3054447
A65: 2011-01-25 | B65: 26 | C65: 135.5090953
A66: 2011-02-07 | B66: 250 | C66: 115.5669526
A67: 2011-02-11 | B67: 30 | C67: 114.5086409
A68: 2011-02-11 | B68: 20 | C68: 118.1193583
A69: 2011-03-08 | B69: 150 | C69: 94.32048885
A70: 2011-06-03 | B70: 127 | C70: 111.7442508
A71: 2011-06-03 | B71: 110 | C71: 119.618819
A72: 2011-06-21 | B72: 150 | C72: 107.1079168
A73: 2011-07-08 | B73: 23 | C73: 126.5100172
A74: 2011-07-14 | B74: 20 | C74: 101.0646236
A75: 2011-07-21 | B75: 150 | C75: 115.9313491
A76: 2011-09-29 | B76: 250 | C76: 85.82776324
A77: 2011-10-01 | B77: 9 | C77: 137.6909772
A78: 2011-12-08 | B78: 19 | C78: 108.1472544
A79: 2011-12-20 | B79: 20 | C79: 84.64056754
A80: 2011-12-20 | B80: 20 | C80: 85.45749116
A81: 2012-01-01 | B81: 15 | C81: 77.45618889
A82: 2012-01-01 | B82: 15 | C82: 86.33288531
A83: 2012-02-03 | B83: 200 | C83: 86.71512353
A84: 2012-02-27 | B84: 20 | C84: 76.75697234
A85: 2012-07-03 | B85: 20 | C85: 91.37579266
A86: 2012-07-03 | B86: 20 | C86: 94.20718003
A87: 2012-08-03 | B87: 20 | C87: 87.99418834
A88: 2012-08-13 | B88: 20 | C88: 91.28766997
A89: 2012-08-16 | B89: 102 | C89: 89.01428111
A90: 2012-08-29 | B90: 20 | C90: 86.05127936
A91: 2012-08-31 | B91: 250 | C91: 91.6466231
A92: 2012-09-17 | B92: 20.8 | C92: 100.9137564
A93: 2012-09-17 | B93: 20 | C93: 83.85064536
A94: 2012-10-17 | B94: 10 | C94: 86.45576044
A95: 2012-11-01 | B95: 20 | C95: 71.03271235
A96: 2012-11-15 | B96: 20 | C96: 82.26990646
A97: 2012-12-12 | B97: 250 | C97: 80.77785758
A98: 2012-12-13 | B98: 20 | C98: 83.79413414
A99: 2013-02-28 | B99: 45 | C99: 80.46987052
A100: 2013-03-22 | B100: 20 | C100: 85.54537933
A101: 2013-03-22 | B101: 20 | C101: 86.87988724
A102: 2013-03-25 | B102: 20 | C102: 75.76944474
A103: 2013-04-10 | B103: 20 | C103: 85.05792221
A104: 2013-04-16 | B104: 20 | C104: 62.48902244
A105: 2013-06-01 | B105: 20 | C105: 58.95173297
A106: 2013-06-03 | B106: 48 | C106: 66.35722702
A107: 2013-06-03 | B107: 40 | C107: 67.24666183
A108: 2013-07-03 | B108: 50 | C108: 57.23783845
A109: 2013-07-10 | B109: 40 | C109: 58.75522719
A110: 2013-07-10 | B110: 20 | C110: 63.0270919
A111: 2013-07-17 | B111: 20 | C111: 79.57267914
A112: 2013-07-17 | B112: 12 | C112: 79.57267914
A113: 2013-09-06 | B113: 15 | C113: 66.28936479
A114: 2013-09-27 | B114: 20 | C114: 63.68742869
A115: 2013-10-09 | B115: 20 | C115: 65.82685163
A116: 2013-10-22 | B116: 20 | C116: 63.91986456
A117: 2013-12-01 | B117: 7.314 | C117: 81.5360472
A118: 2013-12-19 | B118: 150 | C118: 56.08065927
A119: 2014-01-30 | B119: 7 | C119: 68.41520328
A120: 2014-03-17 | B120: 20 | C120: 63.18045751
A121: 2014-03-26 | B121: 26.66 | C121: 59.11710634
A122: 2014-05-27 | B122: 30 | C122: 62.7096459
A123: 2014-06-12 | B123: 30 | C123: 56.86209041
A124: 2014-07-18 | B124: 93.6 | C124: 54.48843193
A125: 2014-07-23 | B125: 75 | C125: 57.44522772
A126: 2014-07-24 | B126: 56 | C126: 57.23783845
A127: 2014-07-24 | B127: 56 | C127: 57.80167124
A128: 2014-08-19 | B128: 105 | C128: 60.43582757
A129: 2014-08-25 | B129: 60 | C129: 60.4139943
A130: 2014-09-03 | B130: 60 | C130: 50.30075901
A131: 2014-10-03 | B131: 30 | C131: 59.11949866
A132: 2014-10-20 | B132: 40 | C132: 56.49381262
A133: 2014-10-21 | B133: 11.4 | C133: 61.90740212
A134: 2014-10-22 | B134: 20 | C134: 49.75052347
A135: 2014-10-22 | B135: 20 | C135: 56.28496861
A136: 2014-10-22 | B136: 20 | C136: 56.28496861
A137: 2014-10-22 | B137: 20 | C137: 56.28496861
A138: 2014-10-22 | B138: 19.5 | C138: 64.2059753
A139: 2014-10-22 | B139: 19.5 | C139: 64.22196284
A140: 2014-10-22 | B140: 15 | C140: 56.28496861
A141: 2014-10-22 | B141: 14.7 | C141: 66.20441826
A142: 2014-11-13 | B142: 30 | C142: 61.57230305
A143: 2014-11-18 | B143: 45 | C143: 48.83003544
A144: 2014-12-09 | B144: 130 | C144: 59.05724259
A145: 2015-03-05 | B145: 10.5 | C145: 83.88826905
A146: 2015-03-23 | B146: 20 | C146: 68.10352598
A147: 2015-04-03 | B147: 54 | C147: 45.32687068
A148: 2015-04-14 | B148: 6.8 | C148: 63.48912701
A149: 2015-04-17 | B149: 20 | C149: 52.96529742
A150: 2015-06-05 | B150: 100 | C150: 41.94413453
A151: 2015-06-19 | B151: 100 | C151: 44.13461575
A152: 2015-06-23 | B152: 46 | C152: 49.03305814
A153: 2015-06-25 | B153: 100.815 | C153: 54.66730853
A154: 2015-07-15 | B154: 125 | C154: 51.94942711
A155: 2015-07-16 | B155: 150 | C155: 48.89487508
A156: 2015-08-05 | B156: 30 | C156: 45.01543174
A157: 2015-08-12 | B157: 10 | C157: 50.14147734
A158: 2015-08-16 | B158: 10 | C158: 50.14147734
A159: 2015-08-28 | B159: 150 | C159: 51.0211983
A160: 2015-09-03 | B160: 10.88 | C160: 74.94414327
A161: 2015-10-08 | B161: 55 | C161: 49.01080936
A162: 2015-10-09 | B162: 154.272 | C162: 42.59416645
A163: 2015-11-05 | B163: 85 | C163: 51.50922086
A164: 2015-11-06 | B164: 54 | C164: 44.58843866
A165: 2015-11-20 | B165: 86 | C165: 43.98172497
A166: 2015-11-30 | B166: 50 | C166: 46.09895561
A167: 2015-12-17 | B167: 90 | C167: 41.81822905
A168: 2015-12-18 | B168: 20 | C168: 50.75637167
A169: 2015-12-18 | B169: 20 | C169: 51.09321662
A170: 2015-12-18 | B170: 20 | C170: 51.14188699
A171: 2015-12-18 | B171: 20 | C171: 51.1628494
A172: 2016-01-06 | B172: 26 | C172: 29.29335002
A173: 2016-05-19 | B173: 100 | C173: 34.67772775
A174: 2016-08-04 | B174: 20 | C174: 41.1402521
A175: 2016-09-15 | B175: 100 | C175: 41.91675639
A176: 2016-11-18 | B176: 80 | C176: 34.52772845
A177: 2016-12-15 | B177: 200 | C177: 31.78026536
A178: 2017-01-17 | B178: 60 | C178: 39.19113707
A179: 2017-03-23 | B179: 17 | C179: 32.88355091
A180: 2017-05-22 | B180: 100 | C180: 27.10610664
A181: 2017-08-08 | B181: 252.32 | C181: 48.29231463
A182: 2017-09-23 | B182: 200 | C182: 29.92160134
A183: 2017-09-26 | B183: 62.5 | C183: 28.853208
A184: 2017-09-26 | B184: 50 | C184: 28.33044386
A185: 2017-10-06 | B185: 25 | C185: 27.83744125
A186: 2017-10-06 | B186: 25 | C186: 27.83744125
A187: 2017-10-30 | B187: 50 | C187: 30.35421794
A188: 2017-12-08 | B188: 45 | C188: 19.55306527
A189: 2018-01-09 | B189: 30 | C189: 27.79697172
A190: 2018-02-21 | B190: 106.688 | C190: 45.70558593
A191: 2018-05-07 | B191: 100 | C191: 30.1712155
A192: 2018-05-30 | B192: 300 | C192: 18.93389544
A193: 2018-05-30 | B193: 250 | C193: 21.68810751
A194: 2018-05-30 | B194: 200 | C194: 21.12531853
A195: 2018-05-30 | B195: 101 | C195: 21.11734972
A196: 2018-05-30 | B196: 100 | C196: 23.8745584
A197: 2018-05-30 | B197: 50 | C197: 24.32927248
A198: 2018-06-08 | B198: 30 | C198: 21.4983388
A199: 2018-09-20 | B199: 100 | C199: 21.55366796
A200: 2018-10-18 | B200: 13 | C200: 36.62821216
A201: 2019-03-21 | B201: 160 | C201: 26.98477541
A202: 2019-07-01 | B202: 400 | C202: 15.21471338
A203: 2019-11-26 | B203: 44 | C203: 23.63644989
A204: 2020-03-25 | B204: 200 | C204: 18.17268552
A205: 2020-04-08 | B205: 127.86 | C205: 18.95140184
A206: 2021-02-23 | B206: 50 | C206: 20.53541115
A207: 2021-03-25 | B207: 130 | C207: 18.81687041
A208: 2021-06-01 | B208: 350 | C208: 18.59811537
A209: 2021-06-01 | B209: 250 | C209: 19.70217766
A210: 2021-06-01 | B210: 90 | C210: 17.37611713

Sheet Annual Average PPA Price
A1: Generation-weighted average levelized wind PPA prices by PPA execution date and region | J1: Generation-weighted average levelized wind PPA prices by PPA execution date and consolidated region
A22: Source: Berkeley Lab, FERC
A23: Note: Averages shown only if there are two or more PPAs in a given region-year.
A25: PPA | B25: Nationwide | C25: Hawaii | D25: CAISO | E25: West (non-ISO) | F25: MISO | G25: SPP | H25: ERCOT | I25: PJM | J25: NYISO | K25: ISO-NE | L25: Southeast (non-ISO) | N25: PPA | O25: Nationwide | Q25: Hawaii | S25: CAISO | U25: West (non-ISO) | W25: MISO | Y25: SPP | AA25: ERCOT | AC25: PJM | AE25: NYISO | AG25: ISO-NE | AI25: Southeast (non-ISO)
A26: Execution | B26: Average PPA | C26: Average PPA | D26: Average PPA | E26: Average PPA | F26: Average PPA | G26: Average PPA | H26: Average PPA | I26: Average PPA | J26: Average PPA | K26: Average PPA | L26: Average PPA | N26: Execution | O26: Sample | Q26: Sample | S26: Sample | U26: Sample | W26: Sample | Y26: Sample | AA26: Sample | AC26: Sample | AE26: Sample | AG26: Sample | AI26: Sample
A27: Year | B27: 2020 $/MWh | C27: 2020 $/MWh | D27: 2020 $/MWh | E27: 2020 $/MWh | F27: 2020 $/MWh | G27: 2020 $/MWh | H27: 2020 $/MWh | I27: 2020 $/MWh | J27: 2020 $/MWh | K27: 2020 $/MWh | L27: 2020 $/MWh | N27: Year | O27: MW | P27: Projects | Q27: MW | R27: Projects | S27: MW | T27: Projects | U27: MW | V27: Projects | W27: MW | X27: Projects | Y27: MW | Z27: Projects | AA27: MW | AB27: Projects | AC27: MW | AD27: Projects | AE27: MW | AF27: Projects | AG27: MW | AH27: Projects | AI27: MW | AJ27: Projects
A28: 2006 | N28: 2006 | O28: 7 | P28: 1 | Q28: 0 | R28: 0 | S28: 0 | T28: 0 | U28: 7 | V28: 1 | W28: 0 | X28: 0 | Y28: 0 | Z28: 0 | AA28: 0 | AB28: 0 | AC28: 0 | AD28: 0 | AE28: 0 | AF28: 0 | AG28: 0 | AH28: 0 | AI28: 0 | AJ28: 0
A29: 2007 | N29: 2007 | O29: 5 | P29: 1 | Q29: 0 | R29: 0 | S29: 5 | T29: 1 | U29: 0 | V29: 0 | W29: 0 | X29: 0 | Y29: 0 | Z29: 0 | AA29: 0 | AB29: 0 | AC29: 0 | AD29: 0 | AE29: 0 | AF29: 0 | AG29: 0 | AH29: 0 | AI29: 0 | AJ29: 0
A30: 2008 | B30: 145.2991534 | D30: 145.2991534 | N30: 2008 | O30: 770 | P30: 3 | Q30: 0 | R30: 0 | S30: 770 | T30: 3 | U30: 0 | V30: 0 | W30: 0 | X30: 0 | Y30: 0 | Z30: 0 | AA30: 0 | AB30: 0 | AC30: 0 | AD30: 0 | AE30: 0 | AF30: 0 | AG30: 0 | AH30: 0 | AI30: 0 | AJ30: 0
A31: 2009 | B31: 160.6403796 | D31: 162.3659313 | E31: 137.6840465 | H31: 171.8531694 | N31: 2009 | O31: 1030 | P31: 16 | Q31: 0 | R31: 0 | S31: 844 | T31: 8 | U31: 69 | V31: 3 | W31: 0 | X31: 0 | Y31: 50 | Z31: 1 | AA31: 44 | AB31: 2 | AC31: 10.08 | AD31: 1 | AE31: 0 | AF31: 0 | AG31: 0 | AH31: 0 | AI31: 12.6 | AJ31: 1
A32: 2010 | B32: 133.7805333 | D32: 132.0584943 | E32: 126.2966625 | L32: 168.0350661 | N32: 2010 | O32: 1753 | P32: 31 | Q32: 0 | R32: 0 | S32: 1457.3 | T32: 17 | U32: 251 | V32: 11 | W32: 0 | X32: 0 | Y32: 0 | Z32: 0 | AA32: 0 | AB32: 0 | AC32: 0 | AD32: 0 | AE32: 32 | AF32: 1 | AG32: 0 | AH32: 0 | AI32: 13.15 | AJ32: 2
A33: 2011 | B33: 109.2873103 | D33: 106.2849372 | E33: 112.4794891 | N33: 2011 | O33: 1810 | P33: 21 | Q33: 6 | R33: 1 | S33: 1259 | T33: 10 | U33: 495 | V33: 8 | W33: 0 | X33: 0 | Y33: 0 | Z33: 0 | AA33: 0 | AB33: 0 | AC33: 20 | AD33: 1 | AE33: 0 | AF33: 0 | AG33: 0 | AH33: 0 | AI33: 30 | AJ33: 1
A34: 2012 | B34: 84.96036799 | D34: 87.07175345 | E34: 83.07599223 | N34: 2012 | O34: 1113 | P34: 19 | Q34: 0 | R34: 0 | S34: 512.8 | T34: 13 | U34: 600 | V34: 6 | W34: 0 | X34: 0 | Y34: 0 | Z34: 0 | AA34: 0 | AB34: 0 | AC34: 0 | AD34: 0 | AE34: 0 | AF34: 0 | AG34: 0 | AH34: 0 | AI34: 0 | AJ34: 0
A35: 2013 | B35: 68.95175823 | D35: 66.86716982 | E35: 63.31090792 | N35: 2013 | O35: 708 | P35: 24 | Q35: 12 | R35: 1 | S35: 489.314 | T35: 17 | U35: 138 | V35: 3 | W35: 28.8 | X35: 1 | Y35: 0 | Z35: 0 | AA35: 0 | AB35: 0 | AC35: 0 | AD35: 0 | AE35: 0 | AF35: 0 | AG35: 20 | AH35: 1 | AI35: 20 | AJ35: 1
A36: 2014 | B36: 56.59194975 | D36: 57.32484979 | E36: 56.46963135 | L36: 58.32685812 | N36: 2014 | O36: 2056 | P36: 41 | Q36: 0 | R36: 0 | S36: 672.36 | T36: 19 | U36: 564.416 | V36: 10 | W36: 100 | X36: 1 | Y36: 0 | Z36: 0 | AA36: 157.5 | AB36: 1 | AC36: 10.3 | AD36: 1 | AE36: 0 | AF36: 0 | AG36: 0 | AH36: 0 | AI36: 551.8 | AJ36: 9
A37: 2015 | B37: 47.26553993 | D37: 49.86459936 | E37: 42.87459585 | F37: 52.13119186 | G37: 38.97236083 | H37: 35.36512814 | L37: 53.13176141 | N37: 2015 | O37: 3114 | P37: 56 | Q37: 27.6 | R37: 1 | S37: 935.387 | T37: 18 | U37: 865.48 | V37: 14 | W37: 215.25 | X37: 4 | Y37: 168.6 | Z37: 4 | AA37: 318.5 | AB37: 3 | AC37: 80 | AD37: 1 | AE37: 0 | AF37: 0 | AG37: 0 | AH37: 0 | AI37: 503.56 | AJ37: 11
A38: 2016 | B38: 39.36267875 | D38: 37.84697856 | E38: 32.92874627 | F38: =NA() ->  | H38: =NA() ->  | I38: 45.34153072 | L38: 46.36667123 | N38: 2016 | O38: 917 | P38: 14 | Q38: 0 | R38: 0 | S38: 226 | T38: 4 | U38: 307.8 | V38: 3 | W38: 0 | X38: 0 | Y38: 0 | Z38: 0 | AA38: 150 | AB38: 1 | AC38: 180 | AD38: 3 | AE38: 24.9 | AF38: 1 | AG38: 0 | AH38: 0 | AI38: 28.56 | AJ38: 2
A39: 2017 | B39: 38.04838266 | C39: 93.50171661 | D39: 36.14071459 | E39: 32.12825173 | F39: =NA() ->  | H39: 22.03854053 | I39: 82.49475346 | K39: 76.04070781 | L39: 28.54557796 | N39: 2017 | O39: 2100 | P39: 34 | Q39: 109.6 | R39: 3 | S39: 686.82 | T39: 7 | U39: 306 | V39: 6 | W39: 100 | X39: 1 | Y39: 0 | Z39: 0 | AA39: 170 | AB39: 2 | AC39: 16.8 | AD39: 2 | AE39: 0 | AF39: 0 | AG39: 206.11 | AH39: 6 | AI39: 504.7 | AJ39: 7
A40: 2018 | B40: 25.82123467 | D40: 38.42462339 | E40: 21.99607823 | F40: 41.83832397 | I40: 32.44276832 | L40: 26.74372643 | N40: 2018 | O40: 2919 | P40: 35 | Q40: 0 | R40: 0 | S40: 206.688 | T40: 2 | U40: 1599 | V40: 17 | W40: 60.5 | X40: 3 | Y40: 5.681481481 | Z40: 1 | AA40: 144 | AB40: 1 | AC40: 156 | AD40: 2 | AE40: 6.3 | AF40: 1 | AG40: 0 | AH40: 0 | AI40: 741 | AJ40: 8
A41: 2019 | B41: 20.69495282 | D41: 16.17843193 | E41: 18.06709058 | F41: 37.52625075 | I41: 31.48065264 | L41: 22.67685454 | N41: 2019 | O41: 1966 | P41: 21 | Q41: 0 | R41: 0 | S41: 444 | T41: 2 | U41: 968 | V41: 9 | W41: 109.3076923 | X41: 2 | Y41: 4.6 | Z41: 1 | AA41: 0 | AB41: 0 | AC41: 265.5 | AD41: 4 | AE41: 0 | AF41: 0 | AG41: 50 | AH41: 1 | AI41: 125 | AJ41: 2
A42: 2020 | B42: 21.61976608 | E42: 20.65621337 | N42: 2020 | O42: 835 | P42: 7 | Q42: 0 | R42: 0 | S42: 0 | T42: 0 | U42: 777.86 | V42: 5 | W42: 0 | X42: 0 | Y42: 0 | Z42: 0 | AA42: 0 | AB42: 0 | AC42: 0 | AD42: 0 | AE42: 0 | AF42: 0 | AG42: 50 | AH42: 1 | AI42: 7.5 | AJ42: 1
A43: 2021(P) | B43: 24.29741871 | D43: 18.71257595 | E43: 18.34819775 | J43: 40.71080061 | N43: 2021(P) | O43: 1700 | P43: 9 | Q43: 0 | R43: 0 | S43: 140 | T43: 2 | U43: 970 | V43: 5 | W43: 0 | X43: 0 | Y43: 0 | Z43: 0 | AA43: 0 | AB43: 0 | AC43: 0 | AD43: 0 | AE43: 590 | AF43: 2 | AG43: 0 | AH43: 0 | AI43: 0 | AJ43: 0
A45: PPA | B45: Nationwide | C45: Hawaii | D45: West | E45: Central | F45: Northeast | G45: Southeast | N45: PPA | O45: Nationwide | Q45: Hawaii | S45: West | U45: Central | W45: Northeast | Y45: Southeast
A46: Execution | B46: Average PPA | C46: Average PPA | D46: Average PPA | E46: Average PPA | F46: Average PPA | G46: Average PPA | N46: Execution | O46: Sample | Q46: Sample | S46: Sample | U46: Sample | W46: Sample | Y46: Sample
A47: Year | B47: 2020 $/MWh | C47: 2020 $/MWh | D47: 2020 $/MWh | E47: 2020 $/MWh | F47: 2020 $/MWh | G47: 2020 $/MWh | N47: Year | O47: MW | P47: Projects | Q47: MW | R47: Projects | S47: MW | T47: Projects | U47: MW | V47: Projects | W47: MW | X47: Projects | Y47: MW | Z47: Projects
A48: 2006 | N48: 2006 | O48: =Q48+S48+U48+W48+Y48 -> 7 | P48: =R48+T48+V48+X48+Z48 -> 1 | Q48: =Q28 -> 0 | R48: 0 | S48: =S28+U28 -> 7 | T48: 1 | U48: =W28+Y28+AA28 -> 0 | V48: 0 | W48: =AC28+AE28+AG28 -> 0 | X48: 0 | Y48: =AI28 -> 0 | Z48: 0
A49: 2007 | N49: 2007 | O49: =Q49+S49+U49+W49+Y49 -> 5 | P49: 1 | Q49: 0 | R49: 0 | S49: 5 | T49: 1 | U49: 0 | V49: 0 | W49: 0 | X49: 0 | Y49: 0 | Z49: 0
A50: 2008 | B50: 145.2991534 | D50: 145.2991534 | K50: geometric average | N50: 2008 | O50: 770 | P50: 3 | Q50: 0 | R50: 0 | S50: 770 | T50: 3 | U50: 0 | V50: 0 | W50: 0 | X50: 0 | Y50: 0 | Z50: 0
A51: 2009 | B51: 160.6403796 | D51: 160.5803303 | E51: 150.3729338 | J51: =1- (B51-B52)/B51 -> 0.8327951768 | K51: =PRODUCT(J51:J62)^(1/COUNT(J51:J62))-1 -> -0.1456376178 | N51: 2009 | O51: 1029.68 | P51: 16 | Q51: 0 | R51: 0 | S51: 913 | T51: 11 | U51: 94 | V51: 3 | W51: 10.08 | X51: 1 | Y51: 12.6 | Z51: 1
A52: 2010 | B52: 133.7805333 | D52: 131.2270296 | G52: 168.0350661 | J52: 0.8169148946 | K52: =(B63/B51)^(1/12)-1 -> -0.1456376178 | N52: 2010 | O52: 1753.45 | P52: 31 | Q52: 0 | R52: 0 | S52: 1708.3 | T52: 28 | U52: 0 | V52: 0 | W52: 32 | X52: 1 | Y52: 13.15 | Z52: 2
A53: 2011 | B53: 109.2873103 | D53: 108.0728646 | G53: =NA() ->  | J53: 0.7774037788 | N53: 2011 | O53: 1810 | P53: 21 | Q53: 6 | R53: 1 | S53: 1754 | T53: 18 | U53: 0 | V53: 0 | W53: 20 | X53: 1 | Y53: 30 | Z53: 1
A54: 2012 | B54: 84.96036799 | D54: 84.96036799 | G54: =NA() ->  | J54: 0.8115755601 | N54: 2012 | O54: 1112.8 | P54: 19 | Q54: 0 | R54: 0 | S54: 1112.8 | T54: 19 | U54: 0 | V54: 0 | W54: 0 | X54: 0 | Y54: 0 | Z54: 0
A55: 2013 | B55: 68.95175823 | D55: 66.17183204 | G55: =NA() ->  | J55: 0.820747015 | N55: 2013 | O55: 708.114 | P55: 24 | Q55: 12 | R55: 1 | S55: 627.314 | T55: 20 | U55: 28.8 | V55: 1 | W55: 20 | X55: 1 | Y55: 20 | Z55: 1
A56: 2014 | B56: 56.59194975 | D56: 56.93475727 | E56: 51.41784609 | G56: 58.32685812 | J56: 0.8351990017 | N56: 2014 | O56: 2056.376 | P56: 41 | Q56: 0 | R56: 0 | S56: 1236.776 | T56: 29 | U56: 257.5 | V56: 2 | W56: 10.3 | X56: 1 | Y56: 551.8 | Z56: 9
A57: 2015 | B57: 47.26553993 | D57: 46.52998297 | E57: 40.64459096 | G57: 53.13176141 | J57: 0.8327986691 | N57: 2015 | O57: 3114.377 | P57: 56 | Q57: 27.6 | R57: 1 | S57: 1800.867 | T57: 32 | U57: 702.35 | V57: 11 | W57: 80 | X57: 1 | Y57: 503.56 | Z57: 11
A58: 2016 | B58: 39.36267875 | D58: 34.96541941 | E58: =NA() ->  | F58: 56.90151631 | G58: 46.36667123 | J58: 0.9666106034 | N58: 2016 | O58: 917.26 | P58: 14 | Q58: 0 | R58: 0 | S58: 533.8 | T58: 7 | U58: 150 | V58: 1 | W58: 204.9 | X58: 4 | Y58: 28.56 | Z58: 2
A59: 2017 | B59: 38.04838266 | C59: 93.50171661 | D59: 34.95673596 | E59: 24.04551946 | F59: 76.56896242 | G59: 28.54557796 | J59: 0.6786421095 | N59: 2017 | O59: 2100.03 | P59: 34 | Q59: 109.6 | R59: 3 | S59: 992.82 | T59: 13 | U59: 270 | V59: 3 | W59: 222.91 | X59: 8 | Y59: 504.7 | Z59: 7
A60: 2018 | B60: 25.82123467 | D60: 23.93063785 | E60: 34.67206338 | F60: 36.72469214 | G60: 26.74372643 | J60: 0.8014703045 | N60: 2018 | O60: 2919.169481 | P60: 35 | Q60: 0 | R60: 0 | S60: 1805.688 | T60: 19 | U60: 210.1814815 | V60: 5 | W60: 162.3 | X60: 3 | Y60: 741 | Z60: 8
A61: 2019 | B61: 20.69495282 | D61: 17.43584329 | E61: 37.8272297 | F61: 33.1129188 | G61: 22.67685454 | J61: 1.044687865 | N61: 2019 | O61: 1966.407692 | P61: 21 | Q61: 0 | R61: 0 | S61: 1412 | T61: 11 | U61: 113.9076923 | V61: 3 | W61: 315.5 | X61: 5 | Y61: 125 | Z61: 2
A62: 2020 | B62: 21.61976608 | D62: 20.65621337 | F62: =NA() ->  | J62: 1.123852063 | N62: 2020 | O62: 835.36 | P62: 7 | Q62: 0 | R62: 0 | S62: 777.86 | T62: 5 | U62: 0 | V62: 0 | W62: 50 | X62: 1 | Y62: 7.5 | Z62: 1
A63: 2021(P) | B63: 24.29741871 | D63: 18.39898662 | F63: 40.71080061 | J63: 0 | N63: 2021(P) | O63: 1700 | P63: 9 | Q63: 0 | R63: 0 | S63: 1110 | T63: 7 | U63: 0 | V63: 0 | W63: 590 | X63: 2 | Y63: 0 | Z63: 0
A65: Note: West = CAISO, West (non-ISO); Central = MISO, SPP, ERCOT; Northeast = PJM, NYISO, ISO-NE; Southeast = Southeast (non-ISO)

Sheet LevelTen Solar PPA Prices
A1: LevelTen Energy solar PPA price indices
A21: Source: LevelTen Energy
B23: LevelTen PPA Price Index (25th percentile of first-year offer price) | N23: Average | O23: Average
B24: nominal $/MWh | N24: previous | O24: calendar
A25: Region | B25: 2018-Q3 | C25: 2018-Q4 | D25: 2019-Q1 | E25: 2019-Q2 | F25: 2019-Q3 | G25: 2019-Q4 | H25: 2020-Q1 | I25: 2020-Q2 | J25: 2020-Q3 | K25: 2020-Q4 | L25: 2021-Q1 | M25: 2021-Q2 | N25: four quarters | O25: year 2020
A26: CAISO | B26: 26.4 | C26: 26.4 | D26: 23 | E26: 24.3 | F26: 24.2 | G26: 23.9 | H26: 22 | I26: 25.9 | J26: 25.1 | K26: 25.1 | L26: 28.8 | M26: 27.5 | N26: =AVERAGE(J26:M26) -> 26.625 | O26: =AVERAGE(H26:K26) -> 24.525
A27: ERCOT | B27: 25 | C27: 25.5 | D27: 24.1 | E27: 24.4 | F27: 24.4 | G27: 24.2 | H27: 24.2 | I27: 24.7 | J27: 26 | K27: 26.7 | L27: 26.5 | M27: 27.2 | N27: =AVERAGE(J27:M27) -> 26.6 | O27: =AVERAGE(H27:K27) -> 25.4
A28: SPP | B28: 28.9 | C28: 24.9 | D28: 24.5 | E28: 24.9 | F28: 24.7 | G28: 24.5 | H28: 24.7 | I28: 27.2 | J28: 28.1 | K28: 30.5 | L28: 30.9 | M28: 31.5 | N28: =AVERAGE(J28:M28) -> 30.25 | O28: =AVERAGE(H28:K28) -> 27.625
A29: MISO | B29: 31.7 | C29: 32.4 | D29: 33.4 | E29: 32.4 | F29: 31.3 | G29: 30 | H29: 31.6 | I29: 30.4 | J29: 31.2 | K29: 33.7 | L29: 34.6 | M29: 35.3 | N29: =AVERAGE(J29:M29) -> 33.7 | O29: =AVERAGE(H29:K29) -> 31.725
A30: PJM | B30: 33.9 | C30: 34.5 | D30: 33.5 | E30: 33.5 | F30: 34 | G30: 34.9 | H30: 34.9 | I30: 34.9 | J30: 36.8 | K30: 37.5 | L30: 36 | M30: 35.9 | N30: =AVERAGE(J30:M30) -> 36.55 | O30: =AVERAGE(H30:K30) -> 36.025
A32: GDP Deflator | B32: 110.597 | C32: 111.175 | D32: 111.514 | E32: 112.152 | F32: 112.517 | G32: 112.978 | H32: 113.346 | I32: 112.859 | J32: 113.888 | K32: 114.439 | L32: 115.652 | M32: 117.38
B34: 2020 $/MWh
A35: CAISO | B35: =B26*AVERAGE($H$32:$K$32)/B$32 -> 27.12470682 | C35: =C26*AVERAGE($H$32:$K$32)/C$32 -> 26.98368518 | D35: 23.43704826 | E35: 24.62088862 | F35: 24.44002773 | G35: 24.03856237 | H35: 22.05570554 | I35: 26.07762518 | J35: 25.04380005 | K35: 24.92321936 | L35: =L26*AVERAGE($H$32:$K$32)/L$32 -> 28.2972227 | M35: 26.62214602 | N35: =AVERAGE(J35:M35) -> 26.22159703 | O35: =AVERAGE(H35:K35) -> 24.52508753
A36: ERCOT | B36: =B27*AVERAGE($H$32:$K$32)/B$32 -> 25.6862754 | C36: 26.06378682 | D36: 24.55795057 | E36: 24.72220914 | F36: 24.64201143 | G36: 24.34030165 | H36: 24.26127609 | I36: 24.86939544 | J36: 25.94178491 | K36: 26.51195047 | L36: 26.03737506 | M36: 26.33172261 | N36: =AVERAGE(J36:M36) -> 26.20570826 | O36: =AVERAGE(H36:K36) -> 25.39610173
A37: SPP | B37: 29.69333436 | C37: 25.45052125 | D37: 24.96555141 | E37: 25.22881179 | F37: 24.94498698 | G37: 24.64204093 | H37: 24.76254213 | I37: 27.38654073 | J37: 28.03708292 | K37: 30.28518687 | L37: 30.36056186 | M37: 30.49445817 | N37: =AVERAGE(J37:M37) -> 29.79432245 | O37: =AVERAGE(H37:K37) -> 27.61783816
A38: MISO | B38: 32.5701972 | C38: 33.1163409 | D38: 34.03467009 | E38: 32.82785149 | F38: 31.61044909 | G38: 30.17392767 | H38: 31.68001341 | I38: 30.6084867 | J38: 31.13014189 | K38: 33.4626491 | L38: 33.99596894 | M38: 34.17315471 | N38: =AVERAGE(J38:M38) -> 33.19047866 | O38: =AVERAGE(H38:K38) -> 31.72032277
A39: PJM | B39: 34.83058944 | C39: 35.26277041 | D39: 34.1365703 | E39: 33.94237731 | F39: 34.33722904 | G39: 35.10233585 | H39: 34.98836924 | I39: 35.13934821 | J39: 36.71760326 | K39: 37.23588549 | L39: 35.37152838 | M39: 34.75400153 | N39: =AVERAGE(J39:M39) -> 36.01975467 | O39: =AVERAGE(H39:K39) -> 36.02030155

Sheet PV+Battery Hybrid Project Specs
A1: Metadata for online and announced PV hybrid projects
B3: Project | E3: Actual or Expected COD (PV/Wind/Battery) | F3: Capacity (MW-AC) | I3: Battery Storage | K3: Battery:Gen Capacity Ratio | L3: Levelized PPA Price (2020 $/MWh) | M3: Levelized Storage Adder (2020 $/MWh-PV)
A4: State | B4: Name | C4: Sponsor | D4: Offtaker | F4: PV | G4: Wind | H4: Battery | I4: Duration | J4: MWh
A5: AL | B5: Redstone Arsenal | C5: SunPower | D5: Redstone Arsenal | E5: 2017-12-01 | F5: 10 | G5: 0 | H5: 1 | I5: 2 | J5: 2 | K5: =H5/(F5+G5) -> 0.1
A6: AR | B6: Searcy | C6: NextEra / Entergy | D6: Entergy | E6: 2021-12-01 | F6: 100 | G6: 0 | H6: 10 | I6: 3 | J6: 30 | K6: =H6/(F6+G6) -> 0.1
A7: AZ | B7: Chino Valley | C7: Uknown--RFP in December 2020 | D7: APS | E7: Dec-12/Jul-23 | F7: 19 | G7: 0 | H7: 19 | I7: 4 | J7: 76 | K7: 1
A8: AZ | B8: Cotton Center | C8: APS/Invenergy | D8: APS | E8: Nov-11/Dec-22 | F8: 17 | G8: 0 | H8: 17 | I8: 3 | J8: 51 | K8: 1
A9: AZ | B9: Desert Star | C9: APS/Invenergy | D9: APS | E9: Jun-15/Dec-22 | F9: 10 | G9: 0 | H9: 10 | I9: 3 | J9: 30 | K9: 1
A10: AZ | B10: Foothills | C10: APS/Invenergy | D10: APS | E10: Mar-13/Dec-22 | F10: 35 | G10: 0 | H10: 35 | I10: 3 | J10: 105 | K10: 1
A11: AZ | B11: Gila Bend | C11: APS/Invenergy | D11: APS | E11: Oct-14/Dec-22 | F11: 32 | G11: 0 | H11: 32 | I11: 3 | J11: 96 | K11: 1
A12: AZ | B12: Hyder | C12: APS/Invenergy | D12: APS | E12: Oct-11/Dec-22 | F12: 16 | G12: 0 | H12: 16 | I12: 3 | J12: 48 | K12: 1
A13: AZ | B13: Hyder II | C13: APS/Invenergy | D13: APS | E13: Jan-13/Dec-22 | F13: 14 | G13: 0 | H13: 14 | I13: 3 | J13: 42 | K13: 1
A14: AZ | B14: Mesquite Solar 4 | C14: ConEd Development | D14: Modesto Irrigation District | E14: 2023-07-01 | F14: 52.5 | G14: 0 | H14: 10 | I14: 4 | J14: 40 | K14: 0.1904761905 | L14: 19.77361021
A15: AZ | B15: Paloma | C15: APS/Invenergy | D15: APS | E15: Sep-11/Dec-22 | F15: 17 | G15: 0 | H15: 17 | I15: 3 | J15: 51 | K15: 1
A16: AZ | B16: Pinal Central | C16: NextEra | D16: SRP | E16: 2018-04-01 | F16: 20 | G16: 0 | H16: 10 | I16: 4 | J16: 40 | K16: 0.5 | L16: 74.22842785
A17: AZ | B17: Red Rock | C17: Uknown--RFP in December 2020 | D17: APS | E17: Feb-17/Jul-23 | F17: 40 | G17: 0 | H17: 40 | I17: 4 | J17: 160 | K17: 1
A18: AZ | B18: Sonoran Energy Center | C18: NextEra | D18: Salt River Project | E18: 2023-07-01 | F18: 250 | G18: 0 | H18: 250 | I18: 4 | J18: 1000 | K18: 1
A19: AZ | B19: Storey | C19: NextEra | D19: Salt River Project | E19: 2023-07-01 | F19: 88 | G19: 0 | H19: 88 | I19: 3 | J19: 264 | K19: 1
A20: AZ | B20: Wilmot | C20: NextEra | D20: TEP | E20: 2021-12-31 | F20: 100 | G20: 0 | H20: 30 | I20: 4 | J20: 120 | K20: 0.3 | L20: 42.16505478 | M20: 15.05894813
A21: CA | B21: Angela | C21: Angiola East | D21: CCCE and SVCE | E21: 2023-03-31 | F21: 40 | G21: 0 | H21: 20 | I21: 4 | J21: 80 | K21: 0.5
A22: CA | B22: Aratina | C22: 8minute Solar | D22: MBCP and SVCE | E22: 2023-12-01 | F22: 200 | G22: 0 | H22: 50 | I22: 3 | J22: 150 | K22: 0.25
A23: CA | B23: Arica | C23: Clearway | D23: Clean Power Alliance | E23: 2023-12-01 | F23: 93.5 | G23: 0 | H23: 71 | I23: 4 | J23: 284 | K23: 0.7593582888
A24: CA | B24: Arlington | C24: NextEra | D24: Kaiser Permanente | E24: Dec-20/Dec-21/Dec-21 | F24: 131 | G24: 50 | H24: 110 | I24: 4 | J24: 440 | K24: 0.6077348066
A25: CA | B25: Arlington | C25: NextEra | D25: Clean Power Alliance | E25: 2022-10-01 | F25: 233 | G25: 0 | H25: 132 | I25: 4 | J25: 528 | K25: 0.5665236052
A26: CA | B26: Azalea | C26: Solar Frontier Americas | D26: Clean Power Alliance | E26: 2022-12-31 | F26: 60 | G26: 0 | H26: 38 | I26: 4 | J26: 152 | K26: 0.6333333333
A27: CA | B27: BigBeau | C27: EDF-RE / Masdar | D27: MBCP and SVCE | E27: 2021-12-01 | F27: 128 | G27: 0 | H27: 40 | I27: 4 | J27: 160 | K27: 0.3125 | L27: 33.02714746
A28: CA | B28: Blythe 110 | C28: NextEra | D28: PG&E | E28: Apr-16/Aug-21 | F28: 110 | G28: 0 | H28: 63 | I28: 4 | J28: 252 | K28: 0.5727272727
A29: CA | B29: Blythe 2 | C29: NextEra | D29: SoCalEd | E29: Oct-16/Aug-21 | F29: 131.2 | G29: 0 | H29: 115 | I29: 4 | J29: 460 | K29: 0.8765243902
A30: CA | B30: Blythe 3 | C30: NextEra | D30: SoCalEd | E30: May-20/Aug-21 | F30: 136.8 | G30: 0 | H30: 115 | I30: 4 | J30: 460 | K30: 0.8406432749
A31: CA | B31: California Flats 130 | C31: Capital Dynamics | D31: Apple/MBCP(RA) | E31: Nov-17/Aug-21 | F31: 130 | G31: 0 | H31: 60 | I31: 4 | J31: 240 | K31: 0.4615384615
A32: CA | B32: Camino | C32: Avangrid | D32: Riverside | E32: 2022-05-01 | F32: 44 | G32: 0 | H32: 11 | I32: 4 | J32: 44 | K32: 0.25 | L32: 28.79892361 | M32: 5.162473713
A33: CA | B33: Chalan | C33: Origis | D33: Clean Power Alliance | E33: 2023-12-31 | F33: 64.9 | G33: 0 | H33: 25 | I33: 4 | J33: 100 | K33: 0.3852080123
A34: CA | B34: Crimson | C34: Recurrent/Canadian Solar | D34: Southern California Edison | E34: 2022-08-01 | F34: 350 | G34: 0 | H34: 350 | I34: 4 | J34: 1400 | K34: 1
A35: CA | B35: Crow Creek | C35: NextEra | D35: CleanPowerSF | E35: 2023-12-31 | F35: 20 | G35: 0 | H35: 20 | I35: 3 | J35: 60 | K35: 1
A36: CA | B36: Daggett | C36: Clearway | D36: Clean Power Alliance | E36: 2023-03-31 | F36: 123 | G36: 0 | H36: 61.5 | I36: 4 | J36: 246 | K36: 0.5
A37: CA | B37: Daggett 2 | C37: Clearway | D37: Clean Power Alliance | E37: 2023-09-30 | F37: 65 | G37: 0 | H37: 52 | I37: 4 | J37: 208 | K37: 0.8
A38: CA | B38: Deer Creek | C38: Vesper Energy | D38: Desert Community Energy | E38: 2023-07-01 | F38: 50 | G38: 0 | H38: 50 | I38: 4 | J38: 200 | K38: 1 | L38: 38.10079952 | M38: 17.56538837
A39: CA | B39: Desert Harvest II | C39: EDF-RE / Masdar | D39: SCPPA | E39: 2021-01-31 | F39: 70 | G39: 0 | H39: 35 | I39: 4 | J39: 140 | K39: 0.5 | L39: LMP plus $15.25
A40: CA | B40: Eland | C40: 8minute Solar | D40: LADWP/Glendale | E40: 2023-12-01 | F40: 400 | G40: 0 | H40: 300 | I40: 4 | J40: 1200 | K40: 0.75 | L40: 30.18562564 | M40: 14.97091226
A41: CA | B41: Estrella | C41: sPower | D41: Clean Power Alliance | E41: 2022-12-01 | F41: 56 | G41: 0 | H41: 28 | I41: 4 | J41: 112 | K41: 0.5
A42: CA | B42: Garland | C42: Southern Power | D42: SoCalEd | E42: Nov-16/Aug-21 | F42: 205 | G42: 0 | H42: 88 | I42: 4 | J42: 352 | K42: 0.4292682927
A43: CA | B43: Gibson | C43: ReneSola | D43: Valley Clean Energy | E43: 2022-07-01 | F43: 20 | G43: 0 | H43: 6.5 | I43: 4 | J43: 26 | K43: 0.325
A44: CA | B44: High Desert | C44: Middle River Power | D44: Clean Power Alliance | E44: 2021-08-01 | F44: 100 | G44: 0 | H44: 50 | I44: 4 | J44: 200 | K44: 0.5
A45: CA | B45: Jacumba Valley Ranch | C45: BayWa | D45: San Diego Community Power | E45: 2023-03-31 | F45: 90 | G45: 0 | H45: 70 | I45: 4 | J45: 280 | K45: 0.7777777778 | L45: 37.22145313 | M45: 19.845336
A46: CA | B46: Jasmine | C46: Idemitsu | D46: CCCE | E46: 2023-12-01 | F46: 70 | G46: 0 | H46: 17.5 | I46: 4 | J46: 70 | K46: 0.25
A47: CA | B47: Maverick 6 | C47: EDF-RE | D47: CleanPowerSF | E47: 2021-12-01 | F47: 100 | G47: 0 | H47: 100 | I47: 2 | J47: 200 | K47: 1
A48: CA | B48: McCoy | C48: NextEra | D48: SoCalEd | E48: Jun-16/Aug-21 | F48: 270.6 | G48: 0 | H48: 230 | I48: 4 | J48: 920 | K48: 0.8499630451
A49: CA | B49: Mustang | C49: Canadian Solar/Goldman Sachs | D49: Sonoma Clean Power / Marin Clean Energy | E49: 2016/Jul-21 | F49: 100 | G49: 0 | H49: 75 | I49: 4 | J49: 300 | K49: 0.75
A50: CA | B50: Proxima | C50: NextEra | D50: Sonoma Clean Power | E50: 2023-12-01 | F50: 50 | G50: 0 | H50: 5 | I50: 4 | J50: 20 | K50: 0.1
A51: CA | B51: Rabbitbrush | C51: First Solar | D51: MBCP and SVCE | E51: 2022-06-30 | F51: 100 | G51: 0 | H51: 20 | I51: 2.5 | J51: 50 | K51: 0.2
A52: CA | B52: Raceway | C52: sPower | D52: EBCE | E52: 2022-12-01 | F52: 125 | G52: 0 | H52: 80 | I52: 2 | J52: 160 | K52: 0.64
A53: CA | B53: RE Slate | C53: Recurrent/Goldman | D53: 5 offtakers | E53: 2021-12-01 | F53: 300 | G53: 0 | H53: 140.25 | I53: 4 | J53: 561 | K53: 0.4675
A54: CA | B54: RE Slate 2 | C54: ReCurrent | D54: MBCP and SVCE | E54: 2021-06-30 | F54: 150 | G54: 0 | H54: 45 | I54: 4 | J54: 180 | K54: 0.3 | L54: 34.37756853
A55: CA | B55: Resurgence Solar I | C55: NextEra | D55: Valley Clean Energy | E55: 2023/2024 | F55: 90 | G55: 0 | H55: 75 | I55: 4 | J55: 300 | K55: 0.8333333333
A56: CA | B56: Resurgence Solar II | C56: NextEra | D56: Clean Power Alliance | E56: 2023-03-31 | F56: 48 | G56: 0 | H56: 40 | I56: 4 | J56: 160 | K56: 0.8333333333
A57: CA | B57: Rexford 1 | C57: 8minute Solar | D57: Clean Power Alliance | E57: 2023-10-01 | F57: 300 | G57: 0 | H57: 180 | I57: 3 | J57: 540 | K57: 0.6
A58: CA | B58: San Luis West | C58: Origis | D58: CCCE and SVCE | E58: 2023-12-01 | F58: 125 | G58: 0 | H58: 31.25 | I58: 4 | J58: 125 | K58: 0.25
A59: CA | B59: Sanborn | C59: Terra-Gen | D59: SoCalEd | E59: 2021-08-01 | F59: 300 | G59: 0 | H59: 50 | I59: 4 | J59: 200 | K59: 0.1666666667
A60: CA | B60: Sonrisa | C60: EDPR | D60: SJCE & EBCE | E60: 2022-12-31 | F60: 200 | G60: 0 | H60: 40 | I60: 4 | J60: 160 | K60: 0.2
A61: CA | B61: Tranquility | C61: Southern Power | D61: SoCalEd | E61: Sep-16/Aug-21 | F61: 204 | G61: 0 | H61: 72 | I61: 4 | J61: 288 | K61: 0.3529411765
A62: CA | B62: Vega | C62: Zglobal | D62: Amazon | E62: 2022-12-31 | F62: 100 | G62: 0 | H62: 70 | I62: 4 | J62: 280 | K62: 0.7
A63: CA | B63: Victory Pass | C63: Clearway | D63: CCCE and SVCE | E63: 2023-09-30 | F63: 200 | G63: 0 | H63: 50 | I63: 4 | J63: 200 | K63: 0.25
A64: CA | B64: Vikings Energy Farm | C64: RAI Energy | D64: San Diego Community Power | E64: 2023-06-30 | F64: 100 | G64: 0 | H64: 150 | I64: 4 | J64: 600 | K64: 1.5
A65: CO | B65: Colorado Mountain College | C65: Ameresco | D65: Holy Cross Energy | E65: 2022-04-01 | F65: 5 | G65: 0 | H65: 5 | I65: 3 | J65: 15 | K65: 1
A66: CO | B66: Neptune | C66: NextEra | D66: Xcel / PSCo | E66: 2022-12-31 | F66: 250 | G66: 0 | H66: 125 | I66: 4 | J66: 500 | K66: 0.5
A67: CO | B67: Pike | C67: juwi | D67: Colorado Springs | E67: 2023-12-01 | F67: 175 | G67: 0 | H67: 25 | I67: 4 | J67: 100 | K67: 0.1428571429
A68: CO | B68: Rawhide Prairie | C68: DEPCOM Power | D68: PRPA | E68: 2021-03-19 | F68: 22 | G68: 0 | H68: 1 | I68: 2 | J68: 2 | K68: 0.04545454545
A69: CO | B69: Thunder Wolf | C69: NextEra | D69: Xcel / PSCo | E69: 2022-12-31 | F69: 200 | G69: 0 | H69: 100 | I69: 4 | J69: 400 | K69: 0.5
A70: FL | B70: Babcock | C70: NextEra / FPL | D70: FPL | E70: Dec-16/Mar-18 | F70: 74.5 | G70: 0 | H70: 10 | I70: 4 | J70: 40 | K70: =H70/(F70+G70) -> 0.1342281879
A71: FL | B71: Citrus | C71: NextEra / FPL | D71: FPL | E71: Dec-16/Mar-18 | F71: 74.5 | G71: 0 | H71: 4 | I71: 4 | J71: 16 | K71: 0.05369127517
A72: FL | B72: FL Solar 6 | C72: Origis | D72: Gainesville Regional Utilities | E72: 2022-12-31 | F72: 50 | G72: 0 | H72: 12 | I72: 2 | J72: 24 | K72: 0.24 | L72: 27.42697899
A73: FL | B73: Imeson (SunPort) | C73: 174 Power Global | D73: Jacksonville Electric Authority | E73: 2019-12-04 | F73: 5 | G73: 0 | H73: 1.5 | I73: 2.533333333 | J73: 3.8 | K73: 0.3
A74: FL | B74: Lake Placid | C74: Duke Energy Florida | D74: Duke Energy Florida | E74: Dec-19/Dec-21 | F74: 45 | G74: 0 | H74: 18 | I74: 2 | J74: 36 | K74: 0.4
A75: FL | B75: Manatee | C75: NextEra / FPL | D75: FPL | E75: Dec-16/Nov-21 | F75: 74.5 | G75: 0 | H75: 409 | I75: 2.200488998 | J75: 900 | K75: 5.489932886
A76: GA | B76: Broken Spoke (Hickory Park) | C76: RWE Renewables | D76: Georgia Power | E76: 2021-12-01 | F76: 195.5 | G76: 0 | H76: 40 | I76: 2 | J76: 80 | K76: 0.2046035806
A77: GA | B77: Cool Springs | C77: NextEra | D77: Georgia Power | E77: 2021-12-31 | F77: 213 | G77: 0 | H77: 68 | I77: 2.067941176 | J77: 140.62 | K77: 0.3192488263
A78: HI | B78: AES Waikoloa Solar | C78: AES | D78: Hawaiian Electric | E78: 2021-07-20 | F78: 30 | G78: 0 | H78: 30 | I78: 4 | J78: 120 | K78: 1 | L78: 63.31625325
A79: HI | B79: Barbers Point | C79: Innergex | D79: Hawaiian Electric | E79: 1905-07-15 | F79: 15 | G79: 0 | H79: 15 | I79: 4 | J79: 60 | K79: 1 | L79: 85.21578111
A80: HI | B80: Hale Kuawehi | C80: Innergex | D80: Hawaiian Electric | E80: 2022-06-30 | F80: 30 | G80: 0 | H80: 30 | I80: 4 | J80: 120 | K80: 1 | L80: 69.64676294
A81: HI | B81: Ho'Ohana Solar 1 | C81: 174 Power Global | D81: Hawaiian Electric | E81: 2021-12-31 | F81: 52 | G81: 0 | H81: 52 | I81: 4 | J81: 208 | K81: 1 | L81: 81.62494576
A82: HI | B82: Kahana | C82: Innergex | D82: Hawaiian Electric | E82: 1905-07-15 | F82: 20 | G82: 0 | H82: 20 | I82: 4 | J82: 80 | K82: 1 | L82: 68.17199786
A83: HI | B83: Kamaole | C83: SB Energy | D83: Hawaiian Electric | E83: 1905-07-15 | F83: 40 | G83: 0 | H83: 40 | I83: 4 | J83: 160 | K83: 1 | L83: 63.52837358
A84: HI | B84: Kapaia | C84: Tesla | D84: KIUC | E84: 2017-04-01 | F84: 13 | G84: 0 | H84: 13 | I84: 4 | J84: 52 | K84: 1 | L84: 126.1223571
A85: HI | B85: Kekaha | C85: AES | D85: KIUC | E85: 2019-12-01 | F85: 14 | G85: 0 | H85: 14 | I85: 5 | J85: 70 | K85: 1 | L85: 90.12906211
A86: HI | B86: Kuihelani Solar | C86: AES | D86: Hawaiian Electric | E86: 2021-07-20 | F86: 60 | G86: 0 | H86: 60 | I86: 4 | J86: 240 | K86: 1 | L86: 61.99218347
A87: HI | B87: Kupehau | C87: Hanwha | D87: Hawaiian Electric | E87: 2022-06-01 | F87: 60 | G87: 0 | H87: 60 | I87: 4 | J87: 240 | K87: 1 | L87: 103.1132237
A88: HI | B88: Lawai | C88: AES | D88: KIUC | E88: 2018-10-01 | F88: 20 | G88: 0 | H88: 20 | I88: 5 | J88: 100 | K88: 1 | L88: 93.8659369
A89: HI | B89: Mahi | C89: Longroad | D89: Hawaiian Electric | E89: 1905-07-15 | F89: 120 | G89: 0 | H89: 120 | I89: 4 | J89: 480 | K89: 1 | L89: 73.93721694
A90: HI | B90: Mililani I Solar | C90: Clearway | D90: Hawaiian Electric | E90: 2021-12-31 | F90: 39 | G90: 0 | H90: 39 | I90: 4 | J90: 156 | K90: 1 | L90: 72.79138713
A91: HI | B91: Mountain View | C91: AES | D91: Hawaiian Electric | E91: 1905-07-15 | F91: 7 | G91: 0 | H91: 7 | I91: 5 | J91: 35 | K91: 1 | L91: 99.33144972
A92: HI | B92: Paeahu | C92: Innergex | D92: Hawaiian Electric | E92: 2022-06-30 | F92: 15 | G92: 0 | H92: 15 | I92: 4 | J92: 60 | K92: 1 | L92: 93.11183122
A93: HI | B93: Puako | C93: Engie EPS | D93: Hawaiian Electric | E93: 1905-07-15 | F93: 60 | G93: 0 | H93: 60 | I93: 4 | J93: 240 | K93: 1 | L93: 69.85225915
A94: HI | B94: Pulehu | C94: Longroad | D94: Hawaiian Electric | E94: 1905-07-15 | F94: 40 | G94: 0 | H94: 40 | I94: 4 | J94: 160 | K94: 1 | L94: 70.09526029
A95: HI | B95: Waiawa Phase 2 | C95: AES | D95: Hawaiian Electric | E95: 1905-07-15 | F95: 30 | G95: 0 | H95: 30 | I95: 8 | J95: 240 | K95: 1 | L95: 98.09354724
A96: HI | B96: Waiawa Solar | C96: Clearway | D96: Hawaiian Electric | E96: 2021-12-31 | F96: 36 | G96: 0 | H96: 36 | I96: 4 | J96: 144 | K96: 1 | L96: 79.20382826
A97: HI | B97: West Kaua'i | C97: AES | D97: KIUC | E97: 1905-07-15 | F97: 35 | G97: 0 | H97: 35 | I97: 2 | J97: 70 | K97: 1 | L97: 61.71215741
A98: HI | B98: West Oahu | C98: AES | D98: Hawaiian Electric | E98: 2021-09-30 | F98: 12.5 | G98: 0 | H98: 12.5 | I98: 4 | J98: 50 | K98: 1 | L98: 84.16542697
A99: IN | B99: Cavalry Solar | C99: NextEra/NIPSCO | D99: NIPSCO | E99: 2023-12-01 | F99: 200 | G99: 0 | H99: 60 | I99: 3 | J99: 180 | K99: 0.3
A100: IN | B100: Dunns Bridge II | C100: NextEra/NIPSCO | D100: NIPSCO | E100: 2023-12-01 | F100: 435 | G100: 0 | H100: 75 | I100: 3 | J100: 225 | K100: 0.1724137931
A101: IN | B101: Greensboro Solar | C101: NextEra | D101: NIPSCO | E101: 2023-07-01 | F101: 100 | G101: 0 | H101: 30 | I101: 3 | J101: 90 | K101: 0.3
A102: IN | B102: Petersburg | C102: NextEra/AES Indiana | D102: AES Indiana | E102: 2024-05-01 | F102: 250 | G102: 0 | H102: 60 | I102: 3 | J102: 180 | K102: 0.24
A103: KY | B103: Logan County | C103: Silicon Ranch | D103: TVA (Facebook, GM) | E103: 2023-12-01 | F103: 173 | G103: 0 | H103: 30 | I103: 4 | J103: 120 | K103: 0.1734104046
A104: MN | B104: Ramsey/Athens | C104: Engie/NextEra | D104: Connexus | E104: 2018-12-31 | F104: 10 | G104: 0 | H104: 15 | I104: 2 | J104: 30 | K104: 1.5
A105: MO | B105: Green City Renewable Energy Center | C105: Ameren Missouri | D105: Ameren Missouri | E105: 2021-12-01 | F105: 10 | G105: 0 | H105: 2.5 | I105: 4 | J105: 10 | K105: 0.25
A106: MO | B106: Richwoods Renewable Energy Center | C106: Ameren Missouri | D106: Ameren Missouri | E106: 2021-12-01 | F106: 10 | G106: 0 | H106: 4 | I106: 4 | J106: 16 | K106: 0.4
A107: MO | B107: Utica Renewable Energy Center | C107: Ameren Missouri | D107: Ameren Missouri | E107: 2021-12-01 | F107: 10 | G107: 0 | H107: 2 | I107: 4 | J107: 8 | K107: 0.2
A108: MS | B108: Clay County, MS | C108: Origis | D108: TVA (Knoxville Utility Board) | E108: 2023-12-01 | F108: 200 | G108: 0 | H108: 50 | I108: 4 | J108: 200 | K108: 0.25
A109: MS | B109: Golden Triangle | C109: Origis | D109: TVA (Facebook) | E109: 2023-10-01 | F109: 200 | G109: 0 | H109: 50 | I109: 4 | J109: 200 | K109: 0.25
A110: NC | B110: Grissom Solar | C110: Pine Gate Renewables | D110: North Carolina EMC | E110: 2021-06-28 | F110: 5 | G110: 0 | H110: 10 | I110: 1 | J110: 10 | K110: 2
A111: NE | B111: Norfolk | C111: N Solar | D111: NPPD | E111: 2021-12-31 | F111: 8.5 | G111: 0 | H111: 1 | I111: 2 | J111: 2 | K111: 0.1176470588
A112: NM | B112: Angel Fire | C112: Torch Clean Energy | D112: Kit Carson Electric Co-op | E112: 2021-12-01 | F112: 6 | G112: 0 | H112: 3 | I112: 2 | J112: 6 | K112: 0.5
A113: NM | B113: Arroyo | C113: Clenera | D113: PNM | E113: 2022-06-30 | F113: 300 | G113: 0 | H113: 150 | I113: 4 | J113: 600 | K113: 0.5 | L113: 28.29592527 | M113: 13.22926376
A114: NM | B114: Buena Vista | C114: NextEra | D114: El Paso Electric | E114: 2022-05-01 | F114: 100 | G114: 0 | H114: 50 | I114: 4 | J114: 200 | K114: 0.5 | L114: 24.81662708 | M114: 7.859564072
A115: NM | B115: Jicarilla 1 | C115: Hecate | D115: PNM | E115: 2022-04-30 | F115: 50 | G115: 0 | H115: 20 | I115: 4 | J115: 80 | K115: 0.4 | L115: 30.58313854 | M115: 14.29249806
A116: NM | B116: San Juan Solar 1 | C116: Photosol | D116: PNM | E116: 2022-06-10 | F116: 200 | G116: 0 | H116: 100 | I116: 4 | J116: 400 | K116: 0.5 | L116: 34.39126694 | M116: 13.13636805
A117: NM | B117: Sky Ranch | C117: NextEra | D117: PNM (Facebook) | E117: 2023-12-01 | F117: 190 | G117: 0 | H117: 100 | I117: 4 | J117: 400 | K117: 0.5263157895 | L117: 27.96478313 | M117: 11.66282597
A118: NM | B118: Taos Mesa | C118: Torch Clean Energy | D118: Kit Carson Electric Co-op | E118: 2021-12-01 | F118: 15 | G118: 0 | H118: 12 | I118: 2 | J118: 24 | K118: 0.8
A119: NV | B119: Arrow Canyon (Moapa) | C119: EDF-RE | D119: NV Energy | E119: 2022-12-01 | F119: 200 | G119: 0 | H119: 75 | I119: 5 | J119: 375 | K119: 0.375 | L119: 23.12690714
A120: NV | B120: Battle Mountain | C120: Cypress Creek | D120: NV Energy | E120: 2021-06-01 | F120: 101 | G120: 0 | H120: 25 | I120: 4 | J120: 100 | K120: 0.2475247525 | L120: 24.85881443 | M120: 3.741464718
A121: NV | B121: Boulder Solar 3 | C121: 174 Power Global | D121: NV Energy | E121: 2023-12-01 | F121: 128 | G121: 0 | H121: 58 | I121: 4 | J121: 232 | K121: 0.453125 | L121: 29.18320148 | M121: 10.23179964
A122: NV | B122: Chuckwalla | C122: EDF-RE | D122: NV Energy | E122: 2023-12-01 | F122: 200 | G122: 0 | H122: 180 | I122: 4 | J122: 720 | K122: 0.9 | L122: 36.76303809 | M122: 18.59035258
A123: NV | B123: Dodge Flat | C123: NextEra | D123: NV Energy | E123: 2021-12-01 | F123: 200 | G123: 0 | H123: 50 | I123: 4 | J123: 200 | K123: 0.25 | L123: 25.675337 | M123: 4.550018472
A124: NV | B124: Dry Lake | C124: NV Energy | D124: NV Energy | E124: 2023-12-01 | F124: 150 | G124: 0 | H124: 100 | I124: 4 | J124: 400 | K124: 0.6666666667
A125: NV | B125: Fish Springs Ranch | C125: NextEra | D125: NV Energy | E125: 2021-12-01 | F125: 100 | G125: 0 | H125: 25 | I125: 4 | J125: 100 | K125: 0.25 | L125: 28.77345875 | M125: 4.898900358
A126: NV | B126: Gemini | C126: Quinbrook/Arevia | D126: NV Energy | E126: 2023-12-01 | F126: 690 | G126: 0 | H126: 380 | I126: 3.842105263 | J126: 1460 | K126: 0.5507246377 | L126: 26.55314551
A127: NV | B127: Hot Pot | C127: Primergy/NV Energy | D127: NV Energy | E127: 2024-12-01 | F127: 350 | G127: 0 | H127: 280 | I127: 4 | J127: 1120 | K127: 0.8 | L127: 35.10024228 | M127: 16.50212691
A128: NV | B128: Iron Point | C128: Avangrid/Primergy/NV Energy | D128: NV Energy | E128: 2023-12-01 | F128: 250 | G128: 0 | H128: 200 | I128: 4 | J128: 800 | K128: 0.8 | L128: 36.7709461 | M128: 17.06876844
A129: NV | B129: Southern Bighorn | C129: 8minute Solar | D129: NV Energy | E129: 2023-09-01 | F129: 300 | G129: 0 | H129: 135 | I129: 4 | J129: 540 | K129: 0.45 | L129: 23.24337027
A130: NV | B130: Townsite | C130: Capital Dynamics | D130: Munis/Co-op | E130: 2021-12-31 | F130: 180 | G130: 0 | H130: 90 | I130: 4 | J130: 360 | K130: 0.5
A131: NV | B131: Yellow Pine Energy Center | C131: NextEra | D131: MBCP and SVCE | E131: 2022-12-01 | F131: 125 | G131: 0 | H131: 65 | I131: 4 | J131: 260 | K131: 0.52
A132: NY | B132: Alabama | C132: EDPR | D132: NYSERDA | E132: 2024-06-01 | F132: 130 | G132: 0 | H132: 20 | I132: 4 | J132: 80 | K132: 0.1538461538
A133: NY | B133: Excelsior | C133: NextEra | D133: NYSERDA | E133: 2022-12-31 | F133: 280 | G133: 0 | H133: 20 | I133: 4 | J133: 80 | K133: 0.07142857143
A134: NY | B134: Garnet Energy Center | C134: NextEra | D134: NYSERDA | E134: 2023-06-01 | F134: 200 | G134: 0 | H134: 20 | I134: 4 | J134: 80 | K134: =H134/(F134+G134) -> 0.1
A135: NY | B135: Moraine | C135: EDF-RE | D135: NYSERDA | E135: 2023-06-01 | F135: 94 | G135: 0 | H135: 5 | I135: 4 | J135: 20 | K135: 0.05319148936 | L135: 46.46531684
A136: NY | B136: South Ripley | C136: ConnectGen | D136: NYSERDA | E136: 2023-06-01 | F136: 270 | G136: 0 | H136: 20 | I136: 4 | J136: 80 | K136: 0.07407407407
A137: NY | B137: Tracy | C137: EDF-RE | D137: NYSERDA | E137: 2023-06-01 | F137: 119 | G137: 0 | H137: 5 | I137: 4 | J137: 20 | K137: 0.04201680672 | L137: 47.93438856
A138: OK | B138: Rush Springs | C138: NextEra | D138: Equinix/Owens Corning | E138: 2023/2024 | F138: 0 | G138: 249 | H138: 10 | I138: 2 | J138: 20 | K138: 0.04016064257
A139: OK | B139: Skeleton Creek | C139: NextEra | D139: WFEC | E139: Dec-23/Dec-20/Dec-23 | F139: 250 | G139: 250 | H139: 200 | I139: 4 | J139: 800 | K139: 0.4
A140: OR | B140: Wheatridge | C140: NextEra | D140: PGE | E140: Dec-21/Dec-20/Dec-21 | F140: 50 | G140: 300 | H140: 30 | I140: 4 | J140: 120 | K140: 0.08571428571
A141: TX | B141: Azure Sky Solar | C141: Enel | D141: Home Depot | E141: 2021-07-01 | F141: 225 | G141: 0 | H141: 81 | I141: 1.432098765 | J141: 116 | K141: 0.36
A142: TX | B142: Azure Sky Wind | C142: Enel | D142: Kellogg Company | E142: 2022-07-01 | F142: 0 | G142: 350 | H142: 120 | K142: 0.3428571429
A143: TX | B143: Blue Jay | C143: Enel | D143: partial | E143: 2021-12-31 | F143: 210 | G143: 0 | H143: 51.63 | K143: 0.2458571429
A144: TX | B144: Castle Gap (Upton 2) | C144: Luminant | D144: Luminant | E144: Jun-18/Dec-18 | F144: 180 | G144: 0 | H144: 10 | I144: 4.2 | J144: 42 | K144: 0.05555555556
A145: TX | B145: Danish Fields I-III | C145: Total/Sunchase | D145: Total | E145: 2023-12-31 | F145: 603 | G145: 0 | H145: 150.83 | K145: 0.25013267
A146: TX | B146: Helena Energy Center | C146: Orsted | D146: Henkel/Target/others | E146: 2022-06-01 | F146: 250 | G146: 268 | H146: 0 | K146: 0
A147: TX | B147: High Lonesome Wind | C147: Enel | D147: partial | E147: Dec-19/Dec-21 | F147: 0 | G147: 500 | H147: 57 | K147: 0.114
A148: TX | B148: Lily | C148: Enel | E148: 2021-07-01 | F148: 146 | G148: 0 | H148: 50 | I148: 1.5 | J148: 75 | K148: 0.3424657534
A149: TX | B149: Long Point | C149: Total/Sunchase | D149: Total | E149: 2023-12-31 | F149: 101.25 | G149: 0 | H149: 100.62 | K149: 0.9937777778
A150: TX | B150: Morrow Lake | C150: Total/Sunchase | D150: Total | E150: 2023-12-31 | F150: 204 | G150: 0 | H150: 201.13 | K150: 0.9859313725
A151: TX | B151: Mustang Creek | C151: Total/Sunchase | D151: Total | E151: 2023-12-31 | F151: 152.25 | G151: 0 | H151: 150.83 | K151: 0.9906732348
A152: TX | B152: Noble | C152: National Grid (NRG) | D152: Home Depot/NRG/Hershey | E152: 2022-06-01 | F152: 275 | G152: 0 | H152: 125 | I152: 1 | J152: 125 | K152: 0.4545454545
A153: TX | B153: Permian Energy Centre | C153: Orsted | D153: ExxonMobil | E153: 2021-05-01 | F153: 420 | G153: 0 | H153: 40 | I153: 1 | J153: 40 | K153: 0.09523809524
A154: TX | B154: Ranchland Wind | C154: Enel | D154: partial | E154: 2022-03-31 | F154: 0 | G154: 263 | H154: 71 | K154: 0.2699619772
A155: TX | B155: Roadrunner Solar | C155: Enel | D155: partial | E155: Dec-19/Dec-21 | F155: 497 | G155: 0 | H155: 51.06 | K155: 0.1027364185
A156: TX | B156: Roseland | C156: Enel | D156: partial | E156: 2022-10-01 | F156: 513 | G156: 0 | H156: 51.63 | K156: 0.1006432749
A157: TX | B157: Upton County Solar | C157: Viridity (Ormat) | D157: Austin Energy | E157: Dec-17/Dec-21 | F157: 157.5 | G157: 0 | H157: 25 | K157: 0.1587301587
A158: VA | B158: Correctional Solar | C158: Dominion | D158: Dominion | E158: Dec-17/Dec-21 | F158: 20 | G158: 0 | H158: 2 | I158: 2 | J158: 4 | K158: 0.1
A159: VA | B159: Scott Solar | C159: Dominion | D159: Dominion | E159: Dec-16/Dec-21 | F159: 17 | G159: 0 | H159: 12 | I159: 4 | J159: 48 | K159: 0.7058823529
A160: WI | B160: Darien | C160: Invenergy/WEC Energy | D160: We Energies/WPS/MG&E | E160: 2023-12-01 | F160: 250 | G160: 0 | H160: 75 | I160: 4 | J160: 300 | K160: 0.3
A161: WI | B161: Koshkonong | C161: Invenergy/WEC Energy | D161: We Energies/WPS/MG&E | E161: 2024-12-01 | F161: 300 | G161: 0 | H161: 165 | I161: 4 | J161: 660 | K161: 0.55
A162: WI | B162: Paris | C162: Invenergy/WEC Energy | D162: We Energies/WPS/MG&E | E162: 2023-12-01 | F162: 200 | G162: 0 | H162: 110 | I162: 4 | J162: 440 | K162: 0.55
A164: Note: To be included in this table, projects must have been publicly announced by the sponsor and/or offtaker as having signed a PPA or as otherwise moving forward, PV capacity must be at least 5 MW, and battery duration must be at least 1.0 hour.

Sheet PV+Battery Hybrid PPA Price
A1: Levelized price of PV+battery PPAs in the LBNL sample | J1: Levelized storage adder as a function of battery:PV capacity | V1: Storage contribution as a function of battery:PV capacity | AG1: Levelized storage adder as a function of PPA execution date and battery:PV capacity | AR1: Storage contribution as a function of PPA execution date and battery:PV capacity | BC1: Levelized price of PV+battery PPAs in the LBNL sample (bubble size represents battery:PV capacity) | BN1: Levelized price of PV+battery PPAs in the LBNL sample (bubble size represents PV capacity) | BY1: Levelized price of PV+battery PPAs in the LBNL sample (bubble size represents battery capacity)
V24: =IF(NOT(ISNUMBER($I24)),"-",IF(AND($E24>24%,$E24<=30%),$I24,"-")) -> - | W24: =IF(NOT(ISNUMBER($I24)),"-",IF(AND($E24>=40%,$E24<=50%),$I24,"-")) -> - | X24: =IF(NOT(ISNUMBER($I24)),"-",IF(AND($E24>=75%,$E24<=100%),$I24,"-")) -> - | Z24: =IF(NOT(ISNUMBER($H24)),"-",IF(AND($E24>24%,$E24<=30%),$H24,"-")) -> - | AA24: =IF(NOT(ISNUMBER($H24)),"-",IF(AND($E24>=40%,$E24<=50%),$H24,"-")) -> - | AB24: =IF(NOT(ISNUMBER($H24)),"-",IF(AND($E24>=75%,$E24<=100%),$H24,"-")) -> -
A25: State | B25: Project | C25: PV Capacity (MWAC) | D25: Battery Capacity (MWAC) | E25: Battery:PV Capacity Ratio | F25: Battery Duration (Hours) | G25: Levelized PPA Price (2020 $/MWh) | H25: Levelized Storage Adder (2020 $/MWh-PV) | I25: Adder / PPA Price | J25: PPA Execution Date | L25: AZ | M25: CA | N25: CO | O25: FL | P25: HI | Q25: NM | R25: NY | S25: NV | T25: Non-HI | V25: 25-30% | W25: 40-50% | X25: 75-100% | Z25: 5-30% | AA25: 40-50% | AB25: 75-100%
A26: AZ | B26: Pinal Central | C26: 20 | D26: 10 | E26: =D26/C26 -> 0.5 | F26: 4 | G26: 74.22842785 | J26: 2017-04-14 | L26: =IF($A26=L$25,$G26,NA()) -> 74.22842785 | T26: =IF($A26<>"HI",$G26,NA()) -> 74.22842785
A27: AZ | B27: Wilmot | C27: 100 | D27: 30 | E27: =D27/C27 -> 0.3 | F27: 4 | G27: 42.16505478 | H27: 15.05894813 | I27: =H27/G27 -> 0.3571428571 | J27: 2017-05-22 | L27: 42.16505478 | T27: =IF($A27<>"HI",$G27,NA()) -> 42.16505478 | V27: 0.3571428571 | Z27: 15.05894813
A28: AZ | B28: Mesquite Solar 4 | C28: 52.5 | D28: 10 | E28: =D28/C28 -> 0.1904761905 | F28: 4 | G28: 19.77361021 | J28: 2020-02-11 | L28: 19.77361021 | T28: =IF($A28<>"HI",$G28,NA()) -> 19.77361021
A29: CA | B29: RE Slate 2 | C29: 150 | D29: 45 | E29: 0.3 | F29: 4 | G29: 34.37756853 | J29: 2018-10-01 | M29: 34.37756853 | T29: 34.37756853
A30: CA | B30: BigBeau | C30: 128 | D30: 40 | E30: 0.3125 | F30: 4 | G30: 33.02714746 | J30: 2018-10-01 | M30: 33.02714746 | T30: 33.02714746
A31: CA | B31: Eland | C31: 400 | D31: 300 | E31: 0.75 | F31: 4 | G31: 30.18562564 | H31: 14.97091226 | I31: =H31/G31 -> 0.4959616355 | J31: 2019-07-01 | M31: 30.18562564 | T31: 30.18562564 | X31: 0.4959616355 | AB31: 14.97091226
A32: CA | B32: Camino | C32: 44 | D32: 11 | E32: 0.25 | F32: 4 | G32: 28.79892361 | H32: 5.162473713 | I32: =H32/G32 -> 0.1792592593 | J32: 2019-11-26 | M32: 28.79892361 | T32: 28.79892361 | V32: 0.1792592593 | Z32: 5.162473713
A33: CA | B33: Deer Creek | C33: 50 | D33: 50 | E33: 1 | F33: 4 | G33: 38.10079952 | H33: 17.56538837 | I33: =H33/G33 -> 0.461024141 | J33: 2021-02-23 | M33: 38.10079952 | T33: 38.10079952 | X33: 0.461024141 | AB33: 17.56538837
A34: CA | B34: Jacumba Valley Ranch | C34: 90 | D34: 70 | E34: 0.7777777778 | F34: 4 | G34: 37.22145313 | H34: 19.845336 | I34: =H34/G34 -> 0.5331692971 | J34: 2021-06-01 | M34: 37.22145313 | T34: 37.22145313 | X34: 0.5331692971 | AB34: 19.845336
A35: FL | B35: FL Solar 6 | C35: 50 | D35: 12 | E35: 0.24 | F35: 2 | G35: 27.42697899 | J35: 2020-05-01 | O35: 27.42697899 | T35: 27.42697899
A36: HI | B36: Kapaia | C36: 13 | D36: 13 | E36: 1 | F36: 4 | G36: 126.1223571 | J36: 2015-09-09 | L36: =IF($A36=L$25,$G36,NA()) ->  | P36: 126.1223571
A37: HI | B37: Lawai | C37: 20 | D37: 20 | E37: 1 | F37: 5 | G37: 93.8659369 | J37: 2016-12-30 | P37: 93.8659369
A38: HI | B38: Kekaha | C38: 14 | D38: 14 | E38: 1 | F38: 5 | G38: 90.12906211 | J38: 2017-09-29 | P38: 90.12906211
A39: HI | B39: Ho'Ohana Solar 1 | C39: 52 | D39: 52 | E39: 1 | F39: 4 | G39: 81.62494576 | J39: 2018-12-27 | P39: 81.62494576
A40: HI | B40: Hale Kuawehi | C40: 30 | D40: 30 | E40: 1 | F40: 4 | G40: 69.64676294 | J40: 2018-12-27 | P40: 69.64676294
A41: HI | B41: Paeahu | C41: 15 | D41: 15 | E41: 1 | F41: 4 | G41: 93.11183122 | J41: 2018-12-27 | P41: 93.11183122
A42: HI | B42: Kuihelani Solar | C42: 60 | D42: 60 | E42: 1 | F42: 4 | G42: 61.99218347 | J42: 2018-12-28 | P42: 61.99218347
A43: HI | B43: Mililani I Solar | C43: 39 | D43: 39 | E43: 1 | F43: 4 | G43: 72.79138713 | J43: 2018-12-29 | P43: 72.79138713
A44: HI | B44: Waiawa Solar | C44: 36 | D44: 36 | E44: 1 | F44: 4 | G44: 79.20382826 | J44: 2018-12-29 | P44: 79.20382826
A45: HI | B45: West Oahu | C45: 12.5 | D45: 12.5 | E45: 1 | F45: 4 | G45: 84.16542697 | J45: 2019-02-28 | L45: =IF($A45=L$25,$G45,NA()) ->  | P45: 84.16542697
A46: HI | B46: Kahana | C46: 20 | D46: 20 | E46: 1 | F46: 4 | G46: 68.17199786 | J46: 2020-09-01 | P46: 68.17199786
A47: HI | B47: Pulehu | C47: 40 | D47: 40 | E47: 1 | F47: 4 | G47: 70.09526029 | J47: 2020-09-01 | P47: 70.09526029
A48: HI | B48: Kupehau | C48: 60 | D48: 60 | E48: 1 | F48: 4 | G48: 103.1132237 | J48: 2020-09-01 | P48: 103.1132237
A49: HI | B49: Barbers Point | C49: 15 | D49: 15 | E49: 1 | F49: 4 | G49: 85.21578111 | J49: 2020-09-01 | P49: 85.21578111
A50: HI | B50: Mahi | C50: 120 | D50: 120 | E50: 1 | F50: 4 | G50: 73.93721694 | J50: 2020-09-01 | P50: 73.93721694
A51: HI | B51: Mountain View | C51: 7 | D51: 7 | E51: 1 | F51: 5 | G51: 99.33144972 | J51: 2020-09-01 | P51: 99.33144972
A52: HI | B52: Waiawa Phase 2 | C52: 30 | D52: 30 | E52: 1 | F52: 8 | G52: 98.09354724 | J52: 2020-09-01 | P52: 98.09354724
A53: HI | B53: Puako | C53: 60 | D53: 60 | E53: 1 | F53: 4 | G53: 69.85225915 | J53: 2020-10-20 | P53: 69.85225915
A54: HI | B54: Kamaole | C54: 40 | D54: 40 | E54: 1 | F54: 2 | G54: 63.52837358 | J54: 2020-12-23 | P54: 63.52837358
A55: HI | B55: West Kaua'i | C55: 35 | D55: 35 | E55: 1 | F55: 4 | G55: 61.71215741 | J55: 2020-12-30 | P55: 61.71215741
A56: NM | B56: Jicarilla 1 | C56: 50 | D56: 20 | E56: 0.4 | F56: 4 | G56: 30.58313854 | H56: 14.29249806 | I56: =H56/G56 -> 0.4673326134 | J56: 2019-06-27 | L56: =IF($A56=L$25,$G56,NA()) ->  | O56: =IF($A56=O$25,$G56,NA()) ->  | P56: =IF($A56=P$25,$G56,NA()) ->  | Q56: =IF($A56=Q$25,$G56,NA()) -> 30.58313854 | R56: =IF($A56=R$25,$G56,NA()) ->  | S56: =IF($A56=S$25,$G56,NA()) ->  | T56: 30.58313854 | W56: 0.4673326134 | AA56: 14.29249806
A57: NM | B57: Arroyo | C57: 300 | D57: 150 | E57: 0.5 | F57: 4 | G57: 28.29592527 | H57: 13.22926376 | I57: 0.4675324675 | J57: 2019-06-27 | O57: =IF($A57=O$25,$G57,NA()) ->  | Q57: 28.29592527 | T57: 28.29592527 | W57: 0.4675324675 | AA57: 13.22926376
A58: NM | B58: Buena Vista | C58: 100 | D58: 50 | E58: 0.5 | F58: 4 | G58: 24.81662708 | H58: 7.859564072 | I58: 0.3167055719 | J58: 2019-10-17 | Q58: 24.81662708 | T58: 24.81662708 | W58: 0.3167055719 | AA58: 7.859564072
A59: NM | B59: San Juan Solar 1 | C59: 200 | D59: 100 | E59: 0.5 | F59: 4 | G59: 34.39126694 | H59: 13.13636805 | I59: 0.3819681337 | J59: 2020-09-25 | L59: =IF($A59=L$25,$G59,NA()) ->  | Q59: 34.39126694 | T59: 34.39126694 | W59: 0.3819681337 | AA59: 13.13636805
A60: NM | B60: Sky Ranch | C60: 190 | D60: 100 | E60: 0.5263157895 | F60: 4 | G60: 27.96478313 | H60: 11.66282597 | I60: 0.4170540467 | J60: 2021-02-01 | Q60: 27.96478313 | T60: 27.96478313
A61: NY | B61: Moraine | C61: 94 | D61: 5 | E61: 0.05319148936 | F61: 4 | G61: 46.46531684 | J61: 2021-01-15 | R61: 46.46531684 | T61: 46.46531684
A62: NY | B62: Tracy | C62: 119 | D62: 5 | E62: 0.04201680672 | F62: 4 | G62: 47.93438856 | J62: 2021-01-15 | R62: 47.93438856 | T62: 47.93438856
A63: NV | B63: Battle Mountain | C63: 101 | D63: 25 | E63: 0.2475247525 | F63: 4 | G63: 24.85881443 | H63: 3.741464718 | I63: 0.1505085742 | J63: 2018-05-30 | L63: =IF($A63=L$25,$G63,NA()) ->  | S63: 24.85881443 | T63: 24.85881443 | V63: 0.1505085742 | Z63: 3.741464718
A64: NV | B64: Dodge Flat | C64: 200 | D64: 50 | E64: 0.25 | F64: 4 | G64: 25.675337 | H64: 4.550018472 | I64: 0.1772135833 | J64: 2018-05-30 | S64: 25.675337 | T64: 25.675337 | V64: 0.1772135833 | Z64: 4.550018472
A65: NV | B65: Fish Springs Ranch | C65: 100 | D65: 25 | E65: 0.25 | F65: 4 | G65: 28.77345875 | H65: 4.898900358 | I65: 0.1702576113 | J65: 2018-05-30 | S65: 28.77345875 | T65: 28.77345875 | V65: 0.1702576113 | Z65: 4.898900358
A66: NV | B66: Arrow Canyon (Moapa) | C66: 200 | D66: 75 | E66: 0.375 | F66: 5 | G66: 23.12690714 | J66: 2019-06-24 | S66: 23.12690714 | T66: 23.12690714
A67: NV | B67: Southern Bighorn | C67: 300 | D67: 135 | E67: 0.45 | F67: 4 | G67: 23.24337027 | J67: 2019-06-24 | S67: 23.24337027 | T67: 23.24337027
A68: NV | B68: Gemini | C68: 690 | D68: 380 | E68: 0.5507246377 | F68: 3.842105263 | G68: 26.55314551 | J68: 2019-06-24 | S68: 26.55314551 | T68: 26.55314551
A69: NV | B69: Chuckwalla | C69: 200 | D69: 180 | E69: 0.9 | F69: 4 | G69: 36.76303809 | H69: 18.59035258 | I69: =H69/G69 -> 0.5056805297 | J69: 2020-03-25 | S69: 36.76303809 | T69: 36.76303809 | X69: 0.5056805297 | AB69: 18.59035258
A70: NV | B70: Boulder Solar 3 | C70: 127.86 | D70: 58 | E70: =D70/C70 -> 0.4536211481 | F70: 4 | G70: 29.18320148 | H70: 10.23179964 | I70: =H70/G70 -> 0.3506057978 | J70: 2020-04-08 | S70: 29.18320148 | T70: 29.18320148 | W70: 0.3506057978 | AA70: 10.23179964
A71: NV | B71: Hot Pot | C71: 350 | D71: 280 | E71: =D71/C71 -> 0.8 | F71: 4 | G71: 35.10024228 | H71: 16.50212691 | I71: =H71/G71 -> 0.4701428206 | J71: 2021-06-01 | S71: 35.10024228 | T71: 35.10024228 | X71: 0.4701428206 | AB71: 16.50212691
A72: NV | B72: Iron Point | C72: 250 | D72: 200 | E72: =D72/C72 -> 0.8 | F72: 4 | G72: 36.7709461 | H72: 17.06876844 | I72: =H72/G72 -> 0.4641917125 | J72: 2021-06-01 | S72: 36.7709461 | T72: 36.7709461 | X72: 0.4641917125 | AB72: 17.06876844

Sheet LCOE of Utility-Scale PV
A1: Estimated levelized cost of energy by commercial operation date, region, and project
A22: Source: Berkeley Lab | K22: Source: Berkeley Lab | V22: Source: Berkeley Lab
A24: GW-AC: | B24: 33.5993595 | C24: 3.947312 | D24: 0.228081 | E24: 0.8524285 | F24: 6.228856 | G24: 2.565661 | H24: 0.213653 | I24: 11.386904 | J24: 8.028564 | K24: 0.175 | L24: 0.1479 | Q24: Project-Level | R24: COD
A25: Projects: | B25: 817 | C25: 51 | D25: 10 | E25: 40 | F25: 188 | G25: 126 | H25: 15 | I25: 191 | J25: 186 | K25: 7 | L25: 10 | O25: Plant | P25: COD | Q25: LCOE | R25: Year
B26: Nationwide | C26: ERCOT | D26: SPP | E26: MISO | F26: West (non-ISO) | G26: PJM | H26: ISO-NE | I26: CAISO | J26: Southeast (non-ISO) | K26: Hawaii | L26: NYISO | O26: MW | P26: Year | Q26: 2020 $/MWh | R26: Code
A27: 2010 | B27: 218.1059892 | F27: 167.6099869 | G27: 365.439669 | J27: 317.4358188 | O27: 48 | P27: 2010 | Q27: 145.6702498 | R27: 1
A28: 2011 | B28: 198.4187637 | F28: 169.3956397 | G28: 275.4586983 | I28: 198.6522334 | O28: 30.64 | P28: 2010 | Q28: 162.1345146 | R28: 1
A29: 2012 | B29: 145.62786 | C29: 208.1218786 | F29: 158.4969481 | G29: 233.9734373 | I29: 114.9201345 | J29: 202.2042449 | O29: 13.9 | P29: 2010 | Q29: 265.0181877 | R29: 1
A30: 2013 | B30: 137.0708614 | C30: 145.4516653 | E30: 184.4746224 | F30: 126.2160619 | G30: 265.4147472 | I30: 136.1690986 | J30: 182.2038927 | O30: 5.1 | P30: 2010 | Q30: 278.7416991 | R30: 1
A31: 2014 | B31: 127.0718296 | E31: 164.495819 | F31: 99.11031529 | G31: 140.6001261 | H31: 227.6320229 | I31: 128.2281363 | J31: 131.6480582 | O31: 19 | P31: 2010 | Q31: 174.9134951 | R31: 1
A32: 2015 | B32: 99.53679527 | C32: 102.5898418 | E32: 157.8716924 | F32: 77.53885853 | G32: 112.7959011 | I32: 109.5379518 | J32: 96.35807385 | O32: 10.08 | P32: 2010 | Q32: 356.666335 | R32: 1
A33: 2016 | B33: 73.59075228 | C33: 70.47405255 | D33: 61.02816203 | E33: 92.55981416 | F33: 66.30473244 | G33: 104.5525832 | H33: 169.2195801 | I33: 73.26262304 | J33: 81.46539455 | O33: 12.6 | P33: 2010 | Q33: 320.0460438 | R33: 1
A34: 2017 | B34: 71.57083148 | C34: 61.85385662 | D34: 75.39806162 | E34: 93.20989066 | F34: 61.23744432 | G34: 79.6787347 | H34: 133.4458073 | I34: 76.27340656 | J34: 76.26754386 | K34: 124.0187096 | L34: 119.9939275 | O34: 17.5 | P34: 2010 | Q34: 292.7102305 | R34: 1
A35: 2018 | B35: 58.03708259 | C35: 44.77423838 | D35: 58.62353542 | E35: 49.92671299 | F35: 57.38242476 | G35: 79.84134871 | H35: 88.44262511 | I35: 65.86158962 | J35: 52.84732113 | O35: 10 | P35: 2010 | Q35: 365.4723152 | R35: 1
A36: 2019 | B36: 44.68214715 | C36: 39.31997056 | E36: 54.89569515 | F36: 41.10840913 | G36: 62.9538692 | H36: 70.86700489 | I36: 43.04595432 | J36: 43.5474961 | K36: 73.43208035 | L36: 76.05769874 | O36: 8.25 | P36: 2010 | Q36: 421.867458 | R36: 1
A37: 2020 | B37: 34.42363615 | C37: 28.72297782 | E37: 44.71022787 | F37: 32.41590753 | G37: 45.12662531 | I37: 43.84706133 | J37: 33.91828474 | O37: 8.08 | P37: 2011 | Q37: 179.1422155 | R37: 2
O38: 9 | P38: 2011 | Q38: 136.2484522 | R38: 2
O39: 20 | P39: 2011 | Q39: 171.5018806 | R39: 2
O40: 15 | P40: 2011 | Q40: 180.0081598 | R40: 2
O41: 15 | P41: 2011 | Q41: 198.7943198 | R41: 2
O42: 5.2 | P42: 2011 | Q42: 160.6270474 | R42: 2
O43: 7 | P43: 2011 | Q43: 159.7691948 | R43: 2
O44: 20.16 | P44: 2011 | Q44: 139.6336094 | R44: 2
O45: 18 | P45: 2011 | Q45: 194.9668955 | R45: 2
O46: 10.4 | P46: 2011 | Q46: 153.5520765 | R46: 2
O47: 17.6 | P47: 2011 | Q47: 168.333602 | R47: 2
O48: 30.4 | P48: 2011 | Q48: 151.0923328 | R48: 2
O49: 5.5 | P49: 2011 | Q49: 237.3329312 | R49: 2
O50: 30 | P50: 2011 | Q50: 205.3558794 | R50: 2
O51: 8 | P51: 2011 | Q51: 256.9009275 | R51: 2
O52: 20 | P52: 2011 | Q52: 156.4722705 | R52: 2
O53: 19 | P53: 2011 | Q53: 212.6551228 | R53: 2
O54: 20 | P54: 2011 | Q54: 215.2593441 | R54: 2
O55: 18 | P55: 2011 | Q55: 284.7395888 | R55: 2
O56: 10 | P56: 2011 | Q56: 258.1716211 | R56: 2
O57: 6 | P57: 2011 | Q57: 226.7406106 | R57: 2
O58: 16 | P58: 2011 | Q58: 187.6960475 | R58: 2
O59: 8.91 | P59: 2011 | Q59: 200.4960801 | R59: 2
O60: 17 | P60: 2011 | Q60: 196.0658135 | R60: 2
O61: 31.5 | P61: 2011 | Q61: 292.4986549 | R61: 2
O62: 10 | P62: 2011 | Q62: 321.651215 | R62: 2
O63: 12 | P63: 2011 | Q63: 322.1301374 | R63: 2
O64: 15 | P64: 2011 | Q64: 221.2134487 | R64: 2
O65: 92 | P65: 2012 | Q65: 68.49358773 | R65: 3
O66: 170 | P66: 2012 | Q66: 112.3773358 | R66: 3
O67: 20 | P67: 2012 | Q67: 130.7781782 | R67: 3
O68: 5.1 | P68: 2012 | Q68: 106.1050709 | R68: 3
O69: 12.5 | P69: 2012 | Q69: 171.8413015 | R69: 3
O70: 5.5 | P70: 2012 | Q70: 193.8629687 | R70: 3
O71: 20 | P71: 2012 | Q71: 153.6569044 | R71: 3
O72: 21.8 | P72: 2012 | Q72: 169.6384666 | R72: 3
O73: 10 | P73: 2012 | Q73: 160.4115227 | R73: 3
O74: 7.6 | P74: 2012 | Q74: 197.8328396 | R74: 3
O75: 23 | P75: 2012 | Q75: 161.2061081 | R75: 3
O76: 20 | P76: 2012 | Q76: 212.2049976 | R76: 3
O77: 20 | P77: 2012 | Q77: 200.3927012 | R77: 3
O78: 52 | P78: 2012 | Q78: 146.927277 | R78: 3
O79: 5.5 | P79: 2012 | Q79: 233.9540608 | R79: 3
O80: 50 | P80: 2012 | Q80: 135.9100888 | R80: 3
O81: 20 | P81: 2012 | Q81: 148.2975637 | R81: 3
O82: 9 | P82: 2012 | Q82: 150.1587739 | R82: 3
O83: 20 | P83: 2012 | Q83: 136.1342576 | R83: 3
O84: 10.6 | P84: 2012 | Q84: 208.301304 | R84: 3
O85: 26.46 | P85: 2012 | Q85: 143.1058931 | R85: 3
O86: 9.9 | P86: 2012 | Q86: 208.435155 | R86: 3
O87: 9.9 | P87: 2012 | Q87: 207.6193544 | R87: 3
O88: 20 | P88: 2012 | Q88: 222.7881763 | R88: 3
O89: 12 | P89: 2012 | Q89: 231.4939516 | R89: 3
O90: 19 | P90: 2012 | Q90: 145.8822865 | R90: 3
O91: 30 | P91: 2012 | Q91: 155.4641122 | R91: 3
O92: 11.12 | P92: 2012 | Q92: 157.7343429 | R92: 3
O93: 12 | P93: 2012 | Q93: 149.3544248 | R93: 3
O94: 15.904 | P94: 2012 | Q94: 246.2280555 | R94: 3
O95: 25.8 | P95: 2012 | Q95: 163.8721274 | R95: 3
O96: 10 | P96: 2012 | Q96: 290.6770148 | R96: 3
O97: 14.85 | P97: 2012 | Q97: 178.0547051 | R97: 3
O98: 14.85 | P98: 2012 | Q98: 173.5278418 | R98: 3
O99: 13 | P99: 2012 | Q99: 267.2787472 | R99: 3
O100: 5.5 | P100: 2012 | Q100: 280.993668 | R100: 3
O101: 19 | P101: 2012 | Q101: 174.2729138 | R101: 3
O102: 10 | P102: 2012 | Q102: 305.6691911 | R102: 3
O103: 20 | P103: 2012 | Q103: 176.6872353 | R103: 3
O104: 8 | P104: 2013 | Q104: 92.7706354 | R104: 4
O105: 7.5 | P105: 2013 | Q105: 89.92986966 | R105: 4
O106: 9 | P106: 2013 | Q106: 79.30741522 | R106: 4
O107: 10.1 | P107: 2013 | Q107: 175.6889089 | R107: 4
O108: 10.1 | P108: 2013 | Q108: 169.7964235 | R108: 4
O109: 20 | P109: 2013 | Q109: 116.9316696 | R109: 4
O110: 110 | P110: 2013 | Q110: 112.9842324 | R110: 4
O111: 8.6 | P111: 2013 | Q111: 170.5389426 | R111: 4
O112: 12 | P112: 2013 | Q112: 108.3767603 | R112: 4
O113: 16 | P113: 2013 | Q113: 163.2727393 | R113: 4
O114: 8.5 | P114: 2013 | Q114: 103.7377998 | R114: 4
O115: 14.8 | P115: 2013 | Q115: 108.65658 | R115: 4
O116: 20 | P116: 2013 | Q116: 114.897706 | R116: 4
O117: 15 | P117: 2013 | Q117: 106.5076509 | R117: 4
O118: 147.4 | P118: 2013 | Q118: 121.2037663 | R118: 4
O119: 20 | P119: 2013 | Q119: 118.650029 | R119: 4
O120: 40.7 | P120: 2013 | Q120: 145.4028646 | R120: 4
O121: 7.65 | P121: 2013 | Q121: 182.7762108 | R121: 4
O122: 20 | P122: 2013 | Q122: 170.0318808 | R122: 4
O123: 10 | P123: 2013 | Q123: 224.2311747 | R123: 4
O124: 20 | P124: 2013 | Q124: 118.8315971 | R124: 4
O125: 10 | P125: 2013 | Q125: 161.4643099 | R125: 4
O126: 30 | P126: 2013 | Q126: 115.7947762 | R126: 4
O127: 37.44 | P127: 2013 | Q127: 124.3165713 | R127: 4
O128: 9.8 | P128: 2013 | Q128: 204.9305107 | R128: 4
O129: 20 | P129: 2013 | Q129: 135.5958597 | R129: 4
O130: 26 | P130: 2013 | Q130: 130.2335236 | R130: 4
O131: 130 | P131: 2013 | Q131: 170.6986273 | R131: 4
O132: 250 | P132: 2013 | Q132: 136.1203081 | R132: 4
O133: 9.999 | P133: 2013 | Q133: 145.6200906 | R133: 4
O134: 66 | P134: 2013 | Q134: 148.2334663 | R134: 4
O135: 20.2 | P135: 2013 | Q135: 201.4326711 | R135: 4
O136: 20 | P136: 2013 | Q136: 166.1672058 | R136: 4
O137: 20 | P137: 2013 | Q137: 195.6530387 | R137: 4
O138: 129 | P138: 2013 | Q138: 132.0285481 | R138: 4
O139: 14 | P139: 2013 | Q139: 137.4286624 | R139: 4
O140: 7.5 | P140: 2013 | Q140: 357.6071061 | R140: 4
O141: 8.5 | P141: 2013 | Q141: 354.2726062 | R141: 4
O142: 7.6 | P142: 2014 | Q142: 65.02667584 | R142: 5
O143: 9.12 | P143: 2014 | Q143: 64.03186612 | R143: 5
O144: 15.84 | P144: 2014 | Q144: 112.216155 | R144: 5
O145: 8.8205 | P145: 2014 | Q145: 125.2175513 | R145: 5
O146: 15.84 | P146: 2014 | Q146: 115.6779269 | R146: 5
O147: 10.416 | P147: 2014 | Q147: 68.96547822 | R147: 5
O148: 6.08 | P148: 2014 | Q148: 75.99110204 | R148: 5
O149: 20 | P149: 2014 | Q149: 84.76405884 | R149: 5
O150: 10 | P150: 2014 | Q150: 85.57900586 | R150: 5
O151: 19.945 | P151: 2014 | Q151: 84.3674303 | R151: 5
O152: 17.7 | P152: 2014 | Q152: 94.25910731 | R152: 5
O153: 20 | P153: 2014 | Q153: 91.54592855 | R153: 5
O154: 52.2 | P154: 2014 | Q154: 79.14733558 | R154: 5
O155: 20 | P155: 2014 | Q155: 87.27160422 | R155: 5
O156: 6 | P156: 2014 | Q156: 110.0566873 | R156: 5
O157: 6.49 | P157: 2014 | Q157: 101.0131939 | R157: 5
O158: 19.646 | P158: 2014 | Q158: 134.3019083 | R158: 5
O159: 19.946 | P159: 2014 | Q159: 116.2558592 | R159: 5
O160: 19.79 | P160: 2014 | Q160: 122.8298836 | R160: 5
O161: 18 | P161: 2014 | Q161: 95.15232967 | R161: 5
O162: 8 | P162: 2014 | Q162: 141.2363475 | R162: 5
O163: 10 | P163: 2014 | Q163: 94.69208213 | R163: 5
O164: 7 | P164: 2014 | Q164: 151.1287012 | R164: 5
O165: 5.34 | P165: 2014 | Q165: 154.3613292 | R165: 5
O166: 8 | P166: 2014 | Q166: 153.2349287 | R166: 5
O167: 45 | P167: 2014 | Q167: 88.83046672 | R167: 5
O168: 20 | P168: 2014 | Q168: 106.5438249 | R168: 5
O169: 19 | P169: 2014 | Q169: 105.2923899 | R169: 5
O170: 20 | P170: 2014 | Q170: 91.5379469 | R170: 5
O171: 20 | P171: 2014 | Q171: 87.85634243 | R171: 5
O172: 37.12 | P172: 2014 | Q172: 98.67854818 | R172: 5
O173: 585.9 | P173: 2014 | Q173: 115.9126512 | R173: 5
O174: 30 | P174: 2014 | Q174: 148.7572912 | R174: 5
O175: 19.406 | P175: 2014 | Q175: 106.2413464 | R175: 5
O176: 19.65 | P176: 2014 | Q176: 109.7802393 | R176: 5
O177: 15 | P177: 2014 | Q177: 93.47160565 | R177: 5
O178: 18.5 | P178: 2014 | Q178: 90.39037684 | R178: 5
O179: 10 | P179: 2014 | Q179: 112.0298198 | R179: 5
O180: 7.892 | P180: 2014 | Q180: 210.3539595 | R180: 5
O181: 8 | P181: 2014 | Q181: 132.707554 | R181: 5
O182: 7 | P182: 2014 | Q182: 219.4272375 | R182: 5
O183: 313.7 | P183: 2014 | Q183: 138.2643428 | R183: 5
O184: 19.76 | P184: 2014 | Q184: 130.6315313 | R184: 5
O185: 249.7 | P185: 2014 | Q185: 125.2595181 | R185: 5
O186: 12.6 | P186: 2014 | Q186: 108.0720394 | R186: 5
O187: 12 | P187: 2014 | Q187: 141.1218309 | R187: 5
O188: 6.25 | P188: 2014 | Q188: 214.2765949 | R188: 5
O189: 14 | P189: 2014 | Q189: 234.0765282 | R189: 5
O190: 7.726 | P190: 2014 | Q190: 195.8128279 | R190: 5
O191: 60 | P191: 2014 | Q191: 129.7868859 | R191: 5
O192: 170 | P192: 2014 | Q192: 112.4182991 | R192: 5
O193: 19.7 | P193: 2014 | Q193: 116.0664161 | R193: 5
O194: 206.72 | P194: 2014 | Q194: 133.0366777 | R194: 5
O195: 6 | P195: 2014 | Q195: 142.20592 | R195: 5
O196: 39.6 | P196: 2014 | Q196: 173.4631356 | R196: 5
O197: 17.494 | P197: 2014 | Q197: 133.4297388 | R197: 5
O198: 290 | P198: 2014 | Q198: 142.8683181 | R198: 5
O199: 155.1 | P199: 2014 | Q199: 142.2954739 | R199: 5
O200: 17.5 | P200: 2014 | Q200: 145.0732286 | R200: 5
O201: 29 | P201: 2014 | Q201: 142.7849937 | R201: 5
O202: 19.568 | P202: 2014 | Q202: 168.2927702 | R202: 5
O203: 241.5 | P203: 2014 | Q203: 169.2465042 | R203: 5
O204: 29.76 | P204: 2015 | Q204: 63.21964639 | R204: 6
O205: 20 | P205: 2015 | Q205: 86.11242793 | R205: 6
O206: 5.5 | P206: 2015 | Q206: 88.24979203 | R206: 6
O207: 10.5 | P207: 2015 | Q207: 59.59519422 | R207: 6
O208: 9.5 | P208: 2015 | Q208: 65.90609057 | R208: 6
O209: 11.662 | P209: 2015 | Q209: 102.0296925 | R209: 6
O210: 10 | P210: 2015 | Q210: 60.51959615 | R210: 6
O211: 10 | P211: 2015 | Q211: 64.16743109 | R211: 6
O212: 21 | P212: 2015 | Q212: 88.49368207 | R212: 6
O213: 64.8 | P213: 2015 | Q213: 89.59678025 | R213: 6
O214: 80 | P214: 2015 | Q214: 60.69386867 | R214: 6
O215: 20 | P215: 2015 | Q215: 104.7025281 | R215: 6
O216: 20 | P216: 2015 | Q216: 73.5218557 | R216: 6
O217: 45 | P217: 2015 | Q217: 60.61569637 | R217: 6
O218: 81.06 | P218: 2015 | Q218: 78.2011334 | R218: 6
O219: 47.7 | P219: 2015 | Q219: 99.01839465 | R219: 6
O220: 10.3 | P220: 2015 | Q220: 95.73512285 | R220: 6
O221: 12.8 | P221: 2015 | Q221: 106.6994949 | R221: 6
... 622 more rows

Sheet LCOE vs. PPA Price
A1: Average levelized cost of energy versus average levelized PPA price, by commercial operation date
A22: Source: Berkeley Lab | I22: Source: Berkeley Lab | R22: Source: Berkeley Lab
D25: No ITC | E25: No ITC | F25: No ITC | G25: 30% ITC | H25: 30% ITC | I25: 30% ITC
A26: LCOE | B26: LCOE | D26: Median | E26: Cap-Wgtd Avg | F26: Gen-Wgtd Avg | G26: Median | H26: Cap-Wgtd Avg | I26: Gen-Wgtd Avg | K26: Median | L26: Cap-Wgtd Avg | M26: Gen-Wgtd Avg
A27: Sample | B27: Sample | D27: LCOE | E27: LCOE | F27: LCOE | G27: LCOE | H27: LCOE | I27: LCOE | K27: PPA Price | L27: PPA Price | M27: PPA Price
A28: Capacity | B28: Projects | C28: Project | D28: by COD | E28: by COD | F28: by COD | G28: by COD | H28: by COD | I28: by COD | K28: by COD | L28: by COD | M28: by COD
A29: (MW-AC) | B29: (#) | C29: COD | D29: (2020 $/MWh) | E29: (2020 $/MWh) | F29: (2020 $/MWh) | G29: (2020 $/MWh) | H29: (2020 $/MWh) | I29: (2020 $/MWh) | K29: (2020 $/MWh) | L29: (2020 $/MWh) | M29: (2020 $/MWh)
A30: 175.07 | B30: 10 | C30: 2010 | D30: 285.7259648 | E30: 230.0451301 | F30: 218.1059892 | G30: 217.7889891 | H30: 175.8966838 | I30: 166.8882318 | K30: 201.8761794 | L30: 170.7904424 | M30: 166.9621024
A31: 422.75 | B31: 28 | C31: =C30+1 -> 2011 | D31: 197.4300667 | E31: 205.8358094 | F31: 198.4187637 | G31: 151.5547247 | H31: 157.7342887 | I31: 152.0842176 | K31: 176.6595663 | L31: 183.8858401 | M31: 176.8938102
A32: 893.884 | B32: 39 | C32: =C31+1 -> 2012 | D32: 171.8413015 | E32: 152.0333696 | F32: 145.62786 | G32: 132.5189053 | H32: 117.3706316 | I32: 112.4995971 | K32: 135.1044247 | L32: 140.3458078 | M32: 138.6019326
A33: 1343.789 | B33: 38 | C33: 2013 | D33: 136.7744853 | E33: 140.6394934 | F33: 137.0708614 | G33: 105.0563701 | H33: 108.2593328 | I33: 105.5173024 | K33: 131.1158727 | L33: 128.6975555 | M33: 129.1064427
A34: 3152.1595 | B34: 62 | C34: 2014 | D34: 115.9895336 | E34: 128.2035869 | F34: 127.0718296 | G34: 90.57010996 | H34: 98.77351429 | I34: 97.86434784 | K34: 100.98919 | L34: 129.7140969 | M34: 129.1891218
A35: 2839.682 | B35: 85 | C35: 2015 | D35: 99.01839465 | E35: 100.1597147 | F35: 99.53679527 | G35: 78.28999142 | H35: 77.94911804 | I35: 77.3891795 | K35: 81.5360472 | L35: 95.1077477 | M35: 95.47857023
A36: 7377.194 | B36: 145 | C36: 2016 | D36: 77.47052447 | E36: 75.5258902 | F36: 73.59075228 | G36: 61.22409288 | H36: 59.3407351 | I36: 57.8206446 | K36: 57.23783845 | L36: 61.92295774 | M36: 61.71723024
A37: 3990.822 | B37: 159 | C37: 2017 | D37: 74.67781589 | E37: 73.54802806 | F37: 71.57083148 | G37: 58.86433368 | H37: 58.02015969 | I37: 56.43833447 | K37: 51.09321662 | L37: 50.66920967 | M37: 50.08786848
A38: 3929.416 | B38: 93 | C38: 2018 | D38: 61.00124947 | E38: 58.57517391 | F38: 58.03708259 | G38: 49.54523158 | H38: 47.43035358 | I38: 46.96291974 | K38: 49.03305814 | L38: 48.83888741 | M38: 46.94689885
A39: 4379.427 | B39: 91 | C39: 2019 | D39: 47.77017577 | E39: 45.68666559 | F39: 44.68214715 | G39: 39.06471195 | H39: 37.03609519 | I39: 36.19687166 | K39: 37.29224592 | L39: 38.01702616 | M39: 36.93527144
A40: 5095.166 | B40: 67 | C40: 2020 | D40: 37.63780747 | E40: 34.79170013 | F40: 34.42363615 | G40: 30.88906844 | H40: 28.41545006 | I40: 28.1105471 | K40: 28.19773586 | L40: 30.45987797 | M40: 29.92605
A41: TBD | B41: TBD | C41: 2021 | K41: 23.89049602 | L41: 23.8580416 | M41: 23.27796664

Sheet PV & Wind PPAs vs. Gas
A1: Levelized PV and wind PPA prices and levelized gas price projections | K1: Levelized PV and wind PPA prices
A22: Sources: Berkeley Lab, FERC, Energy Information Administration
A23: Note: Smallest bubble sizes reflect smallest-volume PPAs (<5 MW), whereas largest reflect largest-volume PPAs (>500 MW)
B25: Levelized Gas | C25: Solar | D25: Wind | F25: Wind | G25: Wind | H25: Wind | J25: Solar | K25: Solar | L25: Solar
B26: Price Projection | C26: Average | D26: Average | F26: PPA | G26: Project | H26: Project | J26: PPA | K26: Project | L26: Project
B27: 2020 $/MWh | C27: 2020 $/MWh | D27: 2020 $/MWh | F27: Date | G27: 2020 $/MWh | H27: Capacity | J27: Date | K27: 2020 $/MWh | L27: Capacity
A28: 2009 | B28: 57.64536671 | C28: 167.6650529 | D28: 74.3252524 | F28: 2009-01-28 | G28: 54.09668671 | H28: 50.4 | J28: 2009-02-23 | K28: 132.0967887 | L28: 30
A29: 2010 | B29: 56.83171364 | C29: 139.8022444 | D29: 65.50133722 | F29: 2009-01-30 | G29: 62.32681833 | H29: 98.9 | J29: 2009-03-01 | K29: 159.5023979 | L29: 30
A30: 2011 | B30: 46.00009289 | C30: 110.8550444 | D30: 47.77624605 | F30: 2009-02-02 | G30: 52.53104563 | H30: 99 | J30: 2009-03-05 | K30: 150.7603611 | L30: 19
A31: 2012 | B31: 44.48750292 | C31: 84.0957756 | D31: 40.11422633 | F31: 2009-02-05 | G31: 93.79016785 | H31: 150 | J31: 2009-05-01 | K31: 210.0705299 | L31: 12.6
A32: 2013 | B32: 43.17249335 | C32: 68.88197368 | D32: 28.72294988 | F32: 2009-02-05 | G32: 96.54663778 | H32: 51 | J32: 2009-05-08 | K32: 142.7834086 | L32: 230
A33: 2014 | B33: 46.0809173 | C33: 57.2713525 | D33: 26.57614031 | F33: 2009-02-05 | G33: 96.54663778 | H33: 49.5 | J33: 2009-06-01 | K33: 131.3546881 | L33: 20
A34: 2015 | B34: 47.09131368 | C34: 46.32037239 | D34: 31.15308719 | F34: 2009-02-19 | G34: 93.81364561 | H34: 49.5 | J34: 2009-06-01 | K34: 201.8761794 | L34: 14
A35: 2016 | B35: 39.78608763 | C35: 39.31147421 | D35: 25.56001276 | F35: 2009-03-17 | G35: 116.480647 | H35: 8 | J35: 2009-06-01 | K35: 227.7499129 | L35: 10.08
A36: 2017 | B36: 38.12266199 | C36: 37.83964461 | D36: 18.35716237 | F36: 2009-03-17 | G36: 119.0080178 | H36: 24.75 | J36: 2009-06-22 | K36: 166.3715968 | L36: 48
A37: 2018 | B37: 34.48012332 | C37: 26.96594705 | D37: 16.66544984 | F37: 2009-03-24 | G37: 88.77998128 | H37: 63 | J37: 2009-08-17 | K37: 145.5888818 | L37: 250
A38: 2019 | B38: 30.65534149 | C38: 21.92968465 | D38: 23.77275638 | F38: 2009-03-31 | G38: 61.00026384 | H38: 30 | J38: 2009-09-08 | K38: 194.7926208 | L38: 250
A39: 2020 | B39: 25.67761151 | C39: 22.78046127 | D39: 29.2793912 | F39: 2009-03-31 | G39: 61.00026384 | H39: 12 | J39: 2009-11-20 | K39: 117.4512467 | L39: 21
A40: 2021 | B40: 26.593576 | C40: 23.13142589 | F40: 2009-04-01 | G40: 50.82043649 | H40: 49.5 | J40: 2009-12-23 | K40: 133.1772693 | L40: 50
F41: 2009-04-01 | G41: 81.10356798 | H41: 96.6 | J41: 2009-12-24 | K41: 240.0826394 | L41: 6
F42: 2009-04-10 | G42: 106.3803118 | H42: 124.5 | J42: 2009-12-24 | K42: 240.0826394 | L42: 19
F43: 2009-04-29 | G43: 69.50542065 | H43: 70 | J43: 2009-12-24 | K43: 240.0826394 | L43: 20
F44: 2009-04-30 | G44: 64.2647233 | H44: 22.5 | J44: 2010-01-26 | K44: 164.2326075 | L44: 50
F45: 2009-06-10 | G45: 75.47684644 | H45: 102.3 | J45: 2010-01-26 | K45: 164.2326075 | L45: 20
F46: 2009-06-22 | G46: 73.47086885 | H46: 205.5 | J46: 2010-01-26 | K46: 163.2080788 | L46: 20
F47: 2009-06-30 | G47: 73.59001646 | H47: 70 | J47: 2010-02-02 | K47: 139.127084 | L47: 50
F48: 2009-06-30 | G48: 66.18039261 | H48: 51 | J48: 2010-02-24 | K48: 141.8306416 | L48: 300
F49: 2009-07-09 | G49: 86.55544599 | H49: 21 | J49: 2010-03-06 | K49: 133.8151211 | L49: 40
F50: 2009-07-09 | G50: 86.55544599 | H50: 21 | J50: 2010-04-19 | K50: 106.661653 | L50: 29
F51: 2009-07-09 | G51: 86.55544599 | H51: 22.5 | J51: 2010-04-21 | K51: 140.6436811 | L51: 66
F52: 2009-07-30 | G52: 54.90099239 | H52: 69 | J52: 2010-04-29 | K52: 132.5178722 | L52: 25
F53: 2009-08-01 | G53: 65.4388842 | H53: 100 | J53: 2010-05-10 | K53: 133.2147192 | L53: 125
F54: 2009-08-05 | G54: 75.11936102 | H54: 18.9 | J54: 2010-05-20 | K54: 160.5557605 | L54: 25.8
F55: 2009-08-05 | G55: 75.46501191 | H55: 16.8 | J55: 2010-06-01 | K55: 323.5796626 | L55: 32
F56: 2009-08-17 | G56: 105.0755432 | H56: 90 | J56: 2010-06-01 | K56: 132.5178722 | L56: 20
F57: 2009-08-26 | G57: 67.4993067 | H57: 200.2 | J57: 2010-06-24 | K57: 128.0717099 | L57: 23
F58: 2009-09-08 | G58: 56.34878038 | H58: 36 | J58: 2010-06-30 | K58: 100.7843554 | L58: 12
F59: 2009-09-25 | G59: 47.41044149 | H59: 151.8 | J59: 2010-06-30 | K59: 100.4796315 | L59: 10
F60: 2009-09-25 | G60: 49.5303197 | H60: 129.6 | J60: 2010-07-26 | K60: 134.098016 | L60: 20
F61: 2009-10-01 | G61: 67.20431689 | H61: 150 | J61: 2010-07-29 | K61: 154.4947826 | L61: 150
F62: 2009-10-05 | G62: 50.01361014 | H62: 99 | J62: 2010-07-29 | K62: 128.9424666 | L62: 45
F63: 2009-10-09 | G63: 77.49235204 | H63: 5 | J63: 2010-08-10 | K63: 133.6436758 | L63: 30
F64: 2009-11-02 | G64: 71.42507914 | H64: 60 | J64: 2010-08-10 | K64: 193.8167346 | L64: 5.5
F65: 2009-11-16 | G65: 65.10679654 | H65: 50 | J65: 2010-08-24 | K65: 114.4345592 | L65: 23
F66: 2009-11-24 | G66: 76.74227421 | H66: 209.4 | J66: 2010-09-20 | K66: 124.4615005 | L66: 62.5
F67: 2009-11-24 | G67: 67.43623498 | H67: 150 | J67: 2010-11-10 | K67: 130.4610553 | L67: 130
F68: 2009-11-30 | G68: 115.4589901 | H68: 150 | J68: 2010-11-15 | K68: 78.97446707 | L68: 14
F69: 2009-11-30 | G69: 115.4589901 | H69: 150 | J69: 2010-11-15 | K69: 77.03929545 | L69: 20
F70: 2009-11-30 | G70: 115.3451387 | H70: 150 | J70: 2010-12-01 | K70: 138.7308345 | L70: 9
F71: 2009-11-30 | G71: 115.1149487 | H71: 102 | J71: 2010-12-01 | K71: 149.3925483 | L71: 7.65
F72: 2009-11-30 | G72: 115.1149487 | H72: 168 | J72: 2010-12-21 | K72: 124.7022245 | L72: 60
F73: 2009-12-02 | G73: 99.98828611 | H73: 50 | J73: 2010-12-30 | K73: 110.4907139 | L73: 309
F74: 2009-12-09 | G74: 124.9273468 | H74: 10.25 | J74: 2010-12-30 | K74: 147.9332837 | L74: 20
F75: 2009-12-17 | G75: 126.6534718 | H75: 120 | J75: 2011-01-05 | K75: 110.7279342 | L75: 270
F76: 2009-12-28 | G76: 73.931558 | H76: 70 | J76: 2011-01-07 | K76: 123.3054447 | L76: 110
F77: 2010-01-28 | G77: 104.7911833 | H77: 151.8 | J77: 2011-01-25 | K77: 135.5090953 | L77: 26
F78: 2010-02-05 | G78: 54.48701757 | H78: 81 | J78: 2011-02-07 | K78: 115.5669526 | L78: 250
F79: 2010-02-12 | G79: 74.0706471 | H79: 198 | J79: 2011-02-11 | K79: 114.5086409 | L79: 30
F80: 2010-03-05 | G80: 110.6251427 | H80: 65.1 | J80: 2011-02-11 | K80: 118.1193583 | L80: 20
F81: 2010-03-29 | G81: 59.00894506 | H81: 250.2 | J81: 2011-03-08 | K81: 94.32048885 | L81: 150
F82: 2010-04-01 | G82: 60.75192107 | H82: 40.5 | J82: 2011-06-03 | K82: 119.618819 | L82: 110
F83: 2010-04-16 | G83: 43.11258282 | H83: 102.4 | J83: 2011-06-03 | K83: 111.7442508 | L83: 127
F84: 2010-04-19 | G84: 87.71705825 | H84: 50.4 | J84: 2011-06-21 | K84: 107.1079168 | L84: 150
F85: 2010-04-23 | G85: 50.83660618 | H85: 51 | J85: 2011-07-08 | K85: 126.5100172 | L85: 23
F86: 2010-04-29 | G86: 113.5119964 | H86: 143.5 | J86: 2011-07-14 | K86: 101.0646236 | L86: 20
F87: 2010-05-04 | G87: 79.21753543 | H87: 32.5 | J87: 2011-07-18 | K87: 196.3227736 | L87: 6
F88: 2010-05-04 | G88: 82.61627496 | H88: 20 | J88: 2011-07-21 | K88: 115.9313491 | L88: 150
F89: 2010-05-19 | G89: 60.03117706 | H89: 250.8 | J89: 2011-09-29 | K89: 85.82776324 | L89: 250
F90: 2010-06-01 | G90: 53.17577548 | H90: 36 | J90: 2011-10-01 | K90: 137.6909772 | L90: 9
F91: 2010-06-02 | G91: 116.9711996 | H91: 102 | J91: 2011-12-01 | K91: 225.7711896 | L91: 20
F92: 2010-06-03 | G92: 49.95257133 | H92: 100 | J92: 2011-12-08 | K92: 108.1472544 | L92: 19
F93: 2010-06-03 | G93: 99.26395977 | H93: 36.8 | J93: 2011-12-20 | K93: 85.45749116 | L93: 20
F94: 2010-06-03 | G94: 94.44253232 | H94: 90 | J94: 2011-12-20 | K94: 114.934909 | L94: 30
F95: 2010-06-04 | G95: 66.61136406 | H95: 30 | J95: 2011-12-20 | K95: 84.64056754 | L95: 20
F96: 2010-06-09 | G96: 117.9646491 | H96: 150 | J96: 2012-01-01 | K96: 86.33288531 | L96: 15
F97: 2010-06-09 | G97: 120.4778678 | H97: 168 | J97: 2012-01-01 | K97: 77.45618889 | L97: 15
F98: 2010-06-09 | G98: 117.9646491 | H98: 150 | J98: 2012-02-03 | K98: 86.71512353 | L98: 200
F99: 2010-06-09 | G99: 120.4778678 | H99: 132 | J99: 2012-02-27 | K99: 76.75697234 | L99: 20
F100: 2010-06-21 | G100: 93.30570884 | H100: 81.6 | J100: 2012-07-03 | K100: 91.37579266 | L100: 20
F101: 2010-06-30 | G101: 56.06344509 | H101: 114 | J101: 2012-07-03 | K101: 94.20718003 | L101: 20
F102: 2010-07-07 | G102: 37.79161197 | H102: 78.2 | J102: 2012-08-03 | K102: 87.99418834 | L102: 20
F103: 2010-07-09 | G103: 56.25632802 | H103: 42.5 | J103: 2012-08-13 | K103: 91.28766997 | L103: 20
F104: 2010-07-15 | G104: 45.17534538 | H104: 99.2 | J104: 2012-08-16 | K104: 89.01428111 | L104: 102
F105: 2010-07-21 | G105: 81.18640704 | H105: 99.2 | J105: 2012-08-29 | K105: 86.05127936 | L105: 20
F106: 2010-07-22 | G106: 114.3028801 | H106: 102.5 | J106: 2012-08-31 | K106: 91.6466231 | L106: 250
F107: 2010-08-10 | G107: 90.72368741 | H107: 110.4 | J107: 2012-09-17 | K107: 83.85064536 | L107: 20
F108: 2010-08-16 | G108: 56.24681525 | H108: 199.8 | J108: 2012-09-17 | K108: 100.9137564 | L108: 20.8
F109: 2010-08-20 | G109: 123.8321128 | H109: 49 | J109: 2012-10-17 | K109: 86.45576044 | L109: 10
F110: 2010-09-01 | G110: 71.64572071 | H110: 79.2 | J110: 2012-10-25 | K110: 55.83403173 | L110: 50
F111: 2010-09-08 | G111: 81.92253731 | H111: 55.2 | J111: 2012-11-01 | K111: 71.03271235 | L111: 20
F112: 2010-09-17 | G112: 35.14729037 | H112: 148.8 | J112: 2012-11-15 | K112: 82.26990646 | L112: 20
F113: 2010-09-22 | G113: 44.20215523 | H113: 80 | J113: 2012-12-12 | K113: 80.77785758 | L113: 250
F114: 2010-10-11 | G114: 112.0617462 | H114: 49.8 | J114: 2012-12-13 | K114: 83.79413414 | L114: 20
F115: 2010-10-18 | G115: 111.2556662 | H115: 31.68 | J115: 2013-02-04 | K115: 99.91057584 | L115: 28.8
F116: 2010-11-05 | G116: 39.59311774 | H116: 161 | J116: 2013-02-28 | K116: 80.46987052 | L116: 45
F117: 2010-11-12 | G117: 65.91768671 | H117: 99 | J117: 2013-03-22 | K117: 86.87988724 | L117: 20
F118: 2010-12-06 | G118: 34.01312172 | H118: 201 | J118: 2013-03-22 | K118: 85.54537933 | L118: 20
F119: 2010-12-09 | G119: 28.6327875 | H119: 167.9 | J119: 2013-03-25 | K119: 75.76944474 | L119: 20
F120: 2010-12-17 | G120: 103.7929234 | H120: 78.2 | J120: 2013-04-10 | K120: 85.05792221 | L120: 20
F121: 2010-12-17 | G121: 56.38440372 | H121: 50 | J121: 2013-04-16 | K121: 62.48902244 | L121: 20
F122: 2010-12-17 | G122: 98.15490293 | H122: 78.2 | J122: 2013-06-01 | K122: 58.95173297 | L122: 20
F123: 2010-12-17 | G123: 53.662648 | H123: 38.46 | J123: 2013-06-03 | K123: 66.35722702 | L123: 48
F124: 2010-12-22 | G124: 44.74089608 | H124: 27.3 | J124: 2013-06-03 | K124: 67.24666183 | L124: 40
F125: 2010-12-23 | G125: 65.72751769 | H125: 28.5 | J125: 2013-06-19 | K125: 152.212955 | L125: 12
F126: 2010-12-23 | G126: 54.18717141 | H126: 48 | J126: 2013-07-03 | K126: 57.23783845 | L126: 50
F127: 2010-12-23 | G127: 72.3826724 | H127: 34.2 | J127: 2013-07-10 | K127: 58.75522719 | L127: 40
F128: 2011-02-01 | G128: 103.0694561 | H128: 257.6 | J128: 2013-07-10 | K128: 63.0270919 | L128: 20
F129: 2011-03-10 | G129: 65.45774286 | H129: 100 | J129: 2013-07-17 | K129: 79.57267914 | L129: 20
F130: 2011-04-06 | G130: 101.4018519 | H130: 155.1 | J130: 2013-07-17 | K130: 79.57267914 | L130: 12
F131: 2011-04-20 | G131: 33.06504569 | H131: 100.8 | J131: 2013-09-06 | K131: 66.28936479 | L131: 15
F132: 2011-05-05 | G132: 62.91476377 | H132: 165.6 | J132: 2013-09-19 | K132: 100.7192787 | L132: 20
F133: 2011-05-06 | G133: 31.19202113 | H133: 131.1 | J133: 2013-09-27 | K133: 63.68742869 | L133: 20
F134: 2011-05-13 | G134: 68.54559741 | H134: 214.4 | J134: 2013-10-09 | K134: 65.82685163 | L134: 20
F135: 2011-05-16 | G135: 30.27492156 | H135: 150.36 | J135: 2013-10-22 | K135: 63.91986456 | L135: 20
F136: 2011-05-16 | G136: 21.83830482 | H136: 108 | J136: 2013-12-01 | K136: 81.5360472 | L136: 7.314
F137: 2011-05-20 | G137: 53.02465184 | H137: 115 | J137: 2013-12-06 | K137: 67.08628961 | L137: 20
F138: 2011-06-07 | G138: 37.11612335 | H138: 202 | J138: 2013-12-19 | K138: 56.08065927 | L138: 150
F139: 2011-06-21 | G139: 47.29725001 | H139: 40 | J139: 2014-01-30 | K139: 68.41520328 | L139: 7
F140: 2011-06-27 | G140: 33.6495565 | H140: 200 | J140: 2014-02-20 | K140: 48.85891785 | L140: 10.416
F141: 2011-06-28 | G141: 61.75576218 | H141: 104.4 | J141: 2014-03-17 | K141: 63.18045751 | L141: 20
F142: 2011-06-29 | G142: 80.36317548 | H142: 20 | J142: 2014-03-26 | K142: 59.11710634 | L142: 26.66
F143: 2011-07-06 | G143: 40.73138444 | H143: 199.92 | J143: 2014-04-01 | K143: 64.79562043 | L143: 10.3
F144: 2011-07-15 | G144: 82.50263467 | H144: 162 | J144: 2014-05-01 | K144: 43.76779255 | L144: 157.5
F145: 2011-07-28 | G145: 85.31692748 | H145: 102.5 | J145: 2014-05-27 | K145: 62.7096459 | L145: 30
F146: 2011-08-03 | G146: 58.79867068 | H146: 120 | J146: 2014-06-01 | K146: 65.58458669 | L146: 20
F147: 2011-08-08 | G147: 46.38104523 | H147: 42 | J147: 2014-06-12 | K147: 56.86209041 | L147: 30
F148: 2011-08-15 | G148: 34.0219406 | H148: 200 | J148: 2014-07-18 | K148: 54.48843193 | L148: 93.6
F149: 2011-08-17 | G149: 42.11554768 | H149: 50 | J149: 2014-07-23 | K149: 57.44522772 | L149: 75
F150: 2011-08-17 | G150: 42.1433801 | H150: 37.5 | J150: 2014-07-24 | K150: 57.23783845 | L150: 56
F151: 2011-08-30 | G151: 26.40541305 | H151: 100.8 | J151: 2014-07-24 | K151: 57.80167124 | L151: 56
F152: 2011-09-07 | G152: 27.95488505 | H152: 104 | J152: 2014-08-19 | K152: 60.43582757 | L152: 105
F153: 2011-09-12 | G153: 36.31445082 | H153: 92.34 | J153: 2014-08-25 | K153: 60.4139943 | L153: 60
F154: 2011-09-12 | G154: 40.8240885 | H154: 201.6 | J154: 2014-09-03 | K154: 50.30075901 | L154: 60
F155: 2011-09-13 | G155: 69.8378065 | H155: 100.65 | J155: 2014-09-04 | K155: 46.39419988 | L155: 52
F156: 2011-10-01 | G156: 37.30132698 | H156: 48 | J156: 2014-09-04 | K156: 55.6020649 | L156: 120
F157: 2011-11-03 | G157: 27.37265905 | H157: 98.9 | J157: 2014-10-03 | K157: 59.11949866 | L157: 30
F158: 2011-11-03 | G158: 29.05410716 | H158: 100.8 | J158: 2014-10-08 | K158: 52.77112088 | L158: 101.3
F159: 2011-11-08 | G159: 30.11591347 | H159: 59.8 | J159: 2014-10-08 | K159: 53.53680314 | L159: 51
F160: 2011-11-16 | G160: 54.73709667 | H160: 39.9 | J160: 2014-10-08 | K160: 53.48009915 | L160: 76.5
F161: 2011-11-16 | G161: 77.92265805 | H161: 49.5 | J161: 2014-10-08 | K161: 57.16171408 | L161: 30
F162: 2011-11-28 | G162: 79.06279111 | H162: 20.65 | J162: 2014-10-08 | K162: 59.67731806 | L162: 80
F163: 2011-12-09 | G163: 38.51783268 | H163: 75 | J163: 2014-10-08 | K163: 57.73982531 | L163: 103
F164: 2011-12-13 | G164: 30.92083684 | H164: 79.6 | J164: 2014-10-20 | K164: 56.49381262 | L164: 40
F165: 2011-12-13 | G165: 30.1069509 | H165: 201.25 | J165: 2014-10-21 | K165: 61.90740212 | L165: 11.4
F166: 2011-12-15 | G166: 30.91237957 | H166: 49.2 | J166: 2014-10-22 | K166: 56.28496861 | L166: 20
F167: 2011-12-20 | G167: 64.13865013 | H167: 110.4 | J167: 2014-10-22 | K167: 56.28496861 | L167: 20
F168: 2011-12-20 | G168: 66.56432522 | H168: 30.4 | J168: 2014-10-22 | K168: 56.28496861 | L168: 15
F169: 2011-12-20 | G169: 31.41164377 | H169: 78.4 | J169: 2014-10-22 | K169: 56.28496861 | L169: 20
F170: 2011-12-22 | G170: 47.1296667 | H170: 14.4 | J170: 2014-10-22 | K170: 49.75052347 | L170: 20
F171: 2012-01-19 | G171: 34.12134281 | H171: 310.4 | J171: 2014-10-22 | K171: 66.20441826 | L171: 14.7
F172: 2012-02-07 | G172: 44.55463664 | H172: 21 | J172: 2014-10-22 | K172: 64.2059753 | L172: 19.5
F173: 2012-02-15 | G173: 28.9576091 | H173: 30.4 | J173: 2014-10-22 | K173: 64.22196284 | L173: 19.5
F174: 2012-02-17 | G174: 93.25331745 | H174: 50 | J174: 2014-10-24 | K174: 66.35840065 | L174: 100
F175: 2012-02-28 | G175: 30.93924676 | H175: 91 | J175: 2014-11-07 | K175: 70.53812254 | L175: 40
F176: 2012-03-13 | G176: 30.92083684 | H176: 51.2 | J176: 2014-11-07 | K176: 70.53812254 | L176: 50
F177: 2012-03-17 | G177: 38.09250064 | H177: 202 | J177: 2014-11-13 | K177: 61.57230305 | L177: 30
F178: 2012-03-29 | G178: 32.44628111 | H178: 48 | J178: 2014-11-18 | K178: 48.83003544 | L178: 45
F179: 2012-04-11 | G179: 45.15847892 | H179: 54 | J179: 2014-12-09 | K179: 59.05724259 | L179: 130
F180: 2012-05-27 | G180: 58.17269492 | H180: 69 | J180: 2015-02-01 | K180: 57.60063079 | L180: 80
F181: 2012-08-31 | G181: 47.49267811 | H181: 100.3 | J181: 2015-03-02 | K181: 101.0901054 | L181: 6
F182: 2012-11-01 | G182: 53.58624733 | H182: 50 | J182: 2015-03-02 | K182: 42.28745953 | L182: 25
F183: 2012-12-14 | G183: 54.81733606 | H183: 15 | J183: 2015-03-03 | K183: 62.33270069 | L183: 62.25
F184: 2013-01-16 | G184: 29.57797044 | H184: 74.8 | J184: 2015-03-04 | K184: 37.45876351 | L184: 70
F185: 2013-02-07 | G185: 29.30377819 | H185: 200.6 | J185: 2015-03-04 | K185: 37.93510333 | L185: 70
F186: 2013-04-16 | G186: 47.53536218 | H186: 74.8 | J186: 2015-03-05 | K186: 83.88826905 | L186: 10.5
F187: 2013-05-06 | G187: 29.96754257 | H187: 62.4 | J187: 2015-03-23 | K187: 68.10352598 | L187: 20
F188: 2013-05-24 | G188: 86.00888787 | H188: 39 | J188: 2015-03-25 | K188: 47.09490628 | L188: 30
F189: 2013-06-01 | G189: 22.74536175 | H189: 200 | J189: 2015-04-03 | K189: 47.40774316 | L189: 81
F190: 2013-06-01 | G190: 22.27724638 | H190: 200 | J190: 2015-04-03 | K190: 45.32687068 | L190: 54
F191: 2013-06-05 | G191: 46.89279494 | H191: 200 | J191: 2015-04-14 | K191: 63.48912701 | L191: 6.8
F192: 2013-06-15 | G192: 21.66514055 | H192: 199 | J192: 2015-04-17 | K192: 52.96529742 | L192: 20
F193: 2013-06-15 | G193: 24.06303746 | H193: 250 | J193: 2015-04-30 | K193: 44.73521456 | L193: 50.6
F194: 2013-06-21 | G194: 30.91663389 | H194: 102.4 | J194: 2015-04-30 | K194: 59.72252901 | L194: 52
F195: 2013-06-28 | G195: 55.78460907 | H195: 80 | J195: 2015-05-27 | K195: 66.61099461 | L195: 4.9
F196: 2013-07-02 | G196: 51.88043054 | H196: 50.4 | J196: 2015-06-01 | K196: 74.00882243 | L196: 3.6
F197: 2013-07-02 | G197: 24.90399721 | H197: 200 | J197: 2015-06-05 | K197: 41.94413453 | L197: 100
F198: 2013-07-07 | G198: 55.78460907 | H198: 80 | J198: 2015-06-09 | K198: 67.58330731 | L198: 80
F199: 2013-07-08 | G199: 21.26981995 | H199: 100 | J199: 2015-06-19 | K199: 44.13461575 | L199: 100
F200: 2013-07-10 | G200: 23.2556386 | H200: 249.9 | J200: 2015-06-23 | K200: 49.03305814 | L200: 46
F201: 2013-07-17 | G201: 24.25936885 | H201: 150 | J201: 2015-06-25 | K201: 54.66730853 | L201: 100.815
F202: 2013-07-24 | G202: 26.90133992 | H202: 205.7 | J202: 2015-06-30 | K202: 61.05251969 | L202: 7.06
F203: 2013-08-12 | G203: 50.2048633 | H203: 20 | J203: 2015-07-01 | K203: 63.8280308 | L203: 13
F204: 2013-08-20 | G204: 56.99853056 | H204: 147.6 | J204: 2015-07-01 | K204: 65.78777369 | L204: 20
F205: 2013-08-20 | G205: 55.93062185 | H205: 184.8 | J205: 2015-07-01 | K205: 130.3379195 | L205: 27.6
F206: 2013-09-11 | G206: 31.40424379 | H206: 60 | J206: 2015-07-15 | K206: 51.94942711 | L206: 125
F207: 2013-10-09 | G207: 21.28549432 | H207: 198.9 | J207: 2015-07-16 | K207: 48.89487508 | L207: 150
F208: 2013-10-10 | G208: 19.94391598 | H208: 200 | J208: 2015-07-21 | K208: 46.3017907 | L208: 20
F209: 2013-10-10 | G209: 19.94391598 | H209: 199.8 | J209: 2015-08-05 | K209: 45.01543174 | L209: 30
F210: 2013-10-10 | G210: 21.24463862 | H210: 200 | J210: 2015-08-09 | K210: 41.03766729 | L210: 30
F211: 2013-10-17 | G211: 22.1817848 | H211: 400 | J211: 2015-08-12 | K211: 50.14147734 | L211: 10
F212: 2013-10-25 | G212: 56.23847188 | H212: 19.8 | J212: 2015-08-16 | K212: 50.14147734 | L212: 10
F213: 2013-11-01 | G213: 30.87515753 | H213: 249.2 | J213: 2015-08-28 | K213: 51.0211983 | L213: 150
F214: 2013-11-06 | G214: 24.5080852 | H214: 106 | J214: 2015-09-03 | K214: 74.94414327 | L214: 10.88
F215: 2013-11-06 | G215: 24.5080852 | H215: 172 | J215: 2015-09-23 | K215: 43.26299079 | L215: 52
F216: 2013-11-18 | G216: 88.74226213 | H216: 34.2 | J216: 2015-09-23 | K216: 46.99051179 | L216: 52
F217: 2013-11-18 | G217: 24.40576647 | H217: 201.6 | J217: 2015-09-24 | K217: 41.17406044 | L217: 25
F218: 2013-12-11 | G218: 50.21635819 | H218: 51 | J218: 2015-09-28 | K218: 19.7786309 | L218: 46.2
F219: 2013-12-20 | G219: 20.65466897 | H219: 98 | J219: 2015-09-28 | K219: 19.7786309 | L219: 71.4
F220: 2013-12-27 | G220: 29.55367376 | H220: 149.6 | J220: 2015-10-01 | K220: 36.02311238 | L220: 118.5
F221: 2014-01-21 | G221: 20.70264557 | H221: 100.3 | J221: 2015-10-01 | K221: 33.47757212 | L221: 170
... 134 more rows

Sheet Recent PV PPAs vs. Gas Forecast
A1: PV PPA prices and natural gas fuel cost projections by calendar year over time
A22: Sources: Berkeley Lab, FERC, Energy Information Administration
A23: Note: PPA sample excludes projects located in Hawaii
C24: 2021 | D24: =C24+1 -> 2022 | E24: 2023 | F24: 2024 | G24: 2025 | H24: 2026 | I24: 2027 | J24: 2028 | K24: 2029 | L24: 2030 | M24: 2031 | N24: 2032 | O24: 2033 | P24: 2034 | Q24: 2035 | R24: 2036 | S24: 2037 | T24: 2038 | U24: 2039 | V24: 2040 | W24: 2041 | X24: 2042 | Y24: 2043 | Z24: 2044 | AA24: 2045 | AB24: 2046 | AC24: 2047 | AD24: 2048 | AE24: 2049 | AF24: 2050
D25: 2022 | F25: 2024 | H25: 2026 | J25: 2028 | L25: 2030 | N25: 2032 | P25: 2034 | R25: 2036 | T25: 2038 | V25: 2040 | X25: 2042 | Z25: 2044 | AB25: 2046 | AD25: 2048 | AF25: 2050
A26: Aggregate PV PPA prices among 69 PPAs executed 2018-2021 (2020 $/MWh)
B27: 10th Percentile | C27: 24.24429321 | D27: 23.58315358 | E27: 20.98682926 | F27: 20.41229564 | G27: 20.06451231 | H27: 19.59791892 | I27: 19.11250239 | J27: 18.62199762 | K27: 18.14385173 | L27: 17.68596174 | M27: 17.25357083 | N27: 16.84505367 | O27: 16.46080487 | P27: 16.04361174 | Q27: 15.69733322 | R27: 15.16444091 | S27: 14.85230962 | T27: 14.3853516 | U27: 14.04676942 | V27: 13.66368732 | W27: 13.23746212 | X27: 13.02264052 | Y27: 14.42831457 | Z27: 14.47208157 | AA27: 14.03491078 | AB27: 13.72310495 | AC27: 12.98400634 | AD27: 12.45942567 | AE27: 13.90697951 | AF27: 17.53482637
B28: 50th Percentile (Median) | C28: 33.39280304 | D28: 29.58775645 | E28: 28.87763774 | F28: 28.05883953 | G28: 27.42577671 | H28: 26.78799963 | I28: 26.12449359 | J28: 25.56620283 | K28: 24.90975474 | L28: 24.28111603 | M28: 23.68748512 | N28: 23.12663053 | O28: 22.59909408 | P28: 22.05362568 | Q28: 21.65243785 | R28: 21.41139612 | S28: 20.97068309 | T28: 20.54658605 | U28: 20.13012176 | V28: 19.69990722 | W28: 19.24079667 | X28: 18.74504386 | Y28: 18.44794744 | Z28: 18.029962 | AA28: 17.54363848 | AB28: 17.13957914 | AC28: 16.50717016 | AD28: 16.06356203 | AE28: 16.83418204 | AF28: 17.53482637
B29: 90th Percentile | C29: 48.43416046 | D29: 44.98414899 | E29: 44.38133458 | F29: 44.06324 | G29: 44.02732042 | H29: 43.86405823 | I29: 43.63382408 | J29: 43.36504151 | K29: 43.0973884 | L29: 42.55390823 | M29: 41.74882323 | N29: 40.76032577 | O29: 39.83055099 | P29: 38.74557218 | Q29: 37.90930414 | R29: 37.16914396 | S29: 36.54608621 | T29: 36.28891698 | U29: 35.64737038 | V29: 33.0006323 | W29: 33.67944067 | X29: 32.31882393 | Y29: 31.3023984 | Z29: 29.32184213 | AA29: 28.20012226 | AB29: 25.90730911 | AC29: 25.81202187 | AD29: 26.28612449 | AE29: 25.93470869 | AF29: 17.53482637
B30: Diff | C30: =C29-C27 -> 24.18986725 | D30: 21.40099541 | E30: 23.39450532 | F30: 23.65094436 | G30: 23.96280812 | H30: 24.26613931 | I30: 24.52132169 | J30: 24.74304389 | K30: 24.95353667 | L30: 24.86794649 | M30: 24.4952524 | N30: 23.9152721 | O30: 23.36974611 | P30: 22.70196043 | Q30: 22.21197092 | R30: 22.00470305 | S30: 21.69377659 | T30: 21.90356538 | U30: 21.60060096 | V30: 19.33694498 | W30: 20.44197856 | X30: 19.29618342 | Y30: 16.87408383 | Z30: 14.84976056 | AA30: 14.16521147 | AB30: 12.18420415 | AC30: 12.82801553 | AD30: 13.82669882 | AE30: 12.02772919 | AF30: 0
A31: AEO 2021 Gas Price Projection (converted from $/MMBtu to 2020 $/MWh using the heat rates implied by the modeling output)
B32: Min | C32: 27.13431036 | D32: 26.51501267 | E32: 23.07558216 | F32: 20.49039766 | G32: 20.09138811 | H32: 19.9370874 | I32: 20.15598027 | J32: 20.39014356 | K32: 21.01750862 | L32: 21.40822187 | M32: 21.59343609 | N32: 21.66483548 | O32: 21.84530692 | P32: 21.76947689 | Q32: 21.57219206 | R32: 21.49899279 | S32: 21.2856205 | T32: 21.07280711 | U32: 20.83631226 | V32: 20.68734232 | W32: 20.66357907 | X32: 20.64501075 | Y32: 20.50010342 | Z32: 20.58837202 | AA32: 20.4099788 | AB32: 20.26382837 | AC32: 20.25847908 | AD32: 19.95192495 | AE32: 19.64489159 | AF32: 19.72610043
B33: Reference Case | C33: 27.13431036 | D33: 27.82874156 | E33: 25.8445786 | F33: 24.04882418 | G33: 24.48718879 | H33: 24.86922115 | I33: 25.01624398 | J33: 25.7315528 | K33: 26.43662117 | L33: 26.60482202 | M33: 26.52156696 | N33: 26.83042837 | O33: 27.25808191 | P33: 27.44824118 | Q33: 27.38960585 | R33: 27.36111187 | S33: 27.16753419 | T33: 27.32754126 | U33: 27.28790305 | V33: 27.2348651 | W33: 27.12492111 | X33: 26.99883891 | Y33: 26.83250973 | Z33: 26.79047838 | AA33: 26.82514547 | AB33: 26.84065301 | AC33: 26.96175982 | AD33: 27.28807184 | AE33: 27.58242449 | AF33: 27.84291385
B34: Max | C34: 28.07759712 | D34: 31.25815247 | E34: 30.97773574 | F34: 30.50766482 | G34: 32.74007663 | H34: 34.75430579 | I34: 36.21807605 | J34: 37.12500019 | K34: 38.05474801 | L34: 39.07957354 | M34: 40.03152124 | N34: 41.0813358 | O34: 42.34252896 | P34: 43.17142262 | Q34: 43.5764193 | R34: 44.12866366 | S34: 44.4389115 | T34: 44.93162188 | U34: 45.65818564 | V34: 46.17098012 | W34: 46.42012948 | X34: 47.14599308 | Y34: 47.37405465 | Z34: 48.37968524 | AA34: 48.82610203 | AB34: 49.48436256 | AC34: 50.06320854 | AD34: 50.78715317 | AE34: 51.05094367 | AF34: 52.04242581
B35: Diff | C35: =C34-C32 -> 0.9432867605 | D35: 4.743139802 | E35: 7.902153584 | F35: 10.01726717 | G35: 12.64868852 | H35: 14.81721839 | I35: 16.06209578 | J35: 16.73485663 | K35: 17.03723939 | L35: 17.67135167 | M35: 18.43808515 | N35: 19.41650032 | O35: 20.49722204 | P35: 21.40194573 | Q35: 22.00422724 | R35: 22.62967087 | S35: 23.153291 | T35: 23.85881477 | U35: 24.82187338 | V35: 25.48363779 | W35: 25.7565504 | X35: 26.50098233 | Y35: 26.87395122 | Z35: 27.79131322 | AA35: 28.41612323 | AB35: 29.22053419 | AC35: 29.80472946 | AD35: 30.83522822 | AE35: 31.40605209 | AF35: 32.31632537

Sheet PV Curtailment
A1: PV curtailment by quarter or month and region
A2: Note: The curtailment percentage rate depicts reported utility-scale solar curtailment relative to the combined sum of utility-scale and distributed solar generation (on a pre-curtailment basis).
A24: Sources: Berkeley Lab, CAISO, ERCOT | K24: Sources: Berkeley Lab, CAISO, ERCOT
C26: CAISO | D26: ERCOT | H26: Q1 | I26: Q2 | J26: Q3 | K26: Q4 | L26: Total
A27: Jan-Dec 2015 | C27: 0.005185781789 | D27: 0.0002177575209 | F27: CAISO | G27: 2015 | H27: 0.001490453489 | I27: 0.002763507269 | J27: 0.0006024023746 | K27: 0.000889152184 | L27: =SUM(H27:K27) -> 0.005745515316
C28: 0.006757244969 | D28: 7.669025656e-05 | G28: =G27+1 -> 2016 | H28: 0.002184506129 | I28: 0.002425828993 | J28: 0.0009723002794 | K28: 0.002227640386 | L28: =SUM(H28:K28) -> 0.007810275787
C29: 0.009563453009 | D29: 0.000515780152 | G29: =G28+1 -> 2017 | H29: 0.003921233037 | I29: 0.003615180438 | J29: 0.0007825734659 | K29: 0.001009932092 | L29: 0.009328919032
C30: 0.009093703552 | D30: 0.0008282717233 | G30: 2018 | H30: 0.003285163721 | I30: 0.003235661273 | J30: 0.0008632000631 | K30: 0.002675332887 | L30: 0.01005935794
C31: 0.01513856536 | D31: 0.001579673837 | G31: 2019 | H31: 0.005744291858 | I31: 0.01023687903 | J31: 0.002195590952 | K31: 0.005446463751 | L31: 0.0236232256
C32: 0.003909573136 | D32: 0.002983624822 | G32: 2020 | H32: 0.009765998766 | I32: 0.01665948417 | J32: 0.002279285917 | K32: 0.004167358971 | L32: 0.03287212782
C33: 0.002185910708 | D33: 0.0005478004337
C34: 0.002503221049 | D34: 5.387687128e-05 | F34: ERCOT | G34: 2015 | H34: 5.094425794e-05 | I34: 0.0004697756045 | J34: 0.0003299336126 | K34: 9.422114164e-05 | L34: 0.0009448746167
C35: 0.001328760492 | D35: 0.002438781158 | G35: =G34+1 -> 2016 | H35: 0.0002402237754 | I35: 0.0003093617398 | J35: 0.0002946601999 | K35: 0.0008916456443 | L35: 0.001735891359
C36: 0.002056032817 | D36: 0.0004331248192 | G36: 2017 | H36: 0.0008766696039 | I36: 0.009740201687 | J36: 0.002617260973 | K36: 0.002146400978 | L36: 0.01538053324
C37: 0.005447647806 | D37: 0.0001748238527 | G37: 2018 | H37: 0.00448504699 | I37: 0.03215456495 | J37: 0.01887762922 | K37: 0.01186030907 | L37: 0.06737755024
C38: 0.005386379211 | D38: 0.0005611820995 | G38: 2019 | H38: 0.02115428199 | I38: 0.01520989074 | J38: 0.004303904394 | K38: 0.00889126099 | L38: =SUM(H38:K38) -> 0.04955933811
G39: 2020 | H39: 0.007365702191 | I39: 0.01393080563 | J39: 0.008730080947 | K39: 0.03312847797 | L39: =SUM(H39:K39) -> 0.06315506673
A40: Jan-Dec 2016 | C40: 0.005186766479 | D40: 0.0001532493901
C41: 0.008069277832 | D41: 0.002175341623
C42: 0.01901937757 | D42: 0.0009270584523
C43: 0.01237088425 | D43: 0.001712923056
C44: 0.008632167713 | D44: 0.001501130905
C45: 0.004949053161 | D45: 0.0007156942748
C46: 0.001241328795 | D46: 0.001303038899
C47: 0.001800505108 | D47: 0.0002549187654
C48: 0.006572269822 | D48: 0.001386595307
C49: 0.009151465196 | D49: 0.004005169044
C50: 0.01096570283 | D50: 0.003487958907
C51: 0.01125231368 | D51: 0.002617606925
A53: Jan-Dec 2017 | C53: 0.0128620278 | D53: 0.004082103708
C54: 0.02759713775 | D54: 0.002320162228
C55: 0.02384065038 | D55: 0.009858961901
C56: 0.02439953288 | D56: 0.03537080673
C57: 0.007508528382 | D57: 0.04651572393
C58: 0.005155122721 | D58: 0.01986092386
C59: 0.001667011639 | D59: 0.01059684848
C60: 0.001297203051 | D60: 0.008838459462
C61: 0.005081893916 | D61: 0.005384876248
C62: 0.004703188879 | D62: 0.008198854223
C63: 0.005374375679 | D63: 0.01124621851
C64: 0.00434945179 | D64: 0.005658311176
A66: Jan-Dec 2018 | C66: 0.005745165123 | D66: 0.01152138054
C67: 0.01229575924 | D67: 0.01083971327
C68: 0.02843643969 | D68: 0.04180138219
C69: 0.01478578757 | D69: 0.1151254245
C70: 0.01342407883 | D70: 0.1428632239
C71: 0.00370465982 | D71: 0.07274658712
C72: 0.001779376214 | D72: 0.04501413795
C73: 0.0032754303 | D73: 0.07626943549
C74: 0.003594498201 | D74: 0.06034332072
C75: 0.02378187416 | D75: 0.049446987
C76: 0.008827494906 | D76: 0.06745343121
C77: 0.003776210018 | D77: 0.05987598974
A79: Jan-Dec 2019 | C79: 0.008068042583 | D79: 0.08772876947
C80: 0.0417586243 | D80: 0.1206464955
C81: 0.03793847972 | D81: 0.1195447599
C82: 0.04652331899 | D82: 0.06026192562
C83: 0.05021056462 | D83: 0.06809747066
C84: 0.008175596482 | D84: 0.03004237845
C85: 0.003947714478 | D85: 0.009173660122
C86: 0.002909314354 | D86: 0.00157095756
C87: 0.01503999442 | D87: 0.03634185452
C88: 0.01488680221 | D88: 0.08816677506
C89: 0.0337676864 | D89: 0.02226824379
C90: 0.04608127653 | D90: 0.005344194359
A92: Jan-Dec 2020 | C92: 0.05329617833 | D92: 0.04391166065
C93: 0.04566622637 | D93: 0.05803409713
C94: 0.05125704058 | D94: 0.05289153345
C95: 0.0762249195 | D95: 0.08325839445
C96: 0.04965782508 | D96: 0.05512544943
C97: 0.04019888943 | D97: 0.03150834885
C98: 0.005558756773 | D98: 0.01324683832
C99: 0.004854937908 | D99: 0.0332072658
C100: 0.01376867168 | D100: 0.03453921852
C101: 0.02463472021 | D101: 0.126647664
C102: 0.01831753169 | D102: 0.1329700379
C103: 0.01950926628 | D103: 0.09920282949

Sheet Energy and Capacity Value
A1: Solar's energy and capacity value by region and year
A19: Sources: Berkeley Lab, ABB, ISOs
A20: Notes: Solar Value describes generation-weighted value of distributed and utility-scale solar generation. For more details on methodology see Berkeley Lab publication "Mills et al, 2021, Solar-to-Grid" https://emp.lbl.gov/renewable-grid-insights
A25: ISOs Only | L25: Non-ISO BAs Only | W25: ISOs and non-ISO BAs Combined
C26: Solar | D26: Solar | E26: Solar | F26: Combined | G26: Combined | N26: Solar | O26: Solar | P26: Solar | Q26: Combined | R26: Combined | Y26: Solar | Z26: Solar | AA26: Solar | AB26: Combined | AC26: Combined
C27: Energy | D27: Capacity | E27: Combined | F27: Value | G27: Value | N27: Energy | O27: Capacity | P27: Combined | Q27: Value | R27: Value | Y27: Energy | Z27: Capacity | AA27: Combined | AB27: Value | AC27: Value
C28: Value | D28: Value | E28: Value | F28: 10th % | G28: 90th % | H28: Subtract | I28: Add | J28: Year | N28: Value | O28: Value | P28: Value | Q28: 10th % | R28: 90th % | S28: Subtract | T28: Add | U28: Year | Y28: Value | Z28: Value | AA28: Value | AB28: 10th % | AC28: 90th % | AD28: Subtract | AE28: Add | AF28: Year
A29: CAISO | C29: 38.45374064 | D29: 18.34776524 | E29: 56.80150588 | F29: 51.44326526 | G29: 69.77633262 | H29: 5.358240622 | I29: 12.97482673 | J29: 2012 | L29: AZPS | N29: 20.70004126 | O29: 17.91898239 | P29: 38.61902365 | Q29: 36.67874116 | R29: 40.65647305 | S29: 1.940282486 | T29: 2.037449402 | U29: 2012 | W29: CAISO | Y29: 38.45374064 | Z29: 18.34776524 | AA29: 56.80150588 | AB29: 51.44326526 | AC29: 69.77633262 | AD29: 5.358240622 | AE29: 12.97482673 | AF29: 2012
C30: 44.4657048 | D30: 17.98514284 | E30: 62.45084764 | F30: 58.131065 | G30: 72.13737847 | H30: 4.319782649 | I30: 9.686530822 | J30: 2013 | N30: 37.64911253 | O30: 13.38816897 | P30: 51.0372815 | Q30: 44.61538318 | R30: 53.88141334 | S30: 6.421898318 | T30: 2.844131835 | U30: 2013 | Y30: 44.4657048 | Z30: 17.98514284 | AA30: 62.45084764 | AB30: 58.131065 | AC30: 72.13737847 | AD30: 4.319782649 | AE30: 9.686530822 | AF30: 2013
C31: 44.7956195 | D31: 18.30369339 | E31: 63.09931288 | F31: 60.4597104 | G31: 80.12390236 | H31: 2.639602482 | I31: 17.02458948 | J31: 2014 | N31: 37.62293297 | O31: 8.403032128 | P31: 46.0259651 | Q31: 43.13663927 | R31: 49.55059438 | S31: 2.889325825 | T31: 3.524629279 | U31: 2014 | Y31: 44.7956195 | Z31: 18.30369339 | AA31: 63.09931288 | AB31: 60.4597104 | AC31: 80.12390236 | AD31: 2.639602482 | AE31: 17.02458948 | AF31: 2014
C32: 28.28756846 | D32: 12.43345142 | E32: 40.72101988 | F32: 38.54775643 | G32: 55.45511024 | H32: 2.173263449 | I32: 14.73409036 | J32: 2015 | N32: 25.67004044 | O32: 9.182181573 | P32: 34.85222201 | Q32: 32.43541167 | R32: 40.02825448 | S32: 2.416810347 | T32: 5.176032468 | U32: 2015 | Y32: 28.28756846 | Z32: 12.43345142 | AA32: 40.72101988 | AB32: 38.54775643 | AC32: 55.45511024 | AD32: 2.173263449 | AE32: 14.73409036 | AF32: 2015
C33: 24.6739462 | D33: 9.72694185 | E33: 34.40088805 | F33: 32.59846955 | G33: 42.73433732 | H33: 1.802418497 | I33: 8.33344927 | J33: 2016 | N33: 20.31837401 | O33: 2.458198439 | P33: 22.77657245 | Q33: 21.98795121 | R33: 23.45362047 | S33: 0.7886212406 | T33: 0.6770480186 | U33: 2016 | Y33: 24.6739462 | Z33: 9.72694185 | AA33: 34.40088805 | AB33: 32.59846955 | AC33: 42.73433732 | AD33: 1.802418497 | AE33: 8.33344927 | AF33: 2016
C34: 25.54977282 | D34: 9.541423803 | E34: 35.09119662 | F34: 33.36221573 | G34: 42.94596141 | H34: 1.728980896 | I34: 7.854764785 | J34: 2017 | N34: 20.28096938 | O34: 2.475049148 | P34: 22.75601852 | Q34: 20.66251149 | R34: 26.89917952 | S34: 2.093507036 | T34: 4.143160996 | U34: 2017 | Y34: 25.54977282 | Z34: 9.541423803 | AA34: 35.09119662 | AB34: 33.36221573 | AC34: 42.94596141 | AD34: 1.728980896 | AE34: 7.854764785 | AF34: 2017
C35: 26.30639906 | D35: 5.362826296 | E35: 31.66922536 | F35: 28.42475959 | G35: 40.6392796 | H35: 3.244465768 | I35: 8.970054241 | J35: 2018 | N35: 26.53197394 | O35: 3.630848137 | P35: 30.16282207 | Q35: 27.99383188 | R35: 31.66231465 | S35: 2.168990195 | T35: 1.499492575 | U35: 2018 | Y35: 26.30639906 | Z35: 5.362826296 | AA35: 31.66922536 | AB35: 28.42475959 | AC35: 40.6392796 | AD35: 3.244465768 | AE35: 8.970054241 | AF35: 2018
C36: 23.80653271 | D36: 6.569515622 | E36: 30.37604833 | F36: 26.51827747 | G36: 38.46739847 | H36: 3.857770864 | I36: 8.09135014 | J36: 2019 | N36: 22.41879035 | O36: 6.328484568 | P36: 28.74727492 | Q36: 26.20107319 | R36: 32.00264243 | S36: 2.54620173 | T36: 3.255367508 | U36: 2019 | Y36: 23.80653271 | Z36: 6.569515622 | AA36: 30.37604833 | AB36: 26.51827747 | AC36: 38.46739847 | AD36: 3.857770864 | AE36: 8.09135014 | AF36: 2019
C37: 20.92132579 | D37: 3.975631844 | E37: 24.89695764 | F37: 22.42039926 | G37: 32.13684266 | H37: 2.476558381 | I37: 7.23988502 | J37: 2020 | N37: 19.89560118 | O37: 9.781323215 | P37: 29.67692439 | Q37: 26.23348319 | R37: 33.09603361 | S37: 3.443441197 | T37: 3.419109217 | U37: 2020 | Y37: 20.92132579 | Z37: 3.975631844 | AA37: 24.89695764 | AB37: 22.42039926 | AC37: 32.13684266 | AD37: 2.476558381 | AE37: 7.23988502 | AF37: 2020 | AG37: CAISO
A39: ISO-NE | C39: 48.76507323 | D39: 4.695166695 | E39: 53.46023992 | F39: 50.13913462 | G39: 55.04530693 | H39: 3.321105302 | I39: 1.585067003 | J39: 2012 | L39: PNM | N39: 20.96792471 | O39: 23.36221062 | P39: 44.33013533 | Q39: 38.64092755 | R39: 45.97429732 | S39: 5.689207778 | T39: 1.644161991 | U39: 2012 | W39: AZPS | Y39: 20.70004126 | Z39: 17.91898239 | AA39: 38.61902365 | AB39: 36.67874116 | AC39: 40.65647305 | AD39: 1.940282486 | AE39: 2.037449402 | AF39: 2012
C40: 66.42243842 | D40: 4.085221931 | E40: 70.50766035 | F40: 62.79149137 | G40: 97.66377598 | H40: 7.716168977 | I40: 27.15611563 | J40: 2013 | N40: 42.48643371 | O40: 18.29826692 | P40: 60.78470063 | Q40: 55.19580202 | R40: 63.26856115 | S40: 5.588898614 | T40: 2.483860513 | U40: 2013 | Y40: 37.64911253 | Z40: 13.38816897 | AA40: 51.0372815 | AB40: 44.61538318 | AC40: 53.88141334 | AD40: 6.421898318 | AE40: 2.844131835 | AF40: 2013
C41: 65.69737997 | D41: 4.413051299 | E41: 70.11043126 | F41: 61.82053416 | G41: 75.08332378 | H41: 8.289897106 | I41: 4.972892517 | J41: 2014 | N41: 46.39997105 | O41: 10.30411538 | P41: 56.70408643 | Q41: 51.3641285 | R41: 61.38819571 | S41: 5.339957926 | T41: 4.68410928 | U41: 2014 | Y41: 37.62293297 | Z41: 8.403032128 | AA41: 46.0259651 | AB41: 43.13663927 | AC41: 49.55059438 | AD41: 2.889325825 | AE41: 3.524629279 | AF41: 2014
C42: 45.01176201 | D42: 4.455441238 | E42: 49.46720324 | F42: 45.19499412 | G42: 51.83764347 | H42: 4.272209128 | I42: 2.370440229 | J42: 2015 | N42: 27.03545911 | O42: 13.15155947 | P42: 40.18701858 | Q42: 34.43474286 | R42: 43.75999297 | S42: 5.752275727 | T42: 3.572974386 | U42: 2015 | Y42: 25.67004044 | Z42: 9.182181573 | AA42: 34.85222201 | AB42: 32.43541167 | AC42: 40.02825448 | AD42: 2.416810347 | AE42: 5.176032468 | AF42: 2015
C43: 33.62298266 | D43: 5.858568398 | E43: 39.48155105 | F43: 35.17658318 | G43: 40.6610205 | H43: 4.304967876 | I43: 1.17946945 | J43: 2016 | N43: 23.57161429 | O43: 3.444620785 | P43: 27.01623507 | Q43: 25.03509199 | R43: 27.66386704 | S43: 1.981143089 | T43: 0.6476319688 | U43: 2016 | Y43: 20.31837401 | Z43: 2.458198439 | AA43: 22.77657245 | AB43: 21.98795121 | AC43: 23.45362047 | AD43: 0.7886212406 | AE43: 0.6770480186 | AF43: 2016
C44: 34.56996192 | D44: 9.982320591 | E44: 44.55228251 | F44: 38.72719172 | G44: 48.53080959 | H44: 5.825090788 | I44: 3.978527088 | J44: 2017 | N44: 20.42521484 | O44: 3.538179661 | P44: 23.9633945 | Q44: 22.32082979 | R44: 24.59322357 | S44: 1.64256471 | T44: 0.6298290732 | U44: 2017 | Y44: 20.28096938 | Z44: 2.475049148 | AA44: 22.75601852 | AB44: 20.66251149 | AC44: 26.89917952 | AD44: 2.093507036 | AE44: 4.143160996 | AF44: 2017
C45: 42.60540236 | D45: 15.1056986 | E45: 57.71110097 | F45: 49.07029416 | G45: 62.76518392 | H45: 8.640806808 | I45: 5.054082957 | J45: 2018 | N45: 28.23412706 | O45: 5.572772629 | P45: 33.80689969 | Q45: 30.34284159 | R45: 36.57591771 | S45: 3.464058105 | T45: 2.769018015 | U45: 2018 | Y45: 26.53197394 | Z45: 3.630848137 | AA45: 30.16282207 | AB45: 27.99383188 | AC45: 31.66231465 | AD45: 2.168990195 | AE45: 1.499492575 | AF45: 2018
C46: 28.44749952 | D46: 12.12456142 | E46: 40.57206094 | F46: 37.26985979 | G46: 44.33547828 | H46: 3.302201156 | I46: 3.763417332 | J46: 2019 | N46: 26.63508781 | O46: 10.32048083 | P46: 36.95556864 | Q46: 31.72848472 | R46: 38.61685086 | S46: 5.227083916 | T46: 1.661282225 | U46: 2019 | Y46: 22.41879035 | Z46: 6.328484568 | AA46: 28.74727492 | AB46: 26.20107319 | AC46: 32.00264243 | AD46: 2.54620173 | AE46: 3.255367508 | AF46: 2019
C47: 21.45255855 | D47: 7.908198493 | E47: 29.36075704 | F47: 28.25196387 | G47: 30.29274749 | H47: 1.108793173 | I47: 0.9319904481 | J47: 2020 | N47: 22.86869931 | O47: 17.1831117 | P47: 40.05181102 | Q47: 36.28048005 | R47: 42.7586351 | S47: 3.771330964 | T47: 2.706824078 | U47: 2020 | Y47: 19.89560118 | Z47: 9.781323215 | AA47: 29.67692439 | AB47: 26.23348319 | AC47: 33.09603361 | AD47: 3.443441197 | AE47: 3.419109217 | AF47: 2020 | AG47: AZPS
A49: ERCOT | C49: 38.03776904 | D49: 0 | E49: 38.03776904 | F49: 35.36063367 | G49: 43.26304841 | H49: 2.677135376 | I49: 5.225279368 | J49: 2012 | L49: NEVP | N49: 23.16307092 | O49: 16.15432292 | P49: 39.31739383 | Q49: 36.1303285 | R49: 40.89556767 | S49: 3.187065335 | T49: 1.578173836 | U49: 2012 | W49: PNM | Y49: 20.96792471 | Z49: 23.36221062 | AA49: 44.33013533 | AB49: 38.64092755 | AC49: 45.97429732 | AD49: 5.689207778 | AE49: 1.644161991 | AF49: 2012
C50: 43.81154672 | D50: 0 | E50: 43.81154672 | F50: 38.64404124 | G50: 50.14586974 | H50: 5.167505477 | I50: 6.334323019 | J50: 2013 | N50: 40.20305039 | O50: 13.64172144 | P50: 53.84477183 | Q50: 52.76287655 | R50: 57.56559854 | S50: 1.081895286 | T50: 3.720826708 | U50: 2013 | Y50: 42.48643371 | Z50: 18.29826692 | AA50: 60.78470063 | AB50: 55.19580202 | AC50: 63.26856115 | AD50: 5.588898614 | AE50: 2.483860513 | AF50: 2013
C51: 44.57060531 | D51: 0 | E51: 44.57060531 | F51: 42.76343758 | G51: 47.76584387 | H51: 1.807167732 | I51: 3.195238556 | J51: 2014 | N51: 41.89282736 | O51: 9.793560184 | P51: 51.68638754 | Q51: 49.04251368 | R51: 55.31973939 | S51: 2.643873862 | T51: 3.633351852 | U51: 2014 | Y51: 46.39997105 | Z51: 10.30411538 | AA51: 56.70408643 | AB51: 51.3641285 | AC51: 61.38819571 | AD51: 5.339957926 | AE51: 4.68410928 | AF51: 2014
C52: 33.59872577 | D52: 0 | E52: 33.59872577 | F52: 28.31183116 | G52: 36.13269073 | H52: 5.286894608 | I52: 2.533964969 | J52: 2015 | N52: 27.88244947 | O52: 9.702634385 | P52: 37.58508386 | Q52: 31.59790733 | R52: 42.04136748 | S52: 5.987176523 | T52: 4.456283618 | U52: 2015 | Y52: 27.03545911 | Z52: 13.15155947 | AA52: 40.18701858 | AB52: 34.43474286 | AC52: 43.75999297 | AD52: 5.752275727 | AE52: 3.572974386 | AF52: 2015
C53: 31.77718438 | D53: 0 | E53: 31.77718438 | F53: 28.33050436 | G53: 35.44674124 | H53: 3.446680021 | I53: 3.669556854 | J53: 2016 | N53: 23.42122787 | O53: 2.797902016 | P53: 26.21912989 | Q53: 24.22983945 | R53: 30.07876573 | S53: 1.989290443 | T53: 3.859635841 | U53: 2016 | Y53: 23.57161429 | Z53: 3.444620785 | AA53: 27.01623507 | AB53: 25.03509199 | AC53: 27.66386704 | AD53: 1.981143089 | AE53: 0.6476319688 | AF53: 2016
C54: 27.32214187 | D54: 0 | E54: 27.32214187 | F54: 22.29697681 | G54: 35.00886954 | H54: 5.025165064 | I54: 7.68672766 | J54: 2017 | N54: 30.51591324 | O54: 2.147807929 | P54: 32.66372117 | Q54: 30.99305035 | R54: 36.69884953 | S54: 1.670670819 | T54: 4.035128365 | U54: 2017 | Y54: 20.42521484 | Z54: 3.538179661 | AA54: 23.9633945 | AB54: 22.32082979 | AC54: 24.59322357 | AD54: 1.64256471 | AE54: 0.6298290732 | AF54: 2017
C55: 41.16057224 | D55: 0 | E55: 41.16057224 | F55: 24.43143881 | G55: 45.96843349 | H55: 16.72913343 | I55: 4.807861256 | J55: 2018 | N55: 27.88134334 | O55: 2.866705127 | P55: 30.74804847 | Q55: 28.60103001 | R55: 34.0645136 | S55: 2.147018454 | T55: 3.316465137 | U55: 2018 | Y55: 28.23412706 | Z55: 5.572772629 | AA55: 33.80689969 | AB55: 30.34284159 | AC55: 36.57591771 | AD55: 3.464058105 | AE55: 2.769018015 | AF55: 2018
C56: 61.01321121 | D56: 0 | E56: 61.01321121 | F56: 30.10467252 | G56: 74.88511943 | H56: 30.90853869 | I56: 13.87190822 | J56: 2019 | N56: 26.18038041 | O56: 4.573610242 | P56: 30.75399065 | Q56: 28.52489126 | R56: 35.07490454 | S56: 2.229099392 | T56: 4.320913888 | U56: 2019 | Y56: 26.63508781 | Z56: 10.32048083 | AA56: 36.95556864 | AB56: 31.72848472 | AC56: 38.61685086 | AD56: 5.227083916 | AE56: 1.661282225 | AF56: 2019
C57: 23.64619154 | D57: 0 | E57: 23.64619154 | F57: 18.49801281 | G57: 29.27815387 | H57: 5.148178736 | I57: 5.631962325 | J57: 2020 | N57: 26.58459758 | O57: 8.02684499 | P57: 34.61144257 | Q57: 29.11703748 | R57: 38.27544489 | S57: 5.49440509 | T57: 3.66400232 | U57: 2020 | Y57: 22.86869931 | Z57: 17.1831117 | AA57: 40.05181102 | AB57: 36.28048005 | AC57: 42.7586351 | AD57: 3.771330964 | AE57: 2.706824078 | AF57: 2020 | AG57: PNM
A59: NYISO | C59: 57.61181557 | D59: 4.826004168 | E59: 62.43781974 | F59: 52.1771733 | G59: 86.42451982 | H59: 10.26064644 | I59: 23.98670008 | J59: 2012 | L59: PACE | N59: 10.15023504 | O59: 25.25739641 | P59: 35.40763145 | Q59: 28.7875008 | R59: 40.38840658 | S59: 6.620130657 | T59: 4.980775132 | U59: 2012 | W59: NEVP | Y59: 23.16307092 | Z59: 16.15432292 | AA59: 39.31739383 | AB59: 36.1303285 | AC59: 40.89556767 | AD59: 3.187065335 | AE59: 1.578173836 | AF59: 2012
C60: 71.18972525 | D60: 14.28128739 | E60: 85.47101264 | F60: 59.77257797 | G60: 99.32248217 | H60: 25.69843467 | I60: 13.85146953 | J60: 2013 | N60: 35.54136992 | O60: 20.0983228 | P60: 55.63969272 | Q60: 50.02381945 | R60: 60.60060288 | S60: 5.615873273 | T60: 4.960910159 | U60: 2013 | Y60: 40.20305039 | Z60: 13.64172144 | AA60: 53.84477183 | AB60: 52.76287655 | AC60: 57.56559854 | AD60: 1.081895286 | AE60: 3.720826708 | AF60: 2013
C61: 65.72544461 | D61: 15.8529022 | E61: 81.57834681 | F61: 57.94660938 | G61: 86.4664452 | H61: 23.63173743 | I61: 4.88809839 | J61: 2014 | N61: 38.75934668 | O61: 14.90255032 | P61: 53.661897 | Q61: 49.0174036 | R61: 57.49692974 | S61: 4.644493397 | T61: 3.835032746 | U61: 2014 | Y61: 41.89282736 | Z61: 9.793560184 | AA61: 51.68638754 | AB61: 49.04251368 | AC61: 55.31973939 | AD61: 2.643873862 | AE61: 3.633351852 | AF61: 2014
C62: 46.07986957 | D62: 13.55513215 | E62: 59.63500172 | F62: 35.96676583 | G62: 63.85446815 | H62: 23.66823589 | I62: 4.219466431 | J62: 2015 | N62: 24.19597256 | O62: 15.83619641 | P62: 40.03216897 | Q62: 34.59747694 | R62: 43.16695165 | S62: 5.434692031 | T62: 3.134782676 | U62: 2015 | Y62: 27.88244947 | Z62: 9.702634385 | AA62: 37.58508386 | AB62: 31.59790733 | AC62: 42.04136748 | AD62: 5.987176523 | AE62: 4.456283618 | AF62: 2015
C63: 36.97601809 | D63: 11.34759733 | E63: 48.32361542 | F63: 29.86958316 | G63: 55.06067358 | H63: 18.45403226 | I63: 6.737058157 | J63: 2016 | N63: 23.54491843 | O63: 4.151921576 | P63: 27.69684 | Q63: 25.20978421 | R63: 30.54561514 | S63: 2.487055789 | T63: 2.848775141 | U63: 2016 | Y63: 23.42122787 | Z63: 2.797902016 | AA63: 26.21912989 | AB63: 24.22983945 | AC63: 30.07876573 | AD63: 1.989290443 | AE63: 3.859635841 | AF63: 2016
C64: 35.08735657 | D64: 13.68541566 | E64: 48.77277223 | F64: 30.7793962 | G64: 55.24495242 | H64: 17.99337602 | I64: 6.472180198 | J64: 2017 | N64: 21.90307309 | O64: 3.032872442 | P64: 24.93594553 | Q64: 23.70021968 | R64: 26.27842583 | S64: 1.235725848 | T64: 1.342480299 | U64: 2017 | Y64: 30.51591324 | Z64: 2.147807929 | AA64: 32.66372117 | AB64: 30.99305035 | AC64: 36.69884953 | AD64: 1.670670819 | AE64: 4.035128365 | AF64: 2017
C65: 42.51355214 | D65: 12.23836905 | E65: 54.75192119 | F65: 33.08765785 | G65: 61.8745872 | H65: 21.66426334 | I65: 7.122666009 | J65: 2018 | N65: 26.66156873 | O65: 4.449029318 | P65: 31.11059805 | Q65: 28.99421339 | R65: 32.65487949 | S65: 2.11638466 | T65: 1.544281434 | U65: 2018 | Y65: 27.88134334 | Z65: 2.866705127 | AA65: 30.74804847 | AB65: 28.60103001 | AC65: 34.0645136 | AD65: 2.147018454 | AE65: 3.316465137 | AF65: 2018
C66: 29.51377886 | D66: 8.502095193 | E66: 38.01587406 | F66: 22.68865 | G66: 45.67124479 | H66: 15.32722405 | I66: 7.655370737 | J66: 2019 | N66: 24.82796294 | O66: 8.861287949 | P66: 33.68925089 | Q66: 31.22828475 | R66: 35.74805972 | S66: 2.460966132 | T66: 2.058808829 | U66: 2019 | Y66: 26.18038041 | Z66: 4.573610242 | AA66: 30.75399065 | AB66: 28.52489126 | AC66: 35.07490454 | AD66: 2.229099392 | AE66: 4.320913888 | AF66: 2019
C67: 22.60780012 | D67: 9.583922998 | E67: 32.19172312 | F67: 21.01339907 | G67: 37.11774539 | H67: 11.17832405 | I67: 4.926022273 | J67: 2020 | N67: 21.6787522 | O67: 14.75390239 | P67: 36.43265459 | Q67: 31.67016874 | R67: 39.27109699 | S67: 4.762485849 | T67: 2.838442398 | U67: 2020 | Y67: 26.58459758 | Z67: 8.02684499 | AA67: 34.61144257 | AB67: 29.11703748 | AC67: 38.27544489 | AD67: 5.49440509 | AE67: 3.66400232 | AF67: 2020 | AG67: NEVP
A69: PJM | C69: 45.63201802 | D69: 15.8415036 | E69: 61.47352162 | F69: 50.30068867 | G69: 64.94920227 | H69: 11.17283295 | I69: 3.475680656 | J69: 2012 | L69: CPLE | N69: 40.73366163 | O69: 26.50564258 | P69: 67.23930421 | Q69: 60.86065657 | R69: 68.87677168 | S69: 6.378647643 | T69: 1.637467466 | U69: 2012 | W69: ISO-NE | Y69: 48.76507323 | Z69: 4.695166695 | AA69: 53.46023992 | AB69: 50.13913462 | AC69: 55.04530693 | AD69: 3.321105302 | AE69: 1.585067003 | AF69: 2012
C70: 50.05424285 | D70: 21.76745042 | E70: 71.82169327 | F70: 51.39142323 | G70: 78.52358944 | H70: 20.43027004 | I70: 6.701896177 | J70: 2013 | N70: 42.29493272 | O70: 13.98088262 | P70: 56.27581534 | Q70: 50.74723223 | R70: 58.38321484 | S70: 5.528583108 | T70: 2.107399503 | U70: 2013 | Y70: 66.42243842 | Z70: 4.085221931 | AA70: 70.50766035 | AB70: 62.79149137 | AC70: 97.66377598 | AD70: 7.716168977 | AE70: 27.15611563 | AF70: 2013
C71: 60.2933717 | D71: 20.95697629 | E71: 81.25034799 | F71: 64.25395528 | G71: 85.64086941 | H71: 16.99639271 | I71: 4.390521425 | J71: 2014 | N71: 51.05525918 | O71: 9.104111524 | P71: 60.15937071 | Q71: 56.7397637 | R71: 65.32489379 | S71: 3.419607005 | T71: 5.16552308 | U71: 2014 | Y71: 65.69737997 | Z71: 4.413051299 | AA71: 70.11043126 | AB71: 61.82053416 | AC71: 75.08332378 | AD71: 8.289897106 | AE71: 4.972892517 | AF71: 2014
C72: 39.8676797 | D72: 18.6781612 | E72: 58.54584091 | F72: 53.02961269 | G72: 67.35580748 | H72: 5.516228215 | I72: 8.809966576 | J72: 2015 | N72: 36.04391651 | O72: 8.495477466 | P72: 44.53939398 | Q72: 35.7186169 | R72: 51.7677833 | S72: 8.820777079 | T72: 7.228389321 | U72: 2015 | Y72: 45.01176201 | Z72: 4.455441238 | AA72: 49.46720324 | AB72: 45.19499412 | AC72: 51.83764347 | AD72: 4.272209128 | AE72: 2.370440229 | AF72: 2015
C73: 32.44796425 | D73: 16.87260348 | E73: 49.32056773 | F73: 44.36839055 | G73: 57.64446658 | H73: 4.952177178 | I73: 8.323898849 | J73: 2016 | N73: 34.22414966 | O73: 9.908209683 | P73: 44.13235934 | Q73: 38.91758658 | R73: 47.6518091 | S73: 5.214772755 | T73: 3.519449765 | U73: 2016 | Y73: 33.62298266 | Z73: 5.858568398 | AA73: 39.48155105 | AB73: 35.17658318 | AC73: 40.6610205 | AD73: 4.304967876 | AE73: 1.17946945 | AF73: 2016
C74: 34.1793158 | D74: 16.555654 | E74: 50.7349698 | F74: 45.92789743 | G74: 56.44844412 | H74: 4.807072372 | I74: 5.713474321 | J74: 2017 | N74: 33.50733056 | O74: 11.26613675 | P74: 44.77346732 | Q74: 41.55086523 | R74: 48.72694923 | S74: 3.222602084 | T74: 3.953481915 | U74: 2017 | Y74: 34.56996192 | Z74: 9.982320591 | AA74: 44.55228251 | AB74: 38.72719172 | AC74: 48.53080959 | AD74: 5.825090788 | AE74: 3.978527088 | AF74: 2017
C75: 39.79453429 | D75: 21.86957288 | E75: 61.66410717 | F75: 57.32609491 | G75: 67.85109975 | H75: 4.338012263 | I75: 6.186992579 | J75: 2018 | N75: 37.72253311 | O75: 5.149868707 | P75: 42.87240182 | Q75: 38.7255125 | R75: 44.8752377 | S75: 4.146889319 | T75: 2.002835879 | U75: 2018 | Y75: 42.60540236 | Z75: 15.1056986 | AA75: 57.71110097 | AB75: 49.07029416 | AC75: 62.76518392 | AD75: 8.640806808 | AE75: 5.054082957 | AF75: 2018
C76: 27.98333865 | D76: 16.67437082 | E76: 44.65770947 | F76: 41.77044488 | G76: 50.04284636 | H76: 2.887264592 | I76: 5.385136888 | J76: 2019 | N76: 30.28069185 | O76: 4.880140359 | P76: 35.16083221 | Q76: 31.60453129 | R76: 38.02576303 | S76: 3.556300923 | T76: 2.864930823 | U76: 2019 | Y76: 28.44749952 | Z76: 12.12456142 | AA76: 40.57206094 | AB76: 37.26985979 | AC76: 44.33547828 | AD76: 3.302201156 | AE76: 3.763417332 | AF76: 2019
C77: 21.73124034 | D77: 14.44660583 | E77: 36.17784616 | F77: 32.25791702 | G77: 41.74029873 | H77: 3.919929141 | I77: 5.562452566 | J77: 2020 | N77: 23.17985389 | O77: 1.970786058 | P77: 25.15063995 | Q77: 24.75142034 | R77: 26.0844489 | S77: 0.3992196074 | T77: 0.9338089494 | U77: 2020 | Y77: 21.45255855 | Z77: 7.908198493 | AA77: 29.36075704 | AB77: 28.25196387 | AC77: 30.29274749 | AD77: 1.108793173 | AE77: 0.9319904481 | AF77: 2020 | AG77: ISO-NE
A79: MISO | C79: 36.11135717 | D79: 0.0244050945 | E79: 36.13576226 | F79: 31.33743574 | G79: 42.28897963 | H79: 4.798326525 | I79: 6.153217367 | J79: 2012 | L79: DUK | N79: 40.65954145 | O79: 29.69644001 | P79: 70.35598146 | Q79: 66.57872676 | R79: 71.14987766 | S79: 3.777254699 | T79: 0.7938962053 | U79: 2012 | W79: PACE | Y79: 10.15023504 | Z79: 25.25739641 | AA79: 35.40763145 | AB79: 28.7875008 | AC79: 40.38840658 | AD79: 6.620130657 | AE79: 4.980775132 | AF79: 2012
C80: 39.07933861 | D80: 0.1245727325 | E80: 39.20391135 | F80: 34.26466815 | G80: 43.98820923 | H80: 4.939243197 | I80: 4.78429788 | J80: 2013 | N80: 42.44339144 | O80: 18.06280622 | P80: 60.50619766 | Q80: 53.7438067 | R80: 62.53262902 | S80: 6.762390953 | T80: 2.026431365 | U80: 2013 | Y80: 35.54136992 | Z80: 20.0983228 | AA80: 55.63969272 | AB80: 50.02381945 | AC80: 60.60060288 | AD80: 5.615873273 | AE80: 4.960910159 | AF80: 2013
C81: 46.38803562 | D81: 1.294431365 | E81: 47.68246698 | F81: 36.86066891 | G81: 51.00483408 | H81: 10.82179807 | I81: 3.322367101 | J81: 2014 | N81: 49.72298968 | O81: 15.39154251 | P81: 65.11453219 | Q81: 46.73950014 | R81: 69.31476359 | S81: 18.37503205 | T81: 4.200231394 | U81: 2014 | Y81: 38.75934668 | Z81: 14.90255032 | AA81: 53.661897 | AB81: 49.0174036 | AC81: 57.49692974 | AD81: 4.644493397 | AE81: 3.835032746 | AF81: 2014
C82: 35.12703589 | D82: 1.271163363 | E82: 36.39819925 | F82: 27.43596569 | G82: 40.74433448 | H82: 8.962233555 | I82: 4.346135226 | J82: 2015 | N82: 35.82024421 | O82: 20.82010192 | P82: 56.64034613 | Q82: 45.44025729 | R82: 59.30190431 | S82: 11.20008885 | T82: 2.661558175 | U82: 2015 | Y82: 24.19597256 | Z82: 15.83619641 | AA82: 40.03216897 | AB82: 34.59747694 | AC82: 43.16695165 | AD82: 5.434692031 | AE82: 3.134782676 | AF82: 2015
C83: 34.65937426 | D83: 3.849282207 | E83: 38.50865647 | F83: 30.71498407 | G83: 44.08878603 | H83: 7.7936724 | I83: 5.580129559 | J83: 2016 | N83: 34.14525418 | O83: 17.95639783 | P83: 52.10165202 | Q83: 47.69007683 | R83: 54.48727528 | S83: 4.411575184 | T83: 2.385623264 | U83: 2016 | Y83: 23.54491843 | Z83: 4.151921576 | AA83: 27.69684 | AB83: 25.20978421 | AC83: 30.54561514 | AD83: 2.487055789 | AE83: 2.848775141 | AF83: 2016
C84: 34.67338497 | D84: 2.284733172 | E84: 36.95811814 | F84: 30.33017308 | G84: 42.90412785 | H84: 6.627945067 | I84: 5.946009708 | J84: 2017 | N84: 33.6489045 | O84: 19.080977 | P84: 52.72988151 | Q84: 50.52890524 | R84: 56.18177995 | S84: 2.200976265 | T84: 3.451898443 | U84: 2017 | Y84: 21.90307309 | Z84: 3.032872442 | AA84: 24.93594553 | AB84: 23.70021968 | AC84: 26.27842583 | AD84: 1.235725848 | AE84: 1.342480299 | AF84: 2017
C85: 35.36728639 | D85: 0.5682129294 | E85: 35.93549932 | F85: 29.68780998 | G85: 40.96573986 | H85: 6.247689336 | I85: 5.030240542 | J85: 2018 | N85: 37.73715919 | O85: 9.169046899 | P85: 46.90620609 | Q85: 43.02364229 | R85: 49.48438733 | S85: 3.882563802 | T85: 2.578181239 | U85: 2018 | Y85: 26.66156873 | Z85: 4.449029318 | AA85: 31.11059805 | AB85: 28.99421339 | AC85: 32.65487949 | AD85: 2.11638466 | AE85: 1.544281434 | AF85: 2018
C86: 26.76929989 | D86: 0.7170835868 | E86: 27.48638347 | F86: 23.63437424 | G86: 31.80933063 | H86: 3.852009235 | I86: 4.322947159 | J86: 2019 | N86: 30.26439371 | O86: 9.482559554 | P86: 39.74695326 | Q86: 36.92484449 | R86: 42.37927947 | S86: 2.822108772 | T86: 2.632326207 | U86: 2019 | Y86: 24.82796294 | Z86: 8.861287949 | AA86: 33.68925089 | AB86: 31.22828475 | AC86: 35.74805972 | AD86: 2.460966132 | AE86: 2.058808829 | AF86: 2019
C87: 22.33262009 | D87: 1.980232048 | E87: 24.31285214 | F87: 18.71186731 | G87: 28.64248876 | H87: 5.600984834 | I87: 4.329636625 | J87: 2020 | N87: 23.16568575 | O87: 3.62889963 | P87: 26.79458538 | Q87: 26.28474068 | R87: 27.51874988 | S87: 0.5098446995 | T87: 0.7241645011 | U87: 2020 | Y87: 21.6787522 | Z87: 14.75390239 | AA87: 36.43265459 | AB87: 31.67016874 | AC87: 39.27109699 | AD87: 4.762485849 | AE87: 2.838442398 | AF87: 2020 | AG87: PACE
A89: SPP | C89: 31.45935547 | D89: 21.94404913 | E89: 53.4034046 | F89: 52.03656003 | G89: 56.79860848 | H89: 1.366844573 | I89: 3.395203875 | J89: 2012 | L89: PSCO | N89: 28.78090657 | O89: 24.55675805 | P89: 53.33766462 | Q89: 50.30459912 | R89: 55.5067091 | S89: 3.0330655 | T89: 2.169044474 | U89: 2012 | W89: CPLE | Y89: 40.73366163 | Z89: 26.50564258 | AA89: 67.23930421 | AB89: 60.86065657 | AC89: 68.87677168 | AD89: 6.378647643 | AE89: 1.637467466 | AF89: 2012
C90: 37.53055216 | D90: 36.47586678 | E90: 74.00641895 | F90: 72.2014912 | G90: 78.37225842 | H90: 1.804927751 | I90: 4.365839476 | J90: 2013 | N90: 30.08951802 | O90: 16.61422808 | P90: 46.70374609 | Q90: 45.08619444 | R90: 53.17284394 | S90: 1.617551649 | T90: 6.469097847 | U90: 2013 | Y90: 42.29493272 | Z90: 13.98088262 | AA90: 56.27581534 | AB90: 50.74723223 | AC90: 58.38321484 | AD90: 5.528583108 | AE90: 2.107399503 | AF90: 2013
C91: 46.99181272 | D91: 32.02398603 | E91: 79.01579875 | F91: 75.08683459 | G91: 84.36414164 | H91: 3.928964155 | I91: 5.348342892 | J91: 2014 | N91: 34.28933698 | O91: 12.12614965 | P91: 46.41548663 | Q91: 43.33592707 | R91: 50.06820806 | S91: 3.079559566 | T91: 3.652721429 | U91: 2014 | Y91: 51.05525918 | Z91: 9.104111524 | AA91: 60.15937071 | AB91: 56.7397637 | AC91: 65.32489379 | AD91: 3.419607005 | AE91: 5.16552308 | AF91: 2014
C92: 29.94968532 | D92: 28.78531679 | E92: 58.73500211 | F92: 54.32266193 | G92: 62.15660042 | H92: 4.412340173 | I92: 3.421598314 | J92: 2015 | N92: 25.01232307 | O92: 13.73540273 | P92: 38.7477258 | Q92: 33.42150011 | R92: 40.97805187 | S92: 5.326225688 | T92: 2.230326065 | U92: 2015 | Y92: 36.04391651 | Z92: 8.495477466 | AA92: 44.53939398 | AB92: 35.7186169 | AC92: 51.7677833 | AD92: 8.820777079 | AE92: 7.228389321 | AF92: 2015
C93: 29.84254084 | D93: 36.82578065 | E93: 66.66832149 | F93: 57.38615768 | G93: 73.96799958 | H93: 9.282163811 | I93: 7.299678092 | J93: 2016 | N93: 21.30453769 | O93: 3.4255057 | P93: 24.73004339 | Q93: 23.48791703 | R93: 26.00558712 | S93: 1.24212636 | T93: 1.27554374 | U93: 2016 | Y93: 34.22414966 | Z93: 9.908209683 | AA93: 44.13235934 | AB93: 38.91758658 | AC93: 47.6518091 | AD93: 5.214772755 | AE93: 3.519449765 | AF93: 2016
C94: 30.19133248 | D94: 30.62154567 | E94: 60.81287815 | F94: 57.09718933 | G94: 75.99424728 | H94: 3.715688822 | I94: 15.18136912 | J94: 2017 | N94: 21.89469262 | O94: 3.598604477 | P94: 25.49329709 | Q94: 21.63475173 | R94: 26.22752386 | S94: 3.858545362 | T94: 0.7342267631 | U94: 2017 | Y94: 33.50733056 | Z94: 11.26613675 | AA94: 44.77346732 | AB94: 41.55086523 | AC94: 48.72694923 | AD94: 3.222602084 | AE94: 3.953481915 | AF94: 2017
C95: 30.02667713 | D95: 29.17730652 | E95: 59.20398365 | F95: 55.69029896 | G95: 72.3955151 | H95: 3.513684683 | I95: 13.19153145 | J95: 2018 | N95: 25.61678102 | O95: 5.337101369 | P95: 30.95388239 | Q95: 29.56695145 | R95: 32.06252682 | S95: 1.386930937 | T95: 1.108644433 | U95: 2018 | Y95: 37.72253311 | Z95: 5.149868707 | AA95: 42.87240182 | AB95: 38.7255125 | AC95: 44.8752377 | AD95: 4.146889319 | AE95: 2.002835879 | AF95: 2018
C96: 28.17583218 | D96: 27.26005506 | E96: 55.43588724 | F96: 51.32771497 | G96: 64.83945633 | H96: 4.10817227 | I96: 9.403569086 | J96: 2019 | N96: 23.27262648 | O96: 10.44044267 | P96: 33.71306915 | Q96: 30.18978934 | R96: 35.61075889 | S96: 3.523279813 | T96: 1.897689737 | U96: 2019 | Y96: 30.28069185 | Z96: 4.880140359 | AA96: 35.16083221 | AB96: 31.60453129 | AC96: 38.02576303 | AD96: 3.556300923 | AE96: 2.864930823 | AF96: 2019
C97: 24.48685578 | D97: 26.30945012 | E97: 50.7963059 | F97: 46.20952624 | G97: 59.95913236 | H97: 4.586779662 | I97: 9.162826461 | J97: 2020 | N97: 18.56909939 | O97: 18.61088675 | P97: 37.17998614 | Q97: 33.66617498 | R97: 41.08239418 | S97: 3.513811157 | T97: 3.902408037 | U97: 2020 | Y97: 23.17985389 | Z97: 1.970786058 | AA97: 25.15063995 | AB97: 24.75142034 | AC97: 26.0844489 | AD97: 0.3992196074 | AE97: 0.9338089494 | AF97: 2020 | AG97: CPLE
L99: FPL | N99: 37.88664225 | O99: 6.198152789 | P99: 44.08479504 | Q99: 42.92991384 | R99: 44.84938992 | S99: 1.154881197 | T99: 0.7645948844 | U99: 2012 | W99: DUK | Y99: 40.65954145 | Z99: 29.69644001 | AA99: 70.35598146 | AB99: 66.57872676 | AC99: 71.14987766 | AD99: 3.777254699 | AE99: 0.7938962053 | AF99: 2012
N100: 38.60879094 | O100: 36.90715101 | P100: 75.51594195 | Q100: 73.2936976 | R100: 76.65616659 | S100: 2.222244355 | T100: 1.14022464 | U100: 2013 | Y100: 42.44339144 | Z100: 18.06280622 | AA100: 60.50619766 | AB100: 53.7438067 | AC100: 62.53262902 | AD100: 6.762390953 | AE100: 2.026431365 | AF100: 2013
N101: 44.14088009 | O101: 48.89963625 | P101: 93.04051633 | Q101: 90.54222299 | R101: 94.57565798 | S101: 2.498293349 | T101: 1.535141643 | U101: 2014 | Y101: 49.72298968 | Z101: 15.39154251 | AA101: 65.11453219 | AB101: 46.73950014 | AC101: 69.31476359 | AD101: 18.37503205 | AE101: 4.200231394 | AF101: 2014
N102: 31.32604765 | O102: 46.84816539 | P102: 78.17421304 | Q102: 75.03593042 | R102: 80.20932211 | S102: 3.138282628 | T102: 2.03510907 | U102: 2015 | Y102: 35.82024421 | Z102: 20.82010192 | AA102: 56.64034613 | AB102: 45.44025729 | AC102: 59.30190431 | AD102: 11.20008885 | AE102: 2.661558175 | AF102: 2015
N103: 27.20685891 | O103: 39.61698418 | P103: 66.82384309 | Q103: 64.8480586 | R103: 72.84461979 | S103: 1.975784481 | T103: 6.020776705 | U103: 2016 | Y103: 34.14525418 | Z103: 17.95639783 | AA103: 52.10165202 | AB103: 47.69007683 | AC103: 54.48727528 | AD103: 4.411575184 | AE103: 2.385623264 | AF103: 2016
N104: 29.57818392 | O104: 26.2150236 | P104: 55.79320752 | Q104: 53.70212722 | R104: 65.93372537 | S104: 2.091080296 | T104: 10.14051785 | U104: 2017 | Y104: 33.6489045 | Z104: 19.080977 | AA104: 52.72988151 | AB104: 50.52890524 | AC104: 56.18177995 | AD104: 2.200976265 | AE104: 3.451898443 | AF104: 2017
N105: 29.24592751 | O105: 36.05236914 | P105: 65.29829665 | Q105: 60.35182795 | R105: 70.91801586 | S105: 4.946468703 | T105: 5.619719207 | U105: 2018 | Y105: 37.73715919 | Z105: 9.169046899 | AA105: 46.90620609 | AB105: 43.02364229 | AC105: 49.48438733 | AD105: 3.882563802 | AE105: 2.578181239 | AF105: 2018
N106: 27.07852048 | O106: 30.66044759 | P106: 57.73896808 | Q106: 52.84540935 | R106: 64.02457605 | S106: 4.893558728 | T106: 6.285607967 | U106: 2019 | Y106: 30.26439371 | Z106: 9.482559554 | AA106: 39.74695326 | AB106: 36.92484449 | AC106: 42.37927947 | AD106: 2.822108772 | AE106: 2.632326207 | AF106: 2019
N107: 20.75237797 | O107: 29.4195098 | P107: 50.17188777 | Q107: 46.6078043 | R107: 55.08642848 | S107: 3.564083469 | T107: 4.914540704 | U107: 2020 | Y107: 23.16568575 | Z107: 3.62889963 | AA107: 26.79458538 | AB107: 26.28474068 | AC107: 27.51874988 | AD107: 0.5098446995 | AE107: 0.7241645011 | AF107: 2020 | AG107: DUK
L109: SOCO | N109: 34.66756567 | O109: 23.86263722 | P109: 58.5302029 | Q109: 57.07088964 | R109: 61.04523129 | S109: 1.459313258 | T109: 2.515028393 | U109: 2012 | W109: PSCO | Y109: 28.78090657 | Z109: 24.55675805 | AA109: 53.33766462 | AB109: 50.30459912 | AC109: 55.5067091 | AD109: 3.0330655 | AE109: 2.169044474 | AF109: 2012
N110: 37.69474617 | O110: 13.51313823 | P110: 51.2078844 | Q110: 49.05201696 | R110: 53.76829495 | S110: 2.155867438 | T110: 2.560410553 | U110: 2013 | Y110: 30.08951802 | Z110: 16.61422808 | AA110: 46.70374609 | AB110: 45.08619444 | AC110: 53.17284394 | AD110: 1.617551649 | AE110: 6.469097847 | AF110: 2013
N111: 43.10066534 | O111: 5.962945894 | P111: 49.06361123 | Q111: 47.62668943 | R111: 59.44226681 | S111: 1.436921805 | T111: 10.37865558 | U111: 2014 | Y111: 34.28933698 | Z111: 12.12614965 | AA111: 46.41548663 | AB111: 43.33592707 | AC111: 50.06820806 | AD111: 3.079559566 | AE111: 3.652721429 | AF111: 2014
N112: 31.31811635 | O112: 13.71520168 | P112: 45.03331804 | Q112: 41.51995247 | R112: 55.43083545 | S112: 3.51336557 | T112: 10.39751742 | U112: 2015 | Y112: 25.01232307 | Z112: 13.73540273 | AA112: 38.7477258 | AB112: 33.42150011 | AC112: 40.97805187 | AD112: 5.326225688 | AE112: 2.230326065 | AF112: 2015
N113: 31.719018 | O113: 15.90261885 | P113: 47.62163685 | Q113: 42.91240751 | R113: 50.43333796 | S113: 4.709229341 | T113: 2.811701107 | U113: 2016 | Y113: 21.30453769 | Z113: 3.4255057 | AA113: 24.73004339 | AB113: 23.48791703 | AC113: 26.00558712 | AD113: 1.24212636 | AE113: 1.27554374 | AF113: 2016
N114: 33.27624701 | O114: 20.12868586 | P114: 53.40493287 | Q114: 46.64150235 | R114: 55.63609524 | S114: 6.763430516 | T114: 2.231162375 | U114: 2017 | Y114: 21.89469262 | Z114: 3.598604477 | AA114: 25.49329709 | AB114: 21.63475173 | AC114: 26.22752386 | AD114: 3.858545362 | AE114: 0.7342267631 | AF114: 2017
N115: 35.63218006 | O115: 10.4717398 | P115: 46.10391986 | Q115: 44.51672639 | R115: 47.86497635 | S115: 1.587193474 | T115: 1.761056487 | U115: 2018 | Y115: 25.61678102 | Z115: 5.337101369 | AA115: 30.95388239 | AB115: 29.56695145 | AC115: 32.06252682 | AD115: 1.386930937 | AE115: 1.108644433 | AF115: 2018
N116: 27.19577392 | O116: 11.69362935 | P116: 38.88940327 | Q116: 34.32821174 | R116: 40.64593329 | S116: 4.561191531 | T116: 1.756530025 | U116: 2019 | Y116: 23.27262648 | Z116: 10.44044267 | AA116: 33.71306915 | AB116: 30.18978934 | AC116: 35.61075889 | AD116: 3.523279813 | AE116: 1.897689737 | AF116: 2019
N117: 22.43510478 | O117: 4.636318247 | P117: 27.07142303 | Q117: 26.17385704 | R117: 28.82925253 | S117: 0.8975659857 | T117: 1.757829496 | U117: 2020 | Y117: 18.56909939 | Z117: 18.61088675 | AA117: 37.17998614 | AB117: 33.66617498 | AC117: 41.08239418 | AD117: 3.513811157 | AE117: 3.902408037 | AF117: 2020 | AG117: PSCO
L119: TVA | N119: 37.07901058 | O119: 0 | P119: 37.07901058 | Q119: 30.0280164 | R119: 37.23558865 | S119: 7.05099418 | T119: 0.1565780676 | U119: 2012 | W119: FPL | Y119: 37.88664225 | Z119: 6.198152789 | AA119: 44.08479504 | AB119: 42.92991384 | AC119: 44.84938992 | AD119: 1.154881197 | AE119: 0.7645948844 | AF119: 2012
N120: 37.48764017 | O120: 15.73455681 | P120: 53.22219698 | Q120: 52.60309693 | R120: 55.40212216 | S120: 0.6191000462 | T120: 2.179925186 | U120: 2013 | Y120: 38.60879094 | Z120: 36.90715101 | AA120: 75.51594195 | AB120: 73.2936976 | AC120: 76.65616659 | AD120: 2.222244355 | AE120: 1.14022464 | AF120: 2013
N121: 42.07240882 | O121: 15.04951375 | P121: 57.12192257 | Q121: 56.7696132 | R121: 58.16039065 | S121: 0.3523093666 | T121: 1.038468075 | U121: 2014 | Y121: 44.14088009 | Z121: 48.89963625 | AA121: 93.04051633 | AB121: 90.54222299 | AC121: 94.57565798 | AD121: 2.498293349 | AE121: 1.535141643 | AF121: 2014
N122: 31.21278864 | O122: 4.518854668 | P122: 35.73164331 | Q122: 31.86821279 | R122: 46.46943289 | S122: 3.863430518 | T122: 10.73778958 | U122: 2015 | Y122: 31.32604765 | Z122: 46.84816539 | AA122: 78.17421304 | AB122: 75.03593042 | AC122: 80.20932211 | AD122: 3.138282628 | AE122: 2.03510907 | AF122: 2015
N123: 31.87644814 | O123: 9.195134224 | P123: 41.07158237 | Q123: 39.11974417 | R123: 43.88434301 | S123: 1.951838196 | T123: 2.812760643 | U123: 2016 | Y123: 27.20685891 | Z123: 39.61698418 | AA123: 66.82384309 | AB123: 64.8480586 | AC123: 72.84461979 | AD123: 1.975784481 | AE123: 6.020776705 | AF123: 2016
N124: 33.04720044 | O124: 22.16921562 | P124: 55.21641606 | Q124: 47.50185037 | R124: 59.66558296 | S124: 7.714565682 | T124: 4.449166907 | U124: 2017 | Y124: 29.57818392 | Z124: 26.2150236 | AA124: 55.79320752 | AB124: 53.70212722 | AC124: 65.93372537 | AD124: 2.091080296 | AE124: 10.14051785 | AF124: 2017
N125: 34.70604481 | O125: 10.00808137 | P125: 44.71412619 | Q125: 39.52086508 | R125: 49.15467697 | S125: 5.193261108 | T125: 4.440550789 | U125: 2018 | Y125: 29.24592751 | Z125: 36.05236914 | AA125: 65.29829665 | AB125: 60.35182795 | AC125: 70.91801586 | AD125: 4.946468703 | AE125: 5.619719207 | AF125: 2018
N126: 27.79117563 | O126: 11.99290893 | P126: 39.78408456 | Q126: 34.73566489 | R126: 43.46762727 | S126: 5.048419673 | T126: 3.683542704 | U126: 2019 | Y126: 27.07852048 | Z126: 30.66044759 | AA126: 57.73896808 | AB126: 52.84540935 | AC126: 64.02457605 | AD126: 4.893558728 | AE126: 6.285607967 | AF126: 2019
N127: 23.32198649 | O127: 4.677585753 | P127: 27.99957224 | Q127: 26.69407791 | R127: 28.53913571 | S127: 1.305494335 | T127: 0.5395634619 | U127: 2020 | Y127: 20.75237797 | Z127: 29.4195098 | AA127: 50.17188777 | AB127: 46.6078043 | AC127: 55.08642848 | AD127: 3.564083469 | AE127: 4.914540704 | AF127: 2020 | AG127: FPL
W129: ERCOT | Y129: 38.03776904 | Z129: 0 | AA129: 38.03776904 | AB129: 35.36063367 | AC129: 43.26304841 | AD129: 2.677135376 | AE129: 5.225279368 | AF129: 2012
Y130: 43.81154672 | Z130: 0 | AA130: 43.81154672 | AB130: 38.64404124 | AC130: 50.14586974 | AD130: 5.167505477 | AE130: 6.334323019 | AF130: 2013
Y131: 44.57060531 | Z131: 0 | AA131: 44.57060531 | AB131: 42.76343758 | AC131: 47.76584387 | AD131: 1.807167732 | AE131: 3.195238556 | AF131: 2014
Y132: 33.59872577 | Z132: 0 | AA132: 33.59872577 | AB132: 28.31183116 | AC132: 36.13269073 | AD132: 5.286894608 | AE132: 2.533964969 | AF132: 2015
Y133: 31.77718438 | Z133: 0 | AA133: 31.77718438 | AB133: 28.33050436 | AC133: 35.44674124 | AD133: 3.446680021 | AE133: 3.669556854 | AF133: 2016
Y134: 27.32214187 | Z134: 0 | AA134: 27.32214187 | AB134: 22.29697681 | AC134: 35.00886954 | AD134: 5.025165064 | AE134: 7.68672766 | AF134: 2017
Y135: 41.16057224 | Z135: 0 | AA135: 41.16057224 | AB135: 24.43143881 | AC135: 45.96843349 | AD135: 16.72913343 | AE135: 4.807861256 | AF135: 2018
Y136: 61.01321121 | Z136: 0 | AA136: 61.01321121 | AB136: 30.10467252 | AC136: 74.88511943 | AD136: 30.90853869 | AE136: 13.87190822 | AF136: 2019
Y137: 23.64619154 | Z137: 0 | AA137: 23.64619154 | AB137: 18.49801281 | AC137: 29.27815387 | AD137: 5.148178736 | AE137: 5.631962325 | AF137: 2020 | AG137: ERCOT
W139: NYISO | Y139: 57.61181557 | Z139: 4.826004168 | AA139: 62.43781974 | AB139: 52.1771733 | AC139: 86.42451982 | AD139: 10.26064644 | AE139: 23.98670008 | AF139: 2012
Y140: 71.18972525 | Z140: 14.28128739 | AA140: 85.47101264 | AB140: 59.77257797 | AC140: 99.32248217 | AD140: 25.69843467 | AE140: 13.85146953 | AF140: 2013
Y141: 65.72544461 | Z141: 15.8529022 | AA141: 81.57834681 | AB141: 57.94660938 | AC141: 86.4664452 | AD141: 23.63173743 | AE141: 4.88809839 | AF141: 2014
Y142: 46.07986957 | Z142: 13.55513215 | AA142: 59.63500172 | AB142: 35.96676583 | AC142: 63.85446815 | AD142: 23.66823589 | AE142: 4.219466431 | AF142: 2015
Y143: 36.97601809 | Z143: 11.34759733 | AA143: 48.32361542 | AB143: 29.86958316 | AC143: 55.06067358 | AD143: 18.45403226 | AE143: 6.737058157 | AF143: 2016
Y144: 35.08735657 | Z144: 13.68541566 | AA144: 48.77277223 | AB144: 30.7793962 | AC144: 55.24495242 | AD144: 17.99337602 | AE144: 6.472180198 | AF144: 2017
Y145: 42.51355214 | Z145: 12.23836905 | AA145: 54.75192119 | AB145: 33.08765785 | AC145: 61.8745872 | AD145: 21.66426334 | AE145: 7.122666009 | AF145: 2018
Y146: 29.51377886 | Z146: 8.502095193 | AA146: 38.01587406 | AB146: 22.68865 | AC146: 45.67124479 | AD146: 15.32722405 | AE146: 7.655370737 | AF146: 2019
Y147: 22.60780012 | Z147: 9.583922998 | AA147: 32.19172312 | AB147: 21.01339907 | AC147: 37.11774539 | AD147: 11.17832405 | AE147: 4.926022273 | AF147: 2020 | AG147: NYISO
W149: SOCO | Y149: 34.66756567 | Z149: 23.86263722 | AA149: 58.5302029 | AB149: 57.07088964 | AC149: 61.04523129 | AD149: 1.459313258 | AE149: 2.515028393 | AF149: 2012
Y150: 37.69474617 | Z150: 13.51313823 | AA150: 51.2078844 | AB150: 49.05201696 | AC150: 53.76829495 | AD150: 2.155867438 | AE150: 2.560410553 | AF150: 2013
Y151: 43.10066534 | Z151: 5.962945894 | AA151: 49.06361123 | AB151: 47.62668943 | AC151: 59.44226681 | AD151: 1.436921805 | AE151: 10.37865558 | AF151: 2014
Y152: 31.31811635 | Z152: 13.71520168 | AA152: 45.03331804 | AB152: 41.51995247 | AC152: 55.43083545 | AD152: 3.51336557 | AE152: 10.39751742 | AF152: 2015
Y153: 31.719018 | Z153: 15.90261885 | AA153: 47.62163685 | AB153: 42.91240751 | AC153: 50.43333796 | AD153: 4.709229341 | AE153: 2.811701107 | AF153: 2016
Y154: 33.27624701 | Z154: 20.12868586 | AA154: 53.40493287 | AB154: 46.64150235 | AC154: 55.63609524 | AD154: 6.763430516 | AE154: 2.231162375 | AF154: 2017
Y155: 35.63218006 | Z155: 10.4717398 | AA155: 46.10391986 | AB155: 44.51672639 | AC155: 47.86497635 | AD155: 1.587193474 | AE155: 1.761056487 | AF155: 2018
Y156: 27.19577392 | Z156: 11.69362935 | AA156: 38.88940327 | AB156: 34.32821174 | AC156: 40.64593329 | AD156: 4.561191531 | AE156: 1.756530025 | AF156: 2019
Y157: 22.43510478 | Z157: 4.636318247 | AA157: 27.07142303 | AB157: 26.17385704 | AC157: 28.82925253 | AD157: 0.8975659857 | AE157: 1.757829496 | AF157: 2020 | AG157: SOCO
W159: PJM | Y159: 45.63201802 | Z159: 15.8415036 | AA159: 61.47352162 | AB159: 50.30068867 | AC159: 64.94920227 | AD159: 11.17283295 | AE159: 3.475680656 | AF159: 2012
Y160: 50.05424285 | Z160: 21.76745042 | AA160: 71.82169327 | AB160: 51.39142323 | AC160: 78.52358944 | AD160: 20.43027004 | AE160: 6.701896177 | AF160: 2013
Y161: 60.2933717 | Z161: 20.95697629 | AA161: 81.25034799 | AB161: 64.25395528 | AC161: 85.64086941 | AD161: 16.99639271 | AE161: 4.390521425 | AF161: 2014
Y162: 39.8676797 | Z162: 18.6781612 | AA162: 58.54584091 | AB162: 53.02961269 | AC162: 67.35580748 | AD162: 5.516228215 | AE162: 8.809966576 | AF162: 2015
Y163: 32.44796425 | Z163: 16.87260348 | AA163: 49.32056773 | AB163: 44.36839055 | AC163: 57.64446658 | AD163: 4.952177178 | AE163: 8.323898849 | AF163: 2016
Y164: 34.1793158 | Z164: 16.555654 | AA164: 50.7349698 | AB164: 45.92789743 | AC164: 56.44844412 | AD164: 4.807072372 | AE164: 5.713474321 | AF164: 2017
Y165: 39.79453429 | Z165: 21.86957288 | AA165: 61.66410717 | AB165: 57.32609491 | AC165: 67.85109975 | AD165: 4.338012263 | AE165: 6.186992579 | AF165: 2018
Y166: 27.98333865 | Z166: 16.67437082 | AA166: 44.65770947 | AB166: 41.77044488 | AC166: 50.04284636 | AD166: 2.887264592 | AE166: 5.385136888 | AF166: 2019
Y167: 21.73124034 | Z167: 14.44660583 | AA167: 36.17784616 | AB167: 32.25791702 | AC167: 41.74029873 | AD167: 3.919929141 | AE167: 5.562452566 | AF167: 2020 | AG167: PJM
W169: MISO | Y169: 36.11135717 | Z169: 0.0244050945 | AA169: 36.13576226 | AB169: 31.33743574 | AC169: 42.28897963 | AD169: 4.798326525 | AE169: 6.153217367 | AF169: 2012
Y170: 39.07933861 | Z170: 0.1245727325 | AA170: 39.20391135 | AB170: 34.26466815 | AC170: 43.98820923 | AD170: 4.939243197 | AE170: 4.78429788 | AF170: 2013
Y171: 46.38803562 | Z171: 1.294431365 | AA171: 47.68246698 | AB171: 36.86066891 | AC171: 51.00483408 | AD171: 10.82179807 | AE171: 3.322367101 | AF171: 2014
Y172: 35.12703589 | Z172: 1.271163363 | AA172: 36.39819925 | AB172: 27.43596569 | AC172: 40.74433448 | AD172: 8.962233555 | AE172: 4.346135226 | AF172: 2015
Y173: 34.65937426 | Z173: 3.849282207 | AA173: 38.50865647 | AB173: 30.71498407 | AC173: 44.08878603 | AD173: 7.7936724 | AE173: 5.580129559 | AF173: 2016
Y174: 34.67338497 | Z174: 2.284733172 | AA174: 36.95811814 | AB174: 30.33017308 | AC174: 42.90412785 | AD174: 6.627945067 | AE174: 5.946009708 | AF174: 2017
Y175: 35.36728639 | Z175: 0.5682129294 | AA175: 35.93549932 | AB175: 29.68780998 | AC175: 40.96573986 | AD175: 6.247689336 | AE175: 5.030240542 | AF175: 2018
Y176: 26.76929989 | Z176: 0.7170835868 | AA176: 27.48638347 | AB176: 23.63437424 | AC176: 31.80933063 | AD176: 3.852009235 | AE176: 4.322947159 | AF176: 2019
Y177: 22.33262009 | Z177: 1.980232048 | AA177: 24.31285214 | AB177: 18.71186731 | AC177: 28.64248876 | AD177: 5.600984834 | AE177: 4.329636625 | AF177: 2020 | AG177: MISO
W179: SPP | Y179: 31.45935547 | Z179: 21.94404913 | AA179: 53.4034046 | AB179: 52.03656003 | AC179: 56.79860848 | AD179: 1.366844573 | AE179: 3.395203875 | AF179: 2012
Y180: 37.53055216 | Z180: 36.47586678 | AA180: 74.00641895 | AB180: 72.2014912 | AC180: 78.37225842 | AD180: 1.804927751 | AE180: 4.365839476 | AF180: 2013
Y181: 46.99181272 | Z181: 32.02398603 | AA181: 79.01579875 | AB181: 75.08683459 | AC181: 84.36414164 | AD181: 3.928964155 | AE181: 5.348342892 | AF181: 2014
Y182: 29.94968532 | Z182: 28.78531679 | AA182: 58.73500211 | AB182: 54.32266193 | AC182: 62.15660042 | AD182: 4.412340173 | AE182: 3.421598314 | AF182: 2015
Y183: 29.84254084 | Z183: 36.82578065 | AA183: 66.66832149 | AB183: 57.38615768 | AC183: 73.96799958 | AD183: 9.282163811 | AE183: 7.299678092 | AF183: 2016
Y184: 30.19133248 | Z184: 30.62154567 | AA184: 60.81287815 | AB184: 57.09718933 | AC184: 75.99424728 | AD184: 3.715688822 | AE184: 15.18136912 | AF184: 2017
Y185: 30.02667713 | Z185: 29.17730652 | AA185: 59.20398365 | AB185: 55.69029896 | AC185: 72.3955151 | AD185: 3.513684683 | AE185: 13.19153145 | AF185: 2018
Y186: 28.17583218 | Z186: 27.26005506 | AA186: 55.43588724 | AB186: 51.32771497 | AC186: 64.83945633 | AD186: 4.10817227 | AE186: 9.403569086 | AF186: 2019
Y187: 24.48685578 | Z187: 26.30945012 | AA187: 50.7963059 | AB187: 46.20952624 | AC187: 59.95913236 | AD187: 4.586779662 | AE187: 9.162826461 | AF187: 2020 | AG187: SPP
W189: TVA | Y189: 37.07901058 | Z189: 0 | AA189: 37.07901058 | AB189: 30.0280164 | AC189: 37.23558865 | AD189: 7.05099418 | AE189: 0.1565780676 | AF189: 2012
Y190: 37.48764017 | Z190: 15.73455681 | AA190: 53.22219698 | AB190: 52.60309693 | AC190: 55.40212216 | AD190: 0.6191000462 | AE190: 2.179925186 | AF190: 2013
Y191: 42.07240882 | Z191: 15.04951375 | AA191: 57.12192257 | AB191: 56.7696132 | AC191: 58.16039065 | AD191: 0.3523093666 | AE191: 1.038468075 | AF191: 2014
Y192: 31.21278864 | Z192: 4.518854668 | AA192: 35.73164331 | AB192: 31.86821279 | AC192: 46.46943289 | AD192: 3.863430518 | AE192: 10.73778958 | AF192: 2015
Y193: 31.87644814 | Z193: 9.195134224 | AA193: 41.07158237 | AB193: 39.11974417 | AC193: 43.88434301 | AD193: 1.951838196 | AE193: 2.812760643 | AF193: 2016
Y194: 33.04720044 | Z194: 22.16921562 | AA194: 55.21641606 | AB194: 47.50185037 | AC194: 59.66558296 | AD194: 7.714565682 | AE194: 4.449166907 | AF194: 2017
Y195: 34.70604481 | Z195: 10.00808137 | AA195: 44.71412619 | AB195: 39.52086508 | AC195: 49.15467697 | AD195: 5.193261108 | AE195: 4.440550789 | AF195: 2018
Y196: 27.79117563 | Z196: 11.99290893 | AA196: 39.78408456 | AB196: 34.73566489 | AC196: 43.46762727 | AD196: 5.048419673 | AE196: 3.683542704 | AF196: 2019
Y197: 23.32198649 | Z197: 4.677585753 | AA197: 27.99957224 | AB197: 26.69407791 | AC197: 28.53913571 | AD197: 1.305494335 | AE197: 0.5395634619 | AF197: 2020 | AG197: TVA

Sheet Solar Value vs. PPA Prices
A1: Solar's energy and capacity value versus PPA prices by region and year
A20: Sources: Berkeley Lab, ABB, ISOs
A21: Notes: For Solar Energy and Capacity Value see Tab "Energy and Capacity Value"
C23: Berkeley Lab PPA | D23: Level10 PPA | E23: Energy | F23: Capacity
C24: Price | D24: Price | E24: Value | F24: Value
C25: 2020 $/MWh | D25: 2020 $/MWh | E25: 2020 $/MWh | F25: 2020 $/MWh | G25: Year
A26: 2012-20 CAISO | C26: 87.07175345 | E26: 38.45374064 | F26: 18.34776524 | G26: 2012
C27: 66.86716982 | E27: 44.4657048 | F27: 17.98514284 | G27: 2013
C28: 57.32484979 | E28: 44.7956195 | F28: 18.30369339 | G28: 2014
C29: 49.86459936 | E29: 28.28756846 | F29: 12.43345142 | G29: 2015
C30: 37.84697856 | E30: 24.6739462 | F30: 9.72694185 | G30: 2016
C31: 36.14071459 | E31: 25.54977282 | F31: 9.541423803 | G31: 2017
C32: 38.42462339 | D32: 27.054196 | E32: 26.30639906 | F32: 5.362826296 | G32: 2018
C33: 16.17843193 | D33: 24.13413175 | E33: 23.80653271 | F33: 6.569515622 | G33: 2019
D34: 24.52508753 | E34: 20.92132579 | F34: 3.975631844 | G34: 2020
A36: 2012-20 ERCOT | E36: 38.03776904 | F36: 0 | G36: 2012
E37: 43.81154672 | F37: 0 | G37: 2013
C38: 43.76779255 | E38: 44.57060531 | F38: 0 | G38: 2014
C39: 35.36512814 | E39: 33.59872577 | F39: 0 | G39: 2015
C40: 34.2156561 | E40: 31.77718438 | F40: 0 | G40: 2016
C41: 22.03854053 | E41: 27.32214187 | F41: 0 | G41: 2017
C42: 30.71821215 | D42: 25.87503111 | E42: 41.16057224 | F42: 0 | G42: 2018
D43: 24.5656182 | E43: 61.01321121 | F43: 0 | G43: 2019
D44: 25.39610173 | E44: 23.64619154 | F44: 0 | G44: 2020
A46: 2012-20 SPP | E46: 31.45935547 | F46: 21.94404913 | G46: 2012
E47: 37.53055216 | F47: 36.47586678 | G47: 2013
E48: 46.99181272 | F48: 32.02398603 | G48: 2014
C49: 38.97236083 | E49: 29.94968532 | F49: 28.78531679 | G49: 2015
E50: 29.84254084 | F50: 36.82578065 | G50: 2016
E51: 30.19133248 | F51: 30.62154567 | G51: 2017
C52: 59.32046953 | D52: 27.5719278 | E52: 30.02667713 | F52: 29.17730652 | G52: 2018
C53: 43.11242695 | D53: 24.94534778 | E53: 28.17583218 | F53: 27.26005506 | G53: 2019
D54: 27.61783816 | E54: 24.48685578 | F54: 26.30945012 | G54: 2020
A56: 2012-20 MISO | E56: 36.11135717 | F56: 0.0244050945 | G56: 2012
C57: 99.91057584 | E57: 39.07933861 | F57: 0.1245727325 | G57: 2013
C58: 66.35840065 | E58: 46.38803562 | F58: 1.294431365 | G58: 2014
C59: 52.13119186 | E59: 35.12703589 | F59: 1.271163363 | G59: 2015
E60: 34.65937426 | F60: 3.849282207 | G60: 2016
C61: 28.19773586 | E61: 34.67338497 | F61: 2.284733172 | G61: 2017
C62: 41.83832397 | D62: 32.84326905 | E62: 35.36728639 | F62: 0.5682129294 | G62: 2018
C63: 37.52625075 | D63: 32.16172458 | E63: 26.76929989 | F63: 0.7170835868 | G63: 2019
D64: 31.72032277 | E64: 22.33262009 | F64: 1.980232048 | G64: 2020
A66: 2012-20 PJM | E66: 45.63201802 | F66: 15.8415036 | G66: 2012
E67: 50.05424285 | F67: 21.76745042 | G67: 2013
C68: 64.79562043 | E68: 60.2933717 | F68: 20.95697629 | G68: 2014
C69: 67.58330731 | E69: 39.8676797 | F69: 18.6781612 | G69: 2015
C70: 45.34153072 | E70: 32.44796425 | F70: 16.87260348 | G70: 2016
C71: 82.49475346 | E71: 34.1793158 | F71: 16.555654 | G71: 2017
C72: 32.44276832 | D72: 35.04667992 | E72: 39.79453429 | F72: 21.86957288 | G72: 2018
C73: 31.48065264 | D73: 34.37962812 | E73: 27.98333865 | F73: 16.67437082 | G73: 2019
D74: 36.02030155 | E74: 21.73124034 | F74: 14.44660583 | G74: 2020
A76: 2012-20 ISO-NE | E76: 48.76507323 | F76: 4.695166695 | G76: 2012
C77: 100.7192787 | E77: 66.42243842 | F77: 4.085221931 | G77: 2013
E78: 65.69737997 | F78: 4.413051299 | G78: 2014
E79: 45.01176201 | F79: 4.455441238 | G79: 2015
E80: 33.62298266 | F80: 5.858568398 | G80: 2016
C81: 76.04070781 | E81: 34.56996192 | F81: 9.982320591 | G81: 2017
E82: 42.60540236 | F82: 15.1056986 | G82: 2018
C83: 42.77639286 | E83: 28.44749952 | F83: 12.12456142 | G83: 2019
C84: 42.37403108 | E84: 21.45255855 | F84: 7.908198493 | G84: 2020
A86: 2012-20 West (non-ISO) | C86: 83.07599223 | E86: 23.32022289 | F86: 19.73603061 | G86: 2012
C87: 63.31090792 | E87: 36.78960811 | F87: 14.51642599 | G87: 2013
C88: 56.46963135 | E88: 38.40777518 | F88: 9.448419161 | G88: 2014
C89: 42.87459585 | E89: 26.03517391 | F89: 10.41318552 | G89: 2015
C90: 32.92874627 | E90: 21.91513602 | F90: 3.038518876 | G90: 2016
C91: 32.12825173 | E91: 23.73053946 | F91: 2.728372722 | G91: 2017
C92: 21.99607823 | E92: 26.93350295 | F92: 3.940883167 | G92: 2018
C93: 18.06709058 | E93: 24.43788387 | F93: 7.200869607 | G93: 2019
C94: 20.65621337 | E94: 22.42789014 | F94: 12.02799234 | G94: 2020
A96: 2012-20 Southeast (non-ISO) | E96: 39.26296455 | F96: 20.19585687 | G96: 2012
C97: 67.08628961 | E97: 41.11347227 | F97: 19.20263067 | G97: 2013
C98: 58.32685812 | E98: 48.58249449 | F98: 14.57179349 | G98: 2014
C99: 53.13176141 | E99: 34.91994279 | F99: 15.59340843 | G99: 2015
C100: 46.36667123 | E100: 33.31551415 | F100: 15.19978501 | G100: 2016
C101: 28.54557796 | E101: 33.12247706 | F101: 18.20072306 | G101: 2017
C102: 26.74372643 | E102: 35.43272028 | F102: 13.90040398 | G102: 2018
C103: 22.67685454 | E103: 28.78772333 | F103: 13.54283061 | G103: 2019
C104: 36.65653158 | E104: 22.34700395 | F104: 10.22341572 | G104: 2020

Sheet Value Factor vs. Penetration
A1: Solar value factor versus solar market penetration by region and year
A19: Sources: Berkeley Lab, ABB, ISOs
A20: Notes: Solar value factor describes the market value of solar in proportion to that of a generalized flat-block, i.e., 24x7 average price across all pricing nodes in region.
A21: For more details on methodology see forthcoming Berkeley Lab publication "Solar2Grid"
A25: ISOs Only | G25: Non-ISO BAs Only | M25: ISOs and non-ISO BAs Combined
C26: Solar | D26: Solar | I26: Solar | J26: Solar | O26: Solar | P26: Solar
C27: Market | D27: Value | I27: Market | J27: Value | O27: Market | P27: Value
C28: Penetration | D28: Factor | E28: Year | I28: Penetration | J28: Factor | K28: Year | O28: Penetration | P28: Factor | Q28: Year
A29: CAISO | C29: 0.01600159541 | D29: 1.354532842 | E29: 2012 | G29: AZPS | I29: 0.01665805354 | J29: 1.144377093 | K29: 2012 | M29: CAISO | O29: 0.01600159541 | P29: 1.354532842 | Q29: 2012
C30: 0.02945693338 | D30: 1.210942854 | E30: 2013 | I30: 0.03652038466 | J30: 1.094881255 | K30: 2013 | O30: 0.02945693338 | P30: 1.210942854 | Q30: 2013
C31: 0.06468383159 | D31: 1.096915406 | E31: 2014 | I31: 0.06822126487 | J31: 0.9316019141 | K31: 2014 | O31: 0.06468383159 | P31: 1.096915406 | Q31: 2014
C32: 0.09519058365 | D32: 0.9757294365 | E32: 2015 | I32: 0.07310885075 | J32: 0.9259189214 | K32: 2015 | O32: 0.09519058365 | P32: 0.9757294365 | Q32: 2015
C33: 0.1242931091 | D33: 0.9202729737 | E33: 2016 | I33: 0.08246171533 | J33: 0.8018029939 | K33: 2016 | O33: 0.1242931091 | P33: 0.9202729737 | Q33: 2016
C34: 0.1533494403 | D34: 0.9114006103 | E34: 2017 | I34: 0.08991866113 | J34: 0.7718683523 | K34: 2017 | O34: 0.1533494403 | P34: 0.9114006103 | Q34: 2017
C35: 0.1735761773 | D35: 0.7327012823 | E35: 2018 | I35: 0.1006151885 | J35: 0.781707831 | K35: 2018 | O35: 0.1735761773 | P35: 0.7327012823 | Q35: 2018
C36: 0.1895807165 | D36: 0.7009409454 | E36: 2019 | I36: 0.1135160469 | J36: 0.7451556226 | K36: 2019 | O36: 0.1895807165 | P36: 0.7009409454 | Q36: 2019
C37: 0.2117868529 | D37: 0.7044654556 | E37: 2020 | I37: 0.1186471444 | J37: 0.8677944645 | K37: 2020 | O37: 0.2117868529 | P37: 0.7044654556 | Q37: 2020 | R37: CAISO
A39: ISO-NE | C39: 0.002144432351 | D39: 1.160071009 | E39: 2012 | G39: PNM | I39: 0.005823452249 | J39: 1.291722107 | K39: 2012 | M39: AZPS | O39: 0.01665805354 | P39: 1.144377093 | Q39: 2012
C40: 0.004838408966 | D40: 1.064730836 | E40: 2013 | I40: 0.01092556498 | J40: 1.184216116 | K40: 2013 | O40: 0.03652038466 | P40: 1.094881255 | Q40: 2013
C41: 0.009776551088 | D41: 0.9634324715 | E41: 2014 | I41: 0.02039653149 | J41: 1.041693949 | K41: 2014 | O41: 0.06822126487 | P41: 0.9316019141 | Q41: 2014
C42: 0.01493197224 | D42: 1.011933136 | E42: 2015 | I42: 0.02707678597 | J42: 1.028686757 | K42: 2015 | O42: 0.07310885075 | P42: 0.9259189214 | Q42: 2015
C43: 0.02153420649 | D43: 1.076050225 | E43: 2016 | I43: 0.03909511014 | J43: 0.9084485566 | K43: 2016 | O43: 0.08246171533 | P43: 0.8018029939 | Q43: 2016
C44: 0.02795520726 | D44: 1.004158098 | E44: 2017 | I44: 0.05247588353 | J44: 0.7894705821 | K44: 2017 | O44: 0.08991866113 | P44: 0.7718683523 | Q44: 2017
C45: 0.03353193878 | D45: 0.9997925269 | E45: 2018 | I45: 0.06677542049 | J45: 0.8616655691 | K45: 2018 | O45: 0.1006151885 | P45: 0.781707831 | Q45: 2018
C46: 0.04335689973 | D46: 0.9485793601 | E46: 2019 | I46: 0.07649641788 | J46: 0.9192329339 | K46: 2019 | O46: 0.1135160469 | P46: 0.7451556226 | Q46: 2019
C47: 0.05203033987 | D47: 0.935602005 | E47: 2020 | I47: 0.11501993 | J47: 1.132578323 | K47: 2020 | O47: 0.1186471444 | P47: 0.8677944645 | Q47: 2020 | R47: AZPS
A49: ERCOT | C49: 0.0005232517138 | D49: 1.283828955 | E49: 2012 | G49: NEVP | I49: 0.009434806233 | J49: 1.127775573 | K49: 2012 | M49: PNM | O49: 0.005823452249 | P49: 1.291722107 | Q49: 2012
C50: 0.0006936400948 | D50: 1.242443063 | E50: 2013 | I50: 0.01399190736 | J50: 1.122001039 | K50: 2013 | O50: 0.01092556498 | P50: 1.184216116 | Q50: 2013
C51: 0.001285759086 | D51: 1.075983516 | E51: 2014 | I51: 0.01768333362 | J51: 1.001228189 | K51: 2014 | O51: 0.02039653149 | P51: 1.041693949 | Q51: 2014
C52: 0.001658984297 | D52: 1.214920153 | E52: 2015 | I52: 0.02197722274 | J52: 0.9718695689 | K52: 2015 | O52: 0.02707678597 | P52: 1.028686757 | Q52: 2015
C53: 0.002961369322 | D53: 1.32041498 | E53: 2016 | I53: 0.03862353714 | J53: 0.8924604324 | K53: 2016 | O53: 0.03909511014 | P53: 0.9084485566 | Q53: 2016
C54: 0.007413361618 | D54: 0.9947891857 | E54: 2017 | I54: 0.07148923659 | J54: 0.8326480763 | K54: 2017 | O54: 0.05247588353 | P54: 0.7894705821 | Q54: 2017
C55: 0.01057009038 | D55: 1.204173425 | E55: 2018 | I55: 0.08234836303 | J55: 0.7863725456 | K55: 2018 | O55: 0.06677542049 | P55: 0.8616655691 | Q55: 2018
C56: 0.01392800498 | D56: 1.305913705 | E56: 2019 | I56: 0.09316617555 | J56: 0.7842984349 | K56: 2019 | O56: 0.07649641788 | P56: 0.9192329339 | Q56: 2019
C57: 0.0277765847 | D57: 0.9592432053 | E57: 2020 | I57: 0.1141329943 | J57: 0.8375769639 | K57: 2020 | O57: 0.11501993 | P57: 1.132578323 | Q57: 2020 | R57: PNM
A59: NYISO | C59: 0.001188669746 | D59: 1.328473512 | E59: 2012 | G59: PACE | I59: 0.0005729327854 | J59: 1.399182855 | K59: 2012 | M59: NEVP | O59: 0.009434806233 | P59: 1.127775573 | Q59: 2012
C60: 0.001709352078 | D60: 1.349053173 | E60: 2013 | I60: 0.0008024034999 | J60: 1.391473258 | K60: 2013 | O60: 0.01399190736 | P60: 1.122001039 | Q60: 2013
C61: 0.002687040909 | D61: 1.162737086 | E61: 2014 | I61: 0.001495930892 | J61: 1.234344129 | K61: 2014 | O61: 0.01768333362 | P61: 1.001228189 | Q61: 2014
C62: 0.004691653861 | D62: 1.264710646 | E62: 2015 | I62: 0.002207388704 | J62: 1.382237133 | K62: 2015 | O62: 0.02197722274 | P62: 0.9718695689 | Q62: 2015
C63: 0.007165782849 | D63: 1.357867946 | E63: 2016 | I63: 0.01792442497 | J63: 1.046455146 | K63: 2016 | O63: 0.03862353714 | P63: 0.8924604324 | Q63: 2016
C64: 0.009711682856 | D64: 1.316444106 | E64: 2017 | I64: 0.03543904401 | J64: 0.9052375757 | K64: 2017 | O64: 0.07148923659 | P64: 0.8326480763 | Q64: 2017
C65: 0.01169153853 | D65: 1.24944298 | E65: 2018 | I65: 0.03763490418 | J65: 0.948809504 | K65: 2018 | O65: 0.08234836303 | P65: 0.7863725456 | Q65: 2018
C66: 0.01617885721 | D66: 1.213766785 | E66: 2019 | I66: 0.04077977536 | J66: 0.9545851852 | K66: 2019 | O66: 0.09316617555 | P66: 0.7842984349 | Q66: 2019
C67: 0.02214339379 | D67: 1.180811582 | E67: 2020 | I67: 0.04749592975 | J67: 1.173419194 | K67: 2020 | O67: 0.1141329943 | P67: 0.8375769639 | Q67: 2020 | R67: NEVP
A69: PJM | C69: 0.002347724816 | D69: 1.503413994 | E69: 2012 | G69: CPLE | I69: 0.001998234093 | J69: 1.486909281 | K69: 2012 | M69: ISO-NE | O69: 0.002144432351 | P69: 1.160071009 | Q69: 2012
C70: 0.00312928075 | D70: 1.635180038 | E70: 2013 | I70: 0.00356780245 | J70: 1.307678942 | K70: 2013 | O70: 0.004838408966 | P70: 1.064730836 | Q70: 2013
C71: 0.003699966892 | D71: 1.429527357 | E71: 2014 | I71: 0.00722022166 | J71: 1.130295786 | K71: 2014 | O71: 0.009776551088 | P71: 0.9634324715 | Q71: 2014
C72: 0.004527236877 | D72: 1.384859867 | E72: 2015 | I72: 0.01191937532 | J72: 1.095998328 | K72: 2015 | O72: 0.01493197224 | P72: 1.011933136 | Q72: 2015
C73: 0.006289411284 | D73: 1.429095812 | E73: 2016 | I73: 0.02064447982 | J73: 1.229429175 | K73: 2016 | O73: 0.02153420649 | P73: 1.076050225 | Q73: 2016
C74: 0.008311543605 | D74: 1.430211055 | E74: 2017 | I74: 0.02707804617 | J74: 1.221780748 | K74: 2017 | O74: 0.02795520726 | P74: 1.004158098 | Q74: 2017
C75: 0.009507322673 | D75: 1.439286675 | E75: 2018 | I75: 0.03118775043 | J75: 1.123973296 | K75: 2018 | O75: 0.03353193878 | P75: 0.9997925269 | Q75: 2018
C76: 0.01206409667 | D76: 1.397881586 | E76: 2019 | I76: 0.03927707443 | J76: 1.141472205 | K76: 2019 | O76: 0.04335689973 | P76: 0.9485793601 | Q76: 2019
C77: 0.0151320114 | D77: 1.440902516 | E77: 2020 | I77: 0.0424864397 | J77: 1.149793874 | K77: 2020 | O77: 0.05203033987 | P77: 0.935602005 | Q77: 2020 | R77: ISO-NE
A79: MISO | C79: 0.0001098834298 | D79: 1.233189235 | E79: 2012 | G79: DUK | I79: 0.0004767683739 | J79: 1.555830523 | K79: 2012 | M79: PACE | O79: 0.0005729327854 | P79: 1.399182855 | Q79: 2012
C80: 0.0002322392029 | D80: 1.179686651 | E80: 2013 | I80: 0.001507113506 | J80: 1.405980172 | K80: 2013 | O80: 0.0008024034999 | P80: 1.391473258 | Q80: 2013
C81: 0.0005769391684 | D81: 1.198953379 | E81: 2014 | I81: 0.003240257179 | J81: 1.223395133 | K81: 2014 | O81: 0.001495930892 | P81: 1.234344129 | Q81: 2014
C82: 0.0008278956396 | D82: 1.317702845 | E82: 2015 | I82: 0.005263762728 | J82: 1.393771202 | K82: 2015 | O82: 0.002207388704 | P82: 1.382237133 | Q82: 2015
C83: 0.001119824804 | D83: 1.388424333 | E83: 2016 | I83: 0.01342037674 | J83: 1.451435908 | K83: 2016 | O83: 0.01792442497 | P83: 1.046455146 | Q83: 2016
C84: 0.002433581049 | D84: 1.270359966 | E84: 2017 | I84: 0.02406448234 | J84: 1.4388958 | K84: 2017 | O84: 0.03543904401 | P84: 0.9052375757 | Q84: 2017
C85: 0.003740261658 | D85: 1.178545571 | E85: 2018 | I85: 0.02719062802 | J85: 1.22972637 | K85: 2018 | O85: 0.03763490418 | P85: 0.948809504 | Q85: 2018
C86: 0.004476710643 | D86: 1.115038537 | E86: 2019 | I86: 0.03422911809 | J86: 1.290357467 | K86: 2019 | O86: 0.04077977536 | P86: 0.9545851852 | Q86: 2019
C87: 0.006180679488 | D87: 1.181405832 | E87: 2020 | I87: 0.03707008774 | J87: 1.224948955 | K87: 2020 | O87: 0.04749592975 | P87: 1.173419194 | Q87: 2020 | R87: PACE
A89: SPP | C89: 0.0005754594881 | D89: 1.51415336 | E89: 2012 | G89: PSCO | I89: 0.008434047044 | J89: 1.595885996 | K89: 2012 | M89: CPLE | O89: 0.001998234093 | P89: 1.486909281 | Q89: 2012
C90: 0.0006555550992 | D90: 1.648211054 | E90: 2013 | I90: 0.01125583265 | J90: 1.435741466 | K90: 2013 | O90: 0.00356780245 | P90: 1.307678942 | Q90: 2013
C91: 0.0009128362958 | D91: 1.627859976 | E91: 2014 | I91: 0.01275481244 | J91: 1.467949543 | K91: 2014 | O91: 0.00722022166 | P91: 1.130295786 | Q91: 2014
C92: 0.001005969706 | D92: 1.652849184 | E92: 2015 | I92: 0.0126881123 | J92: 1.500100282 | K92: 2015 | O92: 0.01191937532 | P92: 1.095998328 | Q92: 2015
C93: 0.001320891621 | D93: 1.914483912 | E93: 2016 | I93: 0.01948754186 | J93: 1.493702625 | K93: 2016 | O93: 0.02064447982 | P93: 1.229429175 | Q93: 2016
C94: 0.003107471773 | D94: 1.754260048 | E94: 2017 | I94: 0.02811356118 | J94: 1.645211583 | K94: 2017 | O94: 0.02707804617 | P94: 1.221780748 | Q94: 2017
C95: 0.00350142757 | D95: 1.604496717 | E95: 2018 | I95: 0.03048201806 | J95: 1.34163206 | K95: 2018 | O95: 0.03118775043 | P95: 1.123973296 | Q95: 2018
C96: 0.003692416468 | D96: 1.774438217 | E96: 2019 | I96: 0.03200363358 | J96: 1.551953483 | K96: 2019 | O96: 0.03927707443 | P96: 1.141472205 | Q96: 2019
C97: 0.004688384518 | D97: 1.877143402 | E97: 2020 | I97: 0.03394908064 | J97: 1.740612493 | K97: 2020 | O97: 0.0424864397 | P97: 1.149793874 | Q97: 2020 | R97: CPLE
G99: FPL | I99: 0.0008121665243 | J99: 1.078851242 | K99: 2012 | M99: DUK | O99: 0.0004767683739 | P99: 1.555830523 | Q99: 2012
I100: 0.0008933821443 | J100: 1.635565963 | K100: 2013 | O100: 0.001507113506 | P100: 1.405980172 | Q100: 2013
I101: 0.0009665339723 | J101: 1.673165917 | K101: 2014 | O101: 0.003240257179 | P101: 1.223395133 | Q101: 2014
I102: 0.001045357494 | J102: 1.806425672 | K102: 2015 | O102: 0.005263762728 | P102: 1.393771202 | Q102: 2015
I103: 0.00119552709 | J103: 1.749680538 | K103: 2016 | O103: 0.01342037674 | P103: 1.451435908 | Q103: 2016
I104: 0.005490287743 | J104: 1.496252473 | K104: 2017 | O104: 0.02406448234 | P104: 1.4388958 | Q104: 2017
I105: 0.01601546891 | J105: 1.575214572 | K105: 2018 | O105: 0.02719062802 | P105: 1.22972637 | Q105: 2018
I106: 0.02039769026 | J106: 1.61445005 | K106: 2019 | O106: 0.03422911809 | P106: 1.290357467 | Q106: 2019
I107: 0.0308440887 | J107: 1.712877595 | K107: 2020 | O107: 0.03707008774 | P107: 1.224948955 | Q107: 2020 | R107: DUK
G109: SOCO | I109: 0.0001265649672 | J109: 1.477930869 | K109: 2012 | M109: PSCO | O109: 0.008434047044 | P109: 1.595885996 | Q109: 2012
I110: 0.0002280387549 | J110: 1.292748231 | K110: 2013 | O110: 0.01125583265 | P110: 1.435741466 | Q110: 2013
I111: 0.000728250432 | J111: 1.037795184 | K111: 2014 | O111: 0.01275481244 | P111: 1.467949543 | Q111: 2014
I112: 0.0007932330412 | J112: 1.23990549 | K112: 2015 | O112: 0.0126881123 | P112: 1.500100282 | Q112: 2015
I113: 0.003865357697 | J113: 1.420535935 | K113: 2016 | O113: 0.01948754186 | P113: 1.493702625 | Q113: 2016
I114: 0.009677518805 | J114: 1.474147121 | K114: 2017 | O114: 0.02811356118 | P114: 1.645211583 | Q114: 2017
I115: 0.01142388954 | J115: 1.312019248 | K115: 2018 | O115: 0.03048201806 | P115: 1.34163206 | Q115: 2018
I116: 0.01232488454 | J116: 1.341024601 | K116: 2019 | O116: 0.03200363358 | P116: 1.551953483 | Q116: 2019
I117: 0.02078360045 | J117: 1.251786519 | K117: 2020 | O117: 0.03394908064 | P117: 1.740612493 | Q117: 2020 | R117: PSCO
G119: TVA | I119: 3.186493265e-05 | J119: 0.9395590369 | K119: 2012 | M119: FPL | O119: 0.0008121665243 | P119: 1.078851242 | Q119: 2012
I120: 0.0001003313801 | J120: 1.347293814 | K120: 2013 | O120: 0.0008933821443 | P120: 1.635565963 | Q120: 2013
I121: 0.0001366483675 | J121: 1.248407074 | K121: 2014 | O121: 0.0009665339723 | P121: 1.673165917 | Q121: 2014
I122: 0.0004112843619 | J122: 0.9978800239 | K122: 2015 | O122: 0.001045357494 | P122: 1.806425672 | Q122: 2015
I123: 0.0005856885054 | J123: 1.221423949 | K123: 2016 | O123: 0.00119552709 | P123: 1.749680538 | Q123: 2016
I124: 0.001337000485 | J124: 1.541002701 | K124: 2017 | O124: 0.005490287743 | P124: 1.496252473 | Q124: 2017
I125: 0.001801043327 | J125: 1.292721091 | K125: 2018 | O125: 0.01601546891 | P125: 1.575214572 | Q125: 2018
I126: 0.002908649568 | J126: 1.360500713 | K126: 2019 | O126: 0.02039769026 | P126: 1.61445005 | Q126: 2019
I127: 0.002923277197 | J127: 1.278088201 | K127: 2020 | O127: 0.0308440887 | P127: 1.712877595 | Q127: 2020 | R127: FPL
M129: ERCOT | O129: 0.0005232517138 | P129: 1.283828955 | Q129: 2012
O130: 0.0006936400948 | P130: 1.242443063 | Q130: 2013
O131: 0.001285759086 | P131: 1.075983516 | Q131: 2014
O132: 0.001658984297 | P132: 1.214920153 | Q132: 2015
O133: 0.002961369322 | P133: 1.32041498 | Q133: 2016
O134: 0.007413361618 | P134: 0.9947891857 | Q134: 2017
O135: 0.01057009038 | P135: 1.204173425 | Q135: 2018
O136: 0.01392800498 | P136: 1.305913705 | Q136: 2019
O137: 0.0277765847 | P137: 0.9592432053 | Q137: 2020 | R137: ERCOT
M139: NYISO | O139: 0.001188669746 | P139: 1.328473512 | Q139: 2012
O140: 0.001709352078 | P140: 1.349053173 | Q140: 2013
O141: 0.002687040909 | P141: 1.162737086 | Q141: 2014
O142: 0.004691653861 | P142: 1.264710646 | Q142: 2015
O143: 0.007165782849 | P143: 1.357867946 | Q143: 2016
O144: 0.009711682856 | P144: 1.316444106 | Q144: 2017
O145: 0.01169153853 | P145: 1.24944298 | Q145: 2018
O146: 0.01617885721 | P146: 1.213766785 | Q146: 2019
O147: 0.02214339379 | P147: 1.180811582 | Q147: 2020 | R147: NYISO
M149: SOCO | O149: 0.0001265649672 | P149: 1.477930869 | Q149: 2012
O150: 0.0002280387549 | P150: 1.292748231 | Q150: 2013
O151: 0.000728250432 | P151: 1.037795184 | Q151: 2014
O152: 0.0007932330412 | P152: 1.23990549 | Q152: 2015
O153: 0.003865357697 | P153: 1.420535935 | Q153: 2016
O154: 0.009677518805 | P154: 1.474147121 | Q154: 2017
O155: 0.01142388954 | P155: 1.312019248 | Q155: 2018
O156: 0.01232488454 | P156: 1.341024601 | Q156: 2019
O157: 0.02078360045 | P157: 1.251786519 | Q157: 2020 | R157: SOCO
M159: PJM | O159: 0.002347724816 | P159: 1.503413994 | Q159: 2012
O160: 0.00312928075 | P160: 1.635180038 | Q160: 2013
O161: 0.003699966892 | P161: 1.429527357 | Q161: 2014
O162: 0.004527236877 | P162: 1.384859867 | Q162: 2015
O163: 0.006289411284 | P163: 1.429095812 | Q163: 2016
O164: 0.008311543605 | P164: 1.430211055 | Q164: 2017
O165: 0.009507322673 | P165: 1.439286675 | Q165: 2018
O166: 0.01206409667 | P166: 1.397881586 | Q166: 2019
O167: 0.0151320114 | P167: 1.440902516 | Q167: 2020 | R167: PJM
M169: MISO | O169: 0.0001098834298 | P169: 1.233189235 | Q169: 2012
O170: 0.0002322392029 | P170: 1.179686651 | Q170: 2013
O171: 0.0005769391684 | P171: 1.198953379 | Q171: 2014
O172: 0.0008278956396 | P172: 1.317702845 | Q172: 2015
O173: 0.001119824804 | P173: 1.388424333 | Q173: 2016
O174: 0.002433581049 | P174: 1.270359966 | Q174: 2017
O175: 0.003740261658 | P175: 1.178545571 | Q175: 2018
O176: 0.004476710643 | P176: 1.115038537 | Q176: 2019
O177: 0.006180679488 | P177: 1.181405832 | Q177: 2020 | R177: MISO
M179: SPP | O179: 0.0005754594881 | P179: 1.51415336 | Q179: 2012
O180: 0.0006555550992 | P180: 1.648211054 | Q180: 2013
O181: 0.0009128362958 | P181: 1.627859976 | Q181: 2014
O182: 0.001005969706 | P182: 1.652849184 | Q182: 2015
O183: 0.001320891621 | P183: 1.914483912 | Q183: 2016
O184: 0.003107471773 | P184: 1.754260048 | Q184: 2017
O185: 0.00350142757 | P185: 1.604496717 | Q185: 2018
O186: 0.003692416468 | P186: 1.774438217 | Q186: 2019
O187: 0.004688384518 | P187: 1.877143402 | Q187: 2020 | R187: SPP
M189: TVA | O189: 3.186493265e-05 | P189: 0.9395590369 | Q189: 2012
O190: 0.0001003313801 | P190: 1.347293814 | Q190: 2013
O191: 0.0001366483675 | P191: 1.248407074 | Q191: 2014
O192: 0.0004112843619 | P192: 0.9978800239 | Q192: 2015
O193: 0.0005856885054 | P193: 1.221423949 | Q193: 2016
O194: 0.001337000485 | P194: 1.541002701 | Q194: 2017
O195: 0.001801043327 | P195: 1.292721091 | Q195: 2018
O196: 0.002908649568 | P196: 1.360500713 | Q196: 2019
O197: 0.002923277197 | P197: 1.278088201 | Q197: 2020 | R197: TVA

Sheet Value Difference vs. Flat Block
A1: Cause of value differences between solar and flat block in 2020
A20: Sources: Berkeley Lab, ABB, ISOs | H20: Sources: Berkeley Lab, ABB, ISOs
A21: Notes: Solar value factor describes the market value of solar in proportion to that of a generalized flat-block, i.e., 24x7 average price across all pricing nodes in region.
A22: For more details on methodology see Berkeley Lab publication "Mills et al, 2021, Solar-to-Grid" https://emp.lbl.gov/renewable-grid-insights
A24: Regional average market value of solar in 2020 relative to a generalized flat block of power
B25: CAISO | D25: ERCOT | F25: ISO-NE | H25: MISO | J25: NYISO | L25: PJM | N25: SPP
B26: value factor | C26: penetration | D26: value factor | E26: penetration | F26: value factor | G26: penetration | H26: value factor | I26: penetration | J26: value factor | K26: penetration | L26: value factor | M26: penetration | N26: value factor | O26: penetration
A27: 2012 | B27: 1.354532842 | C27: 0.01600159541 | D27: 1.283828955 | E27: 0.0005232517138 | F27: 1.160071009 | G27: 0.002144432351 | H27: 1.233189235 | I27: 0.0001098834298 | J27: 1.328473512 | K27: 0.001188669746 | L27: 1.503413994 | M27: 0.002347724816 | N27: 1.51415336 | O27: 0.0005754594881
A28: 2013 | B28: 1.210942854 | C28: 0.02945693338 | D28: 1.242443063 | E28: 0.0006936400948 | F28: 1.064730836 | G28: 0.004838408966 | H28: 1.179686651 | I28: 0.0002322392029 | J28: 1.349053173 | K28: 0.001709352078 | L28: 1.635180038 | M28: 0.00312928075 | N28: 1.648211054 | O28: 0.0006555550992
A29: 2014 | B29: 1.096915406 | C29: 0.06468383159 | D29: 1.075983516 | E29: 0.001285759086 | F29: 0.9634324715 | G29: 0.009776551088 | H29: 1.198953379 | I29: 0.0005769391684 | J29: 1.162737086 | K29: 0.002687040909 | L29: 1.429527357 | M29: 0.003699966892 | N29: 1.627859976 | O29: 0.0009128362958
